Workbook

Sheet ProjectInformation
A1: CPN DATA
A2: INFORMATION ADDED BY DESIGNER
A3: Section Engineer | B3: Flattery
A4: Design Team | B4: Bell
A6: County | B6: Benton
A7: Project Number | B7: NHSX-30-6(231)--3H-06
A8: English or Metric | B8: ENGLISH
A9: Revised
A10: Bridge Block
A11: File No.

Sheet PrintSheets
B94: FILE NO. | I94: =IF(ProjectInformation!$B$11<>"",ProjectInformation!$B$11,"") ->  | P94: =UPPER(ProjectInformation!B8) -> ENGLISH | W94: DESIGN TEAM | AF94: =IF(AND(ProjectInformation!$B$3<>"",ProjectInformation!$B$4<>"",ProjectInformation!$B$5<>""),ProjectInformation!$B$3&"\"&ProjectInformation!$B$4&"\"&ProjectInformation!$B$5,IF(AND(ProjectInformation!$B$3<>"",ProjectInformation!$B$4<>""),ProjectInformation!$B$3&"\"&ProjectInformation!$B$4,IF(ProjectInformation!$B$3<>"",ProjectInformation!$B$3,""))) -> Flattery\Bell | BN94: =IF(ProjectInformation!$B$6<>"",ProjectInformation!$B$6,"") -> Benton | CX94: COUNTY | DD94: PROJECT NUMBER | DP94: =IF(ProjectInformation!$B$7<>"",ProjectInformation!$B$7,"") -> NHSX-30-6(231)--3H-06 | ET94: SHEET NUMBER | FD94: C.1 | FJ94: =IF(FP94<>"","REVISED","") ->  | FP94: =IF(ProjectInformation!$B$9<>"",ProjectInformation!$B$9,"") -> 
B95: 2/15/2018 5:28:17 PM jbottje c:\pw_work\pwmain\jbottje\d0797678\06030231C01.xlsm
B189: FILE NO. | I189: =IF(ProjectInformation!$B$11<>"",ProjectInformation!$B$11,"") ->  | P189: =UPPER(ProjectInformation!B8) -> ENGLISH | W189: DESIGN TEAM | AF189: =IF(AND(ProjectInformation!$B$3<>"",ProjectInformation!$B$4<>"",ProjectInformation!$B$5<>""),ProjectInformation!$B$3&"\"&ProjectInformation!$B$4&"\"&ProjectInformation!$B$5,IF(AND(ProjectInformation!$B$3<>"",ProjectInformation!$B$4<>""),ProjectInformation!$B$3&"\"&ProjectInformation!$B$4,IF(ProjectInformation!$B$3<>"",ProjectInformation!$B$3,""))) -> Flattery\Bell | BN189: =IF(ProjectInformation!$B$6<>"",ProjectInformation!$B$6,"") -> Benton | CX189: COUNTY | DD189: PROJECT NUMBER | DP189: =IF(ProjectInformation!$B$7<>"",ProjectInformation!$B$7,"") -> NHSX-30-6(231)--3H-06 | ET189: SHEET NUMBER | FD189: =IF($FD$94<>"","C."& MID(OFFSET($FD$189,-95,0),3,LEN(OFFSET($FD$189,-95,0))-2)+1,"") -> C.2 | FJ189: =IF(FP189<>"","REVISED","") ->  | FP189: =IF(ProjectInformation!$B$9<>"",ProjectInformation!$B$9,"") -> 
B190: 2/15/2018 5:28:17 PM jbottje c:\pw_work\pwmain\jbottje\d0797678\06030231C01.xlsm
B284: FILE NO. | I284: =IF(ProjectInformation!$B$11<>"",ProjectInformation!$B$11,"") ->  | P284: =UPPER(ProjectInformation!B8) -> ENGLISH | W284: DESIGN TEAM | AF284: =IF(AND(ProjectInformation!$B$3<>"",ProjectInformation!$B$4<>"",ProjectInformation!$B$5<>""),ProjectInformation!$B$3&"\"&ProjectInformation!$B$4&"\"&ProjectInformation!$B$5,IF(AND(ProjectInformation!$B$3<>"",ProjectInformation!$B$4<>""),ProjectInformation!$B$3&"\"&ProjectInformation!$B$4,IF(ProjectInformation!$B$3<>"",ProjectInformation!$B$3,""))) -> Flattery\Bell | BN284: =IF(ProjectInformation!$B$6<>"",ProjectInformation!$B$6,"") -> Benton | CX284: COUNTY | DD284: PROJECT NUMBER | DP284: =IF(ProjectInformation!$B$7<>"",ProjectInformation!$B$7,"") -> NHSX-30-6(231)--3H-06 | ET284: SHEET NUMBER | FD284: =IF($FD$189<>"","C."& MID(OFFSET($FD$284,-95,0),3,LEN(OFFSET($FD$284,-95,0))-2)+1,"") -> C.3 | FJ284: =IF(FP284<>"","REVISED","") ->  | FP284: =IF(ProjectInformation!$B$9<>"",ProjectInformation!$B$9,"") -> 
B285: 2/15/2018 5:28:17 PM jbottje c:\pw_work\pwmain\jbottje\d0797678\06030231C01.xlsm
B379: FILE NO. | I379: =IF(ProjectInformation!$B$11<>"",ProjectInformation!$B$11,"") ->  | P379: =UPPER(ProjectInformation!B8) -> ENGLISH | W379: DESIGN TEAM | AF379: =IF(AND(ProjectInformation!$B$3<>"",ProjectInformation!$B$4<>"",ProjectInformation!$B$5<>""),ProjectInformation!$B$3&"\"&ProjectInformation!$B$4&"\"&ProjectInformation!$B$5,IF(AND(ProjectInformation!$B$3<>"",ProjectInformation!$B$4<>""),ProjectInformation!$B$3&"\"&ProjectInformation!$B$4,IF(ProjectInformation!$B$3<>"",ProjectInformation!$B$3,""))) -> Flattery\Bell | BN379: =IF(ProjectInformation!$B$6<>"",ProjectInformation!$B$6,"") -> Benton | CX379: COUNTY | DD379: PROJECT NUMBER | DP379: =IF(ProjectInformation!$B$7<>"",ProjectInformation!$B$7,"") -> NHSX-30-6(231)--3H-06 | ET379: SHEET NUMBER | FD379: =IF($FD$284<>"","C."& MID(OFFSET($FD$379,-95,0),3,LEN(OFFSET($FD$379,-95,0))-2)+1,"") -> C.4 | FJ379: =IF(FP379<>"","REVISED","") ->  | FP379: =IF(ProjectInformation!$B$9<>"",ProjectInformation!$B$9,"") -> 
B380: 2/15/2018 5:28:18 PM jbottje c:\pw_work\pwmain\jbottje\d0797678\06030231C01.xlsm
B474: FILE NO. | I474: =IF(ProjectInformation!$B$11<>"",ProjectInformation!$B$11,"") ->  | P474: =UPPER(ProjectInformation!B8) -> ENGLISH | W474: DESIGN TEAM | AF474: =IF(AND(ProjectInformation!$B$3<>"",ProjectInformation!$B$4<>"",ProjectInformation!$B$5<>""),ProjectInformation!$B$3&"\"&ProjectInformation!$B$4&"\"&ProjectInformation!$B$5,IF(AND(ProjectInformation!$B$3<>"",ProjectInformation!$B$4<>""),ProjectInformation!$B$3&"\"&ProjectInformation!$B$4,IF(ProjectInformation!$B$3<>"",ProjectInformation!$B$3,""))) -> Flattery\Bell | BN474: =IF(ProjectInformation!$B$6<>"",ProjectInformation!$B$6,"") -> Benton | CX474: COUNTY | DD474: PROJECT NUMBER | DP474: =IF(ProjectInformation!$B$7<>"",ProjectInformation!$B$7,"") -> NHSX-30-6(231)--3H-06 | ET474: SHEET NUMBER | FD474: =IF($FD$379<>"","C."& MID(OFFSET($FD$474,-95,0),3,LEN(OFFSET($FD$474,-95,0))-2)+1,"") -> C.5 | FJ474: =IF(FP474<>"","REVISED","") ->  | FP474: =IF(ProjectInformation!$B$9<>"",ProjectInformation!$B$9,"") -> 
B475: 2/15/2018 5:28:19 PM jbottje c:\pw_work\pwmain\jbottje\d0797678\06030231C01.xlsm
B569: FILE NO. | I569: =IF(ProjectInformation!$B$11<>"",ProjectInformation!$B$11,"") ->  | P569: =UPPER(ProjectInformation!B8) -> ENGLISH | W569: DESIGN TEAM | AF569: =IF(AND(ProjectInformation!$B$3<>"",ProjectInformation!$B$4<>"",ProjectInformation!$B$5<>""),ProjectInformation!$B$3&"\"&ProjectInformation!$B$4&"\"&ProjectInformation!$B$5,IF(AND(ProjectInformation!$B$3<>"",ProjectInformation!$B$4<>""),ProjectInformation!$B$3&"\"&ProjectInformation!$B$4,IF(ProjectInformation!$B$3<>"",ProjectInformation!$B$3,""))) -> Flattery\Bell | BN569: =IF(ProjectInformation!$B$6<>"",ProjectInformation!$B$6,"") -> Benton | CX569: COUNTY | DD569: PROJECT NUMBER | DP569: =IF(ProjectInformation!$B$7<>"",ProjectInformation!$B$7,"") -> NHSX-30-6(231)--3H-06 | ET569: SHEET NUMBER | FD569: =IF($FD$474<>"","C."& MID(OFFSET($FD$569,-95,0),3,LEN(OFFSET($FD$569,-95,0))-2)+1,"") -> C.6 | FJ569: =IF(FP569<>"","REVISED","") ->  | FP569: =IF(ProjectInformation!$B$9<>"",ProjectInformation!$B$9,"") -> 
B570: 2/15/2018 5:28:20 PM jbottje c:\pw_work\pwmain\jbottje\d0797678\06030231C01.xlsm
B664: FILE NO. | I664: =IF(ProjectInformation!$B$11<>"",ProjectInformation!$B$11,"") ->  | P664: =UPPER(ProjectInformation!B8) -> ENGLISH | W664: DESIGN TEAM | AF664: =IF(AND(ProjectInformation!$B$3<>"",ProjectInformation!$B$4<>"",ProjectInformation!$B$5<>""),ProjectInformation!$B$3&"\"&ProjectInformation!$B$4&"\"&ProjectInformation!$B$5,IF(AND(ProjectInformation!$B$3<>"",ProjectInformation!$B$4<>""),ProjectInformation!$B$3&"\"&ProjectInformation!$B$4,IF(ProjectInformation!$B$3<>"",ProjectInformation!$B$3,""))) -> Flattery\Bell | BN664: =IF(ProjectInformation!$B$6<>"",ProjectInformation!$B$6,"") -> Benton | CX664: COUNTY | DD664: PROJECT NUMBER | DP664: =IF(ProjectInformation!$B$7<>"",ProjectInformation!$B$7,"") -> NHSX-30-6(231)--3H-06 | ET664: SHEET NUMBER | FD664: =IF($FD$569<>"","C."& MID(OFFSET($FD$664,-95,0),3,LEN(OFFSET($FD$664,-95,0))-2)+1,"") -> C.7 | FJ664: =IF(FP664<>"","REVISED","") ->  | FP664: =IF(ProjectInformation!$B$9<>"",ProjectInformation!$B$9,"") -> 
B665: 2/15/2018 5:28:21 PM jbottje c:\pw_work\pwmain\jbottje\d0797678\06030231C01.xlsm
B759: FILE NO. | I759: =IF(ProjectInformation!$B$11<>"",ProjectInformation!$B$11,"") ->  | P759: =UPPER(ProjectInformation!B8) -> ENGLISH | W759: DESIGN TEAM | AF759: =IF(AND(ProjectInformation!$B$3<>"",ProjectInformation!$B$4<>"",ProjectInformation!$B$5<>""),ProjectInformation!$B$3&"\"&ProjectInformation!$B$4&"\"&ProjectInformation!$B$5,IF(AND(ProjectInformation!$B$3<>"",ProjectInformation!$B$4<>""),ProjectInformation!$B$3&"\"&ProjectInformation!$B$4,IF(ProjectInformation!$B$3<>"",ProjectInformation!$B$3,""))) -> Flattery\Bell | BN759: =IF(ProjectInformation!$B$6<>"",ProjectInformation!$B$6,"") -> Benton | CX759: COUNTY | DD759: PROJECT NUMBER | DP759: =IF(ProjectInformation!$B$7<>"",ProjectInformation!$B$7,"") -> NHSX-30-6(231)--3H-06 | ET759: SHEET NUMBER | FD759: =IF($FD$664<>"","C."& MID(OFFSET($FD$759,-95,0),3,LEN(OFFSET($FD$759,-95,0))-2)+1,"") -> C.8 | FJ759: =IF(FP759<>"","REVISED","") ->  | FP759: =IF(ProjectInformation!$B$9<>"",ProjectInformation!$B$9,"") -> 
B760: 2/15/2018 5:28:21 PM jbottje c:\pw_work\pwmain\jbottje\d0797678\06030231C01.xlsm
B854: FILE NO. | I854: =IF(ProjectInformation!$B$11<>"",ProjectInformation!$B$11,"") ->  | P854: =UPPER(ProjectInformation!B8) -> ENGLISH | W854: DESIGN TEAM | AF854: =IF(AND(ProjectInformation!$B$3<>"",ProjectInformation!$B$4<>"",ProjectInformation!$B$5<>""),ProjectInformation!$B$3&"\"&ProjectInformation!$B$4&"\"&ProjectInformation!$B$5,IF(AND(ProjectInformation!$B$3<>"",ProjectInformation!$B$4<>""),ProjectInformation!$B$3&"\"&ProjectInformation!$B$4,IF(ProjectInformation!$B$3<>"",ProjectInformation!$B$3,""))) -> Flattery\Bell | BN854: =IF(ProjectInformation!$B$6<>"",ProjectInformation!$B$6,"") -> Benton | CX854: COUNTY | DD854: PROJECT NUMBER | DP854: =IF(ProjectInformation!$B$7<>"",ProjectInformation!$B$7,"") -> NHSX-30-6(231)--3H-06 | ET854: SHEET NUMBER | FD854: =IF($FD$759<>"","C."& MID(OFFSET($FD$854,-95,0),3,LEN(OFFSET($FD$854,-95,0))-2)+1,"") -> C.9 | FJ854: =IF(FP854<>"","REVISED","") ->  | FP854: =IF(ProjectInformation!$B$9<>"",ProjectInformation!$B$9,"") -> 
B855: 2/15/2018 5:28:22 PM jbottje c:\pw_work\pwmain\jbottje\d0797678\06030231C01.xlsm
B949: FILE NO. | I949: =IF(ProjectInformation!$B$11<>"",ProjectInformation!$B$11,"") ->  | P949: =UPPER(ProjectInformation!B8) -> ENGLISH | W949: DESIGN TEAM | AF949: =IF(AND(ProjectInformation!$B$3<>"",ProjectInformation!$B$4<>"",ProjectInformation!$B$5<>""),ProjectInformation!$B$3&"\"&ProjectInformation!$B$4&"\"&ProjectInformation!$B$5,IF(AND(ProjectInformation!$B$3<>"",ProjectInformation!$B$4<>""),ProjectInformation!$B$3&"\"&ProjectInformation!$B$4,IF(ProjectInformation!$B$3<>"",ProjectInformation!$B$3,""))) -> Flattery\Bell | BN949: =IF(ProjectInformation!$B$6<>"",ProjectInformation!$B$6,"") -> Benton | CX949: COUNTY | DD949: PROJECT NUMBER | DP949: =IF(ProjectInformation!$B$7<>"",ProjectInformation!$B$7,"") -> NHSX-30-6(231)--3H-06 | ET949: SHEET NUMBER | FD949: =IF($FD$854<>"","C."& MID(OFFSET($FD$949,-95,0),3,LEN(OFFSET($FD$949,-95,0))-2)+1,"") -> C.10 | FJ949: =IF(FP949<>"","REVISED","") ->  | FP949: =IF(ProjectInformation!$B$9<>"",ProjectInformation!$B$9,"") -> 
B950: 2/15/2018 5:28:23 PM jbottje c:\pw_work\pwmain\jbottje\d0797678\06030231C01.xlsm
B1044: FILE NO. | I1044: =IF(ProjectInformation!$B$11<>"",ProjectInformation!$B$11,"") ->  | P1044: =UPPER(ProjectInformation!B8) -> ENGLISH | W1044: DESIGN TEAM | AF1044: =IF(AND(ProjectInformation!$B$3<>"",ProjectInformation!$B$4<>"",ProjectInformation!$B$5<>""),ProjectInformation!$B$3&"\"&ProjectInformation!$B$4&"\"&ProjectInformation!$B$5,IF(AND(ProjectInformation!$B$3<>"",ProjectInformation!$B$4<>""),ProjectInformation!$B$3&"\"&ProjectInformation!$B$4,IF(ProjectInformation!$B$3<>"",ProjectInformation!$B$3,""))) -> Flattery\Bell | BN1044: =IF(ProjectInformation!$B$6<>"",ProjectInformation!$B$6,"") -> Benton | CX1044: COUNTY | DD1044: PROJECT NUMBER | DP1044: =IF(ProjectInformation!$B$7<>"",ProjectInformation!$B$7,"") -> NHSX-30-6(231)--3H-06 | ET1044: SHEET NUMBER | FD1044: =IF($FD$949<>"","C."& MID(OFFSET($FD$1044,-95,0),3,LEN(OFFSET($FD$1044,-95,0))-2)+1,"") -> C.11 | FJ1044: =IF(FP1044<>"","REVISED","") ->  | FP1044: =IF(ProjectInformation!$B$9<>"",ProjectInformation!$B$9,"") -> 
B1045: 2/15/2018 5:28:24 PM jbottje c:\pw_work\pwmain\jbottje\d0797678\06030231C01.xlsm
B1139: FILE NO. | I1139: =IF(ProjectInformation!$B$11<>"",ProjectInformation!$B$11,"") ->  | P1139: =UPPER(ProjectInformation!B8) -> ENGLISH | W1139: DESIGN TEAM | AF1139: =IF(AND(ProjectInformation!$B$3<>"",ProjectInformation!$B$4<>"",ProjectInformation!$B$5<>""),ProjectInformation!$B$3&"\"&ProjectInformation!$B$4&"\"&ProjectInformation!$B$5,IF(AND(ProjectInformation!$B$3<>"",ProjectInformation!$B$4<>""),ProjectInformation!$B$3&"\"&ProjectInformation!$B$4,IF(ProjectInformation!$B$3<>"",ProjectInformation!$B$3,""))) -> Flattery\Bell | BN1139: =IF(ProjectInformation!$B$6<>"",ProjectInformation!$B$6,"") -> Benton | CX1139: COUNTY | DD1139: PROJECT NUMBER | DP1139: =IF(ProjectInformation!$B$7<>"",ProjectInformation!$B$7,"") -> NHSX-30-6(231)--3H-06 | ET1139: SHEET NUMBER | FD1139: =IF($FD$1044<>"","C."& MID(OFFSET($FD$1139,-95,0),3,LEN(OFFSET($FD$1139,-95,0))-2)+1,"") -> C.12 | FJ1139: =IF(FP1139<>"","REVISED","") ->  | FP1139: =IF(ProjectInformation!$B$9<>"",ProjectInformation!$B$9,"") -> 
B1140: 2/15/2018 5:28:24 PM jbottje c:\pw_work\pwmain\jbottje\d0797678\06030231C01.xlsm
B1234: FILE NO. | I1234: =IF(ProjectInformation!$B$11<>"",ProjectInformation!$B$11,"") ->  | P1234: =UPPER(ProjectInformation!B8) -> ENGLISH | W1234: DESIGN TEAM | AF1234: =IF(AND(ProjectInformation!$B$3<>"",ProjectInformation!$B$4<>"",ProjectInformation!$B$5<>""),ProjectInformation!$B$3&"\"&ProjectInformation!$B$4&"\"&ProjectInformation!$B$5,IF(AND(ProjectInformation!$B$3<>"",ProjectInformation!$B$4<>""),ProjectInformation!$B$3&"\"&ProjectInformation!$B$4,IF(ProjectInformation!$B$3<>"",ProjectInformation!$B$3,""))) -> Flattery\Bell | BN1234: =IF(ProjectInformation!$B$6<>"",ProjectInformation!$B$6,"") -> Benton | CX1234: COUNTY | DD1234: PROJECT NUMBER | DP1234: =IF(ProjectInformation!$B$7<>"",ProjectInformation!$B$7,"") -> NHSX-30-6(231)--3H-06 | ET1234: SHEET NUMBER | FD1234: =IF($FD$1139<>"","C."& MID(OFFSET($FD$1234,-95,0),3,LEN(OFFSET($FD$1234,-95,0))-2)+1,"") -> C.13 | FJ1234: =IF(FP1234<>"","REVISED","") ->  | FP1234: =IF(ProjectInformation!$B$9<>"",ProjectInformation!$B$9,"") -> 
B1235: 2/15/2018 5:28:25 PM jbottje c:\pw_work\pwmain\jbottje\d0797678\06030231C01.xlsm
B1329: FILE NO. | I1329: =IF(ProjectInformation!$B$11<>"",ProjectInformation!$B$11,"") ->  | P1329: =UPPER(ProjectInformation!B8) -> ENGLISH | W1329: DESIGN TEAM | AF1329: =IF(AND(ProjectInformation!$B$3<>"",ProjectInformation!$B$4<>"",ProjectInformation!$B$5<>""),ProjectInformation!$B$3&"\"&ProjectInformation!$B$4&"\"&ProjectInformation!$B$5,IF(AND(ProjectInformation!$B$3<>"",ProjectInformation!$B$4<>""),ProjectInformation!$B$3&"\"&ProjectInformation!$B$4,IF(ProjectInformation!$B$3<>"",ProjectInformation!$B$3,""))) -> Flattery\Bell | BN1329: =IF(ProjectInformation!$B$6<>"",ProjectInformation!$B$6,"") -> Benton | CX1329: COUNTY | DD1329: PROJECT NUMBER | DP1329: =IF(ProjectInformation!$B$7<>"",ProjectInformation!$B$7,"") -> NHSX-30-6(231)--3H-06 | ET1329: SHEET NUMBER | FD1329: =IF($FD$1234<>"","C."& MID(OFFSET($FD$1329,-95,0),3,LEN(OFFSET($FD$1329,-95,0))-2)+1,"") -> C.14 | FJ1329: =IF(FP1329<>"","REVISED","") ->  | FP1329: =IF(ProjectInformation!$B$9<>"",ProjectInformation!$B$9,"") -> 
B1330: 2/15/2018 5:28:26 PM jbottje c:\pw_work\pwmain\jbottje\d0797678\06030231C01.xlsm
B1424: FILE NO. | I1424: =IF(ProjectInformation!$B$11<>"",ProjectInformation!$B$11,"") ->  | P1424: =UPPER(ProjectInformation!B8) -> ENGLISH | W1424: DESIGN TEAM | AF1424: =IF(AND(ProjectInformation!$B$3<>"",ProjectInformation!$B$4<>"",ProjectInformation!$B$5<>""),ProjectInformation!$B$3&"\"&ProjectInformation!$B$4&"\"&ProjectInformation!$B$5,IF(AND(ProjectInformation!$B$3<>"",ProjectInformation!$B$4<>""),ProjectInformation!$B$3&"\"&ProjectInformation!$B$4,IF(ProjectInformation!$B$3<>"",ProjectInformation!$B$3,""))) -> Flattery\Bell | BN1424: =IF(ProjectInformation!$B$6<>"",ProjectInformation!$B$6,"") -> Benton | CX1424: COUNTY | DD1424: PROJECT NUMBER | DP1424: =IF(ProjectInformation!$B$7<>"",ProjectInformation!$B$7,"") -> NHSX-30-6(231)--3H-06 | ET1424: SHEET NUMBER | FD1424: =IF($FD$1329<>"","C."& MID(OFFSET($FD$1424,-95,0),3,LEN(OFFSET($FD$1424,-95,0))-2)+1,"") -> C.15 | FJ1424: =IF(FP1424<>"","REVISED","") ->  | FP1424: =IF(ProjectInformation!$B$9<>"",ProjectInformation!$B$9,"") -> 
B1425: 2/15/2018 5:28:27 PM jbottje c:\pw_work\pwmain\jbottje\d0797678\06030231C01.xlsm
B1519: FILE NO. | I1519: =IF(ProjectInformation!$B$11<>"",ProjectInformation!$B$11,"") ->  | P1519: =UPPER(ProjectInformation!B8) -> ENGLISH | W1519: DESIGN TEAM | AF1519: =IF(AND(ProjectInformation!$B$3<>"",ProjectInformation!$B$4<>"",ProjectInformation!$B$5<>""),ProjectInformation!$B$3&"\"&ProjectInformation!$B$4&"\"&ProjectInformation!$B$5,IF(AND(ProjectInformation!$B$3<>"",ProjectInformation!$B$4<>""),ProjectInformation!$B$3&"\"&ProjectInformation!$B$4,IF(ProjectInformation!$B$3<>"",ProjectInformation!$B$3,""))) -> Flattery\Bell | BN1519: =IF(ProjectInformation!$B$6<>"",ProjectInformation!$B$6,"") -> Benton | CX1519: COUNTY | DD1519: PROJECT NUMBER | DP1519: =IF(ProjectInformation!$B$7<>"",ProjectInformation!$B$7,"") -> NHSX-30-6(231)--3H-06 | ET1519: SHEET NUMBER | FD1519: =IF($FD$1424<>"","C."& MID(OFFSET($FD$1519,-95,0),3,LEN(OFFSET($FD$1519,-95,0))-2)+1,"") -> C.16 | FJ1519: =IF(FP1519<>"","REVISED","") ->  | FP1519: =IF(ProjectInformation!$B$9<>"",ProjectInformation!$B$9,"") -> 
B1520: 2/15/2018 5:28:27 PM jbottje c:\pw_work\pwmain\jbottje\d0797678\06030231C01.xlsm
B1614: FILE NO. | I1614: =IF(ProjectInformation!$B$11<>"",ProjectInformation!$B$11,"") ->  | P1614: =UPPER(ProjectInformation!B8) -> ENGLISH | W1614: DESIGN TEAM | AF1614: =IF(AND(ProjectInformation!$B$3<>"",ProjectInformation!$B$4<>"",ProjectInformation!$B$5<>""),ProjectInformation!$B$3&"\"&ProjectInformation!$B$4&"\"&ProjectInformation!$B$5,IF(AND(ProjectInformation!$B$3<>"",ProjectInformation!$B$4<>""),ProjectInformation!$B$3&"\"&ProjectInformation!$B$4,IF(ProjectInformation!$B$3<>"",ProjectInformation!$B$3,""))) -> Flattery\Bell | BN1614: =IF(ProjectInformation!$B$6<>"",ProjectInformation!$B$6,"") -> Benton | CX1614: COUNTY | DD1614: PROJECT NUMBER | DP1614: =IF(ProjectInformation!$B$7<>"",ProjectInformation!$B$7,"") -> NHSX-30-6(231)--3H-06 | ET1614: SHEET NUMBER | FD1614: =IF($FD$1519<>"","C."& MID(OFFSET($FD$1614,-95,0),3,LEN(OFFSET($FD$1614,-95,0))-2)+1,"") -> C.17 | FJ1614: =IF(FP1614<>"","REVISED","") ->  | FP1614: =IF(ProjectInformation!$B$9<>"",ProjectInformation!$B$9,"") -> 
B1615: 2/15/2018 5:28:28 PM jbottje c:\pw_work\pwmain\jbottje\d0797678\06030231C01.xlsm
B1709: FILE NO. | I1709: =IF(ProjectInformation!$B$11<>"",ProjectInformation!$B$11,"") ->  | P1709: =UPPER(ProjectInformation!B8) -> ENGLISH | W1709: DESIGN TEAM | AF1709: =IF(AND(ProjectInformation!$B$3<>"",ProjectInformation!$B$4<>"",ProjectInformation!$B$5<>""),ProjectInformation!$B$3&"\"&ProjectInformation!$B$4&"\"&ProjectInformation!$B$5,IF(AND(ProjectInformation!$B$3<>"",ProjectInformation!$B$4<>""),ProjectInformation!$B$3&"\"&ProjectInformation!$B$4,IF(ProjectInformation!$B$3<>"",ProjectInformation!$B$3,""))) -> Flattery\Bell | BN1709: =IF(ProjectInformation!$B$6<>"",ProjectInformation!$B$6,"") -> Benton | CX1709: COUNTY | DD1709: PROJECT NUMBER | DP1709: =IF(ProjectInformation!$B$7<>"",ProjectInformation!$B$7,"") -> NHSX-30-6(231)--3H-06 | ET1709: SHEET NUMBER | FD1709: =IF($FD$1614<>"","C."& MID(OFFSET($FD$1709,-95,0),3,LEN(OFFSET($FD$1709,-95,0))-2)+1,"") -> C.18 | FJ1709: =IF(FP1709<>"","REVISED","") ->  | FP1709: =IF(ProjectInformation!$B$9<>"",ProjectInformation!$B$9,"") -> 
B1710: 2/15/2018 5:28:29 PM jbottje c:\pw_work\pwmain\jbottje\d0797678\06030231C01.xlsm
B1804: FILE NO. | I1804: =IF(ProjectInformation!$B$11<>"",ProjectInformation!$B$11,"") ->  | P1804: =UPPER(ProjectInformation!B8) -> ENGLISH | W1804: DESIGN TEAM | AF1804: =IF(AND(ProjectInformation!$B$3<>"",ProjectInformation!$B$4<>"",ProjectInformation!$B$5<>""),ProjectInformation!$B$3&"\"&ProjectInformation!$B$4&"\"&ProjectInformation!$B$5,IF(AND(ProjectInformation!$B$3<>"",ProjectInformation!$B$4<>""),ProjectInformation!$B$3&"\"&ProjectInformation!$B$4,IF(ProjectInformation!$B$3<>"",ProjectInformation!$B$3,""))) -> Flattery\Bell | BN1804: =IF(ProjectInformation!$B$6<>"",ProjectInformation!$B$6,"") -> Benton | CX1804: COUNTY | DD1804: PROJECT NUMBER | DP1804: =IF(ProjectInformation!$B$7<>"",ProjectInformation!$B$7,"") -> NHSX-30-6(231)--3H-06 | ET1804: SHEET NUMBER | FD1804: =IF($FD$1709<>"","C."& MID(OFFSET($FD$1804,-95,0),3,LEN(OFFSET($FD$1804,-95,0))-2)+1,"") -> C.19 | FJ1804: =IF(FP1804<>"","REVISED","") ->  | FP1804: =IF(ProjectInformation!$B$9<>"",ProjectInformation!$B$9,"") -> 
B1805: 2/15/2018 5:28:30 PM jbottje c:\pw_work\pwmain\jbottje\d0797678\06030231C01.xlsm
B1899: FILE NO. | I1899: =IF(ProjectInformation!$B$11<>"",ProjectInformation!$B$11,"") ->  | P1899: =UPPER(ProjectInformation!B8) -> ENGLISH | W1899: DESIGN TEAM | AF1899: =IF(AND(ProjectInformation!$B$3<>"",ProjectInformation!$B$4<>"",ProjectInformation!$B$5<>""),ProjectInformation!$B$3&"\"&ProjectInformation!$B$4&"\"&ProjectInformation!$B$5,IF(AND(ProjectInformation!$B$3<>"",ProjectInformation!$B$4<>""),ProjectInformation!$B$3&"\"&ProjectInformation!$B$4,IF(ProjectInformation!$B$3<>"",ProjectInformation!$B$3,""))) -> Flattery\Bell | BN1899: =IF(ProjectInformation!$B$6<>"",ProjectInformation!$B$6,"") -> Benton | CX1899: COUNTY | DD1899: PROJECT NUMBER | DP1899: =IF(ProjectInformation!$B$7<>"",ProjectInformation!$B$7,"") -> NHSX-30-6(231)--3H-06 | ET1899: SHEET NUMBER | FD1899: =IF($FD$1804<>"","C."& MID(OFFSET($FD$1899,-95,0),3,LEN(OFFSET($FD$1899,-95,0))-2)+1,"") -> C.20 | FJ1899: =IF(FP1899<>"","REVISED","") ->  | FP1899: =IF(ProjectInformation!$B$9<>"",ProjectInformation!$B$9,"") -> 
B1900: 2/15/2018 5:28:31 PM jbottje c:\pw_work\pwmain\jbottje\d0797678\06030231C01.xlsm
B1994: FILE NO. | I1994: =IF(ProjectInformation!$B$11<>"",ProjectInformation!$B$11,"") ->  | P1994: =UPPER(ProjectInformation!B8) -> ENGLISH | W1994: DESIGN TEAM | AF1994: =IF(AND(ProjectInformation!$B$3<>"",ProjectInformation!$B$4<>"",ProjectInformation!$B$5<>""),ProjectInformation!$B$3&"\"&ProjectInformation!$B$4&"\"&ProjectInformation!$B$5,IF(AND(ProjectInformation!$B$3<>"",ProjectInformation!$B$4<>""),ProjectInformation!$B$3&"\"&ProjectInformation!$B$4,IF(ProjectInformation!$B$3<>"",ProjectInformation!$B$3,""))) -> Flattery\Bell | BN1994: =IF(ProjectInformation!$B$6<>"",ProjectInformation!$B$6,"") -> Benton | CX1994: COUNTY | DD1994: PROJECT NUMBER | DP1994: =IF(ProjectInformation!$B$7<>"",ProjectInformation!$B$7,"") -> NHSX-30-6(231)--3H-06 | ET1994: SHEET NUMBER | FD1994: =IF($FD$1899<>"","C."& MID(OFFSET($FD$1994,-95,0),3,LEN(OFFSET($FD$1994,-95,0))-2)+1,"") -> C.21 | FJ1994: =IF(FP1994<>"","REVISED","") ->  | FP1994: =IF(ProjectInformation!$B$9<>"",ProjectInformation!$B$9,"") -> 
B1995: 2/15/2018 5:28:31 PM jbottje c:\pw_work\pwmain\jbottje\d0797678\06030231C01.xlsm
B2089: FILE NO. | I2089: =IF(ProjectInformation!$B$11<>"",ProjectInformation!$B$11,"") ->  | P2089: =UPPER(ProjectInformation!B8) -> ENGLISH | W2089: DESIGN TEAM | AF2089: =IF(AND(ProjectInformation!$B$3<>"",ProjectInformation!$B$4<>"",ProjectInformation!$B$5<>""),ProjectInformation!$B$3&"\"&ProjectInformation!$B$4&"\"&ProjectInformation!$B$5,IF(AND(ProjectInformation!$B$3<>"",ProjectInformation!$B$4<>""),ProjectInformation!$B$3&"\"&ProjectInformation!$B$4,IF(ProjectInformation!$B$3<>"",ProjectInformation!$B$3,""))) -> Flattery\Bell | BN2089: =IF(ProjectInformation!$B$6<>"",ProjectInformation!$B$6,"") -> Benton | CX2089: COUNTY | DD2089: PROJECT NUMBER | DP2089: =IF(ProjectInformation!$B$7<>"",ProjectInformation!$B$7,"") -> NHSX-30-6(231)--3H-06 | ET2089: SHEET NUMBER | FD2089: =IF($FD$1994<>"","C."& MID(OFFSET($FD$2089,-95,0),3,LEN(OFFSET($FD$2089,-95,0))-2)+1,"") -> C.22 | FJ2089: =IF(FP2089<>"","REVISED","") ->  | FP2089: =IF(ProjectInformation!$B$9<>"",ProjectInformation!$B$9,"") -> 
B2090: 2/15/2018 5:28:32 PM jbottje c:\pw_work\pwmain\jbottje\d0797678\06030231C01.xlsm
B2184: FILE NO. | I2184: =IF(ProjectInformation!$B$11<>"",ProjectInformation!$B$11,"") ->  | P2184: =UPPER(ProjectInformation!B8) -> ENGLISH | W2184: DESIGN TEAM | AF2184: =IF(AND(ProjectInformation!$B$3<>"",ProjectInformation!$B$4<>"",ProjectInformation!$B$5<>""),ProjectInformation!$B$3&"\"&ProjectInformation!$B$4&"\"&ProjectInformation!$B$5,IF(AND(ProjectInformation!$B$3<>"",ProjectInformation!$B$4<>""),ProjectInformation!$B$3&"\"&ProjectInformation!$B$4,IF(ProjectInformation!$B$3<>"",ProjectInformation!$B$3,""))) -> Flattery\Bell | BN2184: =IF(ProjectInformation!$B$6<>"",ProjectInformation!$B$6,"") -> Benton | CX2184: COUNTY | DD2184: PROJECT NUMBER | DP2184: =IF(ProjectInformation!$B$7<>"",ProjectInformation!$B$7,"") -> NHSX-30-6(231)--3H-06 | ET2184: SHEET NUMBER | FD2184: =IF($FD$2089<>"","C."& MID(OFFSET($FD$2184,-95,0),3,LEN(OFFSET($FD$2184,-95,0))-2)+1,"") -> C.23 | FJ2184: =IF(FP2184<>"","REVISED","") ->  | FP2184: =IF(ProjectInformation!$B$9<>"",ProjectInformation!$B$9,"") -> 
B2185: 2/15/2018 5:28:33 PM jbottje c:\pw_work\pwmain\jbottje\d0797678\06030231C01.xlsm
B2279: FILE NO. | I2279: =IF(ProjectInformation!$B$11<>"",ProjectInformation!$B$11,"") ->  | P2279: =UPPER(ProjectInformation!B8) -> ENGLISH | W2279: DESIGN TEAM | AF2279: =IF(AND(ProjectInformation!$B$3<>"",ProjectInformation!$B$4<>"",ProjectInformation!$B$5<>""),ProjectInformation!$B$3&"\"&ProjectInformation!$B$4&"\"&ProjectInformation!$B$5,IF(AND(ProjectInformation!$B$3<>"",ProjectInformation!$B$4<>""),ProjectInformation!$B$3&"\"&ProjectInformation!$B$4,IF(ProjectInformation!$B$3<>"",ProjectInformation!$B$3,""))) -> Flattery\Bell | BN2279: =IF(ProjectInformation!$B$6<>"",ProjectInformation!$B$6,"") -> Benton | CX2279: COUNTY | DD2279: PROJECT NUMBER | DP2279: =IF(ProjectInformation!$B$7<>"",ProjectInformation!$B$7,"") -> NHSX-30-6(231)--3H-06 | ET2279: SHEET NUMBER | FD2279: =IF($FD$2184<>"","C."& MID(OFFSET($FD$2279,-95,0),3,LEN(OFFSET($FD$2279,-95,0))-2)+1,"") -> C.24 | FJ2279: =IF(FP2279<>"","REVISED","") ->  | FP2279: =IF(ProjectInformation!$B$9<>"",ProjectInformation!$B$9,"") -> 
B2280: 2/15/2018 5:28:34 PM jbottje c:\pw_work\pwmain\jbottje\d0797678\06030231C01.xlsm
B2374: FILE NO. | I2374: =IF(ProjectInformation!$B$11<>"",ProjectInformation!$B$11,"") ->  | P2374: =UPPER(ProjectInformation!B8) -> ENGLISH | W2374: DESIGN TEAM | AF2374: =IF(AND(ProjectInformation!$B$3<>"",ProjectInformation!$B$4<>"",ProjectInformation!$B$5<>""),ProjectInformation!$B$3&"\"&ProjectInformation!$B$4&"\"&ProjectInformation!$B$5,IF(AND(ProjectInformation!$B$3<>"",ProjectInformation!$B$4<>""),ProjectInformation!$B$3&"\"&ProjectInformation!$B$4,IF(ProjectInformation!$B$3<>"",ProjectInformation!$B$3,""))) -> Flattery\Bell | BN2374: =IF(ProjectInformation!$B$6<>"",ProjectInformation!$B$6,"") -> Benton | CX2374: COUNTY | DD2374: PROJECT NUMBER | DP2374: =IF(ProjectInformation!$B$7<>"",ProjectInformation!$B$7,"") -> NHSX-30-6(231)--3H-06 | ET2374: SHEET NUMBER | FD2374: =IF($FD$2279<>"","C."& MID(OFFSET($FD$2374,-95,0),3,LEN(OFFSET($FD$2374,-95,0))-2)+1,"") -> C.25 | FJ2374: =IF(FP2374<>"","REVISED","") ->  | FP2374: =IF(ProjectInformation!$B$9<>"",ProjectInformation!$B$9,"") -> 
B2375: 2/15/2018 5:28:35 PM jbottje c:\pw_work\pwmain\jbottje\d0797678\06030231C01.xlsm
B2469: FILE NO. | I2469: =IF(ProjectInformation!$B$11<>"",ProjectInformation!$B$11,"") ->  | P2469: =UPPER(ProjectInformation!B8) -> ENGLISH | W2469: DESIGN TEAM | AF2469: =IF(AND(ProjectInformation!$B$3<>"",ProjectInformation!$B$4<>"",ProjectInformation!$B$5<>""),ProjectInformation!$B$3&"\"&ProjectInformation!$B$4&"\"&ProjectInformation!$B$5,IF(AND(ProjectInformation!$B$3<>"",ProjectInformation!$B$4<>""),ProjectInformation!$B$3&"\"&ProjectInformation!$B$4,IF(ProjectInformation!$B$3<>"",ProjectInformation!$B$3,""))) -> Flattery\Bell | BN2469: =IF(ProjectInformation!$B$6<>"",ProjectInformation!$B$6,"") -> Benton | CX2469: COUNTY | DD2469: PROJECT NUMBER | DP2469: =IF(ProjectInformation!$B$7<>"",ProjectInformation!$B$7,"") -> NHSX-30-6(231)--3H-06 | ET2469: SHEET NUMBER | FD2469: =IF($FD$2374<>"","C."& MID(OFFSET($FD$2469,-95,0),3,LEN(OFFSET($FD$2469,-95,0))-2)+1,"") -> C.26 | FJ2469: =IF(FP2469<>"","REVISED","") ->  | FP2469: =IF(ProjectInformation!$B$9<>"",ProjectInformation!$B$9,"") -> 
B2470: 2/15/2018 5:28:35 PM jbottje c:\pw_work\pwmain\jbottje\d0797678\06030231C01.xlsm

Sheet DE100_1C
A1: TabTitle | B1: =C15 -> ESTIMATED PROJECT QUANTITIES (UP TO A 5 DIVISION PROJECT)
A2: Number of Tab Columns | B2: 15
A3: DE Starter Row Number | B3: 24
A4: TabSheet Starter Row Number | B4: 11
A5: TabSheet Header Row Count | B5: 10
A6: Top Header Cell | B6: S15
A7: Bottom Header Cell | B7: AG24
A8: DESheet Row Count | B8: 136
A9: Fixed Empty Rows | B9: 13
A10: Usable Empty Rows | B10: 0
A11: Total Rows Placed | B11: 151 | C11: xlCenter | D11: xlCenter | E11: xlLeft(1) | F11: xlLeft(1) | G11: xlRight(1) | H11: xlRight(1) | I11: xlRight(1) | J11: xlRight(1) | K11: xlRight(1) | L11: xlRight(1) | M11: xlRight(1) | N11: xlRight(1) | O11: xlRight(1) | P11: xlRight(1) | Q11: xlRight(1) | S11: =C11 -> xlCenter | T11: xlCenter | U11: xlLeft(1) | V11: xlLeft(1) | W11: xlRight(1) | X11: xlRight(1) | Y11: xlRight(1) | Z11: xlRight(1) | AA11: xlRight(1) | AB11: xlRight(1) | AC11: xlRight(1) | AD11: xlRight(1) | AE11: xlRight(1) | AF11: xlRight(1) | AG11: xlRight(1)
A12: Total Rows Needed | B12: =SUM(B8:B10) -> 149 | C12: General | D12: General | E12: General | F12: General | G12: General | H12: General | I12: General | J12: General | K12: General | L12: General | M12: General | N12: General | O12: General | P12: General | Q12: General | S12: General | T12: General | U12: General | V12: General | W12: General | X12: General | Y12: General | Z12: General | AA12: General | AB12: General | AC12: General | AD12: General | AE12: General | AF12: General | AG12: General
A13: Last Tab DE Starter Row | B13: 95 | C13: =CELL("width",C13) -> 12 | D13: 16 | E13: 95 | F13: 11 | G13: 16 | H13: 16 | I13: 16 | J13: 16 | K13: 16 | L13: 20 | M13: 16 | N13: 16 | O13: 16 | P13: 16 | Q13: 16 | S13: =CELL("width",S13) -> 0 | T13: 0 | U13: 0 | V13: 0 | W13: 0 | X13: 0 | Y13: 0 | Z13: 0 | AA13: 0 | AB13: 0 | AC13: 0 | AD13: 0 | AE13: 0 | AF13: 0 | AG13: 0
A14: Last Tab Tabsheet Starter Row | B14: 92 | C14: A | D14: B | E14: C | F14: D | G14: E | H14: F | I14: G | J14: H | K14: I | L14: J | M14: K | N14: L | O14: M | P14: N | Q14: O | S14: =LOWER(C14) -> a | T14: b | U14: c | V14: d | W14: e | X14: f | Y14: g | Z14: h | AA14: i | AB14: j | AC14: k | AD14: l | AE14: m | AF14: n | AG14: o
A15: Last Copy Starter Row | B15: 82 | C15: ESTIMATED PROJECT QUANTITIES (UP TO A 5 DIVISION PROJECT) | I15: Division 1: | J15: Roadway Items | S15: 100-1C
A16: Tab Loop Number | B16: 3 | I16: Division 2: | J16: Benton County Items | S16: =B17 -> 2012-04-17
A17: Revision Date | B17: 2012-04-17 | I17: Division 3: | S17: =C15 -> ESTIMATED PROJECT QUANTITIES (UP TO A 5 DIVISION PROJECT) | Z17: =IF(J15>"",I15,"") -> Division 1: | AA17: =IF(J15>"",J15,"") -> Roadway Items
A18: Tabulation Width | B18: 4 | I18: Division 4: | Z18: =IF(J16>"",I16,"") -> Division 2: | AA18: =IF(J16>"",J16,"") -> Benton County Items
A19: Horizontal Grid Lines | B19: Yes | I19: Division 5: | Z19: =IF(J17>"",I17,"") ->  | AA19: =IF(J17>"",J17,"") -> 
C20: ="This Data Entry Sheet fills Tab "&S15&" effective "&TEXT(B17,"mm-dd-yy") -> This Data Entry Sheet fills Tab 100-1C effective 04-17-12 | Z20: =IF(J18>"",I18,"") ->  | AA20: =IF(J18>"",J18,"") -> 
C21: Item No. | D21: Item Code | E21: Item | F21: Unit | G21: Quantities | Z21: =IF(J19>"",I19,"") ->  | AA21: =IF(J19>"",J19,"") -> 
G22: Estimated | M22: As Built | S22: =C21 -> Item No. | T22: =D21 -> Item Code | U22: =E21 -> Item | V22: =F21 -> Unit | W22: =G21 -> Quantities
G23: Division 1 | H23: Division 2 | I23: Division 3 | J23: Division 4 | K23: Division 5 | L23: Total | M23: Division 1 | N23: Division 2 | O23: Division 3 | P23: Division 4 | Q23: Division 5 | W23: =G22 -> Estimated | AC23: =M22 -> As Built
W24: =G23 -> Division 1 | X24: =H23 -> Division 2 | Y24: =I23 -> Division 3 | Z24: =J23 -> Division 4 | AA24: =K23 -> Division 5 | AB24: =L23 -> Total | AC24: =M23 -> Division 1 | AD24: =N23 -> Division 2 | AE24: =O23 -> Division 3 | AF24: =P23 -> Division 4 | AG24: =Q23 -> Division 5
C25: 1 | D25: 2101-0850001 | E25: CLEARING AND GRUBBING | F25: ACRE | G25: 138.0 | L25: 138.0
C26: 2 | D26: 2102-0425071 | E26: SPECIAL BACKFILL | F26: CY | G26: 15,460.6 | L26: 15,460.6
C27: 3 | D27: 2102-2624980 | E27: CONTRACTOR FURNISHED SELECT TREATMENT | F27: CY | G27: 83,486.7 | L27: 83,486.7
C28: 4 | D28: 2102-2625001 | E28: EMBANKMENT-IN-PLACE, CONTRACTOR FURNISHED | F28: CY | G28: 566,741.0 | L28: 566,741.0
C29: 5 | D29: 2102-2710070 | E29: EXCAVATION, CLASS 10, ROADWAY AND BORROW | F29: CY | G29: 230,803.0 | L29: 230,803.0
C30: 6 | D30: 2102-2710090 | E30: EXCAVATION, CLASS 10, WASTE | F30: CY | G30: 2,253.0 | L30: 2,253.0
C31: 7 | D31: 2102-2712015 | E31: EXCAVATION, CLASS 12, BOULDERS OR ROCK FRAGMENTS | F31: CY | G31: 100.0 | L31: 100.0
C32: 8 | D32: 2102-4560000 | E32: LOCATING TILE LINES | F32: STA | G32: 273.40 | L32: 273.40
C33: 9 | D33: 2105-8425011 | E33: TOPSOIL, SPREAD | F33: CY | G33: 114,939.0 | L33: 114,939.0
C34: 10 | D34: 2105-8425020 | E34: TOPSOIL, STRIP AND STOCKPILE | F34: CY | G34: 133,787.0 | L34: 133,787.0
C35: 11 | D35: 2107-0425020 | E35: COMPACTING BACKFILL ADJACENT TO BRIDGES, CULVERTS OR STRUCTU RES | F35: CY | G35: 2,061.6 | L35: 2,061.6
C36: 12 | D36: 2107-0875100 | E36: COMPACTION WITH MOISTURE CONTROL | F36: CY | G36: 742,885.0 | L36: 742,885.0
C37: 13 | D37: 2107-3825025 | E37: GRANULAR MATERIAL FOR BLANKET AND SUBDRAIN | F37: CY | G37: 1,060.0 | L37: 1,060.0
C38: 14 | D38: 2111-8174100 | E38: GRANULAR SUBBASE | F38: SY | G38: 101,727.9 | H38: 920.6 | L38: 102,648.5
C39: 15 | D39: 2113-0001100 | E39: SUBGRADE STABILIZATION MATERIAL, POLYMER GRID | F39: SY | G39: 372.3 | L39: 372.3
C40: 16 | D40: 2115-0100000 | E40: MODIFIED SUBBASE | F40: CY | G40: 9,370.5 | L40: 9,370.5
C41: 17 | D41: 2121-7425010 | E41: GRANULAR SHOULDERS, TYPE A | F41: TON | G41: 13,460.7 | L41: 13,460.7
C42: 18 | D42: 2122-5190006 | E42: PAVED SHOULDER, P.C. CONCRETE, 6 IN. | F42: SY | G42: 23,540.3 | L42: 23,540.3
C43: 19 | D43: 2122-5190501 | E43: PAVED SHOULDER, PORTLAND CEMENT CONCRETE (PAVED SHOULDER PANEL FOR | F43: SY | G43: 103.0 | L43: 103.0
E44: BRIDGE END DRAIN)
C45: 20 | D45: 2122-5191005 | E45: REINFORCED PAVED SHOULDER FOR CONCRETE BARRIER | F45: SY | G45: 396.2 | L45: 396.2
C46: 21 | D46: 2123-7450000 | E46: SHOULDER CONSTRUCTION, EARTH | F46: STA | G46: 685.20 | L46: 685.20
C47: 22 | D47: 2210-0475290 | E47: MACADAM STONE BASE | F47: TON | G47: 82.5 | L47: 82.5
C48: 23 | D48: 2301-1003100 | E48: STANDARD OR SLIP-FORM PORTLAND CEMENT CONCRETE PAVEMENT, QM-C, CLASS | F48: SY | G48: 106,695.9 | H48: 813.8 | L48: 107,509.7
E49: 3 DURABILITY, 10 IN.
C50: 24 | D50: 2301-6911722 | E50: PORTLAND CEMENT CONCRETE PAVEMENT SAMPLES | F50: LS | G50: 1.00 | L50: 1.00
C51: 25 | D51: 2304-0100000 | E51: DETOUR PAVEMENT | F51: SY | G51: 9,906.8 | L51: 9,906.8
C52: 26 | D52: 2312-8260050 | E52: GRANULAR SURFACING ON ROAD, CLASS A CRUSHED STONE | F52: CY | G52: 594.3 | L52: 594.3
C53: 27 | D53: 2315-8275025 | E53: SURFACING, DRIVEWAY, CLASS A CRUSHED STONE | F53: TON | G53: 1,742.9 | L53: 1,742.9
C54: 28 | D54: 2402-0425030 | E54: GRANULAR BACKFILL | F54: CY | G54: 8,180.0 | L54: 8,180.0
C55: 29 | D55: 2402-0425040 | E55: FLOODED BACKFILL | F55: CY | G55: 5,201.2 | L55: 5,201.2
C56: 30 | D56: 2402-2720100 | E56: EXCAVATION, CLASS 20, FOR ROADWAY PIPE CULVERT | F56: CY | G56: 5,791.6 | L56: 5,791.6
C57: 31 | D57: 2416-0100018 | E57: APRONS, CONCRETE, 18 IN. DIA. | F57: EACH | G57: 1 | L57: 1
C58: 32 | D58: 2416-0100024 | E58: APRONS, CONCRETE, 24 IN. DIA. | F58: EACH | G58: 30 | L58: 30
C59: 33 | D59: 2416-0100036 | E59: APRONS, CONCRETE, 36 IN. DIA. | F59: EACH | G59: 8 | L59: 8
C60: 34 | D60: 2416-0100042 | E60: APRONS, CONCRETE, 42 IN. DIA. | F60: EACH | G60: 4 | L60: 4
C61: 35 | D61: 2416-0100054 | E61: APRONS, CONCRETE, 54 IN. DIA. | F61: EACH | G61: 2 | L61: 2
C62: 36 | D62: 2416-0100072 | E62: APRONS, CONCRETE, 72 IN. DIA. | F62: EACH | G62: 2 | L62: 2
C63: 37 | D63: 2416-0100078 | E63: APRONS, CONCRETE, 78 IN. DIA. | F63: EACH | G63: 2 | L63: 2
C64: 38 | D64: 2416-0101036 | E64: REMOVE AND REINSTALL CONCRETE PIPE APRONS LESS THAN OR EQUAL TO 36 | F64: EACH | G64: 1 | L64: 1
E65: IN.
C66: 39 | D66: 2416-0102236 | E66: APRON, LOW CLEARANCE CONCRETE, EQUIVALENT DIAMETER 36 IN. | F66: EACH | G66: 2 | L66: 2
C67: 40 | D67: 2416-1180024 | E67: CULVERT, CONCRETE ROADWAY PIPE, 24 IN. DIA. | F67: LF | G67: 1082 | L67: 1082
C68: 41 | D68: 2416-1180036 | E68: CULVERT, CONCRETE ROADWAY PIPE, 36 IN. DIA. | F68: LF | G68: 402 | L68: 402
C69: 42 | D69: 2416-1180042 | E69: CULVERT, CONCRETE ROADWAY PIPE, 42 IN. DIA. | F69: LF | G69: 394 | L69: 394
C70: 43 | D70: 2416-1180054 | E70: CULVERT, CONCRETE ROADWAY PIPE, 54 IN. DIA. | F70: LF | G70: 258 | L70: 258
C71: 44 | D71: 2416-1180072 | E71: CULVERT, CONCRETE ROADWAY PIPE, 72 IN. DIA. | F71: LF | G71: 242 | L71: 242
C72: 45 | D72: 2416-1180078 | E72: CULVERT, CONCRETE ROADWAY PIPE, 78 IN. DIA. | F72: LF | G72: 74 | L72: 74
C73: 46 | D73: 2416-1200236 | E73: CULVERT, LOW CLEARANCE CONCRETE ROADWAY PIPE, EQUIVALENT DIAMETER 36 | F73: LF | G73: 66 | L73: 66
E74: IN.
C75: 47 | D75: 2416-1240024 | E75: CULVERT, 3000D CONCRETE ROADWAY PIPE, 24 IN. DIA. | F75: LF | G75: 210 | L75: 210
C76: 48 | D76: 2416-1240036 | E76: CULVERT, 3000D CONCRETE ROADWAY PIPE, 36 IN. DIA. | F76: LF | G76: 296 | L76: 296
C77: 49 | D77: 2416-1262024 | E77: CULVERT, CONCRETE PIPE, 2000D, TRENCHLESS, 24 IN. DIA. | F77: LF | G77: 340 | L77: 340
C78: 50 | D78: 2416-1262036 | E78: CULVERT, CONCRETE PIPE, 2000D, TRENCHLESS, 36 IN. DIA. | F78: LF | G78: 232 | L78: 232
C79: 51 | D79: 2416-1262042 | E79: CULVERT, CONCRETE PIPE, 2000D, TRENCHLESS, 42 IN. DIA. | F79: LF | G79: 108 | L79: 108
C80: 52 | D80: 2417-0250021 | E80: APRONS, METAL, ARCH, 21 IN. X 15 IN. | F80: EACH | G80: 4 | L80: 4
C81: 53 | D81: 2417-0250057 | E81: APRONS, METAL, ARCH, 57 IN. X 38 IN. | F81: EACH | G81: 2 | L81: 2
C82: 54 | D82: 2417-1060024 | E82: CULVERT, CORRUGATED METAL ROADWAY PIPE, 24 IN. DIA. | F82: LF | G82: 87 | L82: 87
C83: 55 | D83: 2417-1080021 | E83: CULVERT, CORRUGATED METAL ARCH ENTRANCE PIPE, 21 IN. X 15 IN. | F83: LF | G83: 95 | L83: 95
C84: 56 | D84: 2417-1080057 | E84: CULVERT, CORRUGATED METAL ARCH ENTRANCE PIPE, 57 IN. X 38 IN. | F84: LF | G84: 40 | L84: 40
C85: 57 | D85: 2417-2307036 | E85: DRAIN, CORRUGATED METAL SLOTTED PIPE, 36 IN., W/6 IN. GRATE | F85: LF | G85: 152 | L85: 152
C86: 58 | D86: 2417-5895018 | E86: BEVELED PIPE AND GUARD, 18 INCH | F86: EACH | G86: 1 | L86: 1
C87: 59 | D87: 2418-0000010 | E87: TEMPORARY STREAM DIVERSION | F87: EACH | G87: 3 | L87: 3
C88: 60 | D88: 2422-0360018 | E88: APRONS, UNCLASSIFIED, 18 IN. DIA. | F88: EACH | G88: 2 | L88: 2
C89: 61 | D89: 2422-0360024 | E89: APRONS, UNCLASSIFIED, 24 IN. DIA. | F89: EACH | G89: 28 | L89: 28
C90: 62 | D90: 2422-0360030 | E90: APRONS, UNCLASSIFIED, 30 IN. DIA. | F90: EACH | G90: 2 | L90: 2
C91: 63 | D91: 2422-1722018 | E91: CULVERT, UNCLASSIFIED ENTRANCE PIPE, 18 IN. DIA. | F91: LF | G91: 38 | L91: 38
C92: 64 | D92: 2422-1722024 | E92: CULVERT, UNCLASSIFIED ENTRANCE PIPE, 24 IN. DIA. | F92: LF | G92: 1249 | L92: 1249
C93: 65 | D93: 2422-1722030 | E93: CULVERT, UNCLASSIFIED ENTRANCE PIPE, 30 IN. DIA. | F93: LF | G93: 57 | L93: 57
C94: 66 | D94: 2422-1723018 | E94: CULVERT, UNCLASSIFIED ROADWAY PIPE, 18 IN. DIA. | F94: LF | G94: 194 | L94: 194
C95: 67 | D95: 2432-0000100 | E95: MECHANICALLY STABILIZED EARTH RETAINING WALL | F95: SF | G95: 9940 | L95: 9940
C96: 68 | D96: 2435-0254900 | E96: BARRIER INTAKE, SW-549 | F96: EACH | G96: 4 | L96: 4
C97: 69 | D97: 2435-0900000 | E97: BRIDGE END DRAIN, SW-538 | F97: EACH | G97: 1 | L97: 1
C98: 70 | D98: 2502-8212034 | E98: SUBDRAIN, LONGITUDINAL, (SHOULDER) 4 IN. DIA. | F98: LF | G98: 40,277.4 | L98: 40,277.4
C99: 71 | D99: 2502-8221306 | E99: SUBDRAIN OUTLET, DR-306 | F99: EACH | G99: 167 | L99: 167
C100: 72 | D100: 2503-0110018 | E100: STORM SEWER GRAVITY MAIN, TRENCHED, 18 IN. | F100: LF | G100: 428.0 | L100: 428.0
C101: 73 | D101: 2503-0500402 | E101: BRIDGE END DRAIN, DR-402 | F101: EACH | G101: 3 | L101: 3
C102: 74 | D102: 2505-4008300 | E102: STEEL BEAM GUARDRAIL | F102: LF | G102: 62.5 | L102: 62.5
C103: 75 | D103: 2505-4008410 | E103: STEEL BEAM GUARDRAIL BARRIER TRANSITION SECTION, BA-201 | F103: EACH | G103: 4 | L103: 4
C104: 76 | D104: 2505-4021010 | E104: STEEL BEAM GUARDRAIL END ANCHOR, BOLTED | F104: EACH | G104: 4 | L104: 4
C105: 77 | D105: 2505-4021720 | E105: STEEL BEAM GUARDRAIL TANGENT END TERMINAL, BA-205 | F105: EACH | G105: 4 | L105: 4
C106: 78 | D106: 2505-6000111 | E106: HIGH TENSION CABLE GUARDRAIL | F106: LF | G106: 380.0 | L106: 380.0
C107: 79 | D107: 2505-6000121 | E107: HIGH TENSION CABLE GUARDRAIL, END ANCHOR | F107: EACH | G107: 4 | L107: 4
C108: 80 | D108: 2505-6000131 | E108: HIGH TENSION CABLE GUARDRAIL, SPARE PARTS KIT | F108: EACH | G108: 1 | L108: 1
C109: 81 | D109: 2506-4984000 | E109: FLOWABLE MORTAR | F109: CY | G109: 126.6 | L109: 126.6
C110: 82 | D110: 2507-3250005 | E110: ENGINEERING FABRIC | F110: SY | G110: 488.7 | L110: 488.7
C111: 83 | D111: 2507-8029000 | E111: EROSION STONE | F111: TON | G111: 342.5 | L111: 342.5
C112: 84 | D112: 2510-6745850 | E112: REMOVAL OF PAVEMENT | F112: SY | G112: 80,094.0 | L112: 80,094.0
C113: 85 | D113: 2513-0001040 | E113: CONCRETE BARRIER, BA-104 | F113: LF | G113: 391.4 | L113: 391.4
C114: 86 | D114: 2513-0001070 | E114: CONCRETE BARRIER RAIL, BA-107 | F114: EACH | G114: 2 | L114: 2
C115: 87 | D115: 2518-0470005 | E115: CROSSOVER BARRICADE | F115: EACH | G115: 1 | L115: 1
C116: 88 | D116: 2518-6910000 | E116: SAFETY CLOSURE | F116: EACH | G116: 90 | L116: 90
C117: 89 | D117: 2519-2000010 | E117: FENCE, CHANNEL CROSSING, TYPE A | F117: LF | G117: 70.0 | L117: 70.0
C118: 90 | D118: 2519-2000020 | E118: FENCE, CHANNEL CROSSING, TYPE B | F118: LF | G118: 35.0 | L118: 35.0
C119: 91 | D119: 2519-3280000 | E119: FENCE, FIELD | F119: LF | G119: 35,324.1 | L119: 35,324.1
C120: 92 | D120: 2519-3300400 | E120: FIELD FENCE BRACE PANELS | F120: EACH | G120: 491 | L120: 491
C121: 93 | D121: 2519-4200140 | E121: REMOVAL OF FENCE, FIELD | F121: LF | G121: 19,887.4 | L121: 19,887.4
C122: 94 | D122: 2520-3350015 | E122: FIELD OFFICE | F122: EACH | G122: 1 | L122: 1
C123: 95 | D123: 2526-8285000 | E123: CONSTRUCTION SURVEY | F123: LS | G123: 1.00 | L123: 1.00
C124: 96 | D124: 2527-9263109 | E124: PAINTED PAVEMENT MARKING, WATERBORNE OR SOLVENT-BASED | F124: STA | G124: 2,966.41 | L124: 2,966.41
C125: 97 | D125: 2527-9263137 | E125: PAINTED SYMBOLS AND LEGENDS, WATERBORNE OR SOLVENT-BASED | F125: EACH | G125: 8 | L125: 8
C126: 98 | D126: 2527-9263180 | E126: PAVEMENT MARKINGS REMOVED | F126: STA | G126: 944.21 | L126: 944.21
C127: 99 | D127: 2527-9263190 | E127: SYMBOLS AND LEGENDS REMOVED | F127: EACH | G127: 8 | L127: 8
C128: 100 | D128: 2528-8400048 | E128: TEMPORARY BARRIER RAIL, CONCRETE | F128: LF | G128: 162.5 | L128: 162.5
C129: 101 | D129: 2528-8400157 | E129: TEMPORARY FLOODLIGHTING LUMINAIRE | F129: EACH | G129: 5 | L129: 5
C130: 102 | D130: 2528-8445110 | E130: TRAFFIC CONTROL | F130: LS | G130: 1.00 | L130: 1.00
C131: 103 | D131: 2528-8445113 | E131: FLAGGERS | F131: EACH | L131: See Proposal
C132: 104 | D132: 2528-9109020 | E132: TEMPORARY LANE SEPARATOR SYSTEM | F132: LF | G132: 1,570.0 | L132: 1,570.0
C133: 105 | D133: 2533-4980005 | E133: MOBILIZATION | F133: LS | G133: 1.00 | L133: 1.00
C134: 106 | D134: 2538-6975110 | E134: SEALING WELLS | F134: EACH | G134: 1 | L134: 1
C135: 107 | D135: 2548-0000200 | E135: MILLED SHOULDER RUMBLE STRIPS, PCC SURFACE | F135: STA | G135: 586.7 | L135: 586.7
C136: 108 | D136: 2551-0000110 | E136: TEMP CRASH CUSHION | F136: EACH | G136: 1 | L136: 1
C137: 109 | D137: 2599-9999001 | E137: ('ACRES' ITEM) SUBGRADE STABILIZATION | F137: ACRE | G137: 27.0 | L137: 27.0
C138: 110 | D138: 2601-2633100 | E138: MOWING | F138: ACRE | G138: 516.0 | L138: 516.0
C139: 111 | D139: 2601-2634100 | E139: MULCHING | F139: ACRE | G139: 194.0 | L139: 194.0
C140: 112 | D140: 2601-2634105 | E140: MULCHING, BONDED FIBER MATRIX | F140: ACRE | G140: 1.0 | L140: 1.0
C141: 113 | D141: 2601-2636043 | E141: SEEDING AND FERTILIZING (RURAL) | F141: ACRE | G141: 22.0 | L141: 22.0
C142: 114 | D142: 2601-2642100 | E142: STABILIZING CROP - SEEDING AND FERTILIZING | F142: ACRE | G142: 172.0 | L142: 172.0
C143: 115 | D143: 2602-0000020 | E143: SILT FENCE | F143: LF | G143: 152,990.0 | L143: 152,990.0
C144: 116 | D144: 2602-0000030 | E144: SILT FENCE FOR DITCH CHECKS | F144: LF | G144: 17,578.5 | L144: 17,578.5
C145: 117 | D145: 2602-0000050 | E145: SILT BASINS | F145: EACH | G145: 62 | L145: 62
C146: 118 | D146: 2602-0000071 | E146: REMOVAL OF SILT FENCE OR SILT FENCE FOR DITCH CHECKS | F146: LF | G146: 170,568.5 | L146: 170,568.5
C147: 119 | D147: 2602-0000080 | E147: REMOVAL OF SILT BASINS | F147: EACH | G147: 62 | L147: 62
C148: 120 | D148: 2602-0000101 | E148: MAINTENANCE OF SILT FENCE OR SILT FENCE FOR DITCH CHECK | F148: LF | G148: 17,056.9 | L148: 17,056.9
C149: 121 | D149: 2602-0000130 | E149: TEMPORARY SEDIMENT CONTROL BASIN | F149: EACH | G149: 8 | L149: 8
C150: 122 | D150: 2602-0000135 | E150: REMOVAL OF TEMPORARY SEDIMENT CONTROL BASIN | F150: EACH | G150: 8 | L150: 8
C151: 123 | D151: 2602-0000140 | E151: MAINTENANCE OF TEMPORARY SEDIMENT CONTROL BASIN | F151: EACH | G151: 24 | L151: 24
C152: 124 | D152: 2602-0000150 | E152: STABILIZED CONSTRUCTION ENTRANCE | F152: LF | G152: 1,200.0 | L152: 1,200.0
C153: 125 | D153: 2602-0000212 | E153: FLOATING SILT CURTAIN (HANGING) | F153: LF | G153: 400.0 | L153: 400.0
C154: 126 | D154: 2602-0000240 | E154: MAINTENANCE OF FLOATING SILT CURTAIN | F154: LF | G154: 200.0 | L154: 200.0
C155: 127 | D155: 2602-0000312 | E155: PERIMETER AND SLOPE SEDIMENT CONTROL DEVICE, 12 IN. DIA. | F155: LF | G155: 700.0 | L155: 700.0
C156: 128 | D156: 2602-0000350 | E156: REMOVAL OF PERIMETER AND SLOPE SEDIMENT CONTROL DEVICE | F156: LF | G156: 700.0 | L156: 700.0
C157: 129 | D157: 2602-0010010 | E157: MOBILIZATIONS, EROSION CONTROL | F157: EACH | G157: 1 | L157: 1
C158: 130 | D158: 2602-0010020 | E158: MOBILIZATIONS, EMERGENCY EROSION CONTROL | F158: EACH | G158: 1 | L158: 1
C159: 131 | D159: 2612-0000520 | E159: ROADSIDE SPRAY FOR WEED CONTROL | F159: ACRE | G159: 13.0 | L159: 13.0

Sheet DE100_1D
A1: TabTitle | B1: =C15 -> PROJECT DESCRIPTION
A2: Number of Tab Columns | B2: 1
A3: DE Starter Row Number | B3: 18
A4: TabSheet Starter Row Number | B4: 5
A5: TabSheet Header Row Count | B5: 4
A6: Top Header Cell | B6: E15
A7: Bottom Header Cell | B7: E18
A8: DESheet Row Count | B8: 3
A9: Fixed Empty Rows | B9: 1
A10: Usable Empty Rows | B10: 0
A11: Total Rows Placed | B11: 4 | C11: xlLeft(1) | E11: =C11 -> xlLeft(1)
A12: Total Rows Needed | B12: =SUM(B8:B10) -> 4 | C12: General | E12: =C12 -> General
A13: Last Tab DE Starter Row | B13: 18 | C13: =CELL("width",C13) -> 159 | E13: =CELL("width",E13) -> 0
A14: Last Tab Tabsheet Starter Row | B14: 5 | C14: A | E14: a
A15: Last Copy Starter Row | B15: 1 | C15: PROJECT DESCRIPTION | E15: 100-1D
A16: Tab Loop Number | B16: 2 | E16: =B17 -> 2005-10-18
A17: Revision Date | B17: 2005-10-18 | C17: ="This Data Entry Sheet fills Tab "&E15&" effective "&TEXT(B17,"mm-dd-yy") -> This Data Entry Sheet fills Tab 100-1D effective 10-18-05 | E17: =C15 -> PROJECT DESCRIPTION
A18: Tabulation Width | B18: 2
A19: Horizontal Grid Lines | B19: No | C19: This project involves PCC paving and grading U.S. Highway 30 from a two-lane to a four-lane facility from east of 22nd Avenue to west of
C20: 25th Avenue, including the new construction of the U.S. Highway 218 interchange.

Sheet DE100_4A
A1: TabTitle | B1: =C15 -> ESTIMATE REFERENCE INFORMATION
A2: Number of Tab Columns | B2: 3
A3: DE Starter Row Number | B3: 20
A4: TabSheet Starter Row Number | B4: 7
A5: TabSheet Header Row Count | B5: 6
A6: Top Header Cell | B6: G15
A7: Bottom Header Cell | B7: I20
A8: DESheet Row Count | B8: 573
A9: Fixed Empty Rows | B9: 5
A10: Usable Empty Rows | B10: 10
A11: Total Rows Placed | B11: 588 | C11: xlCenter | D11: xlCenter | E11: xlLeft(1) | G11: =C11 -> xlCenter | H11: xlCenter | I11: xlLeft(1)
A12: Total Rows Needed | B12: =SUM(B8:B10) -> 588 | C12: General | D12: General | E12: General | G12: General | H12: General | I12: General
A13: Last Tab DE Starter Row | B13: 524 | C13: =CELL("width",C13) -> 12 | D13: 16 | E13: 130 | G13: =CELL("width",G13) -> 0 | H13: 0 | I13: 0
A14: Last Tab Tabsheet Starter Row | B14: 547 | C14: A | D14: B | E14: C | G14: =LOWER(C14) -> a | H14: =LOWER(D14) -> b | I14: =LOWER(E14) -> c
A15: Last Copy Starter Row | B15: 541 | C15: ESTIMATE REFERENCE INFORMATION | G15: 100-4A
A16: Tab Loop Number | B16: 8 | G16: =B17 -> 2002-10-29
A17: Revision Date | B17: 2002-10-29 | C17: ="This Data Entry Sheet fills Tab "&G15&" effective "&TEXT(B17,"mm-dd-yy") -> This Data Entry Sheet fills Tab 100-4A effective 10-29-02 | G17: =C15 -> ESTIMATE REFERENCE INFORMATION
A18: Tabulation Width | B18: 2 | C18: Item No. | D18: Item Code | E18: Description
A19: Horizontal Grid Lines | B19: Yes | G19: =C18 -> Item No. | H19: =D18 -> Item Code | I19: =E18 -> Description
C21: 1 | D21: 2101-0850001 | E21: CLEARING AND GRUBBING
E22: Quantity includes all disturbed areas.
C23: - | D23: - | E23: -
C24: 2 | D24: 2102-0425071 | E24: SPECIAL BACKFILL
E25: Refer to Tab. 112-8 and Tab. 112-9 for locations and details.
E27: Includes an additional 4,895 tons for retaining wall core-out. Refer to Sheet Q.22.
C28: - | D28: - | E28: -
C29: 3 | D29: 2102-2624980 | E29: CONTRACTOR FURNISHED SELECT TREATMENT
E30: Refer to Tab. 103-11
C31: - | D31: - | E31: -
C32: 4 | D32: 2102-2625001 | E32: EMBANKMENT-IN-PLACE, CONTRACTOR FURNISHED
E33: Refer to "T" sheets, cross sections.
E34: --------------------
E35: Provide borrow material according to Section 2102 of the Standard Specifications.
C37: - | D37: - | E37: -
C38: 5 | D38: 2102-2710070 | E38: EXCAVATION, CLASS 10, ROADWAY AND BORROW
E39: Refer to T Sheets.
E41: Overhaul is incidental to roadway excavation on this project and will not be
E42: paid for separately.
E44: Includes settlement plates. Refer to Tab. 103-5, and Sheet CS.1 and Q Sheets for details.
C45: - | D45: - | E45: -
C46: 6 | D46: 2102-2710090 | E46: EXCAVATION, CLASS 10, WASTE
E47: Refer to "T" sheets, cross sections for details.
E48: --------------------
E49: Overhaul shall be incidental to the bid item.
C51: - | D51: - | E51: -
C52: 7 | D52: 2102-2712015 | E52: EXCAVATION, CLASS 12, BOULDERS OR ROCK FRAGMENTS
E53: A. Refer to Tab. 103-7 in the CS Sheets.
E54: B. Dispose of excess material according to Article 1106.07 of the current specifications.
C55: - | D55: - | E55: -
C56: 8 | D56: 2102-4560000 | E56: LOCATING TILE LINES
E57: Estimated for twice the length of the project.
C58: - | D58: - | E58: -
C59: 9 | D59: 2105-8425011 | E59: TOPSOIL, SPREAD
E60: Refer to Tab. 103-10 in the CS Sheets and T Sheets and cross sections for details.
E62: The Contractor shall spread all required topsoil and follow provisions in
E63: Section 2105 of the current specifications.
C64: - | D64: - | E64: -
C65: 10 | D65: 2105-8425020 | E65: TOPSOIL, STRIP AND STOCKPILE
E66: Refer to Tab. 103-10 in the CS Sheets and T Sheets and cross sections for details.
E68: The Contractor shall strip all required topsoil, stockpile topsoil on the project,
E69: and follow applicable provisions, for stripping and stockpiling of the topsoil,
E70: in Section 2105 of the current specifications.
E72: Methods of Measurement:
E73: The quantity of topsoil stripped and stockpiled will be measured in cubic yards and
E74: will be computed on the basis of a uniform 12 inch cut, or the depth as
E75: specified in the contract documents over the area involved. Sufficient field
E76: measurements will be taken to assure reasonable conformity with the required
E77: depth of cut. Topsoil salvaged from excavated areas and paid for as topsoil
E78: will not be included in excavation quantities for which payment is made.
E80: Basis of Payment:
E81: The Contractor will be paid the contract unit price for topsoil, strip and
E82: stockpile per cubic yard of topsoil stockpiled, measured as provided above.
E84: Overhaul will not be paid for this item.
C85: - | D85: - | E85: -
C86: 11 | D86: 2107-0425020 | E86: COMPACTING BACKFILL ADJACENT TO BRIDGES, CULVERTS OR STRUCTU RES
E87: Refer to Tab.104-4 in the CD Sheets
C88: - | D88: - | E88: -
C89: 12 | D89: 2107-0875100 | E89: COMPACTION WITH MOISTURE CONTROL
E90: Refer to Tab. 103-6 and T Sheets
E91: Cubic yards shown on the contract documents as determined by the template fill volume.
E92: Shrinkage will not be included in the moisture control quantity.
C93: - | D93: - | E93: -
C94: 13 | D94: 2107-3825025 | E94: GRANULAR MATERIAL FOR BLANKET AND SUBDRAIN
E95: Refer to Tab. 104-5C in the CS Sheets
C96: - | D96: - | E96: -
C97: 14 | D97: 2111-8174100 | E97: GRANULAR SUBBASE
E98: Refer to Tab. 100-24
C100: - | D100: - | E100: -
C104: 15 | D104: 2113-0001100 | E104: SUBGRADE STABILIZATION MATERIAL, POLYMER GRID
E105: Refer to Typical 8101 and Tab 104-8A.
C107: - | D107: - | E107: -
C108: 16 | D108: 2115-0100000 | E108: MODIFIED SUBBASE
E109: Refer to Tab. 100-24
C111: - | D111: - | E111: -
C112: 17 | D112: 2121-7425010 | E112: GRANULAR SHOULDERS, TYPE A
E113: Refer to Tab. 112-9 and Tab. 112-8
C114: - | D114: - | E114: -
C115: 18 | D115: 2122-5190006 | E115: PAVED SHOULDER, P.C. CONCRETE, 6 IN.
E116: Refer to Tab. 112-9 and Typicals
C118: - | D118: - | E118: -
C119: 19 | D119: 2122-5190501 | E119: PAVED SHOULDER, PORTLAND CEMENT CONCRETE (PAVED SHOULDER PANEL FOR BRIDGE END DRAIN)
E120: Refer to Tab. 104-8A.
C122: - | D122: - | E122: -
C123: 20 | D123: 2122-5191005 | E123: REINFORCED PAVED SHOULDER FOR CONCRETE BARRIER
E124: Refer to Tab. 112-9 and Typicals
C126: - | D126: - | E126: -
C127: 21 | D127: 2123-7450000 | E127: SHOULDER CONSTRUCTION, EARTH
E128: Refer to Tab. 112-9 and Typicals
E130: Requires 19,153.3 cu. yds. of Topsoil for Earth Shoulder Fill.
E132: No payment for overhaul allowed for this material. Approximately 18,856 cu. yds. of topsoil is available
E133: on the project.
C135: - | D135: - | E135: -
C136: 22 | D136: 2210-0475290 | E136: MACADAM STONE BASE
E137: Refer to Typical 8101 and Tab 104-8A.
C139: - | D139: - | E139: -
C140: 23 | D140: 2301-1003100 | E140: STANDARD OR SLIP-FORM PORTLAND CEMENT CONCRETE PAVEMENT, QM-C, CLASS 3 DURABILITY, 10 IN.
E141: Refer to Tab. 100-24
C143: - | D143: - | E143: -
C144: 24 | D144: 2301-6911722 | E144: PORTLAND CEMENT CONCRETE PAVEMENT SAMPLES
E145: - -
C146: - | D146: - | E146: -
C147: 25 | D147: 2304-0100000 | E147: DETOUR PAVEMENT
E148: Refer to Tab. 112-8 and Typical Detour for location and details.
C149: - | D149: - | E149: -
C150: 26 | D150: 2312-8260050 | E150: GRANULAR SURFACING ON ROAD, CLASS A CRUSHED STONE
E151: Refer to Typical 2_GradeGran in the B Sheets for locations and details and Typical 8101
C152: - | D152: - | E152: -
C153: 27 | D153: 2315-8275025 | E153: SURFACING, DRIVEWAY, CLASS A CRUSHED STONE
E154: Refer to Tab. 102-3
C155: - | D155: - | E155: -
C156: 28 | D156: 2402-0425030 | E156: GRANULAR BACKFILL
E157: Refer to V Sheets for locations and details
C159: - | D159: - | E159: -
C160: 29 | D160: 2402-0425040 | E160: FLOODED BACKFILL
C161: 30 | D161: 2402-2720100 | E161: EXCAVATION, CLASS 20, FOR ROADWAY PIPE CULVERT
E162: Refer to Tab. 104-3 and Tab. 104-4 in the CD Sheets
C163: - | D163: - | E163: -
C164: 31 | D164: 2416-0100018 | E164: APRONS, CONCRETE, 18 IN. DIA.
E165: Refer to Tab. 104-5B in the M Sheets
C167: - | D167: - | E167: -
C168: 32 | D168: 2416-0100024 | E168: APRONS, CONCRETE, 24 IN. DIA.
C169: 33 | D169: 2416-0100036 | E169: APRONS, CONCRETE, 36 IN. DIA.
C170: 34 | D170: 2416-0100042 | E170: APRONS, CONCRETE, 42 IN. DIA.
C171: 35 | D171: 2416-0100054 | E171: APRONS, CONCRETE, 54 IN. DIA.
C172: 36 | D172: 2416-0100072 | E172: APRONS, CONCRETE, 72 IN. DIA.
C173: 37 | D173: 2416-0100078 | E173: APRONS, CONCRETE, 78 IN. DIA.
E174: Refer to Tab. 104-3 in the CD Sheets
C175: - | D175: - | E175: -
C176: 38 | D176: 2416-0101036 | E176: REMOVE AND REINSTALL CONCRETE PIPE APRONS LESS THAN OR EQUAL TO 36 IN.
E177: Refer to Tab. 112-8
C179: - | D179: - | E179: -
C188: 39 | D188: 2416-0102236 | E188: APRON, LOW CLEARANCE CONCRETE, EQUIVALENT DIAMETER 36 IN.
C189: 40 | D189: 2416-1180024 | E189: CULVERT, CONCRETE ROADWAY PIPE, 24 IN. DIA.
C190: 41 | D190: 2416-1180036 | E190: CULVERT, CONCRETE ROADWAY PIPE, 36 IN. DIA.
C191: 42 | D191: 2416-1180042 | E191: CULVERT, CONCRETE ROADWAY PIPE, 42 IN. DIA.
C192: 43 | D192: 2416-1180054 | E192: CULVERT, CONCRETE ROADWAY PIPE, 54 IN. DIA.
C193: 44 | D193: 2416-1180072 | E193: CULVERT, CONCRETE ROADWAY PIPE, 72 IN. DIA.
C194: 45 | D194: 2416-1180078 | E194: CULVERT, CONCRETE ROADWAY PIPE, 78 IN. DIA.
C195: 46 | D195: 2416-1200236 | E195: CULVERT, LOW CLEARANCE CONCRETE ROADWAY PIPE, EQUIVALENT DIAMETER 36 IN.
C196: 47 | D196: 2416-1240024 | E196: CULVERT, 3000D CONCRETE ROADWAY PIPE, 24 IN. DIA.
C197: 48 | D197: 2416-1240036 | E197: CULVERT, 3000D CONCRETE ROADWAY PIPE, 36 IN. DIA.
C198: 49 | D198: 2416-1262024 | E198: CULVERT, CONCRETE PIPE, 2000D, TRENCHLESS, 24 IN. DIA.
C199: 50 | D199: 2416-1262036 | E199: CULVERT, CONCRETE PIPE, 2000D, TRENCHLESS, 36 IN. DIA.
C200: 51 | D200: 2416-1262042 | E200: CULVERT, CONCRETE PIPE, 2000D, TRENCHLESS, 42 IN. DIA.
E201: Refer to Tab. 104-3 in the CD Sheets
C202: - | D202: - | E202: -
C203: 52 | D203: 2417-0250021 | E203: APRONS, METAL, ARCH, 21 IN. X 15 IN.
C204: 53 | D204: 2417-0250057 | E204: APRONS, METAL, ARCH, 57 IN. X 38 IN.
E205: Refer to Tab. 102-3
C206: - | D206: - | E206: -
C207: 54 | D207: 2417-1060024 | E207: CULVERT, CORRUGATED METAL ROADWAY PIPE, 24 IN. DIA.
E208: Refer to Tab. 104-3 in the CD Sheets
C210: - | D210: - | E210: -
C211: 55 | D211: 2417-1080021 | E211: CULVERT, CORRUGATED METAL ARCH ENTRANCE PIPE, 21 IN. X 15 IN.
C212: 56 | D212: 2417-1080057 | E212: CULVERT, CORRUGATED METAL ARCH ENTRANCE PIPE, 57 IN. X 38 IN.
E213: Refer to Tab. 102-3
C214: - | D214: - | E214: -
C215: 57 | D215: 2417-2307036 | E215: DRAIN, CORRUGATED METAL SLOTTED PIPE, 36 IN., W/6 IN. GRATE
C216: 58 | D216: 2417-5895018 | E216: BEVELED PIPE AND GUARD, 18 INCH
E217: Refer to Tab. 112-8
C218: - | D218: - | E218: -
C219: 59 | D219: 2418-0000010 | E219: TEMPORARY STREAM DIVERSION
E220: Includes two for RCB at Sta. 1400+94 (US 30) and one for RCB at Sta. 231420+88 (23rd Ave)
C221: - | D221: - | E221: -
C222: 60 | D222: 2422-0360018 | E222: APRONS, UNCLASSIFIED, 18 IN. DIA.
C223: 61 | D223: 2422-0360024 | E223: APRONS, UNCLASSIFIED, 24 IN. DIA.
C224: 62 | D224: 2422-0360030 | E224: APRONS, UNCLASSIFIED, 30 IN. DIA.
C225: 63 | D225: 2422-1722018 | E225: CULVERT, UNCLASSIFIED ENTRANCE PIPE, 18 IN. DIA.
C226: 64 | D226: 2422-1722024 | E226: CULVERT, UNCLASSIFIED ENTRANCE PIPE, 24 IN. DIA.
C227: 65 | D227: 2422-1722030 | E227: CULVERT, UNCLASSIFIED ENTRANCE PIPE, 30 IN. DIA.
E228: Refer to Tab. 102-3
C229: - | D229: - | E229: -
C230: 66 | D230: 2422-1723018 | E230: CULVERT, UNCLASSIFIED ROADWAY PIPE, 18 IN. DIA.
E231: See Tab. 112-8
C232: - | D232: - | E232: -
C233: 67 | D233: 2432-0000100 | E233: MECHANICALLY STABILIZED EARTH RETAINING WALL
E234: Refer to V Sheets for locations and details
C236: - | D236: - | E236: -
C237: 68 | D237: 2435-0254900 | E237: BARRIER INTAKE, SW-549
C238: 69 | D238: 2435-0900000 | E238: BRIDGE END DRAIN, SW-538
... 277 more rows

Sheet DE100_7
A1: TabTitle | B1: =C16 -> FENCING
A2: Number of Tab Columns | B2: 20 | AS2: Drop Down Lists
A3: DE Starter Row Number | B3: 27 | AS3: Side | AT3: Chain Link Height | AU3: Chain Link Gate Assembly | AV3: Deer Fence Gate Type | AW3: Field Fence Gate Type | AX3: Field Fence Channel Crossing
A4: TabSheet Starter Row Number | B4: 13 | AS4: LT | AT4: 42 IN. | AU4: 16 FT. | AV4: Deer, As Per Plan | AW4: 12 FT. | AX4: A
A5: TabSheet Header Row Count | B5: 12 | AS5: RT | AT5: 48 IN. | AU5: SEE REMARKS | AV5: As Per Plan | AW5: 16 FT. | AX5: B
A6: Top Header Cell | B6: X15 | AT6: 60 IN. | AW6: 18 FT. | AX6: FLOOD PLAIN
A7: Bottom Header Cell | B7: AQ26 | AT7: 72 IN. | AW7: 20 FT. | AX7: AS PER PLAN
A8: DESheet Row Count | B8: 132 | AT8: 84 IN. | AW8: 22 FT.
A9: Fixed Empty Rows | B9: 10 | AT9: 96 IN. | AW9: 24 FT.
A10: Usable Empty Rows | B10: 0 | AT10: 120 IN.
A11: Total Rows Placed | B11: 143 | C11: xlRight(1) | D11: xlRight(1) | E11: xlRight(1) | F11: xlRight(1) | G11: xlLeft(1) | H11: xlRight(1) | I11: xlLeft(1) | J11: xlRight(1) | K11: xlLeft(1) | L11: xlRight(1) | M11: xlRight(1) | N11: xlRight(1) | O11: xlLeft(1) | P11: xlRight(1) | Q11: xlRight(1) | R11: xlRight(1) | S11: xlLeft(1) | T11: xlRight(1) | U11: xlLeft(1) | V11: xlLeft(1) | X11: =C11 -> xlRight(1) | Y11: xlRight(1) | Z11: xlRight(1) | AA11: xlRight(1) | AB11: xlLeft(1) | AC11: xlRight(1) | AD11: xlLeft(1) | AE11: xlRight(1) | AF11: xlLeft(1) | AG11: xlRight(1) | AH11: xlRight(1) | AI11: xlRight(1) | AJ11: xlLeft(1) | AK11: xlRight(1) | AL11: xlRight(1) | AM11: xlRight(1) | AN11: =S11 -> xlLeft(1) | AO11: xlRight(1) | AP11: xlLeft(1) | AQ11: xlLeft(1) | AT11: 72 IN., SECURITY TOP
A12: Total Rows Needed | B12: =SUM(B8:B10) -> 142 | C12: #+00.00 | D12: 0.0 | E12: #+00.00 | F12: 0.0 | G12: General | H12: 0.0 | I12: General | J12: 0 | K12: General | L12: 0.0 | M12: 0 | N12: 0 | O12: General | P12: 0.0 | Q12: 0 | R12: 0 | S12: General | T12: 0.0 | U12: General | V12: General | X12: #+00.00 | Y12: 0.0 | Z12: #+00.00 | AA12: 0.0 | AB12: General | AC12: 0.0 | AD12: General | AE12: 0 | AF12: General | AG12: 0.0 | AH12: 0 | AI12: 0 | AJ12: General | AK12: 0.0 | AL12: 0 | AM12: 0 | AN12: General | AO12: 0.0 | AP12: General | AQ12: General | AT12: 72 IN., ON WALL
A13: Last Tab DE Starter Row | B13: 105 | C13: =CELL("width",C13) -> 16 | D13: 9 | E13: 16 | F13: 9 | G13: 7 | H13: 11 | I13: 30 | J13: 11 | K13: 25 | L13: 11 | M13: 11 | N13: 11 | O13: 25 | P13: 11 | Q13: 11 | R13: 11 | S13: 11 | T13: 11 | U13: 25 | V13: 38 | X13: =CELL("width",X13) -> 0 | Y13: 0 | Z13: 0 | AA13: 0 | AB13: 0 | AC13: 0 | AD13: 0 | AE13: 0 | AF13: 0 | AG13: 0 | AH13: 0 | AI13: 0 | AJ13: 0 | AK13: 0 | AL13: 0 | AM13: 0 | AN13: 0 | AO13: 0 | AP13: 0 | AQ13: 0 | AT13: VINYL COATED
A14: Last Tab TabSheet Starter Row | B14: 103 | C14: A | D14: B | E14: C | F14: D | G14: E | H14: F | I14: G | J14: H | K14: I | L14: J | M14: K | N14: L | O14: M | P14: N | Q14: O | R14: P | S14: Q | T14: R | U14: S | V14: T | X14: =LOWER(C14) -> a | Y14: b | Z14: c | AA14: d | AB14: e | AC14: f | AD14: g | AE14: h | AF14: i | AG14: j | AH14: k | AI14: l | AJ14: m | AK14: n | AL14: o | AM14: p | AN14: q | AO14: r | AP14: s | AQ14: t
A15: Last Copy Starter Row | B15: 91 | G15: Totals: | H15: =SUBTOTAL(9,H27:H6004) -> 0 | J15: =SUBTOTAL(9,J27:J6004) -> 0 | L15: =SUBTOTAL(9,L27:L6004) -> 0 | M15: =SUBTOTAL(9,M27:M6004) -> 0 | N15: =SUBTOTAL(9,N27:N6004) -> 0 | P15: =SUBTOTAL(9,P27:P6004) -> 70648.2 | Q15: =SUBTOTAL(9,Q27:Q6004) -> 982 | R15: =SUBTOTAL(9,R27:R6004) -> 0 | T15: =SUBTOTAL(9,T27:T6004) -> 210 | X15: 100-7
A16: Tab Loop Number | B16: 3 | C16: FENCING | X16: =B17 -> 2012-10-16
A17: Revision Date | B17: 2012-10-16 | X17: =C16 -> FENCING
A18: Tabulation Width | B18: 4 | C18: Refer to MI-101, MI-102, MI-103, MI-104, 510-3, and 510-5
A19: Horizontal Grid Lines | B19: Yes | C19: * Bid Item | X19: =C19 -> * Bid Item
C20: ="This Data Entry Sheet fills Tab "&X15&" effective "&TEXT(B17,"mm-dd-yy") -> This Data Entry Sheet fills Tab 100-7 effective 10-16-12 | X20: =C18 -> Refer to MI-101, MI-102, MI-103, MI-104, 510-3, and 510-5
C21: Location | G21: Side | H21: Chain Link | L21: Deer | P21: Field | T21: Channel Crossing | V21: Remarks | X21: =C21 -> Location | AB21: =G21 -> Side | AC21: =H21 -> Chain Link | AG21: =L21 -> Deer | AK21: =P21 -> Field | AO21: =T21 -> Channel Crossing | AQ21: =V21 -> Remarks
C22: From | E22: To | X22: =C22 -> From | Z22: =E22 -> To
C23: Station | D23: Offset | E23: Station | F23: Offset | H23: Fence | J23: Gate | L23: Fence Length* | M23: Brace Panels* | N23: Gate | P23: Fence Length* | Q23: Brace Panels* | R23: Gate | X23: =C23 -> Station | Y23: =D23 -> Offset | Z23: =E23 -> Station | AA23: =F23 -> Offset | AC23: =H23 -> Fence | AE23: =J23 -> Gate | AG23: =L23 -> Fence Length* | AH23: =M23 -> Brace Panels* | AI23: =N23 -> Gate | AK23: =P23 -> Fence Length* | AL23: =Q23 -> Brace Panels* | AM23: =R23 -> Gate
H24: Length* | I24: Type | J24: No.* | K24: Type | N24: No.* | O24: Type | R24: No.* | S24: Type | T24: Length* | U24: Type | AC24: =H24 -> Length* | AD24: =I24 -> Type | AE24: =J24 -> No.* | AF24: =K24 -> Type | AI24: =N24 -> No.* | AJ24: =O24 -> Type | AM24: =R24 -> No.* | AN24: =S24 -> Type | AO24: =T24 -> Length* | AP24: =U24 -> Type
H26: LF | J26: EACH | L26: LF | M26: EACH | N26: EACH | P26: LF | Q26: EACH | R26: EACH | T26: LF | AC26: =H26 -> LF | AE26: =J26 -> EACH | AG26: =L26 -> LF | AH26: =M26 -> EACH | AI26: =N26 -> EACH | AK26: =P26 -> LF | AL26: =Q26 -> EACH | AM26: =R26 -> EACH | AO26: =T26 -> LF
C28: U.S. 30
C29: 137820 | D29: 149 | E29: 138100 | F29: 149 | G29: RT | P29: 100 | Q29: 3
C30: 138100 | D30: 149 | E30: 138850 | F30: 184 | G30: RT | P30: 750.8 | Q30: 6
C31: 138850 | D31: 184 | E31: 139500 | F31: 164 | G31: RT | P31: 650.3 | Q31: 6
C32: 139500 | D32: 164 | E32: 139640.5 | F32: 169 | G32: RT | P32: 140.6 | Q32: 4
C33: 139640.5 | D33: 169 | E33: 139755 | F33: 176.4 | G33: RT | P33: 114.8 | Q33: 3
C34: Ent.
C35: 139860 | D35: 183.2 | E35: 139950 | F35: 189 | G35: RT | P35: 90.2 | Q35: 3
C36: 139950 | D36: 189 | E36: 140180 | F36: 189 | G36: RT | P36: 229.9 | Q36: 6 | T36: 35 | U36: A
C37: 140180 | D37: 189 | E37: 140500 | F37: 174 | G37: RT | P37: 320.4 | Q37: 6
C38: 140500 | D38: 174 | E38: 140960 | F38: 172.7 | G38: RT | P38: 460 | Q38: 5
C39: Ent.
C40: 141020 | D40: 172.5 | E40: 142199.14 | F40: 169.3 | G40: RT | P40: 1179.1 | Q40: 8
C41: 23rd Ave
C42: 142371.58 | D42: 291.5 | E42: 142600 | F42: 179 | G42: RT | P42: 254.6 | Q42: 6
C43: 142600 | D43: 179 | E43: 143530 | F43: 159 | G43: RT | P43: 930.2 | Q43: 5
C44: Ent.
C45: 143660 | D45: 159 | E45: 144500 | F45: 159 | G45: RT | P45: 840 | Q45: 5
C46: 144500 | D46: 159 | E46: 144930.5 | F46: 199 | G46: RT | P46: 432.4 | Q46: 6
C47: 144930.55 | D47: 199 | E47: 146100 | F47: 149 | G47: RT | P47: 1170.5 | Q47: 7
C48: 146100 | D48: 149 | E48: 147275.14 | F48: 166.5 | G48: RT | P48: 1175.3 | Q48: 7
C49: 147275.14 | D49: 166.5 | E49: 147359.43 | F49: 166.6 | G49: RT | P49: 84.3 | Q49: 3
C50: US 218
C51: 147739.37 | D51: 824.1 | E51: 148159.56 | F51: 714.1 | G51: RT | P51: 434.4 | Q51: 5
C52: 148159.56 | D52: 714.1 | E52: 148324.33 | F52: 594.3 | G52: RT | P52: 203.7 | Q52: 6
C53: 148324.33 | D53: 594.3 | E53: 148509.33 | F53: 389.2 | G53: RT | P53: 276.1 | Q53: 6
C54: 148509.33 | D54: 389.2 | E54: 148659.47 | F54: 284.1 | G54: RT | P54: 183.3 | Q54: 6
C55: 148659.47 | D55: 284.1 | E55: 148759.62 | F55: 229.1 | G55: RT | P55: 114.3 | Q55: 4
C56: 148759.62 | D56: 229.1 | E56: 148964.78 | F56: 174 | G56: RT | P56: 212.4 | Q56: 6
C57: 148964.78 | D57: 174 | E57: 149170 | F57: 136 | G57: RT | P57: 208.6 | Q57: 6
C58: 149170 | D58: 136 | E58: 150200.17 | F58: 144.4 | G58: RT | P58: 1033.1 | Q58: 7
C59: 150200.17 | D59: 144.4 | E59: 150770.49 | F59: 155.2 | G59: RT | P59: 571.3 | Q59: 6
C60: 150770.49 | D60: 155.2 | E60: 151172.74 | F60: 149.1 | G60: RT | P60: 400.3 | Q60: 6
C61: 151172.74 | D61: 149.1 | E61: 151574.74 | F61: 127.5 | G61: RT | P61: 400.8 | Q61: 6
C62: 151574.74 | D62: 127.5 | E62: 151670 | F62: 126.1 | G62: RT | P62: 95.3 | Q62: 3
C64: 138000 | D64: 140.7 | E64: 138100 | F64: 139.8 | G64: LT | P64: 100.1 | Q64: 3
C65: 138100 | D65: 139.8 | E65: 138440 | F65: 174 | G65: LT | P65: 341.7 | Q65: 6
C66: 138440 | D66: 174 | E66: 138785 | F66: 179 | G66: LT | P66: 345 | Q66: 6
C67: 138785 | D67: 179 | E67: 138940 | F67: 179 | G67: LT | P67: 155 | Q67: 3
C68: Ent.
C69: 139010 | D69: 175.1 | E69: 139250 | F69: 148.2 | G69: LT | P69: 241.5 | Q69: 5
C70: 139250 | D70: 148.2 | E70: 139578.24 | F70: 152.5 | G70: LT | P70: 328.3 | Q70: 5
C71: Ent.
C72: 140034.23 | D72: 157.9 | E72: 140080 | F72: 189 | G72: LT | P72: 55.4 | Q72: 3
C73: 140080 | D73: 189 | E73: 140345 | F73: 151.4 | G73: LT | P73: 267.5 | Q73: 6 | T73: 35 | U73: B
C74: 140345 | D74: 151.4 | E74: 140950 | F74: 150.7 | G74: LT | P74: 605.1 | Q74: 5
C75: Ent.
C76: 141025 | D76: 150.6 | E76: 142155.83 | F76: 149.1 | G76: LT | P76: 1130.8 | Q76: 8
C77: 142155.83 | D77: 149.1 | E77: 142201.2 | F77: 170.1 | G77: LT | P77: 50 | Q77: 3
C78: 23rd Ave
C79: 142359.08 | D79: 184 | E79: 142525 | F79: 184 | G79: LT | P79: 165.9 | Q79: 3
C80: 142525 | D80: 184 | E80: 142725 | F80: 169 | G80: LT | P80: 200.6 | Q80: 6
C81: 142725 | D81: 169 | E81: 143592 | F81: 169 | G81: LT | P81: 867 | Q81: 5
C82: Ent.
C83: 143616 | D83: 168.2 | E83: 143700 | F83: 164 | G83: LT | P83: 84 | Q83: 3
C84: 143700 | D84: 164 | E84: 143870 | F84: 144.7 | G84: LT | P84: 171.1 | Q84: 4
C85: 143870 | D85: 144.7 | E85: 144500 | F85: 143.1 | G85: LT | P85: 630.2 | Q85: 6
C86: 144500 | D86: 143.1 | E86: 144550 | F86: 159 | G86: LT | P86: 52.5 | Q86: 4
C87: 144550 | D87: 159 | E87: 145275 | F87: 159 | G87: LT | P87: 724.9 | Q87: 6
C88: 145275 | D88: 159 | E88: 145400 | F88: 169 | G88: LT | P88: 125.4 | Q88: 4
C89: 145400 | D89: 169 | E89: 145515.64 | F89: 159 | G89: LT | P89: 116.1 | Q89: 4
C90: 145515.64 | D90: 159 | E90: 141595.11 | F90: 164 | G90: LT | P90: 479.5 | Q90: 6
C91: 141595.11 | D91: 164 | E91: 146260.3 | F91: 199 | G91: LT | P91: 267.5 | Q91: 6
C92: 146260.3 | D92: 199 | E92: 146590.57 | F92: 364.2 | G92: LT | P92: 369.3 | Q92: 6
C93: 146590.57 | D93: 364.2 | E93: 147000.44 | F93: 729.1 | G93: LT | P93: 548.8 | Q93: 6
C94: 147000.44 | D94: 729.1 | E94: 147417.54 | F94: 787.7 | G94: LT | P94: 421.2 | Q94: 5
C95: US 218
C96: 147789.09 | D96: 319 | E96: 148424 | F96: 319 | G96: LT | P96: 634.9 | Q96: 5
C97: 148424 | D97: 319 | E97: 148424 | F97: 154 | G97: LT | P97: 165 | Q97: 4
C98: 148424 | D98: 154 | E98: 149600 | F98: 149 | G98: LT | P98: 1176.1 | Q98: 8
C99: 149600 | D99: 149 | E99: 149700 | F99: 159 | G99: LT | P99: 100 | Q99: 3
C100: Ent.
C101: 149740 | D101: 161 | E101: 149800 | F101: 164 | G101: LT | P101: 59.7 | Q101: 3
C102: 149800 | D102: 164 | E102: 150000 | F102: 149 | G102: LT | P102: 199.5 | Q102: 6
C103: 150000 | D103: 149 | E103: 150197 | F103: 149 | G103: LT | P103: 196 | Q103: 6
C104: 150197 | D104: 149 | E104: 151200 | F104: 149 | G104: LT | P104: 1004.2 | Q104: 7
C105: 151200 | D105: 149 | E105: 151700 | F105: 105.9 | G105: LT | P105: 503.4 | Q105: 5
C108: 23rd Ave
C109: 23141625.29 | D109: 29 | E109: 23141675.17 | F109: 44 | G109: RT | P109: 52.1 | Q109: 3
C110: 23141675.17 | D110: 44 | E110: 23141860.12 | F110: 54 | G110: RT | P110: 185.2 | Q110: 4
C111: 23141860.12 | D111: 54 | E111: 23141988.68 | F111: 79.1 | G111: RT | P111: 241.7 | Q111: 5
C112: US 30
C113: 23142465.66 | D113: 79.1 | E113: 23142800 | F113: 32 | G113: RT | P113: 337.6 | Q113: 5
C115: 23141618.35 | D115: 31.2 | E115: 23142116.4 | F115: 89.1 | G115: LT | P115: 501.4 | Q115: 5 | T115: 35 | U115: A
C116: US 30
C117: 23142454.3 | D117: 79.1 | E117: 23142488 | F117: 73.4 | G117: LT | P117: 34.2 | Q117: 3
C118: Ent.
C119: 23142512 | D119: 69.4 | E119: 23142734.83 | F119: 32 | G119: LT | P119: 226 | Q119: 4
C122: US 218
C123: 24145204.26 | D123: 33.3 | E123: 24145246.5 | F123: 43.2 | G123: RT | P123: 43.4 | Q123: 3
C124: 24145246.5 | D124: 43.2 | E124: 24145525.97 | F124: 51.9 | G124: RT | P124: 279.6 | Q124: 6
C125: 24145525.97 | D125: 51.9 | E125: 24146111.02 | F125: 54.5 | G125: RT | P125: 585.1 | Q125: 6
C126: 24146111.02 | D126: 54.5 | E126: 24146461.17 | F126: 88.1 | G126: RT | P126: 351.8 | Q126: 6
C127: 24146461.17 | D127: 88.1 | E127: 24146661.45 | F127: 92.3 | G127: RT | P127: 200.3 | Q127: 6
C128: 24146661.45 | D128: 92.3 | E128: 24146739.49 | F128: 146.7 | G128: RT | P128: 95.1 | Q128: 4
C129: US 30
C130: 24147880.66 | D130: 230.1 | E130: 24148149.77 | F130: 214 | G130: RT | P130: 269.6 | Q130: 6
C131: 24148149.77 | D131: 214 | E131: 24148209.39 | F131: 189.2 | G131: RT | P131: 64.6 | Q131: 4
C132: 24148209.39 | D132: 189.2 | E132: 24148264.51 | F132: 123.8 | G132: RT | P132: 85.5 | Q132: 4
C133: 24148264.51 | D133: 123.8 | E133: 24148600 | F133: 99 | G133: RT | P133: 336.4 | Q133: 6
C134: 24148600 | D134: 99 | E134: 24149440 | F134: 99 | G134: RT | P134: 840 | Q134: 6
C135: 24149440 | D135: 99 | E135: 24149830 | F135: 69 | G135: RT | P135: 391.2 | Q135: 4
C136: 24149830 | D136: 69 | E136: 24149888 | F136: 69 | G136: RT | P136: 58 | Q136: 3
C137: Ent.
C138: 24149912 | D138: 69 | E138: 24150293.67 | F138: 69 | G138: RT | P138: 381.7 | Q138: 4
C140: 24145300.83 | D140: 33.2 | E140: 24145330.72 | F140: 40.3 | G140: LT | P140: 30.7 | Q140: 3
C141: 24145330.72 | D141: 40.3 | E141: 24145610.54 | F141: 56.5 | G141: LT | P141: 280.3 | Q141: 6
C142: 24145610.54 | D142: 56.5 | E142: 24145788 | F142: 57.2 | G142: LT | P142: 177.5 | Q142: 5
C143: Ent.
C144: 24145812 | D144: 57.3 | E144: 24145885.55 | F144: 57.6 | G144: LT | P144: 73.6 | Q144: 3
C145: 24145885.55 | D145: 57.6 | E145: 24146010.51 | F145: 68.1 | G145: LT | P145: 125.4 | Q145: 4
C146: 24146010.51 | D146: 68.1 | E146: 24146560.57 | F146: 70.3 | G146: LT | P146: 550.1 | Q146: 6
C147: 24146560.57 | D147: 70.3 | E147: 24146825.74 | F147: 126.5 | G147: LT | P147: 271 | Q147: 6
C148: 24146825.74 | D148: 126.5 | E148: 24146900.35 | F148: 201.7 | G148: LT | P148: 106 | Q148: 4
C149: 24146900.35 | D149: 201.7 | E149: 24147197.73 | F149: 202.9 | G149: LT | P149: 297.4 | Q149: 6
C150: US 30
C151: 24148359.11 | D151: 134 | E151: 24149600 | F151: 99 | G151: LT | P151: 1241.3 | Q151: 8
C152: 24149600 | D152: 99 | E152: 24149800 | F152: 79 | G152: LT | P152: 201 | Q152: 6
C153: 24149800 | D153: 79 | E153: 24149885 | F153: 79 | G153: LT | P153: 85 | Q153: 3
C154: Ent.
C155: 24149915 | D155: 79 | E155: 24150298.41 | F155: 79 | G155: LT | P155: 384.1 | Q155: 4
E157: TOTALS: | P157: =SUM(P29:P155) -> 35324.1 | Q157: =SUM(Q29:Q155) -> 491 | T157: =T115+T36 -> 70 | U157: Type A Crossing
T158: =T73 -> 35 | U158: Type B Crossing

Sheet DE100_7R
A1: TabTitle | B1: =C16 -> REMOVAL OF FENCE
A2: Number of Tab Columns | B2: 8 | U2: Drop Down Lists
A3: DE Starter Row Number | B3: 27 | U3: Side | V3: Chain Link Height | W3: Chain Link Gate Assembly | X3: Deer Fence Gate Type | Y3: Field Fence Gate Type | Z3: Field Fence Channel Crossing
A4: TabSheet Starter Row Number | B4: 13 | U4: LT | V4: 42 IN. | W4: 16 FT. | X4: Deer, As Per Plan | Y4: 12 FT. | Z4: A
A5: TabSheet Header Row Count | B5: 12 | U5: RT | V5: 48 IN. | W5: SEE REMARKS | X5: As Per Plan | Y5: 16 FT. | Z5: B
A6: Top Header Cell | B6: L15 | V6: 60 IN. | Y6: 18 FT. | Z6: FLOOD PLAIN
A7: Bottom Header Cell | B7: S26 | V7: 72 IN. | Y7: 20 FT. | Z7: AS PER PLAN
A8: DESheet Row Count | B8: 22 | V8: 84 IN. | Y8: 22 FT.
A9: Fixed Empty Rows | B9: 10 | V9: 96 IN. | Y9: 24 FT.
A10: Usable Empty Rows | B10: 0 | V10: 120 IN.
A11: Total Rows Placed | B11: 32 | C11: xlRight(1) | D11: xlRight(1) | E11: xlRight(1) | F11: xlRight(1) | G11: xlLeft(1) | H11: xlRight(1) | I11: xlRight(1) | J11: xlLeft(1) | L11: =C11 -> xlRight(1) | M11: xlRight(1) | N11: xlRight(1) | O11: xlRight(1) | P11: xlLeft(1) | Q11: xlRight(1) | R11: xlRight(1) | S11: xlLeft(1) | V11: 72 IN., SECURITY TOP
A12: Total Rows Needed | B12: =SUM(B8:B10) -> 32 | C12: #+00.00 | D12: 0.0 | E12: #+00.00 | F12: 0.0 | G12: General | H12: 0.0 | I12: 0.0 | J12: General | L12: #+00.00 | M12: 0.0 | N12: #+00.00 | O12: 0.0 | P12: General | Q12: 0.0 | R12: 0.0 | S12: General | V12: 72 IN., ON WALL
A13: Last Tab DE Starter Row | B13: 27 | C13: =CELL("width",C13) -> 16 | D13: 9 | E13: 16 | F13: 9 | G13: 7 | H13: 12 | I13: 12 | J13: 38 | L13: =CELL("width",L13) -> 0 | M13: 0 | N13: 0 | O13: 0 | P13: 0 | Q13: 0 | R13: 0 | S13: 0 | V13: VINYL COATED
A14: Last Tab TabSheet Starter Row | B14: 13 | C14: A | D14: B | E14: C | F14: D | G14: E | H14: F | I14: G | J14: H | L14: =LOWER(C14) -> a | M14: b | N14: c | O14: d | P14: e | Q14: f | R14: g | S14: h
A15: Last Copy Starter Row | B15: 1 | G15: Totals: | H15: =SUBTOTAL(9,H27:H6000) -> 39774.7 | I15: =SUBTOTAL(9,I27:I6000) -> 0 | L15: 100-7R
A16: Tab Loop Number | B16: 2 | C16: REMOVAL OF FENCE | L16: =B17 -> MODIFIED
A17: Revision Date | B17: MODIFIED | L17: =C16 -> REMOVAL OF FENCE
A18: Tabulation Width | B18: 4
A19: Horizontal Grid Lines | B19: Yes | C19: * Bid Item | L19: =C19 -> * Bid Item
C20: ="This Data Entry Sheet fills Tab "&L15&" effective "&TEXT(B17,"mm-dd-yy") -> This Data Entry Sheet fills Tab 100-7R effective MODIFIED
C21: Location | G21: Side | H21: Field Fence* | I21: Chain Link Fence* | J21: Remarks | L21: =C21 -> Location | P21: =G21 -> Side | Q21: =H21 -> Field Fence* | R21: =I21 -> Chain Link Fence* | S21: =J21 -> Remarks
C22: From | E22: To | L22: =C22 -> From | N22: =E22 -> To
C23: Station | D23: Offset | E23: Station | F23: Offset | L23: =C23 -> Station | M23: =D23 -> Offset | N23: =E23 -> Station | O23: =F23 -> Offset
H26: LF | I26: LF | Q26: =H26 -> LF | R26: =I26 -> LF
C28: US 30
C29: 138000 | D29: 21.6 | E29: 142256.98 | F29: 28.4 | G29: LT | H29: 4257
C30: 142568.26 | D30: 27.9 | E30: 144924.17 | F30: 21.7 | G30: LT | H30: 2577.7
C32: 138100 | D32: 140.8 | E32: 139578.23 | F32: 153.5 | G32: LT | H32: 1478.3
C33: 140034.23 | D33: 157.9 | E33: 142243.21 | F33: 151.9 | G33: LT | H33: 2264.75
C34: 142314.22 | D34: 150.8 | E34: 144921.22 | F34: 143.6 | G34: LT | H34: 2647
C35: 148633.53 | D35: 136.9 | E35: 149586.36 | F35: 136.9 | G35: LT | H35: 952.8
C36: 150104.12 | D36: 131.9 | E36: 150594.12 | F36: 120 | G36: LT | H36: 488.2
C37: 151488.92 | D37: 103.9 | E37: 151700 | F37: 106.9 | G37: LT | H37: 232.3
C39: 23rd Avenue
C40: 23141650 | D40: 35.9 | E40: 23142311.7 | F40: 25.5 | G40: LT | H40: 662.2
C41: 23141625 | D41: 30 | E41: 23142283.22 | F41: 31.6 | G41: RT | H41: 657.7
C42: 23142433.23 | D42: 33.7 | E42: 23142629.6 | F42: 32.9 | G42: RT | H42: 196.4
C44: US 218
C45: 24145300.6 | D45: 33.7 | E45: 24147195.4 | F45: 42.3 | G45: LT | H45: 1894.8
C46: 24145163.97 | D46: 34.5 | E46: 24146742.12 | F46: 27 | G46: RT | H46: 1578.2
F48: TOTAL: | H48: =SUM(H29:H46) -> 19887.35

Sheet DE100_10
A1: TabTitle | B1: =C16 -> FLOATING SILT CURTAINS
A2: Number of Tab Columns | B2: 6
A3: DE Starter Row Number | B3: 29
A4: TabSheet Starter Row Number | B4: 15
A5: TabSheet Header Row Count | B5: 14
A6: Top Header Cell | B6: J15
A7: Bottom Header Cell | B7: O28
A8: DESheet Row Count | B8: 2
A9: Fixed Empty Rows | B9: 10
A10: Usable Empty Rows | B10: 0
A11: Total Rows Placed | B11: 12 | C11: xlRight(1) | D11: xlRight(1) | E11: xlRight(1) | F11: xlRight(1) | G11: xlRight(1) | H11: xlLeft(1) | J11: =C11 -> xlRight(1) | K11: xlRight(1) | L11: xlRight(1) | M11: xlRight(1) | N11: xlRight(1) | O11: xlLeft(1)
A12: Total Rows Needed | B12: =SUM(B8:B10) -> 12 | C12: #+00.00 | D12: 0.0 | E12: 0.0 | F12: 0.0 | G12: 0.0 | H12: General | J12: #+00.00 | K12: 0.0 | L12: 0.0 | M12: 0.0 | N12: 0.0 | O12: General
A13: Last Tab DE Starter Row | B13: 29 | C13: =CELL("width",C13) -> 16 | D13: 13 | E13: 13 | F13: 13 | G13: 13 | H13: 5 | J13: =CELL("width",J13) -> 0 | K13: 0 | L13: 0 | M13: 0 | N13: 0 | O13: 0
A14: Last Tab TabSheet Starter Row | B14: 15 | C14: A | D14: B | E14: C | F14: D | G14: E | H14: F | J14: =LOWER(C14) -> a | K14: b | L14: c | M14: d | N14: e | O14: f
A15: Last Copy Starter Row | B15: 1 | C15: Totals: | D15: =SUBTOTAL(9,D29:D2600) -> 400 | E15: =SUBTOTAL(9,E29:E2600) -> 0 | F15: =SUBTOTAL(9,F29:F2600) -> 0 | G15: =SUBTOTAL(9,G29:G2600) -> 200 | J15: 100-10
A16: Tab Loop Number | B16: 2 | C16: FLOATING SILT CURTAINS | J16: =B17 -> 2014-10-21
A17: Revision Date | B17: 2014-10-21 | J17: =C16 -> FLOATING SILT CURTAINS
A18: Tabulation Width | B18: 1
A19: Horizontal Grid Lines | B19: Yes | C19: Refer to EC-202 | J19: =C19 -> Refer to EC-202
C20: ="This Data Entry Sheet fills Tab "&J15&" effective "&TEXT(B17,"mm-dd-yy") -> This Data Entry Sheet fills Tab 100-10 effective 10-21-14 | J20: =C21 -> Station | K20: Hanging | L20: Containment | M20: Clean-out (Containment) | N20: Maintenance of Floating Silt Curtain | O20: Remarks
C21: Station | D21: Hanging | E21: Containment | F21: Clean-out (Containment) | G21: Maintenance of Floating Silt Curtain | H21: Remarks
D28: LF | E28: LF | F28: LF | G28: LF | K28: =D28 -> LF | L28: =E28 -> LF | M28: =F28 -> LF | N28: =G28 -> LF
D29: =IF(E29<>"","Must Add","") ->  | F29: =IF(E29<>"",(E29*(1+1)),"") ->  | G29: =IF(C29<>"",(D29+E29)/2,"") -> 
C30: 140094 | D30: 400 | G30: 200
D93: =IF(E93<>"","Must Add","") ->  | F93: =IF(E93<>"",(E93*(1+1)),"") ->  | G93: =IF(C93<>"",(D93+E93)/2,"") -> 
D157: =IF(E157<>"","Must Add","") ->  | F157: =IF(E157<>"",(E157*(1+1)),"") ->  | G157: =IF(C157<>"",(D157+E157)/2,"") -> 
D221: =IF(E221<>"","Must Add","") ->  | F221: =IF(E221<>"",(E221*(1+1)),"") ->  | G221: =IF(C221<>"",(D221+E221)/2,"") -> 
D285: =IF(E285<>"","Must Add","") ->  | F285: =IF(E285<>"",(E285*(1+1)),"") ->  | G285: =IF(C285<>"",(D285+E285)/2,"") -> 
D349: =IF(E349<>"","Must Add","") ->  | F349: =IF(E349<>"",(E349*(1+1)),"") ->  | G349: =IF(C349<>"",(D349+E349)/2,"") -> 
D413: =IF(E413<>"","Must Add","") ->  | F413: =IF(E413<>"",(E413*(1+1)),"") ->  | G413: =IF(C413<>"",(D413+E413)/2,"") -> 
D477: =IF(E477<>"","Must Add","") ->  | F477: =IF(E477<>"",(E477*(1+1)),"") ->  | G477: =IF(C477<>"",(D477+E477)/2,"") -> 
D541: =IF(E541<>"","Must Add","") ->  | F541: =IF(E541<>"",(E541*(1+1)),"") ->  | G541: =IF(C541<>"",(D541+E541)/2,"") -> 
D605: =IF(E605<>"","Must Add","") ->  | F605: =IF(E605<>"",(E605*(1+1)),"") ->  | G605: =IF(C605<>"",(D605+E605)/2,"") -> 
D669: =IF(E669<>"","Must Add","") ->  | F669: =IF(E669<>"",(E669*(1+1)),"") ->  | G669: =IF(C669<>"",(D669+E669)/2,"") -> 
D733: =IF(E733<>"","Must Add","") ->  | F733: =IF(E733<>"",(E733*(1+1)),"") ->  | G733: =IF(C733<>"",(D733+E733)/2,"") -> 
D797: =IF(E797<>"","Must Add","") ->  | F797: =IF(E797<>"",(E797*(1+1)),"") ->  | G797: =IF(C797<>"",(D797+E797)/2,"") -> 
D861: =IF(E861<>"","Must Add","") ->  | F861: =IF(E861<>"",(E861*(1+1)),"") ->  | G861: =IF(C861<>"",(D861+E861)/2,"") -> 
D925: =IF(E925<>"","Must Add","") ->  | F925: =IF(E925<>"",(E925*(1+1)),"") ->  | G925: =IF(C925<>"",(D925+E925)/2,"") -> 
D989: =IF(E989<>"","Must Add","") ->  | F989: =IF(E989<>"",(E989*(1+1)),"") ->  | G989: =IF(C989<>"",(D989+E989)/2,"") -> 
D1053: =IF(E1053<>"","Must Add","") ->  | F1053: =IF(E1053<>"",(E1053*(1+1)),"") ->  | G1053: =IF(C1053<>"",(D1053+E1053)/2,"") -> 
D1117: =IF(E1117<>"","Must Add","") ->  | F1117: =IF(E1117<>"",(E1117*(1+1)),"") ->  | G1117: =IF(C1117<>"",(D1117+E1117)/2,"") -> 
D1181: =IF(E1181<>"","Must Add","") ->  | F1181: =IF(E1181<>"",(E1181*(1+1)),"") ->  | G1181: =IF(C1181<>"",(D1181+E1181)/2,"") -> 
D1245: =IF(E1245<>"","Must Add","") ->  | F1245: =IF(E1245<>"",(E1245*(1+1)),"") ->  | G1245: =IF(C1245<>"",(D1245+E1245)/2,"") -> 
D1309: =IF(E1309<>"","Must Add","") ->  | F1309: =IF(E1309<>"",(E1309*(1+1)),"") ->  | G1309: =IF(C1309<>"",(D1309+E1309)/2,"") -> 
D1373: =IF(E1373<>"","Must Add","") ->  | F1373: =IF(E1373<>"",(E1373*(1+1)),"") ->  | G1373: =IF(C1373<>"",(D1373+E1373)/2,"") -> 
D1437: =IF(E1437<>"","Must Add","") ->  | F1437: =IF(E1437<>"",(E1437*(1+1)),"") ->  | G1437: =IF(C1437<>"",(D1437+E1437)/2,"") -> 
D1501: =IF(E1501<>"","Must Add","") ->  | F1501: =IF(E1501<>"",(E1501*(1+1)),"") ->  | G1501: =IF(C1501<>"",(D1501+E1501)/2,"") -> 
D1565: =IF(E1565<>"","Must Add","") ->  | F1565: =IF(E1565<>"",(E1565*(1+1)),"") ->  | G1565: =IF(C1565<>"",(D1565+E1565)/2,"") -> 
D1629: =IF(E1629<>"","Must Add","") ->  | F1629: =IF(E1629<>"",(E1629*(1+1)),"") ->  | G1629: =IF(C1629<>"",(D1629+E1629)/2,"") -> 
D1693: =IF(E1693<>"","Must Add","") ->  | F1693: =IF(E1693<>"",(E1693*(1+1)),"") ->  | G1693: =IF(C1693<>"",(D1693+E1693)/2,"") -> 
D1757: =IF(E1757<>"","Must Add","") ->  | F1757: =IF(E1757<>"",(E1757*(1+1)),"") ->  | G1757: =IF(C1757<>"",(D1757+E1757)/2,"") -> 
D1821: =IF(E1821<>"","Must Add","") ->  | F1821: =IF(E1821<>"",(E1821*(1+1)),"") ->  | G1821: =IF(C1821<>"",(D1821+E1821)/2,"") -> 
D1885: =IF(E1885<>"","Must Add","") ->  | F1885: =IF(E1885<>"",(E1885*(1+1)),"") ->  | G1885: =IF(C1885<>"",(D1885+E1885)/2,"") -> 
D1949: =IF(E1949<>"","Must Add","") ->  | F1949: =IF(E1949<>"",(E1949*(1+1)),"") ->  | G1949: =IF(C1949<>"",(D1949+E1949)/2,"") -> 
D2013: =IF(E2013<>"","Must Add","") ->  | F2013: =IF(E2013<>"",(E2013*(1+1)),"") ->  | G2013: =IF(C2013<>"",(D2013+E2013)/2,"") -> 
D2077: =IF(E2077<>"","Must Add","") ->  | F2077: =IF(E2077<>"",(E2077*(1+1)),"") ->  | G2077: =IF(C2077<>"",(D2077+E2077)/2,"") -> 
D2141: =IF(E2141<>"","Must Add","") ->  | F2141: =IF(E2141<>"",(E2141*(1+1)),"") ->  | G2141: =IF(C2141<>"",(D2141+E2141)/2,"") -> 
D2205: =IF(E2205<>"","Must Add","") ->  | F2205: =IF(E2205<>"",(E2205*(1+1)),"") ->  | G2205: =IF(C2205<>"",(D2205+E2205)/2,"") -> 
D2269: =IF(E2269<>"","Must Add","") ->  | F2269: =IF(E2269<>"",(E2269*(1+1)),"") ->  | G2269: =IF(C2269<>"",(D2269+E2269)/2,"") -> 
D2333: =IF(E2333<>"","Must Add","") ->  | F2333: =IF(E2333<>"",(E2333*(1+1)),"") ->  | G2333: =IF(C2333<>"",(D2333+E2333)/2,"") -> 
D2397: =IF(E2397<>"","Must Add","") ->  | F2397: =IF(E2397<>"",(E2397*(1+1)),"") ->  | G2397: =IF(C2397<>"",(D2397+E2397)/2,"") -> 
D2461: =IF(E2461<>"","Must Add","") ->  | F2461: =IF(E2461<>"",(E2461*(1+1)),"") ->  | G2461: =IF(C2461<>"",(D2461+E2461)/2,"") -> 
D2525: =IF(E2525<>"","Must Add","") ->  | F2525: =IF(E2525<>"",(E2525*(1+1)),"") ->  | G2525: =IF(C2525<>"",(D2525+E2525)/2,"") -> 
D2589: =IF(E2589<>"","Must Add","") ->  | F2589: =IF(E2589<>"",(E2589*(1+1)),"") ->  | G2589: =IF(C2589<>"",(D2589+E2589)/2,"") -> 
D2653: =IF(E2653<>"","Must Add","") ->  | F2653: =IF(E2653<>"",(E2653*(1+1)),"") ->  | G2653: =IF(C2653<>"",(D2653+E2653)/2,"") -> 
D2717: =IF(E2717<>"","Must Add","") ->  | F2717: =IF(E2717<>"",(E2717*(1+1)),"") ->  | G2717: =IF(C2717<>"",(D2717+E2717)/2,"") -> 
D2781: =IF(E2781<>"","Must Add","") ->  | F2781: =IF(E2781<>"",(E2781*(1+1)),"") ->  | G2781: =IF(C2781<>"",(D2781+E2781)/2,"") -> 
D2845: =IF(E2845<>"","Must Add","") ->  | F2845: =IF(E2845<>"",(E2845*(1+1)),"") ->  | G2845: =IF(C2845<>"",(D2845+E2845)/2,"") -> 
D2909: =IF(E2909<>"","Must Add","") ->  | F2909: =IF(E2909<>"",(E2909*(1+1)),"") ->  | G2909: =IF(C2909<>"",(D2909+E2909)/2,"") -> 
D2973: =IF(E2973<>"","Must Add","") ->  | F2973: =IF(E2973<>"",(E2973*(1+1)),"") ->  | G2973: =IF(C2973<>"",(D2973+E2973)/2,"") -> 
D3037: =IF(E3037<>"","Must Add","") ->  | F3037: =IF(E3037<>"",(E3037*(1+1)),"") ->  | G3037: =IF(C3037<>"",(D3037+E3037)/2,"") -> 
D3101: =IF(E3101<>"","Must Add","") ->  | F3101: =IF(E3101<>"",(E3101*(1+1)),"") ->  | G3101: =IF(C3101<>"",(D3101+E3101)/2,"") -> 
D3165: =IF(E3165<>"","Must Add","") ->  | F3165: =IF(E3165<>"",(E3165*(1+1)),"") ->  | G3165: =IF(C3165<>"",(D3165+E3165)/2,"") -> 
D3229: =IF(E3229<>"","Must Add","") ->  | F3229: =IF(E3229<>"",(E3229*(1+1)),"") ->  | G3229: =IF(C3229<>"",(D3229+E3229)/2,"") -> 
D3293: =IF(E3293<>"","Must Add","") ->  | F3293: =IF(E3293<>"",(E3293*(1+1)),"") ->  | G3293: =IF(C3293<>"",(D3293+E3293)/2,"") -> 
D3357: =IF(E3357<>"","Must Add","") ->  | F3357: =IF(E3357<>"",(E3357*(1+1)),"") ->  | G3357: =IF(C3357<>"",(D3357+E3357)/2,"") -> 
D3421: =IF(E3421<>"","Must Add","") ->  | F3421: =IF(E3421<>"",(E3421*(1+1)),"") ->  | G3421: =IF(C3421<>"",(D3421+E3421)/2,"") -> 
D3485: =IF(E3485<>"","Must Add","") ->  | F3485: =IF(E3485<>"",(E3485*(1+1)),"") ->  | G3485: =IF(C3485<>"",(D3485+E3485)/2,"") -> 
D3549: =IF(E3549<>"","Must Add","") ->  | F3549: =IF(E3549<>"",(E3549*(1+1)),"") ->  | G3549: =IF(C3549<>"",(D3549+E3549)/2,"") -> 
D3613: =IF(E3613<>"","Must Add","") ->  | F3613: =IF(E3613<>"",(E3613*(1+1)),"") ->  | G3613: =IF(C3613<>"",(D3613+E3613)/2,"") -> 
D3677: =IF(E3677<>"","Must Add","") ->  | F3677: =IF(E3677<>"",(E3677*(1+1)),"") ->  | G3677: =IF(C3677<>"",(D3677+E3677)/2,"") -> 
D3741: =IF(E3741<>"","Must Add","") ->  | F3741: =IF(E3741<>"",(E3741*(1+1)),"") ->  | G3741: =IF(C3741<>"",(D3741+E3741)/2,"") -> 
D3805: =IF(E3805<>"","Must Add","") ->  | F3805: =IF(E3805<>"",(E3805*(1+1)),"") ->  | G3805: =IF(C3805<>"",(D3805+E3805)/2,"") -> 
D3869: =IF(E3869<>"","Must Add","") ->  | F3869: =IF(E3869<>"",(E3869*(1+1)),"") ->  | G3869: =IF(C3869<>"",(D3869+E3869)/2,"") -> 
D3933: =IF(E3933<>"","Must Add","") ->  | F3933: =IF(E3933<>"",(E3933*(1+1)),"") ->  | G3933: =IF(C3933<>"",(D3933+E3933)/2,"") -> 
D3997: =IF(E3997<>"","Must Add","") ->  | F3997: =IF(E3997<>"",(E3997*(1+1)),"") ->  | G3997: =IF(C3997<>"",(D3997+E3997)/2,"") -> 
D4061: =IF(E4061<>"","Must Add","") ->  | F4061: =IF(E4061<>"",(E4061*(1+1)),"") ->  | G4061: =IF(C4061<>"",(D4061+E4061)/2,"") -> 
D4125: =IF(E4125<>"","Must Add","") ->  | F4125: =IF(E4125<>"",(E4125*(1+1)),"") ->  | G4125: =IF(C4125<>"",(D4125+E4125)/2,"") -> 
D4189: =IF(E4189<>"","Must Add","") ->  | F4189: =IF(E4189<>"",(E4189*(1+1)),"") ->  | G4189: =IF(C4189<>"",(D4189+E4189)/2,"") -> 
D4253: =IF(E4253<>"","Must Add","") ->  | F4253: =IF(E4253<>"",(E4253*(1+1)),"") ->  | G4253: =IF(C4253<>"",(D4253+E4253)/2,"") -> 
D4317: =IF(E4317<>"","Must Add","") ->  | F4317: =IF(E4317<>"",(E4317*(1+1)),"") ->  | G4317: =IF(C4317<>"",(D4317+E4317)/2,"") -> 
D4381: =IF(E4381<>"","Must Add","") ->  | F4381: =IF(E4381<>"",(E4381*(1+1)),"") ->  | G4381: =IF(C4381<>"",(D4381+E4381)/2,"") -> 
D4445: =IF(E4445<>"","Must Add","") ->  | F4445: =IF(E4445<>"",(E4445*(1+1)),"") ->  | G4445: =IF(C4445<>"",(D4445+E4445)/2,"") -> 
D4509: =IF(E4509<>"","Must Add","") ->  | F4509: =IF(E4509<>"",(E4509*(1+1)),"") ->  | G4509: =IF(C4509<>"",(D4509+E4509)/2,"") -> 
D4573: =IF(E4573<>"","Must Add","") ->  | F4573: =IF(E4573<>"",(E4573*(1+1)),"") ->  | G4573: =IF(C4573<>"",(D4573+E4573)/2,"") -> 
D4637: =IF(E4637<>"","Must Add","") ->  | F4637: =IF(E4637<>"",(E4637*(1+1)),"") ->  | G4637: =IF(C4637<>"",(D4637+E4637)/2,"") -> 
D4701: =IF(E4701<>"","Must Add","") ->  | F4701: =IF(E4701<>"",(E4701*(1+1)),"") ->  | G4701: =IF(C4701<>"",(D4701+E4701)/2,"") -> 
D4765: =IF(E4765<>"","Must Add","") ->  | F4765: =IF(E4765<>"",(E4765*(1+1)),"") ->  | G4765: =IF(C4765<>"",(D4765+E4765)/2,"") -> 
D4829: =IF(E4829<>"","Must Add","") ->  | F4829: =IF(E4829<>"",(E4829*(1+1)),"") ->  | G4829: =IF(C4829<>"",(D4829+E4829)/2,"") -> 
D4893: =IF(E4893<>"","Must Add","") ->  | F4893: =IF(E4893<>"",(E4893*(1+1)),"") ->  | G4893: =IF(C4893<>"",(D4893+E4893)/2,"") -> 
D4957: =IF(E4957<>"","Must Add","") ->  | F4957: =IF(E4957<>"",(E4957*(1+1)),"") ->  | G4957: =IF(C4957<>"",(D4957+E4957)/2,"") -> 
D5021: =IF(E5021<>"","Must Add","") ->  | F5021: =IF(E5021<>"",(E5021*(1+1)),"") ->  | G5021: =IF(C5021<>"",(D5021+E5021)/2,"") -> 
D5085: =IF(E5085<>"","Must Add","") ->  | F5085: =IF(E5085<>"",(E5085*(1+1)),"") ->  | G5085: =IF(C5085<>"",(D5085+E5085)/2,"") -> 
D5149: =IF(E5149<>"","Must Add","") ->  | F5149: =IF(E5149<>"",(E5149*(1+1)),"") ->  | G5149: =IF(C5149<>"",(D5149+E5149)/2,"") -> 
D5213: =IF(E5213<>"","Must Add","") ->  | F5213: =IF(E5213<>"",(E5213*(1+1)),"") ->  | G5213: =IF(C5213<>"",(D5213+E5213)/2,"") -> 
D5277: =IF(E5277<>"","Must Add","") ->  | F5277: =IF(E5277<>"",(E5277*(1+1)),"") ->  | G5277: =IF(C5277<>"",(D5277+E5277)/2,"") -> 
D5341: =IF(E5341<>"","Must Add","") ->  | F5341: =IF(E5341<>"",(E5341*(1+1)),"") ->  | G5341: =IF(C5341<>"",(D5341+E5341)/2,"") -> 
D5405: =IF(E5405<>"","Must Add","") ->  | F5405: =IF(E5405<>"",(E5405*(1+1)),"") ->  | G5405: =IF(C5405<>"",(D5405+E5405)/2,"") -> 
D5469: =IF(E5469<>"","Must Add","") ->  | F5469: =IF(E5469<>"",(E5469*(1+1)),"") ->  | G5469: =IF(C5469<>"",(D5469+E5469)/2,"") -> 
D5533: =IF(E5533<>"","Must Add","") ->  | F5533: =IF(E5533<>"",(E5533*(1+1)),"") ->  | G5533: =IF(C5533<>"",(D5533+E5533)/2,"") -> 
D5597: =IF(E5597<>"","Must Add","") ->  | F5597: =IF(E5597<>"",(E5597*(1+1)),"") ->  | G5597: =IF(C5597<>"",(D5597+E5597)/2,"") -> 
D5661: =IF(E5661<>"","Must Add","") ->  | F5661: =IF(E5661<>"",(E5661*(1+1)),"") ->  | G5661: =IF(C5661<>"",(D5661+E5661)/2,"") -> 
D5725: =IF(E5725<>"","Must Add","") ->  | F5725: =IF(E5725<>"",(E5725*(1+1)),"") ->  | G5725: =IF(C5725<>"",(D5725+E5725)/2,"") -> 
D5789: =IF(E5789<>"","Must Add","") ->  | F5789: =IF(E5789<>"",(E5789*(1+1)),"") ->  | G5789: =IF(C5789<>"",(D5789+E5789)/2,"") -> 
D5853: =IF(E5853<>"","Must Add","") ->  | F5853: =IF(E5853<>"",(E5853*(1+1)),"") ->  | G5853: =IF(C5853<>"",(D5853+E5853)/2,"") -> 
D5917: =IF(E5917<>"","Must Add","") ->  | F5917: =IF(E5917<>"",(E5917*(1+1)),"") ->  | G5917: =IF(C5917<>"",(D5917+E5917)/2,"") -> 
D5981: =IF(E5981<>"","Must Add","") ->  | F5981: =IF(E5981<>"",(E5981*(1+1)),"") ->  | G5981: =IF(C5981<>"",(D5981+E5981)/2,"") -> 

Sheet DE100_24
A1: TabTitle | B1: =C16 -> PCC PAVEMENT
A2: Number of Tab Columns | B2: 21
A3: DE Starter Row Number | B3: 55
A4: TabSheet Starter Row Number | B4: 41
A5: TabSheet Header Row Count | B5: 40
A6: Top Header Cell | B6: Y15
A7: Bottom Header Cell | B7: AS54
A8: DESheet Row Count | B8: 36
A9: Fixed Empty Rows | B9: 14
A10: Usable Empty Rows | B10: 0
A11: Total Rows Placed | B11: 50 | C11: xlLeft(1) | D11: xlLeft(1) | E11: xlRight(1) | F11: xlRight(1) | G11: xlRight(1) | H11: xlRight(1) | I11: xlRight(1) | J11: xlRight(1) | K11: xlRight(1) | L11: xlRight(1) | M11: xlRight(1) | N11: xlRight(1) | O11: xlRight(1) | P11: xlRight(1) | Q11: xlRight(1) | R11: xlRight(1) | S11: xlRight(1) | T11: xlRight(1) | U11: xlcenter(1) | V11: xlRight(1) | W11: xlLeft(1) | Y11: =C11 -> xlLeft(1) | Z11: xlLeft(1) | AA11: xlRight(1) | AB11: xlRight(1) | AC11: xlRight(1) | AD11: xlRight(1) | AE11: xlRight(1) | AF11: xlRight(1) | AG11: xlRight(1) | AH11: xlRight(1) | AI11: xlRight(1) | AJ11: xlRight(1) | AK11: xlRight(1) | AL11: xlRight(1) | AM11: xlRight(1) | AN11: xlRight(1) | AO11: =S11 -> xlRight(1) | AP11: xlRight(1) | AQ11: xlcenter(1) | AR11: xlRight(1) | AS11: xlLeft(1)
A12: Total Rows Needed | B12: =SUM(B8:B10) -> 50 | C12: General | D12: General | E12: #+00.00 | F12: #+00.00 | G12: 0.0 | H12: 0.0 | I12: 0.0 | J12: 0.0 | K12: 0.0 | L12: 0.0 | M12: 0.0 | N12: 0.0 | O12: 0.0 | P12: 0.0 | Q12: 0.0 | R12: 0.0 | S12: 0.0 | T12: 0.0 | U12: 0.0 | V12: 0.0 | W12: General | Y12: General | Z12: General | AA12: #+00.00 | AB12: #+00.00 | AC12: 0.0 | AD12: 0.0 | AE12: 0.0 | AF12: 0.0 | AG12: 0.0 | AH12: 0.0 | AI12: 0.0 | AJ12: 0.0 | AK12: 0.0 | AL12: 0.0 | AM12: 0.0 | AN12: 0.0 | AO12: 0.0 | AP12: 0.0 | AQ12: 0.0 | AR12: 0.0 | AS12: General
A13: Last Tab DE Starter Row | B13: 55 | C13: =CELL("width",C13) -> 34 | D13: 11 | E13: 16 | F13: 16 | G13: 9 | H13: 9 | I13: 12 | J13: 10 | K13: 10 | L13: 10 | M13: 10 | N13: 10 | O13: 10 | P13: 10 | Q13: 10 | R13: 12 | S13: 12 | T13: 12 | U13: 12 | V13: 12 | W13: 60 | Y13: =CELL("width",Y13) -> 0 | Z13: 0 | AA13: 0 | AB13: 0 | AC13: 0 | AD13: 0 | AE13: 0 | AF13: 0 | AG13: 0 | AH13: 0 | AI13: 0 | AJ13: 0 | AK13: 0 | AL13: 0 | AM13: 0 | AN13: 0 | AO13: 0 | AP13: 0 | AQ13: 0 | AR13: 0 | AS13: 0
A14: Last Tab TabSheet Starter Row | B14: 41 | C14: A | D14: B | E14: C | F14: D | G14: E | H14: F | I14: G | J14: H | K14: I | L14: J | M14: K | N14: L | O14: M | P14: N | Q14: O | R14: P | S14: Q | T14: R | U14: S | V14: T | W14: U | Y14: =LOWER(C14) -> a | Z14: b | AA14: c | AB14: d | AC14: e | AD14: f | AE14: g | AF14: h | AG14: i | AH14: j | AI14: k | AJ14: l | AK14: m | AL14: n | AM14: o | AN14: p | AO14: q | AP14: r | AQ14: s | AR14: t | AS14: u
A15: Last Copy Starter Row | B15: 1 | R15: =SUBTOTAL(9,R55:R6001) -> 213391.7156 | S15: =SUBTOTAL(9,S55:S6001) -> 1627.622222 | U15: =SUBTOTAL(9,U54:U6001) -> 203455.7778 | V15: =SUBTOTAL(9,V54:V6001) -> 1841.228889 | Y15: 100-24
A16: Tab Loop Number | B16: 2 | C16: PCC PAVEMENT | Y16: =B17 -> 2015-04-21
A17: Revision Date | B17: 2015-04-21 | Y17: =C16 -> PCC PAVEMENT
A18: Tabulation Width | B18: 4 | C18: ="This Data Entry Sheet fills Tab "&Y15&" effective "&TEXT(B17,"mm-dd-yy") -> This Data Entry Sheet fills Tab 100-24 effective 04-21-15
A19: Horizontal Grid Lines | B19: Yes
W38: Does not include raised island area or curb. Refer to tabulation 112-4 for quantities. | AS38: =W38 -> Does not include raised island area or curb. Refer to tabulation 112-4 for quantities.
W41: Refer to PV-410, PV-411, PV-412, and PV-414. | AS41: =W41 -> Refer to PV-410, PV-411, PV-412, and PV-414.
W43: Quantity includes Pavement Header. | AS43: =W43 -> Quantity includes Pavement Header.
C49: Location | G49: Mainline | J49: Area | R49: Total Area By Pavement Thickness | T49: Modified Subbase | U49: Granular Subbase | V49: Granular Subbase (County) | W49: Remarks | Y49: =C49 -> Location | AC49: =G49 -> Mainline | AF49: =J49 -> Area | AN49: =R49 -> Total Area By Pavement Thickness | AP49: =T49 -> Modified Subbase | AQ49: =U49 -> Granular Subbase | AR49: =V49 -> Granular Subbase (County) | AS49: =W49 -> Remarks
C50: Road Identification | D50: Direction of Travel | E50: Station to Station | G50: Width | H50: Length | I50: Area | Q50: Paved SideRoad Returns | Y50: =C50 -> Road Identification | Z50: =D50 -> Direction of Travel | AA50: =E50 -> Station to Station | AC50: =G50 -> Width | AD50: =H50 -> Length | AE50: =I50 -> Area | AM50: Paved SideRoad Returns
R51: 10 IN. | S51: 10 IN. (County) | AN51: 10 IN. | AO51: 10 IN. (County)
G54: FT | H54: FT | I54: SY | J54: SY | K54: SY | L54: SY | M54: SY | N54: SY | O54: SY | P54: SY | Q54: SY | R54: SY | S54: SY | T54: CY | U54: SY | V54: SY | AC54: =G54 -> FT | AD54: FT | AE54: SY | AF54: SY | AG54: SY | AH54: SY | AI54: SY | AJ54: SY | AK54: SY | AL54: SY | AM54: SY | AN54: =R54 -> SY | AO54: =S54 -> SY | AP54: =T54 -> CY | AQ54: =U54 -> SY | AR54: =V54 -> SY
H55: =IF(AND($E55<>"",$F55<>""),$F55-$E55,"") ->  | I55: =IF(AND($G55<>"",$H55<>""),$G55*$H55/9,"") -> 
C56: U.S. Highway 30 | D56: EB | E56: 138000 | F56: 141923 | G56: 26 | H56: 3923 | I56: 11333.11111 | R56: =SUM(I56:Q56) -> 11333.11111 | U56: =R56+(H56*6)/9 -> 13948.44444
C57: U.S. Highway 30 | D57: EB | E57: 141923 | F57: 142193 | G57: 26 | H57: 270 | I57: 780 | M57: 280 | R57: =SUM(I57:Q57) -> 1060 | U57: =R57+(H57*6)/9 -> 1240
C58: U.S. Highway 30 | D58: EB | E58: 142193 | F58: 142448 | G58: 26 | H58: 255 | I58: 736.6666667 | N58: 929.3 | R58: 1665.966667 | U58: 1835.966667
C59: U.S. Highway 30 | D59: EB | E59: 142448 | F59: 147315 | G59: 26 | H59: 4867 | I59: 14060.22222 | R59: 14060.22222 | U59: 17304.88889
C60: U.S. Highway 30 | D60: EB | E60: 147315 | F60: 147916.14 | G60: 26 | H60: 601.14 | I60: 1736.626667 | O60: 1388.9 | R60: 3125.526667 | U60: 3526.286667
C61: U.S. Highway 30 | D61: EB | E61: 147916.14 | F61: 148995 | G61: 26 | H61: 1078.86 | I61: 3116.706667 | R61: 3116.706667 | U61: 3835.946667
C62: U.S. Highway 30 | D62: EB | E62: 148995 | F62: 150225 | G62: 26 | H62: 1230 | I62: 3553.333333 | O62: 1691.8 | R62: 5245.133333 | U62: 6065.133333
C63: U.S. Highway 30 | D63: EB | E63: 150225 | F63: 151670 | G63: 26 | H63: 1445 | I63: 4174.444444 | R63: 4174.444444 | U63: 5137.777778
C65: U.S. Highway 30 | D65: WB | E65: 138900 | F65: 142373 | G65: 26 | H65: 3473 | I65: 10033.11111 | R65: 10033.11111 | U65: 12348.44444
C66: U.S. Highway 30 | D66: WB | E66: 142373 | F66: 142643 | G66: 26 | H66: 270 | I66: 780 | M66: 280 | R66: 1060 | U66: 1240
C67: U.S. Highway 30 | D67: WB | E67: 142643 | F67: 144875 | G67: 26 | H67: 2232 | I67: 6448 | R67: 6448 | U67: 7936
C68: U.S. Highway 30 | D68: WB | E68: 144875 | F68: 146105 | G68: 26 | H68: 1230 | I68: 3553.333333 | O68: 1836.7 | R68: 5390.033333 | U68: 6210.033333
C69: U.S. Highway 30 | D69: WB | E69: 146105 | F69: 147223.74 | G69: 26 | H69: 1118.74 | I69: 3231.915556 | R69: 3231.915556 | U69: 3977.742222
C70: U.S. Highway 30 | D70: WB | E70: 147223.74 | F70: 147825 | G70: 26 | H70: 601.26 | I70: 1736.973333 | O70: 1312.3 | R70: 3049.273333 | U70: 3450.113333
C71: U.S. Highway 30 | D71: WB | E71: 147825 | F71: 151670 | G71: 26 | H71: 3845 | I71: 11107.77778 | R71: 11107.77778 | U71: 13671.11111
C73: U.S. Highway 218 Loop A | D73: EB | E73: 1147915 | F73: 1148664.72 | G73: 18 | H73: 749.72 | I73: 1499.44 | R73: 1499.44 | T73: =(R73+(H73*6)/9)/3 -> 666.4177778
C74: U.S. Highway 218 Loop B | D74: WB | E74: 2147225 | F74: 2147975.06 | G74: 18 | H74: 750.06 | I74: 1500.12 | R74: 1500.12 | T74: =(R74+(H74*6)/9)/3 -> 666.72
C75: U.S. Highway 218 Ramp C | D75: WB | E75: 3144055.75 | F75: 3144373.46 | G75: 16 | H75: 317.71 | I75: 564.8177778 | O75: 990.3 | R75: 1555.117778 | T75: 588.9748148
C76: U.S. Highway 218 Ramp C | D76: WB | E76: 3144373.46 | F76: 3145646.34 | G76: 16 | H76: 1272.88 | I76: 2262.897778 | R76: 2262.897778 | T76: 1037.161481
C77: U.S. Highway 218 Ramp D | D77: EB | E77: 4147440.45 | F77: 4147760.34 | G77: 16 | H77: 319.89 | I77: 568.6933333 | O77: 995.1 | R77: 1563.793333 | T77: 592.3511111
C78: U.S. Highway 218 Ramp D | D78: EB | E78: 4147760.34 | F78: 4148996.32 | G78: 16 | H78: 1235.98 | I78: 2197.297778 | R78: 2197.297778 | T78: 1007.094815
C80: U.S. Highway 218 | D80: NB/SB | E80: 24146800 | F80: 24147098.3 | G80: 28 | H80: 298.3 | I80: 928.0444444 | J80: 271.4 | K80: 244.4 | R80: 1443.844444 | T80: 547.5703704
C81: U.S. Highway 218 | D81: NB/SB | E81: 24147098.3 | F81: 24147445.71 | G81: 28 | H81: 347.41 | I81: 1080.831111 | R81: 1080.831111 | T81: 437.4792593
C82: U.S. Highway 218 | D82: NB/SB | E82: 24147705.72 | F82: 24148039.82 | G82: 28 | H82: 334.1 | I82: 1039.422222 | R82: 1039.422222 | T82: 420.7185185
C83: U.S. Highway 218 | D83: NB/SB | E83: 24148039.82 | F83: 24148325 | G83: 28 | H83: 285.18 | I83: 887.2266667 | J83: 253.1 | K83: 420.4 | R83: 1560.726667 | T83: 583.6155556
C84: U.S. Highway 218 | D84: NB/SB | E84: 24148325 | F84: 24148976.2 | G84: 28 | H84: 651.2 | I84: 2025.955556 | L84: 746.7 | R84: 2772.655556 | T84: 1068.92963
C85: U.S. Highway 218 | D85: NB/SB | E85: 24148976.2 | F85: 24150300 | G85: 28 | H85: 1323.8 | I85: 4118.488889 | R85: 4118.488889 | T85: 1667.007407
C87: U.S. Highway 30 | D87: EB | E87: Intersection at 23rd Ave. | Q87: =3681.72/9 -> 409.08 | S87: =Q87 -> 409.08 | V87: =S87+(161.31*3)/9 -> 462.85
C88: U.S. Highway 30 | D88: WB | E88: Intersection at 23rd Ave. | Q88: =3642.58/9 -> 404.7311111 | S88: =Q88 -> 404.7311111 | V88: =S88+(159.1*3)/9 -> 457.7644444
P90: TOTALS: | R90: =SUM(R56:R85) -> 106695.8578 | S90: =SUM(S87:S88) -> 813.8111111 | T90: =SUM(T56:T85) -> 9284.040741 | U90: =SUM(U56:U88) -> 101727.8889 | V90: =SUM(V56:V88) -> 920.6144444
H120: =IF(AND($E120<>"",$F120<>""),$F120-$E120,"") ->  | I120: =IF(AND($G120<>"",$H120<>""),$G120*$H120/9,"") -> 
H184: =IF(AND($E184<>"",$F184<>""),$F184-$E184,"") ->  | I184: =IF(AND($G184<>"",$H184<>""),$G184*$H184/9,"") -> 
H248: =IF(AND($E248<>"",$F248<>""),$F248-$E248,"") ->  | I248: =IF(AND($G248<>"",$H248<>""),$G248*$H248/9,"") -> 
H312: =IF(AND($E312<>"",$F312<>""),$F312-$E312,"") ->  | I312: =IF(AND($G312<>"",$H312<>""),$G312*$H312/9,"") -> 
H376: =IF(AND($E376<>"",$F376<>""),$F376-$E376,"") ->  | I376: =IF(AND($G376<>"",$H376<>""),$G376*$H376/9,"") -> 
H440: =IF(AND($E440<>"",$F440<>""),$F440-$E440,"") ->  | I440: =IF(AND($G440<>"",$H440<>""),$G440*$H440/9,"") -> 
H504: =IF(AND($E504<>"",$F504<>""),$F504-$E504,"") ->  | I504: =IF(AND($G504<>"",$H504<>""),$G504*$H504/9,"") -> 
H568: =IF(AND($E568<>"",$F568<>""),$F568-$E568,"") ->  | I568: =IF(AND($G568<>"",$H568<>""),$G568*$H568/9,"") -> 
H632: =IF(AND($E632<>"",$F632<>""),$F632-$E632,"") ->  | I632: =IF(AND($G632<>"",$H632<>""),$G632*$H632/9,"") -> 
H696: =IF(AND($E696<>"",$F696<>""),$F696-$E696,"") ->  | I696: =IF(AND($G696<>"",$H696<>""),$G696*$H696/9,"") -> 
H760: =IF(AND($E760<>"",$F760<>""),$F760-$E760,"") ->  | I760: =IF(AND($G760<>"",$H760<>""),$G760*$H760/9,"") -> 
H824: =IF(AND($E824<>"",$F824<>""),$F824-$E824,"") ->  | I824: =IF(AND($G824<>"",$H824<>""),$G824*$H824/9,"") -> 
H888: =IF(AND($E888<>"",$F888<>""),$F888-$E888,"") ->  | I888: =IF(AND($G888<>"",$H888<>""),$G888*$H888/9,"") -> 
H952: =IF(AND($E952<>"",$F952<>""),$F952-$E952,"") ->  | I952: =IF(AND($G952<>"",$H952<>""),$G952*$H952/9,"") -> 
H1016: =IF(AND($E1016<>"",$F1016<>""),$F1016-$E1016,"") ->  | I1016: =IF(AND($G1016<>"",$H1016<>""),$G1016*$H1016/9,"") -> 
H1080: =IF(AND($E1080<>"",$F1080<>""),$F1080-$E1080,"") ->  | I1080: =IF(AND($G1080<>"",$H1080<>""),$G1080*$H1080/9,"") -> 
H1144: =IF(AND($E1144<>"",$F1144<>""),$F1144-$E1144,"") ->  | I1144: =IF(AND($G1144<>"",$H1144<>""),$G1144*$H1144/9,"") -> 
H1208: =IF(AND($E1208<>"",$F1208<>""),$F1208-$E1208,"") ->  | I1208: =IF(AND($G1208<>"",$H1208<>""),$G1208*$H1208/9,"") -> 
H1272: =IF(AND($E1272<>"",$F1272<>""),$F1272-$E1272,"") ->  | I1272: =IF(AND($G1272<>"",$H1272<>""),$G1272*$H1272/9,"") -> 
H1336: =IF(AND($E1336<>"",$F1336<>""),$F1336-$E1336,"") ->  | I1336: =IF(AND($G1336<>"",$H1336<>""),$G1336*$H1336/9,"") -> 
H1400: =IF(AND($E1400<>"",$F1400<>""),$F1400-$E1400,"") ->  | I1400: =IF(AND($G1400<>"",$H1400<>""),$G1400*$H1400/9,"") -> 
H1464: =IF(AND($E1464<>"",$F1464<>""),$F1464-$E1464,"") ->  | I1464: =IF(AND($G1464<>"",$H1464<>""),$G1464*$H1464/9,"") -> 
H1528: =IF(AND($E1528<>"",$F1528<>""),$F1528-$E1528,"") ->  | I1528: =IF(AND($G1528<>"",$H1528<>""),$G1528*$H1528/9,"") -> 
H1592: =IF(AND($E1592<>"",$F1592<>""),$F1592-$E1592,"") ->  | I1592: =IF(AND($G1592<>"",$H1592<>""),$G1592*$H1592/9,"") -> 
H1656: =IF(AND($E1656<>"",$F1656<>""),$F1656-$E1656,"") ->  | I1656: =IF(AND($G1656<>"",$H1656<>""),$G1656*$H1656/9,"") -> 
H1720: =IF(AND($E1720<>"",$F1720<>""),$F1720-$E1720,"") ->  | I1720: =IF(AND($G1720<>"",$H1720<>""),$G1720*$H1720/9,"") -> 
H1784: =IF(AND($E1784<>"",$F1784<>""),$F1784-$E1784,"") ->  | I1784: =IF(AND($G1784<>"",$H1784<>""),$G1784*$H1784/9,"") -> 
H1848: =IF(AND($E1848<>"",$F1848<>""),$F1848-$E1848,"") ->  | I1848: =IF(AND($G1848<>"",$H1848<>""),$G1848*$H1848/9,"") -> 
H1912: =IF(AND($E1912<>"",$F1912<>""),$F1912-$E1912,"") ->  | I1912: =IF(AND($G1912<>"",$H1912<>""),$G1912*$H1912/9,"") -> 
H1976: =IF(AND($E1976<>"",$F1976<>""),$F1976-$E1976,"") ->  | I1976: =IF(AND($G1976<>"",$H1976<>""),$G1976*$H1976/9,"") -> 
H2040: =IF(AND($E2040<>"",$F2040<>""),$F2040-$E2040,"") ->  | I2040: =IF(AND($G2040<>"",$H2040<>""),$G2040*$H2040/9,"") -> 
H2104: =IF(AND($E2104<>"",$F2104<>""),$F2104-$E2104,"") ->  | I2104: =IF(AND($G2104<>"",$H2104<>""),$G2104*$H2104/9,"") -> 
H2168: =IF(AND($E2168<>"",$F2168<>""),$F2168-$E2168,"") ->  | I2168: =IF(AND($G2168<>"",$H2168<>""),$G2168*$H2168/9,"") -> 
H2232: =IF(AND($E2232<>"",$F2232<>""),$F2232-$E2232,"") ->  | I2232: =IF(AND($G2232<>"",$H2232<>""),$G2232*$H2232/9,"") -> 
H2296: =IF(AND($E2296<>"",$F2296<>""),$F2296-$E2296,"") ->  | I2296: =IF(AND($G2296<>"",$H2296<>""),$G2296*$H2296/9,"") -> 
H2360: =IF(AND($E2360<>"",$F2360<>""),$F2360-$E2360,"") ->  | I2360: =IF(AND($G2360<>"",$H2360<>""),$G2360*$H2360/9,"") -> 
H2424: =IF(AND($E2424<>"",$F2424<>""),$F2424-$E2424,"") ->  | I2424: =IF(AND($G2424<>"",$H2424<>""),$G2424*$H2424/9,"") -> 
H2488: =IF(AND($E2488<>"",$F2488<>""),$F2488-$E2488,"") ->  | I2488: =IF(AND($G2488<>"",$H2488<>""),$G2488*$H2488/9,"") -> 
H2552: =IF(AND($E2552<>"",$F2552<>""),$F2552-$E2552,"") ->  | I2552: =IF(AND($G2552<>"",$H2552<>""),$G2552*$H2552/9,"") -> 
H2616: =IF(AND($E2616<>"",$F2616<>""),$F2616-$E2616,"") ->  | I2616: =IF(AND($G2616<>"",$H2616<>""),$G2616*$H2616/9,"") -> 
H2680: =IF(AND($E2680<>"",$F2680<>""),$F2680-$E2680,"") ->  | I2680: =IF(AND($G2680<>"",$H2680<>""),$G2680*$H2680/9,"") -> 
H2744: =IF(AND($E2744<>"",$F2744<>""),$F2744-$E2744,"") ->  | I2744: =IF(AND($G2744<>"",$H2744<>""),$G2744*$H2744/9,"") -> 
H2808: =IF(AND($E2808<>"",$F2808<>""),$F2808-$E2808,"") ->  | I2808: =IF(AND($G2808<>"",$H2808<>""),$G2808*$H2808/9,"") -> 
H2872: =IF(AND($E2872<>"",$F2872<>""),$F2872-$E2872,"") ->  | I2872: =IF(AND($G2872<>"",$H2872<>""),$G2872*$H2872/9,"") -> 
H2936: =IF(AND($E2936<>"",$F2936<>""),$F2936-$E2936,"") ->  | I2936: =IF(AND($G2936<>"",$H2936<>""),$G2936*$H2936/9,"") -> 
H3000: =IF(AND($E3000<>"",$F3000<>""),$F3000-$E3000,"") ->  | I3000: =IF(AND($G3000<>"",$H3000<>""),$G3000*$H3000/9,"") -> 
H3064: =IF(AND($E3064<>"",$F3064<>""),$F3064-$E3064,"") ->  | I3064: =IF(AND($G3064<>"",$H3064<>""),$G3064*$H3064/9,"") -> 
H3128: =IF(AND($E3128<>"",$F3128<>""),$F3128-$E3128,"") ->  | I3128: =IF(AND($G3128<>"",$H3128<>""),$G3128*$H3128/9,"") -> 
H3192: =IF(AND($E3192<>"",$F3192<>""),$F3192-$E3192,"") ->  | I3192: =IF(AND($G3192<>"",$H3192<>""),$G3192*$H3192/9,"") -> 
H3256: =IF(AND($E3256<>"",$F3256<>""),$F3256-$E3256,"") ->  | I3256: =IF(AND($G3256<>"",$H3256<>""),$G3256*$H3256/9,"") -> 
H3320: =IF(AND($E3320<>"",$F3320<>""),$F3320-$E3320,"") ->  | I3320: =IF(AND($G3320<>"",$H3320<>""),$G3320*$H3320/9,"") -> 
H3384: =IF(AND($E3384<>"",$F3384<>""),$F3384-$E3384,"") ->  | I3384: =IF(AND($G3384<>"",$H3384<>""),$G3384*$H3384/9,"") -> 
H3448: =IF(AND($E3448<>"",$F3448<>""),$F3448-$E3448,"") ->  | I3448: =IF(AND($G3448<>"",$H3448<>""),$G3448*$H3448/9,"") -> 
H3512: =IF(AND($E3512<>"",$F3512<>""),$F3512-$E3512,"") ->  | I3512: =IF(AND($G3512<>"",$H3512<>""),$G3512*$H3512/9,"") -> 
H3576: =IF(AND($E3576<>"",$F3576<>""),$F3576-$E3576,"") ->  | I3576: =IF(AND($G3576<>"",$H3576<>""),$G3576*$H3576/9,"") -> 
H3640: =IF(AND($E3640<>"",$F3640<>""),$F3640-$E3640,"") ->  | I3640: =IF(AND($G3640<>"",$H3640<>""),$G3640*$H3640/9,"") -> 
H3704: =IF(AND($E3704<>"",$F3704<>""),$F3704-$E3704,"") ->  | I3704: =IF(AND($G3704<>"",$H3704<>""),$G3704*$H3704/9,"") -> 
H3768: =IF(AND($E3768<>"",$F3768<>""),$F3768-$E3768,"") ->  | I3768: =IF(AND($G3768<>"",$H3768<>""),$G3768*$H3768/9,"") -> 
H3832: =IF(AND($E3832<>"",$F3832<>""),$F3832-$E3832,"") ->  | I3832: =IF(AND($G3832<>"",$H3832<>""),$G3832*$H3832/9,"") -> 
H3896: =IF(AND($E3896<>"",$F3896<>""),$F3896-$E3896,"") ->  | I3896: =IF(AND($G3896<>"",$H3896<>""),$G3896*$H3896/9,"") -> 
H3960: =IF(AND($E3960<>"",$F3960<>""),$F3960-$E3960,"") ->  | I3960: =IF(AND($G3960<>"",$H3960<>""),$G3960*$H3960/9,"") -> 
H4024: =IF(AND($E4024<>"",$F4024<>""),$F4024-$E4024,"") ->  | I4024: =IF(AND($G4024<>"",$H4024<>""),$G4024*$H4024/9,"") -> 
H4088: =IF(AND($E4088<>"",$F4088<>""),$F4088-$E4088,"") ->  | I4088: =IF(AND($G4088<>"",$H4088<>""),$G4088*$H4088/9,"") -> 
H4152: =IF(AND($E4152<>"",$F4152<>""),$F4152-$E4152,"") ->  | I4152: =IF(AND($G4152<>"",$H4152<>""),$G4152*$H4152/9,"") -> 
H4216: =IF(AND($E4216<>"",$F4216<>""),$F4216-$E4216,"") ->  | I4216: =IF(AND($G4216<>"",$H4216<>""),$G4216*$H4216/9,"") -> 
H4280: =IF(AND($E4280<>"",$F4280<>""),$F4280-$E4280,"") ->  | I4280: =IF(AND($G4280<>"",$H4280<>""),$G4280*$H4280/9,"") -> 
H4344: =IF(AND($E4344<>"",$F4344<>""),$F4344-$E4344,"") ->  | I4344: =IF(AND($G4344<>"",$H4344<>""),$G4344*$H4344/9,"") -> 
H4408: =IF(AND($E4408<>"",$F4408<>""),$F4408-$E4408,"") ->  | I4408: =IF(AND($G4408<>"",$H4408<>""),$G4408*$H4408/9,"") -> 
H4472: =IF(AND($E4472<>"",$F4472<>""),$F4472-$E4472,"") ->  | I4472: =IF(AND($G4472<>"",$H4472<>""),$G4472*$H4472/9,"") -> 
H4536: =IF(AND($E4536<>"",$F4536<>""),$F4536-$E4536,"") ->  | I4536: =IF(AND($G4536<>"",$H4536<>""),$G4536*$H4536/9,"") -> 
H4600: =IF(AND($E4600<>"",$F4600<>""),$F4600-$E4600,"") ->  | I4600: =IF(AND($G4600<>"",$H4600<>""),$G4600*$H4600/9,"") -> 
H4664: =IF(AND($E4664<>"",$F4664<>""),$F4664-$E4664,"") ->  | I4664: =IF(AND($G4664<>"",$H4664<>""),$G4664*$H4664/9,"") -> 
H4728: =IF(AND($E4728<>"",$F4728<>""),$F4728-$E4728,"") ->  | I4728: =IF(AND($G4728<>"",$H4728<>""),$G4728*$H4728/9,"") -> 
H4792: =IF(AND($E4792<>"",$F4792<>""),$F4792-$E4792,"") ->  | I4792: =IF(AND($G4792<>"",$H4792<>""),$G4792*$H4792/9,"") -> 
H4856: =IF(AND($E4856<>"",$F4856<>""),$F4856-$E4856,"") ->  | I4856: =IF(AND($G4856<>"",$H4856<>""),$G4856*$H4856/9,"") -> 
H4920: =IF(AND($E4920<>"",$F4920<>""),$F4920-$E4920,"") ->  | I4920: =IF(AND($G4920<>"",$H4920<>""),$G4920*$H4920/9,"") -> 
H4984: =IF(AND($E4984<>"",$F4984<>""),$F4984-$E4984,"") ->  | I4984: =IF(AND($G4984<>"",$H4984<>""),$G4984*$H4984/9,"") -> 
H5048: =IF(AND($E5048<>"",$F5048<>""),$F5048-$E5048,"") ->  | I5048: =IF(AND($G5048<>"",$H5048<>""),$G5048*$H5048/9,"") -> 
H5112: =IF(AND($E5112<>"",$F5112<>""),$F5112-$E5112,"") ->  | I5112: =IF(AND($G5112<>"",$H5112<>""),$G5112*$H5112/9,"") -> 
H5176: =IF(AND($E5176<>"",$F5176<>""),$F5176-$E5176,"") ->  | I5176: =IF(AND($G5176<>"",$H5176<>""),$G5176*$H5176/9,"") -> 
H5240: =IF(AND($E5240<>"",$F5240<>""),$F5240-$E5240,"") ->  | I5240: =IF(AND($G5240<>"",$H5240<>""),$G5240*$H5240/9,"") -> 
H5304: =IF(AND($E5304<>"",$F5304<>""),$F5304-$E5304,"") ->  | I5304: =IF(AND($G5304<>"",$H5304<>""),$G5304*$H5304/9,"") -> 
H5368: =IF(AND($E5368<>"",$F5368<>""),$F5368-$E5368,"") ->  | I5368: =IF(AND($G5368<>"",$H5368<>""),$G5368*$H5368/9,"") -> 
H5432: =IF(AND($E5432<>"",$F5432<>""),$F5432-$E5432,"") ->  | I5432: =IF(AND($G5432<>"",$H5432<>""),$G5432*$H5432/9,"") -> 
H5496: =IF(AND($E5496<>"",$F5496<>""),$F5496-$E5496,"") ->  | I5496: =IF(AND($G5496<>"",$H5496<>""),$G5496*$H5496/9,"") -> 
H5560: =IF(AND($E5560<>"",$F5560<>""),$F5560-$E5560,"") ->  | I5560: =IF(AND($G5560<>"",$H5560<>""),$G5560*$H5560/9,"") -> 
H5624: =IF(AND($E5624<>"",$F5624<>""),$F5624-$E5624,"") ->  | I5624: =IF(AND($G5624<>"",$H5624<>""),$G5624*$H5624/9,"") -> 
H5688: =IF(AND($E5688<>"",$F5688<>""),$F5688-$E5688,"") ->  | I5688: =IF(AND($G5688<>"",$H5688<>""),$G5688*$H5688/9,"") -> 
H5752: =IF(AND($E5752<>"",$F5752<>""),$F5752-$E5752,"") ->  | I5752: =IF(AND($G5752<>"",$H5752<>""),$G5752*$H5752/9,"") -> 
H5816: =IF(AND($E5816<>"",$F5816<>""),$F5816-$E5816,"") ->  | I5816: =IF(AND($G5816<>"",$H5816<>""),$G5816*$H5816/9,"") -> 
H5880: =IF(AND($E5880<>"",$F5880<>""),$F5880-$E5880,"") ->  | I5880: =IF(AND($G5880<>"",$H5880<>""),$G5880*$H5880/9,"") -> 
H5944: =IF(AND($E5944<>"",$F5944<>""),$F5944-$E5944,"") ->  | I5944: =IF(AND($G5944<>"",$H5944<>""),$G5944*$H5944/9,"") -> 

Sheet DE100_26
A1: TabTitle | B1: =C15 -> INCIDENTAL ITEMS
A2: Number of Tab Columns | B2: 7
A3: DE Starter Row Number | B3: 22
A4: TabSheet Starter Row Number | B4: 10
A5: TabSheet Header Row Count | B5: 9
A6: Top Header Cell | B6: K15
A7: Bottom Header Cell | B7: Q23
A8: DESheet Row Count | B8: 0
A9: Fixed Empty Rows | B9: 20
A10: Usable Empty Rows | B10: 0
A11: Total Rows Placed | B11: 20 | C11: xlRight(1) | D11: xlLeft(1) | E11: xlLeft(1) | F11: xlRight(1) | G11: xlCenter | H11: xlLeft(1) | I11: xlLeft(1) | K11: =C11 -> xlRight(1) | L11: xlLeft(1) | M11: xlLeft(1) | N11: xlRight(1) | O11: xlCenter | P11: xlLeft(1) | Q11: xlLeft(1)
A12: Total Rows Needed | B12: =SUM(B8:B10) -> 20 | C12: General | D12: General | E12: General | F12: General | G12: General | H12: General | I12: General | K12: General | L12: General | M12: General | N12: General | O12: General | P12: General | Q12: General
A13: Last Tab DE Starter Row | B13: 22 | C13: =CELL("width",C13) -> 6 | D13: 49 | E13: 10 | F13: 10 | G13: 18 | H13: 49 | I13: 12 | K13: =CELL("width",K13) -> 0 | L13: 0 | M13: 0 | N13: 0 | O13: 0 | P13: 0 | Q13: 0
A14: Last Tab Tabsheet Starter Row | B14: 10 | C14: A | D14: B | E14: C | F14: D | G14: E | H14: F | I14: G | K14: =LOWER(C14) -> a | L14: b | M14: c | N14: d | O14: e | P14: f | Q14: g
A15: Last Copy Starter Row | B15: 1 | C15: INCIDENTAL ITEMS | K15: 100-26
A16: Tab Loop Number | B16: 2 | K16: =B17 -> 2013-10-15
A17: Revision Date | B17: 2013-10-15 | C17: Special or unique items where method of measurement / basis of payment is not indicated in the specifications or other contract documents. | K17: =C15 -> INCIDENTAL ITEMS
A18: Tabulation Width | B18: 2
A19: Horizontal Grid Lines | B19: Yes | C19: ="This Data Entry Sheet fills Tab "&K15&" effective "&TEXT(B17,"mm-dd-yy") -> This Data Entry Sheet fills Tab 100-26 effective 10-15-13 | K19: =C17 -> Special or unique items where method of measurement / basis of payment is not indicated in the specifications or other contract documents.
C20: No. | D20: Incidental Item | E20: Unit | F20: Quantity | G20: Incidental To | I20: Remarks
G21: Item Code | H21: Item
K22: =C20 -> No. | L22: =D20 -> Incidental Item | M22: =E20 -> Unit | N22: =F20 -> Quantity | O22: =G20 -> Incidental To | Q22: =I20 -> Remarks
O23: =G21 -> Item Code | P23: =H21 -> Item

Sheet DE102_3
A1: TabTitle | B1: =C16 -> ACCESS POINTS AND SAFETY RAMPS
A2: Number of Tab Columns | B2: 19
A3: DE Starter Row Number | B3: 33
A4: TabSheet Starter Row Number | B4: 19
A5: TabSheet Header Row Count | B5: 18
A6: Top Header Cell | B6: Y15
A7: Bottom Header Cell | B7: AQ32
A8: DESheet Row Count | B8: 45
A9: Fixed Empty Rows | B9: 27
A10: Usable Empty Rows | B10: 0
A11: Total Rows Placed | B11: 72 | C11: xlRight(1) | D11: xlLeft(1) | E11: xlLeft(1) | F11: xlLeft(1) | G11: xlRight(1) | H11: xlRight(1) | I11: xlRight(1) | J11: xlRight(1) | K11: xlRight(1) | L11: xlRight(1) | M11: xlRight(1) | N11: xlRight(1) | O11: xlRight(1) | P11: xlRight(1) | Q11: xlRight(1) | S11: xlRight(1) | U11: xlRight(1) | V11: xlRight(1) | W11: xlLeft(1) | Y11: =C11 -> xlRight(1) | Z11: xlLeft(1) | AA11: xlLeft(1) | AB11: xlLeft(1) | AC11: xlRight(1) | AD11: xlRight(1) | AE11: xlRight(1) | AF11: xlRight(1) | AG11: xlRight(1) | AH11: xlRight(1) | AI11: xlRight(1) | AJ11: xlRight(1) | AK11: xlRight(1) | AL11: xlRight(1) | AM11: xlRight(1) | AN11: =S11 -> xlRight(1) | AO11: =U11 -> xlRight(1) | AP11: xlRight(1) | AQ11: xlLeft(1)
A12: Total Rows Needed | B12: =SUM(B8:B10) -> 72 | C12: #+00.00 | D12: General | E12: General | F12: General | G12: 0.0 | H12: 0.0 | I12: 0.0 | J12: 0.0 | K12: 0.0 | L12: 0.0 | M12: 0.0 | N12: 0.0 | O12: 0.0 | P12: 0.0 | Q12: 0 | S12: 0.0 | U12: 0.0 | V12: 0.000 | W12: General | Y12: #+00.00 | Z12: General | AA12: General | AB12: General | AC12: 0.0 | AD12: 0.0 | AE12: 0.0 | AF12: 0.0 | AG12: 0.0 | AH12: 0.0 | AI12: 0.0 | AJ12: 0.0 | AK12: 0.0 | AL12: 0.0 | AM12: 0 | AN12: =S12 -> 0.0 | AO12: 0.0 | AP12: 0.000 | AQ12: General
A13: Last Tab DE Starter Row | B13: 33 | C13: =CELL("width",C13) -> 16 | D13: 6 | E13: 20 | F13: 12 | G13: 12 | H13: 12 | I13: 8 | J13: 8 | K13: 8 | L13: 8 | M13: 10 | N13: 10 | O13: 10 | P13: 10 | Q13: 10 | S13: =CELL("width",S13) -> 10 | U13: =CELL("width",U13) -> 10 | V13: =CELL("width",V13) -> 12 | W13: =CELL("width",W13) -> 34 | Y13: =CELL("width",Y13) -> 0 | Z13: 0 | AA13: 0 | AB13: 0 | AC13: 0 | AD13: 0 | AE13: 0 | AF13: 0 | AG13: 0 | AH13: 0 | AI13: 0 | AJ13: 0 | AK13: 0 | AL13: 0 | AM13: 0 | AN13: 0 | AO13: 0 | AP13: 0 | AQ13: 0
A14: Last Tab Tabsheet Starter Row | B14: 19 | C14: A | D14: B | E14: C | F14: D | G14: E | H14: F | I14: G | J14: H | K14: I | L14: J | M14: K | N14: L | O14: M | P14: N | Q14: O | S14: P | U14: Q | V14: R | W14: S | Y14: =LOWER(C14) -> a | Z14: b | AA14: c | AB14: d | AC14: e | AD14: f | AE14: g | AF14: h | AG14: i | AH14: j | AI14: k | AJ14: l | AK14: m | AL14: n | AM14: o | AN14: =LOWER(S14) -> p | AO14: =LOWER(U14) -> q | AP14: =LOWER(V14) -> r | AQ14: =LOWER(W14) -> s
A15: Last Copy Starter Row | B15: 1 | M15: Totals: | N15: =SUBTOTAL(9,N33:N6015) -> 1476 | Q15: =SUBTOTAL(9,Q33:Q6015) -> 38 | S15: =SUBTOTAL(9,S33:S6015) -> 0 | U15: =SUBTOTAL(9,U33:U6015) -> 0 | V15: =SUBTOTAL(9,V33:V6015) -> 3485.808984 | Y15: 102-3 | AS15: Pipe Type | AT15: =E26 -> Type
A16: Tab Loop Number | B16: 2 | C16: ACCESS POINTS AND SAFETY RAMPS | Y16: =B17 -> 2013-10-15 | AS16: Reinforced Concrete Pipe. | AT16: A
A17: Revision Date | B17: 2013-10-15 | Y17: =C16 -> ACCESS POINTS AND SAFETY RAMPS | AS17: Corrugated Metal Pipe. | AT17: B
A18: Tabulation Width | B18: 3 | AT18: C
A19: Horizontal Grid Lines | B19: Yes | C19: Refer to Cross-Sections | AT19: Safety Ramp
C20: Length of unclassified pipe calculated is based on using | H20: Reinforced Concrete Pipe. | Y20: =C19 -> Refer to Cross-Sections | AT20: Predetermined
C21: Refer to MI-210 | Y21: =C20&H20 -> Length of unclassified pipe calculated is based on using Reinforced Concrete Pipe.
C22: Refer to EW-501. | Y22: =C21 -> Refer to MI-210
C23: Refer to EW-501 or EW-502. | Y23: =C22 -> Refer to EW-501.
C24: *Predetermined for access point not constructed with this project. | Y24: =C23 -> Refer to EW-501 or EW-502.
C25: ="This Data Entry Sheet fills Tab "&Y15&" effective "&TEXT(B17,"mm-dd-yy") -> This Data Entry Sheet fills Tab 102-3 effective 10-15-13 | Y25: =C24 -> *Predetermined for access point not constructed with this project.
C26: Location | E26: Type | F26: Length of Opening | L26: Pipe Culvert | Q26: Aprons | R26: Driveway Surface Area | V26: Driveway Surfacing Material | W26: Remarks | Y26: =C26 -> Location | AA26: =E26 -> Type | AB26: =F26 -> Length of Opening | AE26: =I26 ->  | AF26: =J26 ->  | AG26: =K26 ->  | AH26: =L26 -> Pipe Culvert | AM26: Aprons | AN26: =R26 -> Driveway Surface Area | AP26: =V26 -> Driveway Surfacing Material | AQ26: =W26 -> Remarks
C28: Station | D28: Side | E28: A, B, C, Safety Ramp, or Predetermined* | F28: Case | G28: 1½" Dropped Curb | H28: 3" Dropped Curb | R28: HMA Sq. Ft. from Microstation | S28: HMA | T28: PCC Sq. Ft. from Microstation | U28: PCC | Y28: =C28 -> Station | Z28: Side | AA28: A, B, C, Safety Ramp, or Predetermined* | AB28: Case | AC28: 1½" Dropped Curb | AD28: 3" Dropped Curb
M29: Size | N29: Pipe Length | O29: Lt. | P29: Rt. | AH29: =L28 -> 0 | AI29: =M29 -> Size | AJ29: =N29 -> Pipe Length | AK29: =O29 -> Lt. | AL29: =P29 -> Rt. | AN29: =S28 -> HMA | AO29: =U28 -> PCC
F32: 1 or 2 | G32: LF | H32: LF | I32: FT | J32: FT | K32: FT | L32: FT | M32: IN | N32: LF | O32: LF | P32: LF | Q32: No. | R32: SF | S32: SY | T32: SF | U32: SY | V32: TON | AB32: =F32 -> 1 or 2 | AC32: LF | AD32: LF | AE32: FT | AF32: FT | AG32: FT | AH32: FT | AI32: IN | AJ32: LF | AK32: LF | AL32: LF | AM32: No. | AN32: =S32 -> SY | AO32: =U32 -> SY | AP32: =V32 -> TON
Q33: =IF(M33<>"",2,"") ->  | S33: =IF(R33<>"",R33/9,"") ->  | U33: =IF(T33<>"",T33/9,"") -> 
C34: US 30
C35: 138975 | D35: Lt. | E35: C | I35: 24 | K35: 15 | L35: 5.25 | M35: 24 | N35: 103 | O35: 51 | P35: 52 | Q35: 2 | V35: =(131.89/100)*42 -> 55.3938
C36: 139808 | D36: Lt. | E36: C | I36: 24 | K36: 15 | V36: =(98/100)*42 -> 41.16
C37: 139808 | D37: Rt. | E37: C | I37: 24 | K37: 15 | L37: 9.85 | M37: 24 | N37: 178 | O37: 98.38 | P37: 79.49 | Q37: 2 | V37: =(174/100)*42 -> 73.08
C38: 140990 | D38: Lt. | E38: C | I38: 24 | K38: 15 | L38: 4.34 | M38: 24 | N38: 89 | O38: 47.42 | P38: 40.79 | Q38: 2 | V38: =(95.5/100)*42 -> 40.11
C39: 140990 | D39: Rt. | E39: C | I39: 24 | K39: 15 | L39: 7.98 | M39: 24 | N39: 147 | O39: 68.6 | P39: 77.98 | Q39: 2 | V39: =(135.3/100)*42 -> 56.826
C40: 143604 | D40: Lt. | E40: C | I40: 24 | K40: 15 | L40: 7.58 | M40: 24 | N40: 143 | O40: 80.8 | P40: 61.41 | Q40: 2 | V40: =(90.58/100)*42 -> 38.0436
C41: 143604 | D41: Rt. | E41: C | I41: 24 | K41: 15 | L41: 7.11 | M41: 24 | N41: 133 | O41: 60.86 | P41: 72.15 | Q41: 2 | V41: =(158.8/100)*42 -> 66.696
C42: 149725 | D42: Lt. | E42: C | I42: 24 | K42: 15 | L42: 6.8 | M42: 24 | N42: 121 | O42: 56.2 | P42: 64.8 | Q42: 2 | V42: =(98/100)*42 -> 41.16
C43: 151825 | D43: Rt. | E43: C | I43: 28 | K43: 15 | L43: 2.205 | M43: 30 | N43: 57 | O43: 29.5 | P43: 27.5 | Q43: 2 | V43: =(178.0347/100)*42 -> 74.774574
C44: 151825 | D44: Rt. | E44: C | I44: 28 | K44: 15 | L44: 0.9453 | M44: 57 x 38 | N44: 40 | O44: 19.5 | P44: 20.5 | Q44: 2 | W44: Low Clearance Pipe
C46: 23rd Avenue
C47: 23142500 | D47: Lt. | E47: C | I47: 24 | K47: 15 | L47: 4.56 | M47: 24 | N47: 53 | O47: 28.59 | P47: 23.78 | Q47: 2 | V47: =(51/100)*42 -> 21.42
C49: US 218
C50: 24145800 | D50: Lt. | E50: C | I50: 24 | K50: 15 | L50: 3.36 | M50: 24 | N50: 45 | O50: 22.87 | P50: 21.46 | Q50: 2 | V50: =(35.7/100)*42 -> 14.994
C51: 24146935 | D51: Lt. | E51: C | I51: 30 | K51: 15 | L51: 11.25 | M51: 24 | N51: 95 | O51: 48.82 | P51: 46.21 | Q51: 2 | V51: =(382.9779/100)*42 -> 160.850718
C52: 24149900 | D52: Lt. | E52: C | I52: 30 | K52: 15 | L52: 1.36 | M52: 21 x 15 | N52: 52 | O52: 25.93 | P52: 25.93 | Q52: 2 | V52: =(40.09/100)*42 -> 16.8378 | W52: Low Clearance Pipe
C53: 24149900 | D53: Rt. | E53: C | I53: 24 | K53: 15 | L53: 1.15 | M53: 21 x 15 | N53: 43 | O53: 22.04 | P53: 20.26 | Q53: 2 | V53: =(30.9/100)*42 -> 12.978 | W53: Low Clearance Pipe
C55: Café Access | I55: 28 | K55: 15 | V55: =(1213/100)*42 -> 509.46
C56: 650 | E56: C | I56: 28 | L56: 2.317 | M56: 24 | N56: 42 | O56: 24.8 | P56: 25.8 | Q56: 2
C57: 1185 | E57: C | I57: 28 | L57: 1.1097 | M57: 18 | N57: 35 | O57: 20.9 | P57: 20.9 | Q57: 2
C59: Wheeler Access | I59: 24 | K59: 15 | V59: =(1236/100)*42 -> 519.12
C60: 55 | E60: C | I60: 24 | L60: 1.5 | M60: 24 | N60: 32 | O60: 20.3 | P60: 20.3 | Q60: =IF(M60<>"",2,"") -> 2
C61: 565 | E61: C | I61: 24 | L61: 1.7 | M61: 24 | N61: 33 | O61: 20.3 | P61: 21.3 | Q61: 2
C62: 1065 | E62: C | I62: 24 | L62: 2.1 | M62: 24 | N62: 35 | O62: 21.3 | P62: 22.3 | Q62: 2
U64: TOTAL: | V64: =SUM(V35:V61) -> 1742.904492
F65: BID ITEMS:
F66: APRONS, UNCLASSIFIED, 18 IN. DIA. | M66: =SUMIF(M35:M62,18,Q35:Q62) -> 2 | N66: EACH
F67: CULVERT, UNCLASSIFIED ENTRANCE PIPE, 18 IN. DIA. | M67: =SUMIF(M35:M62,18,N35:N62) -> 35 | N67: LF
F68: APRONS, UNCLASSIFIED, 24 IN. DIA. | M68: =SUMIF(M35:M62,24,Q35:Q62) -> 28 | N68: EACH
F69: CULVERT, UNCLASSIFIED ENTRANCE PIPE, 24 IN. DIA. | M69: =SUMIF(M35:M62,24,N35:N62) -> 1249 | N69: LF
F70: APRONS, UNCLASSIFIED, 30 IN. DIA. | M70: =SUMIF(M35:M62,30,Q35:Q62) -> 2 | N70: EACH
F71: CULVERT, UNCLASSIFIED ENTRANCE PIPE, 30 IN. DIA. | M71: =SUMIF(M35:M62,30,N35:N62) -> 57 | N71: LF
F72: APRONS, METAL, ARCH, 21 IN. x 15 IN. | M72: =SUMIF(M35:M62,"21 x 15",Q35:Q62) -> 4 | N72: EACH
F73: CULVERT, CORRUGATED METAL ARCH ENTRANCE PIPE, 21 IN. X 15 IN. | M73: =SUMIF(M35:M62,"21 x 15",N35:N62) -> 95 | N73: LF
F74: APRONS, METAL, ARCH, 57 IN. x 38 IN. | M74: =SUMIF(M35:M62,"57 x 38",Q35:Q62) -> 2 | N74: EACH
F75: CULVERT, CORRUGATED METAL ARCH ENTRANCE PIPE, 57 IN. X 38 IN. | M75: =SUMIF(M35:M62,"57 x 38",N35:N62) -> 40 | N75: LF
Q112: =IF(M112<>"",2,"") ->  | S112: =IF(R112<>"",R112/9,"") ->  | U112: =IF(T112<>"",T112/9,"") -> 
Q176: =IF(M176<>"",2,"") ->  | S176: =IF(R176<>"",R176/9,"") ->  | U176: =IF(T176<>"",T176/9,"") -> 
Q240: =IF(M240<>"",2,"") ->  | S240: =IF(R240<>"",R240/9,"") ->  | U240: =IF(T240<>"",T240/9,"") -> 
Q304: =IF(M304<>"",2,"") ->  | S304: =IF(R304<>"",R304/9,"") ->  | U304: =IF(T304<>"",T304/9,"") -> 
Q368: =IF(M368<>"",2,"") ->  | S368: =IF(R368<>"",R368/9,"") ->  | U368: =IF(T368<>"",T368/9,"") -> 
Q432: =IF(M432<>"",2,"") ->  | S432: =IF(R432<>"",R432/9,"") ->  | U432: =IF(T432<>"",T432/9,"") -> 
Q496: =IF(M496<>"",2,"") ->  | S496: =IF(R496<>"",R496/9,"") ->  | U496: =IF(T496<>"",T496/9,"") -> 
Q560: =IF(M560<>"",2,"") ->  | S560: =IF(R560<>"",R560/9,"") ->  | U560: =IF(T560<>"",T560/9,"") -> 
Q624: =IF(M624<>"",2,"") ->  | S624: =IF(R624<>"",R624/9,"") ->  | U624: =IF(T624<>"",T624/9,"") -> 
Q688: =IF(M688<>"",2,"") ->  | S688: =IF(R688<>"",R688/9,"") ->  | U688: =IF(T688<>"",T688/9,"") -> 
Q752: =IF(M752<>"",2,"") ->  | S752: =IF(R752<>"",R752/9,"") ->  | U752: =IF(T752<>"",T752/9,"") -> 
Q816: =IF(M816<>"",2,"") ->  | S816: =IF(R816<>"",R816/9,"") ->  | U816: =IF(T816<>"",T816/9,"") -> 
Q880: =IF(M880<>"",2,"") ->  | S880: =IF(R880<>"",R880/9,"") ->  | U880: =IF(T880<>"",T880/9,"") -> 
Q944: =IF(M944<>"",2,"") ->  | S944: =IF(R944<>"",R944/9,"") ->  | U944: =IF(T944<>"",T944/9,"") -> 
Q1008: =IF(M1008<>"",2,"") ->  | S1008: =IF(R1008<>"",R1008/9,"") ->  | U1008: =IF(T1008<>"",T1008/9,"") -> 
Q1072: =IF(M1072<>"",2,"") ->  | S1072: =IF(R1072<>"",R1072/9,"") ->  | U1072: =IF(T1072<>"",T1072/9,"") -> 
Q1136: =IF(M1136<>"",2,"") ->  | S1136: =IF(R1136<>"",R1136/9,"") ->  | U1136: =IF(T1136<>"",T1136/9,"") -> 
Q1200: =IF(M1200<>"",2,"") ->  | S1200: =IF(R1200<>"",R1200/9,"") ->  | U1200: =IF(T1200<>"",T1200/9,"") -> 
Q1264: =IF(M1264<>"",2,"") ->  | S1264: =IF(R1264<>"",R1264/9,"") ->  | U1264: =IF(T1264<>"",T1264/9,"") -> 
Q1328: =IF(M1328<>"",2,"") ->  | S1328: =IF(R1328<>"",R1328/9,"") ->  | U1328: =IF(T1328<>"",T1328/9,"") -> 
Q1392: =IF(M1392<>"",2,"") ->  | S1392: =IF(R1392<>"",R1392/9,"") ->  | U1392: =IF(T1392<>"",T1392/9,"") -> 
Q1456: =IF(M1456<>"",2,"") ->  | S1456: =IF(R1456<>"",R1456/9,"") ->  | U1456: =IF(T1456<>"",T1456/9,"") -> 
Q1520: =IF(M1520<>"",2,"") ->  | S1520: =IF(R1520<>"",R1520/9,"") ->  | U1520: =IF(T1520<>"",T1520/9,"") -> 
Q1584: =IF(M1584<>"",2,"") ->  | S1584: =IF(R1584<>"",R1584/9,"") ->  | U1584: =IF(T1584<>"",T1584/9,"") -> 
Q1648: =IF(M1648<>"",2,"") ->  | S1648: =IF(R1648<>"",R1648/9,"") ->  | U1648: =IF(T1648<>"",T1648/9,"") -> 
Q1712: =IF(M1712<>"",2,"") ->  | S1712: =IF(R1712<>"",R1712/9,"") ->  | U1712: =IF(T1712<>"",T1712/9,"") -> 
Q1776: =IF(M1776<>"",2,"") ->  | S1776: =IF(R1776<>"",R1776/9,"") ->  | U1776: =IF(T1776<>"",T1776/9,"") -> 
Q1840: =IF(M1840<>"",2,"") ->  | S1840: =IF(R1840<>"",R1840/9,"") ->  | U1840: =IF(T1840<>"",T1840/9,"") -> 
Q1904: =IF(M1904<>"",2,"") ->  | S1904: =IF(R1904<>"",R1904/9,"") ->  | U1904: =IF(T1904<>"",T1904/9,"") -> 
Q1968: =IF(M1968<>"",2,"") ->  | S1968: =IF(R1968<>"",R1968/9,"") ->  | U1968: =IF(T1968<>"",T1968/9,"") -> 
... 39 more rows

Sheet DE105_4
A1: TabTitle | B1: =C15 -> STANDARD ROAD PLANS
A2: Number of Tab Columns | B2: 3
A3: DE Starter Row Number | B3: 20
A4: TabSheet Starter Row Number | B4: 7
A5: TabSheet Header Row Count | B5: 6
A6: Top Header Cell | B6: G15
A7: Bottom Header Cell | B7: I20
A8: DESheet Row Count | B8: 90
A9: Fixed Empty Rows | B9: 10
A10: Usable Empty Rows | B10: 0
A11: Total Rows Placed | B11: 101 | C11: xlLeft | D11: xlCenter | E11: xlLeft | G11: =C11 -> xlLeft | H11: xlCenter | I11: xlLeft
A12: Total Rows Needed | B12: =SUM(B8:B10) -> 100 | C12: General | D12: Text | E12: General | G12: General | H12: Text | I12: General
A13: Last Tab DE Starter Row | B13: 104 | C13: =CELL("width",C13) -> 12 | D13: =CELL("width",D13) -> 12 | E13: =CELL("width",E13) -> 134 | G13: =CELL("width",G13) -> 0 | H13: =CELL("width",H13) -> 0 | I13: =CELL("width",I13) -> 0
A14: Last Tab Tabsheet Starter Row | B14: 97 | C14: A | D14: B | E14: C | G14: =LOWER(C14) -> a | H14: =LOWER(D14) -> b | I14: =LOWER(E14) -> c
A15: Last Copy Starter Row | B15: 91 | C15: STANDARD ROAD PLANS | G15: 105-4
A16: Tab Loop Number | B16: 3 | G16: =B17 -> 2011-10-18
A17: Revision Date | B17: 2011-10-18 | C17: The following Standard Road Plans apply to construction work on this project. | G17: =C15 -> STANDARD ROAD PLANS
A18: Tabulation Width | B18: 2 | C18: ="This Data Entry Sheet fills Tab "&G15&" effective "&TEXT(B17,"mm-dd-yy") -> This Data Entry Sheet fills Tab 105-4 effective 10-18-11
A19: Horizontal Grid Lines | B19: Yes | C19: Number | D19: Date | E19: Title | G19: =C17 -> The following Standard Road Plans apply to construction work on this project.
B20: 2 | C20: BA-104 | D20: 04-20-10 | E20: 34" Concrete Barrier for use with Reinforced Paved Shoulder | G20: =C19 -> Number | H20: =D19 -> Date | I20: =E19 -> Title
C21: BA-106 | D21: 10-21-14 | E21: Reinforced Paved Shoulder for Concrete Barrier
C22: BA-107 | D22: 10-18-11 | E22: Concrete Barrier End Section
C23: BA-200 | D23: 10-18-16 | E23: Steel Beam Guardrail Components
C24: BA-201 | D24: 04-18-17 | E24: Steel Beam Guardrail Barrier Transition Section (MASH TL-3)
C25: BA-202 | D25: 10-20-15 | E25: Steel Beam Guardrail Bolted End Anchor
C26: BA-205 | D26: 04-19-16 | E26: Steel Beam Guardrail Tangent End Terminal (MASH TL-3)
C27: BA-250 | D27: 10-18-16 | E27: Steel Beam Guardrail Installation at Concrete Barrier or Bridge End Post (MASH TL-3)
C28: BA-351 | D28: 04-20-10 | E28: High Tension Cable Guardrail
C29: BA-401 | D29: 04-16-13 | E29: Temporary Barrier Rail (Precast Concrete)
C30: BA-500 | D30: 04-19-16 | E30: Temporary Crash Cushions Sand Barrel
C31: DR-101 | D31: 04-18-17 | E31: Pipe Culvert (Bedding and Backfill)
C32: DR-102 | D32: 04-21-15 | E32: Pipe Culvert (Cover and Camber)
C33: DR-103 | D33: 04-21-15 | E33: Pipe Culvert (Installation Details)
C34: DR-104 | D34: 04-19-16 | E34: Depth of Cover Tables for Concrete and Corrugated Pipe
C35: DR-111 | D35: 04-17-18 | E35: Box Culvert (Backfill)
C36: DR-121 | D36: 10-17-17 | E36: Connected Pipe Joints
C37: DR-122 | D37: 10-18-16 | E37: Construction of Type "C" Concrete Adaptors for Pipe Culvert Connections
C38: DR-141 | D38: 04-18-17 | E38: Pipe Bends and Half Pipe
C39: DR-201 | D39: 04-21-15 | E39: Concrete Aprons
C40: DR-202 | D40: 04-21-15 | E40: Low Clearance Concrete Pipe Aprons
C41: DR-203 | D41: 04-21-15 | E41: Metal Pipe Aprons and Beveled Ends
C42: DR-212 | D42: 04-21-15 | E42: Beveled Pipe and Guard
C43: DR-303 | D43: 10-17-17 | E43: Subdrains (Longitudinal)
C44: DR-306 | D44: 10-17-17 | E44: Precast Concrete Headwall for Subdrain Outlets
C45: DR-402 | D45: 04-17-18 | E45: Rock Flume for Bridge End Drain
C46: DR-502 | D46: 10-18-16 | E46: Slotted Drain for Median Crossovers
C47: DR-601 | D47: 04-18-17 | E47: Reinforced Concrete Pipe Culvert
C48: DR-611 | D48: 04-18-17 | E48: Reinforced Concrete Pipe Culvert Letdown Structure
C49: DR-621 | D49: 04-18-17 | E49: Pipe Extension
C50: DR-641 | D50: 04-18-17 | E50: Concrete/Corrugated Pipe Culvert Letdown Structure with Metal Apron
C51: DR-651 | D51: 04-18-17 | E51: Unclassified Pipe Culvert
C52: EC-101 | D52: 04-19-16 | E52: Wood Excelsior Mat for Ditch Protection
C53: EC-103 | D53: 04-21-15 | E53: Wood Excelsior Mat for Slope Protection
C54: EC-201 | D54: 10-17-17 | E54: Silt Fence
C55: EC-202 | D55: 10-21-14 | E55: Floating Silt Curtain
C56: EC-204 | D56: 04-18-17 | E56: Perimeter and Slope Sediment Control Devices
C57: EC-301 | D57: 10-18-16 | E57: Rock Erosion Control (REC)
C58: EW-101 | D58: 10-17-17 | E58: Embankment and Rebuilding Embankments
C59: EW-102 | D59: 10-20-15 | E59: Allowable Placement of Unsuitable Soil in Embankments
C60: EW-103 | D60: 10-20-15 | E60: Embankment Subgrade Treatment, Moisture Density Control and Special Compaction
C61: EW-110 | D61: 10-20-15 | E61: Ditch Blocks and Dikes
C62: EW-204 | D62: 10-17-17 | E62: Bridge Berm Grading with Recoverable Slope (Barnroof Section)
C63: EW-211 | D63: 10-17-17 | E63: Special Grading at Side Piers
C64: EW-212 | D64: 10-20-15 | E64: Settlement Plate
C65: EW-301 | D65: 10-20-15 | E65: Guardrail Grading
C66: EW-302 | D66: 10-20-15 | E66: Special Shaping for High Tension Cable Guardrail at Median Obstacles
C67: EW-402 | D67: 04-18-17 | E67: Temporary Stream Diversion
C68: EW-403 | D68: 04-18-17 | E68: Temporary Erosion Control Measures
C69: EW-501 | D69: 10-20-15 | E69: Rural Entrance
C70: EW-503 | D70: 10-20-15 | E70: Side Road Grading
C71: LI-130 | D71: 10-17-17 | E71: Temporary Floodlighting Luminaires
C72: MI-101 | D72: 10-20-15 | E72: Fencing Layout
C73: MI-102 | D73: 10-20-15 | E73: Chain Link Fence Construction
C74: MI-103 | D74: 10-20-15 | E74: Deer Fence and Field Fence Construction
C75: MI-104 | D75: 10-17-17 | E75: Fence Construction at Channel Crossings, Flood Plains, and Minor Ground Depressions
C76: PM-110 | D76: 04-16-13 | E76: Line Types
C77: PM-111 | D77: 04-21-15 | E77: Symbols and Legends
C78: PM-120 | D78: 10-21-14 | E78: Stop Lines and Islands
C79: PM-310 | D79: 04-19-16 | E79: Entrance and Exit Ramps
C80: PM-420 | D80: 04-19-11 | E80: Two-Lane Roadway with no Turn Lanes (One-Way Stop Condition)
C81: PM-521 | D81: 04-19-11 | E81: Two-Lane Roadway with Right Turn Lanes
C82: PM-562 | D82: 04-19-11 | E82: Divided Multi-Lane Roadway with Left Turn Lanes
C83: PM-760 | D83: 04-19-11 | E83: Divided Multi-Lane Roadway Median
C84: PV-12 | D84: 04-19-16 | E84: Milled Shoulder Rumble Strips
C85: PV-101 | D85: 10-17-17 | E85: Joints
C86: PV-102 | D86: 10-18-16 | E86: PCC Curb Details
C87: PV-103 | D87: 04-19-11 | E87: Manhole Boxouts in PCC Pavement
C88: PV-303 | D88: 04-19-11 | E88: Superelevation Details Ramps
C89: SI-173 | D89: 04-19-16 | E89: Object Markers
C90: SI-211 | D90: 10-18-16 | E90: Object Marker and Delineator Placement with Guardrail
C91: SI-881 | D91: 10-17-17 | E91: Special Signs for Workzones
C92: SW-101 | D92: 04-17-18 | E92: Trench Bedding and Backfill Zones
C93: SW-102 | D93: 04-18-17 | E93: Rigid Gravity Pipe Trench Bedding
C94: SW-211 | D94: 04-17-18 | E94: Special Pipe Connections for Storm Sewer
C95: SW-538 | D95: 04-17-18 | E95: Intake for Bridge End Drain
C96: SW-549 | D96: 04-17-18 | E96: Single-Grate Barrier Intake, Rectangular
C97: SW-603 | D97: 04-17-18 | E97: Castings for Grate Intakes
C98: TC-1 | D98: 04-16-13 | E98: Work Not Affecting Traffic (Two-Lane or Multi-Lane)
C99: TC-61 | D99: 04-17-18 | E99: Two-Lane, Two-way Operation
C100: TC-62 | D100: 10-18-16 | E100: Permanent Two-Lane to Four-Lane Divided Transition
C101: TC-202 | D101: 04-21-15 | E101: Work Within 15 ft of Traveled Way
C102: TC-213 | D102: 04-17-12 | E102: Lane Closure with Flaggers
C103: TC-251 | D103: 04-17-12 | E103: Temporary Road Closure
C104: TC-252 | D104: 04-19-16 | E104: Routes Closed to Traffic
C105: TC-272 | D105: 10-18-16 | E105: Unsignalized Equipment Crossing
C106: TC-273 | D106: 04-20-10 | E106: Construction Site Entrance
C107: TC-402 | D107: 04-21-15 | E107: Work Within 15 ft of Traveled Way
C108: TC-418 | D108: 04-17-18 | E108: Lane Closure on Divided Highway
C109: TC-451 | D109: 04-21-15 | E109: Temporary Road Closure on Divided Highway

Sheet DE107_23
A1: TabTitle | B1: =C16 -> GRADING FOR GUARDRAIL INSTALLATIONS
A2: Number of Tab Columns | B2: 17
A3: DE Starter Row Number | B3: 29
A4: TabSheet Starter Row Number | B4: 15
A5: TabSheet Header Row Count | B5: 14
A6: Top Header Cell | B6: U15
A7: Bottom Header Cell | B7: AK28
A8: DESheet Row Count | B8: 10
A9: Fixed Empty Rows | B9: 18
A10: Usable Empty Rows | B10: 0
A11: Total Rows Placed | B11: 28 | C11: xlRight(1) | D11: xlCenter | E11: xlRight(1) | F11: xlCenter | G11: xlRight(1) | H11: xlRight(1) | I11: xlRight(1) | J11: xlRight(1) | K11: xlRight(1) | L11: xlRight(1) | M11: xlRight(1) | N11: xlRight(1) | O11: xlRight(1) | P11: xlRight(1) | Q11: xlRight(1) | R11: xlRight(1) | S11: xlLeft(1) | U11: =C11 -> xlRight(1) | V11: xlCenter | W11: xlRight(1) | X11: xlCenter | Y11: xlRight(1) | Z11: xlRight(1) | AA11: xlRight(1) | AB11: xlRight(1) | AC11: xlRight(1) | AD11: xlRight(1) | AE11: xlRight(1) | AF11: xlRight(1) | AG11: xlRight(1) | AH11: xlRight(1) | AI11: xlRight(1) | AJ11: xlRight(1) | AK11: =S11 -> xlLeft(1)
A12: Total Rows Needed | B12: =SUM(B8:B10) -> 28 | C12: General | D12: General | E12: #+00.00 | F12: General | G12: Text | H12: 0.0 | I12: 0.0 | J12: 0.0 | K12: 0.0 | L12: 0.0 | M12: 0.0 | N12: 0.0 | O12: 0.0 | P12: 0.0 | Q12: 0.0 | R12: 0.0 | S12: General | U12: General | V12: General | W12: #+00.00 | X12: General | Y12: Text | Z12: 0.0 | AA12: 0.0 | AB12: 0.0 | AC12: 0.0 | AD12: 0.0 | AE12: 0.0 | AF12: 0.0 | AG12: 0.0 | AH12: 0.0 | AI12: 0.0 | AJ12: 0.0 | AK12: General
A13: Last Tab DE Starter Row | B13: 29 | C13: =CELL("width",C13) -> 7 | D13: 7 | E13: 18 | F13: 7 | G13: 15 | H13: 9 | I13: 9 | J13: 9 | K13: 9 | L13: 9 | M13: 9 | N13: 9 | O13: 9 | P13: 9 | Q13: 16 | R13: 16 | S13: 60 | U13: =CELL("width",U13) -> 0 | V13: 0 | W13: 0 | X13: 0 | Y13: 0 | Z13: 0 | AA13: 0 | AB13: 0 | AC13: 0 | AD13: 0 | AE13: 0 | AF13: 0 | AG13: 0 | AH13: 0 | AI13: 0 | AJ13: 0 | AK13: 0
A14: Last Tab Tabsheet Starter Row | B14: 15 | C14: A | D14: B | E14: C | F14: D | G14: E | H14: F | I14: G | J14: H | K14: I | L14: J | M14: K | N14: L | O14: M | P14: N | Q14: O | R14: P | S14: Q | U14: =LOWER(C14) -> a | V14: b | W14: c | X14: d | Y14: e | Z14: f | AA14: g | AB14: h | AC14: i | AD14: j | AE14: k | AF14: l | AG14: m | AH14: n | AI14: o | AJ14: p | AK14: q
A15: Last Copy Starter Row | B15: 1 | O15: Totals: | Q15: =SUBTOTAL(9,Q29:Q6001) -> 0 | R15: =SUBTOTAL(9,R29:R6001) -> 0 | U15: 107-23
A16: Tab Loop Number | B16: 2 | C16: GRADING FOR GUARDRAIL INSTALLATIONS | U16: =B17 -> 2011-10-18
A17: Revision Date | B17: 2011-10-18 | U17: =C16 -> GRADING FOR GUARDRAIL INSTALLATIONS
A18: Tabulation Width | B18: 3 | D18: Lane(s) to which the installation is adjacent. | K18: Refer to EW-301
A19: Horizontal Grid Lines | B19: Yes | C19: ="This Data Entry Sheet fills Tab "&U15&" effective "&TEXT(B17,"mm-dd-yy") -> This Data Entry Sheet fills Tab 107-23 effective 10-18-11 | V19: =D18 -> Lane(s) to which the installation is adjacent. | AC19: =K18 -> Refer to EW-301
C20: Location | G20: Foreslope at Guardrail | H20: Dimensions (Feet) | Q20: Earthwork | S20: Remarks | U20: =C20 -> Location | Y20: =G20 -> Foreslope at Guardrail | Z20: =H20 -> Dimensions (Feet) | AI20: =Q20 -> Earthwork | AK20: =S20 -> Remarks
C22: No. | D22: Direction of Traffic | E22: Station | F22: Side | Q22: Excavation Class 10 | R22: Embankment In Place | U22: =C22 -> No. | V22: =D22 -> Direction of Traffic | W22: =E22 -> Station | X22: =F22 -> Side | AI22: =Q22 -> Excavation Class 10 | AJ22: =R22 -> Embankment In Place
Q28: CY | R28: CY | AI28: =Q28 -> CY | AJ28: =R28 -> CY
E30: US 218
D31: NB | E31: 24147368 | F31: Rt. | G31: 6 to 1 | H31: 52.5 | I31: 5 | N31: 102.7 | O31: 14.8 | P31: 75 | Q31: (1) | R31: (1)
D32: NB | E32: 24147717.72 | F32: Rt. | G32: 6 to 1 | H32: 40 | I32: 5 | N32: 90.2 | O32: 14.8 | P32: 75 | Q32: (1) | R32: (1)
D34: SB | E34: 24147118 | F34: Rt. | G34: 6 to 1 | H34: 40 | I34: 5 | N34: 90.2 | O34: 14.8 | P34: 75 | Q34: (1) | R34: (1)
D35: SB | E35: 24147717.72 | F35: Rt. | G35: 6 to 1 | H35: 90 | I35: 5 | N35: 140.2 | O35: 14.8 | P35: 75 | Q35: (1) | R35: (1)
E37: Notes:
E38: (1) See T Sheets

Sheet DE107_24
A1: TabTitle | B1: =C16 -> GRADING FOR HIGH TENSION CABLE GUARDRAIL INSTALLATIONS
A2: Number of Tab Columns | B2: 10
A3: DE Starter Row Number | B3: 27
A4: TabSheet Starter Row Number | B4: 13
A5: TabSheet Header Row Count | B5: 12
A6: Top Header Cell | B6: N15
A7: Bottom Header Cell | B7: W26
A8: DESheet Row Count | B8: 6
A9: Fixed Empty Rows | B9: 10
A10: Usable Empty Rows | B10: 20
A11: Total Rows Placed | B11: 36 | C11: xlCenter | D11: xlCenter | E11: xlRight(1) | F11: xlCenter | G11: xlRight(1) | H11: xlRight(1) | I11: xlRight(1) | J11: xlRight(1) | K11: xlRight(1) | L11: xlLeft(1) | N11: =C11 -> xlCenter | O11: xlCenter | P11: xlRight(1) | Q11: xlCenter | R11: xlRight(1) | S11: xlRight(1) | T11: xlRight(1) | U11: xlRight(1) | V11: xlRight(1) | W11: xlLeft(1)
A12: Total Rows Needed | B12: =SUM(B8:B10) -> 36 | C12: General | D12: General | E12: #+00.00 | F12: General | G12: 0.0 | H12: 0.0 | I12: 0.0 | J12: 0.0 | K12: 0.0 | L12: General | N12: General | O12: General | P12: #+00.00 | Q12: General | R12: 0.0 | S12: 0.0 | T12: 0.0 | U12: 0.0 | V12: 0.0 | W12: General
A13: Last Tab DE Starter Row | B13: 27 | C13: =CELL("width",C13) -> 6 | D13: 12 | E13: 16 | F13: 8 | G13: 9 | H13: 9 | I13: 9 | J13: 14 | K13: 12 | L13: 57 | N13: =CELL("width",N13) -> 0 | O13: 0 | P13: 0 | Q13: 0 | R13: 0 | S13: 0 | T13: 0 | U13: 0 | V13: 0 | W13: 0
A14: Last Tab TabSheet Starter Row | B14: 13 | C14: A | D14: B | E14: C | F14: D | G14: E | H14: F | I14: G | J14: H | K14: I | L14: J | N14: =LOWER(C14) -> a | O14: b | P14: c | Q14: d | R14: e | S14: f | T14: g | U14: h | V14: i | W14: j
A15: Last Copy Starter Row | B15: 1 | I15: Totals: | J15: =SUBTOTAL(9,J27:J6000) -> 380 | K15: =SUBTOTAL(9,K27:K6000) -> 0 | N15: 107-24
A16: Tab Loop Number | B16: 2 | C16: GRADING FOR HIGH TENSION CABLE GUARDRAIL INSTALLATIONS | N16: =B17 -> 2013-10-15
A17: Revision Date | B17: 2013-10-15 | N17: =C16 -> GRADING FOR HIGH TENSION CABLE GUARDRAIL INSTALLATIONS
A18: Tabulation Width | B18: 2 | C18: Refer to Standard Road Plan EW-302
A19: Horizontal Grid Lines | B19: Yes | C19: Lane(s) to which installation is adjacent. | N19: =C18 -> Refer to Standard Road Plan EW-302
C20: ="This Data Entry Sheet fills Tab "&N15&" effective "&TEXT(B17,"mm-dd-yy") -> This Data Entry Sheet fills Tab 107-24 effective 10-15-13 | N20: Lane(s) to which the installation is adjacent.
C21: Location | G21: Dimensions | J21: Protection Length | K21: Earthwork: | L21: Remarks | N21: =C21 -> Location | R21: =G21 -> Dimensions | U21: =J21 -> Protection Length | V21: =K21 -> Earthwork: | W21: =L21 -> Remarks
C22: No. | D22: Direction of Traffic | E22: Station | F22: Side | N22: =C22 -> No. | O22: =D22 -> Direction of Traffic | P22: =E22 -> Station | Q22: =F22 -> Side
G24: CA | H24: CO | I24: CT | J24: (CA+CO+CT) | R24: CA | S24: CO | T24: CT | U24: (CA+CO+CT)
G26: FT | H26: FT | I26: FT | J26: FT | K26: CY | R26: =G26 -> FT | S26: =H26 -> FT | T26: =I26 -> FT | U26: =J26 -> FT | V26: =K26 -> CY
J27: =IF(OR(G27<>0,H27<>0,I27<>0),G27+H27+I27,"") -> 
D28: US 30 EB | E28: 147401.06 | F28: M | G28: 150 | H28: 40 | J28: 190 | K28: (1)
D29: US 30 WB | E29: 147735.55 | F29: M | G29: 150 | H29: 40 | J29: 190 | K29: (1)
E31: Notes:
E32: (1) Seet T Sheets
J91: =IF(OR(G91<>0,H91<>0,I91<>0),G91+H91+I91,"") -> 
J155: =IF(OR(G155<>0,H155<>0,I155<>0),G155+H155+I155,"") -> 
J219: =IF(OR(G219<>0,H219<>0,I219<>0),G219+H219+I219,"") -> 
J283: =IF(OR(G283<>0,H283<>0,I283<>0),G283+H283+I283,"") -> 
J347: =IF(OR(G347<>0,H347<>0,I347<>0),G347+H347+I347,"") -> 
J411: =IF(OR(G411<>0,H411<>0,I411<>0),G411+H411+I411,"") -> 
J475: =IF(OR(G475<>0,H475<>0,I475<>0),G475+H475+I475,"") -> 
J539: =IF(OR(G539<>0,H539<>0,I539<>0),G539+H539+I539,"") -> 
J603: =IF(OR(G603<>0,H603<>0,I603<>0),G603+H603+I603,"") -> 
J667: =IF(OR(G667<>0,H667<>0,I667<>0),G667+H667+I667,"") -> 
J731: =IF(OR(G731<>0,H731<>0,I731<>0),G731+H731+I731,"") -> 
J795: =IF(OR(G795<>0,H795<>0,I795<>0),G795+H795+I795,"") -> 
J859: =IF(OR(G859<>0,H859<>0,I859<>0),G859+H859+I859,"") -> 
J923: =IF(OR(G923<>0,H923<>0,I923<>0),G923+H923+I923,"") -> 
J987: =IF(OR(G987<>0,H987<>0,I987<>0),G987+H987+I987,"") -> 
J1051: =IF(OR(G1051<>0,H1051<>0,I1051<>0),G1051+H1051+I1051,"") -> 
J1115: =IF(OR(G1115<>0,H1115<>0,I1115<>0),G1115+H1115+I1115,"") -> 
J1179: =IF(OR(G1179<>0,H1179<>0,I1179<>0),G1179+H1179+I1179,"") -> 
J1243: =IF(OR(G1243<>0,H1243<>0,I1243<>0),G1243+H1243+I1243,"") -> 
J1307: =IF(OR(G1307<>0,H1307<>0,I1307<>0),G1307+H1307+I1307,"") -> 
J1371: =IF(OR(G1371<>0,H1371<>0,I1371<>0),G1371+H1371+I1371,"") -> 
J1435: =IF(OR(G1435<>0,H1435<>0,I1435<>0),G1435+H1435+I1435,"") -> 
J1499: =IF(OR(G1499<>0,H1499<>0,I1499<>0),G1499+H1499+I1499,"") -> 
J1563: =IF(OR(G1563<>0,H1563<>0,I1563<>0),G1563+H1563+I1563,"") -> 
J1627: =IF(OR(G1627<>0,H1627<>0,I1627<>0),G1627+H1627+I1627,"") -> 
J1691: =IF(OR(G1691<>0,H1691<>0,I1691<>0),G1691+H1691+I1691,"") -> 
J1755: =IF(OR(G1755<>0,H1755<>0,I1755<>0),G1755+H1755+I1755,"") -> 
J1819: =IF(OR(G1819<>0,H1819<>0,I1819<>0),G1819+H1819+I1819,"") -> 
J1883: =IF(OR(G1883<>0,H1883<>0,I1883<>0),G1883+H1883+I1883,"") -> 
J1947: =IF(OR(G1947<>0,H1947<>0,I1947<>0),G1947+H1947+I1947,"") -> 
J2011: =IF(OR(G2011<>0,H2011<>0,I2011<>0),G2011+H2011+I2011,"") -> 
J2075: =IF(OR(G2075<>0,H2075<>0,I2075<>0),G2075+H2075+I2075,"") -> 
J2139: =IF(OR(G2139<>0,H2139<>0,I2139<>0),G2139+H2139+I2139,"") -> 
J2203: =IF(OR(G2203<>0,H2203<>0,I2203<>0),G2203+H2203+I2203,"") -> 
J2267: =IF(OR(G2267<>0,H2267<>0,I2267<>0),G2267+H2267+I2267,"") -> 
J2331: =IF(OR(G2331<>0,H2331<>0,I2331<>0),G2331+H2331+I2331,"") -> 
J2395: =IF(OR(G2395<>0,H2395<>0,I2395<>0),G2395+H2395+I2395,"") -> 
J2459: =IF(OR(G2459<>0,H2459<>0,I2459<>0),G2459+H2459+I2459,"") -> 
J2523: =IF(OR(G2523<>0,H2523<>0,I2523<>0),G2523+H2523+I2523,"") -> 
J2587: =IF(OR(G2587<>0,H2587<>0,I2587<>0),G2587+H2587+I2587,"") -> 
J2651: =IF(OR(G2651<>0,H2651<>0,I2651<>0),G2651+H2651+I2651,"") -> 
J2715: =IF(OR(G2715<>0,H2715<>0,I2715<>0),G2715+H2715+I2715,"") -> 
J2779: =IF(OR(G2779<>0,H2779<>0,I2779<>0),G2779+H2779+I2779,"") -> 
J2843: =IF(OR(G2843<>0,H2843<>0,I2843<>0),G2843+H2843+I2843,"") -> 
J2907: =IF(OR(G2907<>0,H2907<>0,I2907<>0),G2907+H2907+I2907,"") -> 
J2971: =IF(OR(G2971<>0,H2971<>0,I2971<>0),G2971+H2971+I2971,"") -> 
J3035: =IF(OR(G3035<>0,H3035<>0,I3035<>0),G3035+H3035+I3035,"") -> 
J3099: =IF(OR(G3099<>0,H3099<>0,I3099<>0),G3099+H3099+I3099,"") -> 
J3163: =IF(OR(G3163<>0,H3163<>0,I3163<>0),G3163+H3163+I3163,"") -> 
J3227: =IF(OR(G3227<>0,H3227<>0,I3227<>0),G3227+H3227+I3227,"") -> 
J3291: =IF(OR(G3291<>0,H3291<>0,I3291<>0),G3291+H3291+I3291,"") -> 
J3355: =IF(OR(G3355<>0,H3355<>0,I3355<>0),G3355+H3355+I3355,"") -> 
J3419: =IF(OR(G3419<>0,H3419<>0,I3419<>0),G3419+H3419+I3419,"") -> 
J3483: =IF(OR(G3483<>0,H3483<>0,I3483<>0),G3483+H3483+I3483,"") -> 
J3547: =IF(OR(G3547<>0,H3547<>0,I3547<>0),G3547+H3547+I3547,"") -> 
J3611: =IF(OR(G3611<>0,H3611<>0,I3611<>0),G3611+H3611+I3611,"") -> 
J3675: =IF(OR(G3675<>0,H3675<>0,I3675<>0),G3675+H3675+I3675,"") -> 
J3739: =IF(OR(G3739<>0,H3739<>0,I3739<>0),G3739+H3739+I3739,"") -> 
J3803: =IF(OR(G3803<>0,H3803<>0,I3803<>0),G3803+H3803+I3803,"") -> 
J3867: =IF(OR(G3867<>0,H3867<>0,I3867<>0),G3867+H3867+I3867,"") -> 
J3931: =IF(OR(G3931<>0,H3931<>0,I3931<>0),G3931+H3931+I3931,"") -> 
J3995: =IF(OR(G3995<>0,H3995<>0,I3995<>0),G3995+H3995+I3995,"") -> 
J4059: =IF(OR(G4059<>0,H4059<>0,I4059<>0),G4059+H4059+I4059,"") -> 
J4123: =IF(OR(G4123<>0,H4123<>0,I4123<>0),G4123+H4123+I4123,"") -> 
J4187: =IF(OR(G4187<>0,H4187<>0,I4187<>0),G4187+H4187+I4187,"") -> 
J4251: =IF(OR(G4251<>0,H4251<>0,I4251<>0),G4251+H4251+I4251,"") -> 
J4315: =IF(OR(G4315<>0,H4315<>0,I4315<>0),G4315+H4315+I4315,"") -> 
J4379: =IF(OR(G4379<>0,H4379<>0,I4379<>0),G4379+H4379+I4379,"") -> 
J4443: =IF(OR(G4443<>0,H4443<>0,I4443<>0),G4443+H4443+I4443,"") -> 
J4507: =IF(OR(G4507<>0,H4507<>0,I4507<>0),G4507+H4507+I4507,"") -> 
J4571: =IF(OR(G4571<>0,H4571<>0,I4571<>0),G4571+H4571+I4571,"") -> 
J4635: =IF(OR(G4635<>0,H4635<>0,I4635<>0),G4635+H4635+I4635,"") -> 
J4699: =IF(OR(G4699<>0,H4699<>0,I4699<>0),G4699+H4699+I4699,"") -> 
J4763: =IF(OR(G4763<>0,H4763<>0,I4763<>0),G4763+H4763+I4763,"") -> 
J4827: =IF(OR(G4827<>0,H4827<>0,I4827<>0),G4827+H4827+I4827,"") -> 
J4891: =IF(OR(G4891<>0,H4891<>0,I4891<>0),G4891+H4891+I4891,"") -> 
J4955: =IF(OR(G4955<>0,H4955<>0,I4955<>0),G4955+H4955+I4955,"") -> 
J5019: =IF(OR(G5019<>0,H5019<>0,I5019<>0),G5019+H5019+I5019,"") -> 
J5083: =IF(OR(G5083<>0,H5083<>0,I5083<>0),G5083+H5083+I5083,"") -> 
J5147: =IF(OR(G5147<>0,H5147<>0,I5147<>0),G5147+H5147+I5147,"") -> 
J5211: =IF(OR(G5211<>0,H5211<>0,I5211<>0),G5211+H5211+I5211,"") -> 
J5275: =IF(OR(G5275<>0,H5275<>0,I5275<>0),G5275+H5275+I5275,"") -> 
J5339: =IF(OR(G5339<>0,H5339<>0,I5339<>0),G5339+H5339+I5339,"") -> 
J5403: =IF(OR(G5403<>0,H5403<>0,I5403<>0),G5403+H5403+I5403,"") -> 
J5467: =IF(OR(G5467<>0,H5467<>0,I5467<>0),G5467+H5467+I5467,"") -> 
J5531: =IF(OR(G5531<>0,H5531<>0,I5531<>0),G5531+H5531+I5531,"") -> 
J5595: =IF(OR(G5595<>0,H5595<>0,I5595<>0),G5595+H5595+I5595,"") -> 
J5659: =IF(OR(G5659<>0,H5659<>0,I5659<>0),G5659+H5659+I5659,"") -> 
J5723: =IF(OR(G5723<>0,H5723<>0,I5723<>0),G5723+H5723+I5723,"") -> 
J5787: =IF(OR(G5787<>0,H5787<>0,I5787<>0),G5787+H5787+I5787,"") -> 
J5851: =IF(OR(G5851<>0,H5851<>0,I5851<>0),G5851+H5851+I5851,"") -> 
J5915: =IF(OR(G5915<>0,H5915<>0,I5915<>0),G5915+H5915+I5915,"") -> 
J5979: =IF(OR(G5979<>0,H5979<>0,I5979<>0),G5979+H5979+I5979,"") -> 

Sheet DE108_9A
A1: TabTitle | B1: =F16 -> HIGH TENSION CABLE GUARDRAIL
A2: Number of Tab Columns | B2: 11
A3: DE Starter Row Number | B3: 26
A4: TabSheet Starter Row Number | B4: 12
A5: TabSheet Header Row Count | B5: 11
A6: Top Header Cell | B6: O15
A7: Bottom Header Cell | B7: Y25
A8: DESheet Row Count | B8: 5
A9: Fixed Empty Rows | B9: 10
A10: Usable Empty Rows | B10: 22
A11: Total Rows Placed | B11: 37 | C11: xlRight(1) | D11: xlRight(1) | E11: xlRight(1) | F11: xlRight(1) | G11: xlRight(1) | H11: xlRight(1) | I11: xlRight(1) | J11: xlRight(1) | K11: xlRight(1) | L11: xlRight(1) | M11: xlLeft(1) | O11: =C11 -> xlRight(1) | P11: xlRight(1) | Q11: xlRight(1) | R11: xlRight(1) | S11: xlRight(1) | T11: xlRight(1) | U11: xlRight(1) | V11: xlRight(1) | W11: xlRight(1) | X11: xlRight(1) | Y11: xlLeft(1)
A12: Total Rows Needed | B12: =SUM(B8:B10) -> 37 | C12: General | D12: General | E12: #+00.00 | F12: General | G12: 0.0 | H12: 0.0 | I12: 0.0 | J12: 0.0 | K12: 0.0 | L12: General | M12: General | O12: General | P12: General | Q12: #+00.00 | R12: General | S12: 0.0 | T12: 0.0 | U12: 0.0 | V12: 0.0 | W12: 0.0 | X12: General | Y12: General
A13: Last Tab DE Starter Row | B13: 26 | C13: =CELL("width",C13) -> 5 | D13: =CELL("width",D13) -> 13 | E13: 14 | F13: 6 | G13: 10 | H13: 11 | I13: 11 | J13: 11 | K13: 14 | L13: 9 | M13: 47 | O13: =CELL("width",O13) -> 0 | P13: 0 | Q13: 0 | R13: 0 | S13: 0 | T13: 0 | U13: 0 | V13: 0 | W13: 0 | X13: 0 | Y13: 0
A14: Last Tab Tabsheet Starter Row | B14: 12 | C14: A | D14: B | E14: C | F14: D | G14: E | H14: F | I14: G | J14: H | K14: I | L14: J | M14: K | O14: =LOWER(C14) -> a | P14: =LOWER(D14) -> b | Q14: =LOWER(E14) -> c | R14: =LOWER(F14) -> d | S14: e | T14: f | U14: g | V14: h | W14: i | X14: j | Y14: k
A15: Last Copy Starter Row | B15: 1 | K15: =SUBTOTAL(9,K26:K6000) -> 760 | L15: =SUBTOTAL(9,L26:L6000) -> 8 | O15: 108-9A
A16: Tab Loop Number | B16: 2 | C16: Lane(s) to which the installation is adjacent. | F16: HIGH TENSION CABLE GUARDRAIL | O16: =B17 -> 2010-04-20
A17: Revision Date | B17: 2010-04-20 | O17: =C16 -> Lane(s) to which the installation is adjacent. | R17: =F16 -> HIGH TENSION CABLE GUARDRAIL
A18: Tabulation Width | B18: 2 | F18: Refer to BA-351.
A19: Horizontal Grid Lines | B19: Yes | C19: ="This Data Entry Sheet fills Tab "&O15&" effective "&TEXT(B17,"mm-dd-yy") -> This Data Entry Sheet fills Tab 108-9A effective 04-20-10 | R19: =F18 -> Refer to BA-351.
C20: Location | H20: Dimensions | K20: Bid Items | M20: Remarks | O20: =C20 -> Location | T20: =H20 -> Dimensions | W20: Bid Items | Y20: =M20 -> Remarks
C21: No. | D21: Direction of Traffic | E21: Station | F21: Side | G21: Offset D0 | H21: Approach CA | I21: Obstacle CO | J21: Trailing CT | K21: Protection Length (CA+C0+CT) | L21: End Anchor | O21: =C21 -> No. | P21: =D21 -> Direction of Traffic | Q21: =E21 -> Station | R21: =F21 -> Side | S21: Offset D0 | T21: Approach CA | U21: Obstacle CO | V21: Trailing CT | W21: Protection Length (CA+C0+CT) | X21: =L21 -> End Anchor
G25: FT | H25: FT | I25: FT | J25: FT | K25: FT | L25: No. | S25: =G25 -> FT | T25: FT | U25: FT | V25: FT | W25: FT | X25: No.
K26: =IF(OR(H26<>0,I26<>0,J26<>0),H26+I26+J26,"") -> 
D27: US 30 EB | E27: 147401.06 | F27: M | G27: 16 | H27: 150 | I27: 40 | K27: =IF(OR(H27<>0,I27<>0,J27<>0),H27+I27+J27,"") -> 190 | L27: 2
D28: US 30 WB | E28: 147735.55 | F28: M | G28: 16 | H28: 150 | I28: 40 | K28: =IF(OR(H28<>0,I28<>0,J28<>0),H28+I28+J28,"") -> 190 | L28: 2
J30: TOTALS: | K30: =SUM(K27:K28) -> 380 | L30: =SUM(L27:L28) -> 4
K92: =IF(OR(H92<>0,I92<>0,J92<>0),H92+I92+J92,"") -> 
K156: =IF(OR(H156<>0,I156<>0,J156<>0),H156+I156+J156,"") -> 
K220: =IF(OR(H220<>0,I220<>0,J220<>0),H220+I220+J220,"") -> 
K284: =IF(OR(H284<>0,I284<>0,J284<>0),H284+I284+J284,"") -> 
K348: =IF(OR(H348<>0,I348<>0,J348<>0),H348+I348+J348,"") -> 
K412: =IF(OR(H412<>0,I412<>0,J412<>0),H412+I412+J412,"") -> 
K476: =IF(OR(H476<>0,I476<>0,J476<>0),H476+I476+J476,"") -> 
K540: =IF(OR(H540<>0,I540<>0,J540<>0),H540+I540+J540,"") -> 
K604: =IF(OR(H604<>0,I604<>0,J604<>0),H604+I604+J604,"") -> 
K668: =IF(OR(H668<>0,I668<>0,J668<>0),H668+I668+J668,"") -> 
K732: =IF(OR(H732<>0,I732<>0,J732<>0),H732+I732+J732,"") -> 
K796: =IF(OR(H796<>0,I796<>0,J796<>0),H796+I796+J796,"") -> 
K860: =IF(OR(H860<>0,I860<>0,J860<>0),H860+I860+J860,"") -> 
K924: =IF(OR(H924<>0,I924<>0,J924<>0),H924+I924+J924,"") -> 
K988: =IF(OR(H988<>0,I988<>0,J988<>0),H988+I988+J988,"") -> 
K1052: =IF(OR(H1052<>0,I1052<>0,J1052<>0),H1052+I1052+J1052,"") -> 
K1116: =IF(OR(H1116<>0,I1116<>0,J1116<>0),H1116+I1116+J1116,"") -> 
K1180: =IF(OR(H1180<>0,I1180<>0,J1180<>0),H1180+I1180+J1180,"") -> 
K1244: =IF(OR(H1244<>0,I1244<>0,J1244<>0),H1244+I1244+J1244,"") -> 
K1308: =IF(OR(H1308<>0,I1308<>0,J1308<>0),H1308+I1308+J1308,"") -> 
K1372: =IF(OR(H1372<>0,I1372<>0,J1372<>0),H1372+I1372+J1372,"") -> 
K1436: =IF(OR(H1436<>0,I1436<>0,J1436<>0),H1436+I1436+J1436,"") -> 
K1500: =IF(OR(H1500<>0,I1500<>0,J1500<>0),H1500+I1500+J1500,"") -> 
K1564: =IF(OR(H1564<>0,I1564<>0,J1564<>0),H1564+I1564+J1564,"") -> 
K1628: =IF(OR(H1628<>0,I1628<>0,J1628<>0),H1628+I1628+J1628,"") -> 
K1692: =IF(OR(H1692<>0,I1692<>0,J1692<>0),H1692+I1692+J1692,"") -> 
K1756: =IF(OR(H1756<>0,I1756<>0,J1756<>0),H1756+I1756+J1756,"") -> 
K1820: =IF(OR(H1820<>0,I1820<>0,J1820<>0),H1820+I1820+J1820,"") -> 
K1884: =IF(OR(H1884<>0,I1884<>0,J1884<>0),H1884+I1884+J1884,"") -> 
K1948: =IF(OR(H1948<>0,I1948<>0,J1948<>0),H1948+I1948+J1948,"") -> 
K2012: =IF(OR(H2012<>0,I2012<>0,J2012<>0),H2012+I2012+J2012,"") -> 
K2076: =IF(OR(H2076<>0,I2076<>0,J2076<>0),H2076+I2076+J2076,"") -> 
K2140: =IF(OR(H2140<>0,I2140<>0,J2140<>0),H2140+I2140+J2140,"") -> 
K2204: =IF(OR(H2204<>0,I2204<>0,J2204<>0),H2204+I2204+J2204,"") -> 
K2268: =IF(OR(H2268<>0,I2268<>0,J2268<>0),H2268+I2268+J2268,"") -> 
K2332: =IF(OR(H2332<>0,I2332<>0,J2332<>0),H2332+I2332+J2332,"") -> 
K2396: =IF(OR(H2396<>0,I2396<>0,J2396<>0),H2396+I2396+J2396,"") -> 
K2460: =IF(OR(H2460<>0,I2460<>0,J2460<>0),H2460+I2460+J2460,"") -> 
K2524: =IF(OR(H2524<>0,I2524<>0,J2524<>0),H2524+I2524+J2524,"") -> 
K2588: =IF(OR(H2588<>0,I2588<>0,J2588<>0),H2588+I2588+J2588,"") -> 
K2652: =IF(OR(H2652<>0,I2652<>0,J2652<>0),H2652+I2652+J2652,"") -> 
K2716: =IF(OR(H2716<>0,I2716<>0,J2716<>0),H2716+I2716+J2716,"") -> 
K2780: =IF(OR(H2780<>0,I2780<>0,J2780<>0),H2780+I2780+J2780,"") -> 
K2844: =IF(OR(H2844<>0,I2844<>0,J2844<>0),H2844+I2844+J2844,"") -> 
K2908: =IF(OR(H2908<>0,I2908<>0,J2908<>0),H2908+I2908+J2908,"") -> 
K2972: =IF(OR(H2972<>0,I2972<>0,J2972<>0),H2972+I2972+J2972,"") -> 
K3036: =IF(OR(H3036<>0,I3036<>0,J3036<>0),H3036+I3036+J3036,"") -> 
K3100: =IF(OR(H3100<>0,I3100<>0,J3100<>0),H3100+I3100+J3100,"") -> 
K3164: =IF(OR(H3164<>0,I3164<>0,J3164<>0),H3164+I3164+J3164,"") -> 
K3228: =IF(OR(H3228<>0,I3228<>0,J3228<>0),H3228+I3228+J3228,"") -> 
K3292: =IF(OR(H3292<>0,I3292<>0,J3292<>0),H3292+I3292+J3292,"") -> 
K3356: =IF(OR(H3356<>0,I3356<>0,J3356<>0),H3356+I3356+J3356,"") -> 
K3420: =IF(OR(H3420<>0,I3420<>0,J3420<>0),H3420+I3420+J3420,"") -> 
K3484: =IF(OR(H3484<>0,I3484<>0,J3484<>0),H3484+I3484+J3484,"") -> 
K3548: =IF(OR(H3548<>0,I3548<>0,J3548<>0),H3548+I3548+J3548,"") -> 
K3612: =IF(OR(H3612<>0,I3612<>0,J3612<>0),H3612+I3612+J3612,"") -> 
K3676: =IF(OR(H3676<>0,I3676<>0,J3676<>0),H3676+I3676+J3676,"") -> 
K3740: =IF(OR(H3740<>0,I3740<>0,J3740<>0),H3740+I3740+J3740,"") -> 
K3804: =IF(OR(H3804<>0,I3804<>0,J3804<>0),H3804+I3804+J3804,"") -> 
K3868: =IF(OR(H3868<>0,I3868<>0,J3868<>0),H3868+I3868+J3868,"") -> 
K3932: =IF(OR(H3932<>0,I3932<>0,J3932<>0),H3932+I3932+J3932,"") -> 
K3996: =IF(OR(H3996<>0,I3996<>0,J3996<>0),H3996+I3996+J3996,"") -> 
K4060: =IF(OR(H4060<>0,I4060<>0,J4060<>0),H4060+I4060+J4060,"") -> 
K4124: =IF(OR(H4124<>0,I4124<>0,J4124<>0),H4124+I4124+J4124,"") -> 
K4188: =IF(OR(H4188<>0,I4188<>0,J4188<>0),H4188+I4188+J4188,"") -> 
K4252: =IF(OR(H4252<>0,I4252<>0,J4252<>0),H4252+I4252+J4252,"") -> 
K4316: =IF(OR(H4316<>0,I4316<>0,J4316<>0),H4316+I4316+J4316,"") -> 
K4380: =IF(OR(H4380<>0,I4380<>0,J4380<>0),H4380+I4380+J4380,"") -> 
K4444: =IF(OR(H4444<>0,I4444<>0,J4444<>0),H4444+I4444+J4444,"") -> 
K4508: =IF(OR(H4508<>0,I4508<>0,J4508<>0),H4508+I4508+J4508,"") -> 
K4572: =IF(OR(H4572<>0,I4572<>0,J4572<>0),H4572+I4572+J4572,"") -> 
K4636: =IF(OR(H4636<>0,I4636<>0,J4636<>0),H4636+I4636+J4636,"") -> 
K4700: =IF(OR(H4700<>0,I4700<>0,J4700<>0),H4700+I4700+J4700,"") -> 
K4764: =IF(OR(H4764<>0,I4764<>0,J4764<>0),H4764+I4764+J4764,"") -> 
K4828: =IF(OR(H4828<>0,I4828<>0,J4828<>0),H4828+I4828+J4828,"") -> 
K4892: =IF(OR(H4892<>0,I4892<>0,J4892<>0),H4892+I4892+J4892,"") -> 
K4956: =IF(OR(H4956<>0,I4956<>0,J4956<>0),H4956+I4956+J4956,"") -> 
K5020: =IF(OR(H5020<>0,I5020<>0,J5020<>0),H5020+I5020+J5020,"") -> 
K5084: =IF(OR(H5084<>0,I5084<>0,J5084<>0),H5084+I5084+J5084,"") -> 
K5148: =IF(OR(H5148<>0,I5148<>0,J5148<>0),H5148+I5148+J5148,"") -> 
K5212: =IF(OR(H5212<>0,I5212<>0,J5212<>0),H5212+I5212+J5212,"") -> 
K5276: =IF(OR(H5276<>0,I5276<>0,J5276<>0),H5276+I5276+J5276,"") -> 
K5340: =IF(OR(H5340<>0,I5340<>0,J5340<>0),H5340+I5340+J5340,"") -> 
K5404: =IF(OR(H5404<>0,I5404<>0,J5404<>0),H5404+I5404+J5404,"") -> 
K5468: =IF(OR(H5468<>0,I5468<>0,J5468<>0),H5468+I5468+J5468,"") -> 
K5532: =IF(OR(H5532<>0,I5532<>0,J5532<>0),H5532+I5532+J5532,"") -> 
K5596: =IF(OR(H5596<>0,I5596<>0,J5596<>0),H5596+I5596+J5596,"") -> 
K5660: =IF(OR(H5660<>0,I5660<>0,J5660<>0),H5660+I5660+J5660,"") -> 
K5724: =IF(OR(H5724<>0,I5724<>0,J5724<>0),H5724+I5724+J5724,"") -> 
K5788: =IF(OR(H5788<>0,I5788<>0,J5788<>0),H5788+I5788+J5788,"") -> 
K5852: =IF(OR(H5852<>0,I5852<>0,J5852<>0),H5852+I5852+J5852,"") -> 
K5916: =IF(OR(H5916<>0,I5916<>0,J5916<>0),H5916+I5916+J5916,"") -> 
K5980: =IF(OR(H5980<>0,I5980<>0,J5980<>0),H5980+I5980+J5980,"") -> 

Sheet DE108_13A
A1: TabTitle | B1: =C16 -> SAFETY CLOSURES
A2: Number of Tab Columns | B2: 4
A3: DE Starter Row Number | B3: 22
A4: TabSheet Starter Row Number | B4: 8
A5: TabSheet Header Row Count | B5: 7
A6: Top Header Cell | B6: H15
A7: Bottom Header Cell | B7: K21
A8: DESheet Row Count | B8: 89
A9: Fixed Empty Rows | B9: 0
A10: Usable Empty Rows | B10: 67
A11: Total Rows Placed | B11: 156 | C11: xlRight(1) | D11: xlRight(1) | E11: xlRight(1) | F11: xlLeft(1) | H11: =C11 -> xlRight(1) | I11: =D11 -> xlRight(1) | J11: xlRight(1) | K11: xlLeft(1)
A12: Total Rows Needed | B12: =SUM(B8:B10) -> 156 | C12: #+00.00 | D12: General | E12: General | F12: General | H12: =C12 -> #+00.00 | I12: General | J12: General | K12: General
A13: Last Tab DE Starter Row | B13: 105 | C13: =CELL("width",C13) -> 16 | D13: =CELL("width",D13) -> 14 | E13: =CELL("width",E13) -> 14 | F13: =CELL("width",F13) -> 31 | H13: =CELL("width",H13) -> 0 | I13: =CELL("width",I13) -> 0 | J13: =CELL("width",J13) -> 0 | K13: =CELL("width",K13) -> 0
A14: Last Tab Tabsheet Starter Row | B14: 98 | C14: A | D14: B | E14: C | F14: D | H14: =LOWER(C14) -> a | I14: =LOWER(D14) -> b | J14: =LOWER(E14) -> c | K14: =LOWER(F14) -> d
A15: Last Copy Starter Row | B15: 91 | D15: =SUBTOTAL(9,D22:D6019) -> 145 | E15: =SUBTOTAL(9,E22:E6019) -> 128 | H15: 108-13A
A16: Tab Loop Number | B16: 3 | C16: SAFETY CLOSURES | H16: =B17 -> 2008-08-01
A17: Revision Date | B17: 2008-08-01 | H17: =C16 -> SAFETY CLOSURES
A18: Tabulation Width | B18: 1 | C18: Refer to Section 2518 of the Standard Specifications
A19: Horizontal Grid Lines | B19: Yes | C19: ="This Data Entry Sheet fills Tab "&H15&" effective "&TEXT(B17,"mm-dd-yy") -> This Data Entry Sheet fills Tab 108-13A effective 08-01-08 | H19: =C18 -> Refer to Section 2518 of the Standard Specifications
C20: Station | D20: Closure Type | F20: Remarks | H20: =C20 -> Station | I20: =D20 -> Closure Type | K20: =F20 -> Remarks
D21: Road Qty. | E21: Hazard Qty. | I21: =D21 -> Road Qty. | J21: =E21 -> Hazard Qty.
C23: STAGE 2
C24: US 30 EB
C25: 138000 | D25: 1 | F25: Beginning of Project
C26: 138200 | E26: 2 | F26: At pipe 25' Lt and Rt
C27: 138810 | E27: 2 | F27: At pipe 25' Lt and Rt
C28: 140094 | E28: 2 | F28: At pipe 25' Lt and Rt
C29: 141375 | E29: 2 | F29: At pipe 25' Lt and Rt
C30: 142400 | E30: 2 | F30: At pipe 25' Lt and Rt
C31: 142550 | E31: 2 | F31: At pipe 25' Lt and Rt
C32: 145400 | E32: 2 | F32: At pipe 25' Lt and Rt
C33: 146075 | E33: 2 | F33: At pipe 25' Lt and Rt
C34: 146525 | E34: 2 | F34: At pipe 25' Lt and Rt
C35: 147000 | E35: 2 | F35: At pipe 25' Lt and Rt
C36: 147025 | E36: 2 | F36: At pipe 25' Lt and Rt
C37: 147700 | E37: 2 | F37: At pipe 25' Lt and Rt
C38: 148400 | E38: 2 | F38: At pipe 25' Lt and Rt
C39: 149385 | E39: 2 | F39: At pipe 25' Lt and Rt
C40: 150100 | E40: 2 | F40: At pipe 25' Lt and Rt
C41: 150625 | E41: 2 | F41: At pipe 25' Lt and Rt
C42: 151670 | D42: 1 | F42: End of Project
C43: 151825 | D43: 2 | F43: At entrance Rt
C44: 152850 | D44: 2 | F44: At 25th Avenue
C45: 153880 | D45: 1 | F45: At entrance Med
C46: 154466.17 | D46: 1 | F46: At crossover 2
C47: 155160 | D47: 1 | F47: At entrance Med
C48: 156160 | D48: 1 | F48: At entrance Med
C49: 157165 | D49: 1 | F49: At entrance Med
C51: 23rd Ave
C52: 23142150 | D52: 1 | F52: Beginning of Construction
C57: STAGE 3
C58: US 30 WB
C59: 137700 | D59: 2 | F59: At entrance Rt and Lt
C60: 137900 | D60: 1 | F60: At crossover 1
C61: 138525 | D61: 1 | F61: At crossover 1
C62: 138900 | D62: 1 | F62: Beginning of Project
C63: 139750 | E63: 2 | F63: At pipe 25' Lt and Rt
C64: 140094 | E64: 2 | F64: At pipe 25' Lt and Rt
C65: 140475 | E65: 2 | F65: At pipe 25' Lt and Rt
C66: 142550 | E66: 2 | F66: At pipe 25' Lt and Rt
C67: 143900 | E67: 2 | F67: At pipe 25' Lt and Rt
C68: 145400 | E68: 2 | F68: At pipe 25' Lt and Rt
C69: 146075 | E69: 2 | F69: At pipe 25' Lt and Rt
C70: 147000 | E70: 2 | F70: At pipe 25' Lt and Rt
C71: 148400 | E71: 2 | F71: At pipe 25' Lt and Rt
C72: 149385 | E72: 2 | F72: At pipe 25' Lt and Rt
C73: 150625 | E73: 2 | F73: At pipe 25' Lt and Rt
C74: 151670 | D74: 1 | F74: End of Project
C75: 151825 | D75: 2 | F75: At entrance Rt
C76: 152850 | D76: 2 | F76: At 25th Avenue
C77: 154466.17 | D77: 1 | F77: At crossover 2
C78: 23rd Ave
C79: 23142400 | D79: 1 | F79: End of Construction
C80: US 218
C81: 24146800 | D81: 1 | F81: Beginning of Construction
C82: 24147568.3 | E82: 2 | F82: At Bridge 25' Lt and Rt
C83: 24150300 | D83: 1 | F83: End of Construction
C84: Loop B
C85: 2147400 | E85: 2 | F85: At pipe 25' Lt and Rt
C86: Ramp C
C87: 3145375 | E87: 2 | F87: At pipe 25' Lt and Rt
C88: Ramp D
C89: 4147617 | E89: 2 | F89: At pipe 25' Lt and Rt
C90: 4148200 | E90: 2 | F90: At pipe 25' Lt and Rt
C95: STAGE 4
C96: US 30 EB
C97: 1379 | D97: 1 | F97: (1)
C102: SUBTOTALS: | D102: =SUM(D25:D97) -> 27 | E102: =SUM(E25:E97) -> 64
C103: BID TOTALS: | D103: =SUM(D102:E102) -> 91
C107: NOTES:
C108: (1) Safety closure and Type III Barricade shall be a new red
C109: and white sheeted device that shall remain in place at the end
C110: of the project.

Sheet DE108_18B
A1: TabTitle | B1: =C16 -> CONCRETE BARRIER AT SIDE LOCATIONS
A2: Number of Tab Columns | B2: 16 | AL2: Barrier Type
A3: DE Starter Row Number | B3: 31 | AL3: BA-102
A4: TabSheet Starter Row Number | B4: 17 | AL4: BA-103
A5: TabSheet Header Row Count | B5: 16 | AL5: BA-104
A6: Top Header Cell | B6: T15
A7: Bottom Header Cell | B7: AI30
A8: DESheet Row Count | B8: 5
A9: Fixed Empty Rows | B9: 10
A10: Usable Empty Rows | B10: 15
A11: Total Rows Placed | B11: 30 | C11: xlRight(1) | D11: xlRight(1) | E11: xlRight(1) | F11: xlRight(1) | G11: xlRight(1) | H11: xlRight(1) | I11: xlRight(1) | J11: xlRight(1) | K11: xlRight(1) | L11: xlRight(1) | M11: xlRight(1) | N11: xlLeft(1) | O11: xlLeft(1) | P11: xlRight(1) | Q11: xlRight(1) | R11: xlLeft(1) | T11: =C11 -> xlRight(1) | U11: xlRight(1) | V11: xlRight(1) | W11: xlRight(1) | X11: xlRight(1) | Y11: xlRight(1) | Z11: xlRight(1) | AA11: xlRight(1) | AB11: xlRight(1) | AC11: xlRight(1) | AD11: xlRight(1) | AE11: xlLeft(1) | AF11: xlLeft(1) | AG11: xlRight(1) | AH11: xlRight(1) | AI11: xlLeft(1)
A12: Total Rows Needed | B12: =SUM(B8:B10) -> 30 | C12: General | D12: General | E12: #+00.00 | F12: #+00.00 | G12: General | H12: 0.0 | I12: General | J12: 0.0 | K12: General | L12: General | M12: General | N12: General | O12: General | P12: #+00.00 | Q12: General | R12: General | T12: General | U12: General | V12: #+00.00 | W12: #+00.00 | X12: General | Y12: 0.0 | Z12: General | AA12: 0.0 | AB12: General | AC12: General | AD12: General | AE12: General | AF12: General | AG12: #+00.00 | AH12: General | AI12: General
A13: Last Tab DE Starter Row | B13: 31 | C13: =CELL("width",C13) -> 6 | D13: 6 | E13: 16 | F13: 16 | G13: 6 | H13: 8 | I13: 14 | J13: 11 | K13: 14 | L13: 10 | M13: 14 | N13: 42 | O13: 3 | P13: 16 | Q13: 6 | R13: 40 | T13: =CELL("width",T13) -> 0 | U13: 0 | V13: 0 | W13: 0 | X13: 0 | Y13: 0 | Z13: 0 | AA13: 0 | AB13: 0 | AC13: 0 | AD13: 0 | AE13: 0 | AF13: 0 | AG13: 0 | AH13: 0 | AI13: 0
A14: Last Tab TabSheet Starter Row | B14: 17 | C14: A | D14: B | E14: C | F14: D | G14: E | H14: F | I14: G | J14: H | K14: I | L14: J | M14: K | N14: L | O14: M | P14: N | Q14: O | R14: P | T14: =LOWER(C14) -> a | U14: b | V14: c | W14: d | X14: e | Y14: f | Z14: g | AA14: h | AB14: i | AC14: j | AD14: k | AE14: l | AF14: m | AG14: n | AH14: o | AI14: p
A15: Last Copy Starter Row | B15: 1 | I15: Totals: | J15: =SUBTOTAL(9,J31:J6000) -> 782.88 | K15: =SUBTOTAL(9,K31:K6000) -> 0 | L15: =SUBTOTAL(9,L31:L6000) -> 4 | T15: 108-18B
A16: Tab Loop Number | B16: 2 | C16: CONCRETE BARRIER AT SIDE LOCATIONS | T16: =B17 -> 2012-10-16
A17: Revision Date | B17: 2012-10-16 | T17: =C16 -> CONCRETE BARRIER AT SIDE LOCATIONS
A18: Tabulation Width | B18: 3 | C18: Refer to BA-102, BA-103, BA-104, BA-105, BA-106, BA-107, and BA-150.
A19: Horizontal Grid Lines | B19: Yes | C19: Lane(s) to which the installation is adjacent. | T19: =C18 -> Refer to BA-102, BA-103, BA-104, BA-105, BA-106, BA-107, and BA-150.
C20: Refer to the Shoulders tabulation (112-9) for quantities. | T20: =C19 -> Lane(s) to which the installation is adjacent.
C21: * Bid Item | T21: =C20 -> Refer to the Shoulders tabulation (112-9) for quantities.
C22: ="This Data Entry Sheet fills Tab "&T15&" effective "&TEXT(B17,"mm-dd-yy") -> This Data Entry Sheet fills Tab 108-18B effective 10-16-12 | T22: =C21 -> * Bid Item
C23: Location | I23: Side Barrier | N23: Remarks | P23: Expansion Joints | T23: =C23 -> Location | Z23: =I23 -> Side Barrier | AE23: =N23 -> Remarks | AG23: =P23 -> Expansion Joints
C24: No. | D24: Direction of Traffic | E24: Station to Station | G24: Side | I24: Barrier Type (BA-102, BA-103, or BA-104) | K24: BA-105 Transition Section* | L24: BA-107 End Section* | M24: Reinforced Paved Shoulder (Required?) | T24: =C24 -> No. | U24: =D24 -> Direction of Traffic | V24: =E24 -> Station to Station | X24: =G24 -> Side | Z24: =I24 -> Barrier Type (BA-102, BA-103, or BA-104) | AB24: =K24 -> BA-105 Transition Section* | AC24: =L24 -> BA-107 End Section* | AD24: =M24 -> Reinforced Paved Shoulder (Required?)
P25: Station | Q25: Side | R25: Remarks | AG25: =P25 -> Station | AH25: =Q25 -> Side | AI25: =R25 -> Remarks
H27: Offset | J27: Length of Barrier* | Y27: =H27 -> Offset | AA27: =J27 -> Length of Barrier*
H30: FT | J30: LF | K30: No. | L30: No. | M30: Yes/No | Y30: =H30 -> FT | AA30: =J30 -> LF | AB30: =K30 -> No. | AC30: =L30 -> No. | AD30: =M30 -> Yes/No
D32: NB | E32: 24147375 | F32: 24147445.72 | G32: Rt. | H32: 8 | I32: BA-104 | J32: =F32-E32 -> 70.72 | L32: 1 | M32: Yes | P32: 24147385.72 | Q32: Rt.
D33: SB | E33: 24147125 | F33: 24147445.72 | G33: Rt. | H33: 8 | I33: BA-104 | J33: =F33-E33 -> 320.72 | L33: 1 | M33: Yes | P33: 24147385.72 | Q33: Lt.
I35: TOTALS: | J35: =SUM(J32:J33) -> 391.44 | L35: =SUM(L32:L33) -> 2

Sheet DE108_22
A1: TabTitle | B1: =C44 -> PAVEMENT MARKING LINE TYPES
A2: Number of Tab Columns | B2: 24 | BB2: Old 9001 | BC2: Line Types (See PM-110) | BG2: Marking Type | BH2: =L54 -> BCY4* | BI2: DCY4 | BJ2: NPY4** | BK2: BLW4 | BL2: ELW4 | BM2: ELY4 | BN2: 0 | BO2: 0 | BP2: 0 | BQ2: 0 | BR2: 0 | BS2: 0 | BT2: 0 | BU2: 0 | BV2: 0 | BX2: Direction of Travel
A3: DE Starter Row Number | B3: 57 | BB3: Detail Number | BC3: Key | BD3: Description | BE3: Factor | BG3: Waterborne/Solvent Paint | BX3: NB
A4: TabSheet Starter Row Number | B4: 15 | BB4: 2 | BC4: BCY4* | BD4: BCY4: Broken Centerline (Yellow) @ 0.25 | BE4: 0.25 | BG4: Highbuild Waterborne Paint | BX4: EB
A5: TabSheet Header Row Count | B5: 14 | BB5: 6 | BC5: BLW4 | BD5: BLW4: Broken Lane Line (White) @ 0.25 | BE5: 0.25 | BG5: Durable Paint | BX5: SB
A6: Top Header Cell | B6: AC15 | BB6: new | BC6: CBW6 | BD6: CBW6: Crosswalk Bar (White) @ 15.00 | BE6: 15 | BG6: Permanent Regular Tape | BX6: WB
A7: Bottom Header Cell | B7: AZ28 | BB7: 11 | BC7: CHW8 | BD7: CHW8: Channelizing Line (White) @ 2.00 | BE7: 2 | BG7: Permanent Preform Polymer Tape | BX7: BOTH
A8: DESheet Row Count | B8: 108 | BB8: 12 | BC8: CHY8 | BD8: CHY8: Channelizing Line (Yellow) @ 2.00 | BE8: 2 | BG8: Permanent Profiled Tape
A9: Fixed Empty Rows | B9: 0 | BB9: 14 | BC9: CLW6 | BD9: CLW6: Crosswalk Line (White) @ 3.00 | BE9: 3 | BG9: Permanent Intersection Tape
A10: Usable Empty Rows | B10: 44 | BB10: 3 | BC10: DCY4 | BD10: DCY4: Double Centerline (Yellow) @ 2.00 | BE10: 2 | BG10: Grooves Cut for Pavement Markings
A11: Total Rows Placed | B11: 152 | C11: xlLeft(1) | D11: xlRight(1) | E11: xlRight(1) | G11: xlCenter | H11: xlCenter | I11: xlCenter | J11: xlCenter | K11: xlCenter | L11: xlRight(1) | M11: xlRight(1) | N11: xlRight(1) | O11: xlRight(1) | P11: xlRight(1) | Q11: xlRight(1) | R11: xlRight(1) | S11: xlRight(1) | T11: xlRight(1) | U11: xlRight(1) | V11: xlRight(1) | W11: xlRight(1) | X11: xlRight(1) | Y11: xlRight(1) | Z11: xlRight(1) | AA11: xlLeft(1) | AC11: =C11 -> xlLeft(1) | AD11: xlRight(1) | AE11: xlRight(1) | AF11: =G11 -> xlCenter | AG11: xlCenter | AH11: xlCenter | AI11: xlCenter | AJ11: xlCenter | AK11: xlRight(1) | AL11: xlRight(1) | AM11: xlRight(1) | AN11: xlRight(1) | AO11: xlRight(1) | AP11: xlRight(1) | AQ11: xlRight(1) | AR11: xlRight(1) | AS11: xlRight(1) | AT11: xlRight(1) | AU11: xlRight(1) | AV11: =W11 -> xlRight(1) | AW11: xlRight(1) | AX11: xlRight(1) | AY11: xlRight(1) | AZ11: xlLeft(1) | BB11: 18 | BC11: DDY4 | BD11: DDY4: Double Dotted Line (Yellow) @ 0.67 | BE11: =2/3 -> 0.6666666667 | BG11: Wet Retroreflective Removable Tape
A12: Total Rows Needed | B12: =SUM(B8:B10) -> 152 | C12: General | D12: #+00.00 | E12: #+00.00 | G12: General | H12: General | I12: General | J12: General | K12: General | L12: 0.00 | M12: 0.00 | N12: 0.00 | O12: 0.00 | P12: 0.00 | Q12: 0.00 | R12: 0.00 | S12: 0.00 | T12: 0.00 | U12: 0.00 | V12: 0.00 | W12: 0.00 | X12: 0.00 | Y12: 0.00 | Z12: 0.00 | AA12: General | AC12: General | AD12: #+00.00 | AE12: #+00.00 | AF12: General | AG12: General | AH12: General | AI12: General | AJ12: General | AK12: 0.00 | AL12: 0.00 | AM12: 0.00 | AN12: 0.00 | AO12: 0.00 | AP12: 0.00 | AQ12: 0.00 | AR12: 0.00 | AS12: 0.00 | AT12: 0.00 | AU12: 0.00 | AV12: 0.00 | AW12: 0.00 | AX12: 0.00 | AY12: 0.00 | AZ12: General | BB12: 9 | BC12: DLW4 | BD12: DLW4: Dotted Line (White) @ 0.33 | BE12: =1/3 -> 0.3333333333 | BG12: Nonreflective, Preformed Removable Tape
A13: Last Tab DE Starter Row | B13: 133 | C13: =CELL("width",C13) -> 15 | D13: =CELL("width",D13) -> 16 | E13: =CELL("width",E13) -> 16 | G13: =CELL("width",G13) -> 10 | H13: 54 | I13: 4 | J13: 4 | K13: 4 | L13: 10 | M13: 10 | N13: 10 | O13: 10 | P13: 10 | Q13: 10 | R13: 10 | S13: 10 | T13: 10 | U13: 10 | V13: 10 | W13: 10 | X13: 10 | Y13: 10 | Z13: 10 | AA13: 34 | AC13: =CELL("width",AC13) -> 0 | AD13: 0 | AE13: 0 | AF13: 0 | AG13: 0 | AH13: 0 | AI13: 0 | AJ13: 0 | AK13: 0 | AL13: 0 | AM13: 0 | AN13: 0 | AO13: 0 | AP13: 0 | AQ13: 0 | AR13: 0 | AS13: 0 | AT13: 0 | AU13: 0 | AV13: 0 | AW13: 0 | AX13: 0 | AY13: 0 | AZ13: 0 | BB13: new | BC13: DLY4 | BD13: DLY4: Dotted Line (Yellow) @ 0.33 | BE13: =1/3 -> 0.3333333333 | BG13: Removal of Paint
A14: Last Tab TabSheet Starter Row | B14: 105 | C14: A | D14: B | E14: C | G14: D | H14: E | I14: F | J14: G | K14: H | L14: I | M14: J | N14: K | O14: L | P14: M | Q14: N | R14: O | S14: P | T14: Q | U14: R | V14: S | W14: T | X14: U | Y14: V | Z14: W | AA14: X | AC14: =LOWER(C14) -> a | AD14: =LOWER(D14) -> b | AE14: =LOWER(E14) -> c | AF14: =LOWER(G14) -> d | AG14: e | AH14: f | AI14: g | AJ14: h | AK14: i | AL14: j | AM14: k | AN14: l | AO14: m | AP14: n | AQ14: o | AR14: p | AS14: q | AT14: r | AU14: s | AV14: t | AW14: u | AX14: v | AY14: w | AZ14: x | BB14: 7 | BC14: ELW4 | BD14: ELW4: Edge Line Right (White) @ 1.00 | BE14: 1 | BG14: Removal of Permanent Tape
A15: Last Copy Starter Row | B15: 91 | F15: =BB2 -> Old 9001 | H15: =BC2 -> Line Types (See PM-110) | AC15: 108-22 | BB15: 8 | BC15: ELY4 | BD15: ELY4: Edge Line Left (Yellow) @ 1.00 | BE15: 1 | BG15: Removal of Removable Tape
A16: Tab Loop Number | B16: 3 | F16: Detail Number | G16: Key | H16: Description | I16: Factor | J16: 0 | AC16: =B17 -> 2013-04-16 | BB16: new | BC16: LDW8 | BD16: LDW8: Lane Drop (White) @ 0.50 | BE16: 0.5 | BG16: ="Factored Total: "&BG3 -> Factored Total: Waterborne/Solvent Paint | BH16: =SUMIF($H$57:$H$1984,$BG3,L$57:L$1984)*L$43 -> 0 | BI16: 1266.3 | BJ16: 0 | BK16: 85.4475 | BL16: 922.21 | BM16: 692.45 | BN16: 0 | BO16: 0 | BP16: 0 | BQ16: 0 | BR16: 0 | BS16: 0 | BT16: 0 | BU16: 0 | BV16: 0
A17: Revision Date | B17: 2013-04-16 | F17: 2 | G17: BCY4* | H17: BCY4: Broken Centerline (Yellow) @ 0.25 | I17: 0.25 | J17: 0 | AC17: =C44 -> PAVEMENT MARKING LINE TYPES | BB17: new | BC17: MNY4*** | BD17: MNY4: Median Nose (Yellow) @ 1.00 | BE17: 1 | BG17: Factored Total: Highbuild Waterborne Paint | BH17: 0 | BI17: 0 | BJ17: 0 | BK17: 0 | BL17: 0 | BM17: 0 | BN17: 0 | BO17: 0 | BP17: 0 | BQ17: 0 | BR17: 0 | BS17: 0 | BT17: 0 | BU17: 0 | BV17: 0
A18: Tabulation Width | B18: 4 | F18: 6 | G18: BLW4 | H18: BLW4: Broken Lane Line (White) @ 0.25 | I18: 0.25 | J18: 0 | BB18: 5 | BC18: NPY4** | BD18: NPY4: No Passing Zone Line (Yellow) @ 1.25 | BE18: 1.25 | BG18: Factored Total: Durable Paint | BH18: 0 | BI18: 0 | BJ18: 0 | BK18: 0 | BL18: 0 | BM18: 0 | BN18: 0 | BO18: 0 | BP18: 0 | BQ18: 0 | BR18: 0 | BS18: 0 | BT18: 0 | BU18: 0 | BV18: 0
A19: Horizontal Grid Lines | B19: Yes | F19: new | G19: CBW6 | H19: CBW6: Crosswalk Bar (White) @ 15.00 | I19: 15 | J19: 0 | AC19: =C46 -> See PM-110 | BB19: new | BC19: RLW4 | BD19: RLW4: Ramp Edge Line Right (White) @ 1.00 | BE19: 1 | BG19: Factored Total: Permanent Regular Tape | BH19: 0 | BI19: 0 | BJ19: 0 | BK19: 0 | BL19: 0 | BM19: 0 | BN19: 0 | BO19: 0 | BP19: 0 | BQ19: 0 | BR19: 0 | BS19: 0 | BT19: 0 | BU19: 0 | BV19: 0
F20: 11 | G20: CHW8 | H20: CHW8: Channelizing Line (White) @ 2.00 | I20: 2 | J20: 0 | AC20: =C47 -> *BCY4 - Place on the same side of the roadway to match existing markings near the project. | AH20: =I47 -> ***MNY4 - Factor of 1.00 as value includes number of 4-inch passes to cover median nose area. | BB20: new | BC20: RLY4 | BD20: RLY4: Ramp Edge Line Left (Yellow) @ 1.00 | BE20: 1 | BG20: Factored Total: Permanent Preform Polymer Tape | BH20: 0 | BI20: 0 | BJ20: 0 | BK20: 0 | BL20: 0 | BM20: 0 | BN20: 0 | BO20: 0 | BP20: 0 | BQ20: 0 | BR20: 0 | BS20: 0 | BT20: 0 | BU20: 0 | BV20: 0
F21: 12 | G21: CHY8 | H21: CHY8: Channelizing Line (Yellow) @ 2.00 | I21: 2 | J21: 0 | AC21: =C48 -> **NPY4 - For estimating purposes only. No Passing Zone Lines will be located in the field. | BB21: 13 | BC21: SLW2 | BD21: SLW2: Stop Line (White) @ 6.00 | BE21: 6 | BG21: Factored Total: Permanent Profiled Tape | BH21: 0 | BI21: 0 | BJ21: 0 | BK21: 0 | BL21: 0 | BM21: 0 | BN21: 0 | BO21: 0 | BP21: 0 | BQ21: 0 | BR21: 0 | BS21: 0 | BT21: 0 | BU21: 0 | BV21: 0
F22: 14 | G22: CLW6 | H22: CLW6: Crosswalk Line (White) @ 3.00 | I22: 3 | J22: 0 | AC22: =C50 -> BCY4: Broken Centerline (Yellow) @ 0.25 | AG22: =H50 -> DCY4: Double Centerline (Yellow) @ 2.00 | AL22: =L50 -> NPY4: No Passing Zone Line (Yellow) @ 1.25 | AR22: =R50 -> BLW4: Broken Lane Line (White) @ 0.25 | AX22: =X50 -> ELW4: Edge Line Right (White) @ 1.00 | BB22: 13 | BC22: SLW4 | BD22: SLW4: Solid Lane Line (White) @ 1.00 | BE22: 1 | BG22: Factored Total: Permanent Intersection Tape | BH22: 0 | BI22: 0 | BJ22: 0 | BK22: 0 | BL22: 0 | BM22: 0 | BN22: 0 | BO22: 0 | BP22: 0 | BQ22: 0 | BR22: 0 | BS22: 0 | BT22: 0 | BU22: 0 | BV22: 0
F23: 3 | G23: DCY4 | H23: DCY4: Double Centerline (Yellow) @ 2.00 | I23: 2 | J23: 0 | AC23: =C51 -> ELY4: Edge Line Left (Yellow) @ 1.00 | AG23: =H51 ->  | AL23: =L51 ->  | AR23: =R51 ->  | AX23: =X51 ->  | BB23: new | BC23: SPW4 | BD23: SPW4: Sloped Curb 4" (White) @ 3.23 | BE23: 3.23 | BG23: Factored Total: Grooves Cut for Pavement Markings | BH23: 0 | BI23: 0 | BJ23: 0 | BK23: 0 | BL23: 0 | BM23: 0 | BN23: 0 | BO23: 0 | BP23: 0 | BQ23: 0 | BR23: 0 | BS23: 0 | BT23: 0 | BU23: 0 | BV23: 0
F24: 18 | G24: DDY4 | H24: DDY4: Double Dotted Line (Yellow) @ 0.67 | I24: 0.6666666667 | J24: 0 | AC24: =C52 ->  | AG24: =H52 ->  | AL24: =L52 ->  | AR24: =R52 ->  | AX24: =X52 ->  | BB24: 16B | BC24: SPW6 | BD24: SPW6: Sloped Curb 6" (White) @ 3.40 | BE24: 3.4 | BG24: Factored Total: Wet Retroreflective Removable Tape | BH24: 0 | BI24: 0 | BJ24: 0 | BK24: 0 | BL24: 0 | BM24: 0 | BN24: 0 | BO24: 0 | BP24: 0 | BQ24: 0 | BR24: 0 | BS24: 0 | BT24: 0 | BU24: 0 | BV24: 0
F25: 9 | G25: DLW4 | H25: DLW4: Dotted Line (White) @ 0.33 | I25: 0.3333333333 | J25: 0 | AC25: =C53 -> Location | AK25: =L53 -> Length by Line Type (Unfactored) | AZ25: =AA53 -> Remarks | BB25: new | BC25: SPY4 | BD25: SPY4: Sloped Curb 4" (Yellow) @ 3.23 | BE25: 3.23 | BG25: Factored Total: Nonreflective, Preformed Removable Tape | BH25: 0 | BI25: 0 | BJ25: 0 | BK25: 0 | BL25: 0 | BM25: 0 | BN25: 0 | BO25: 0 | BP25: 0 | BQ25: 0 | BR25: 0 | BS25: 0 | BT25: 0 | BU25: 0 | BV25: 0
F26: new | G26: DLY4 | H26: DLY4: Dotted Line (Yellow) @ 0.33 | I26: 0.3333333333 | J26: 0 | AC26: =C54 -> Road ID | AD26: =D54 -> Station to Station | AF26: =G54 -> Dir. of Travel | AG26: =H54 -> Marking Type | AH26: =I54 -> Side | AK26: =IF(L54<>"",L54,"") -> BCY4* | AL26: DCY4 | AM26: NPY4** | AN26: BLW4 | AO26: ELW4 | AP26: ELY4 | BB26: 15B | BC26: SPY6 | BD26: SPY6: Sloped Curb 6" (Yellow) @ 3.40 | BE26: 3.4 | BG26: Factored Total: Removal of Paint | BH26: 0 | BI26: 408.3 | BJ26: 28.9 | BK26: 38.5475 | BL26: 266.98 | BM26: 201.48 | BN26: 0 | BO26: 0 | BP26: 0 | BQ26: 0 | BR26: 0 | BS26: 0 | BT26: 0 | BU26: 0 | BV26: 0
F27: 7 | G27: ELW4 | H27: ELW4: Edge Line Right (White) @ 1.00 | I27: 1 | J27: 0 | BB27: 16A | BC27: STW6 | BD27: STW6: Standard Curb 6" (White) @ 3.03 | BE27: 3.03 | BG27: Factored Total: Removal of Permanent Tape | BH27: 0 | BI27: 0 | BJ27: 0 | BK27: 0 | BL27: 0 | BM27: 0 | BN27: 0 | BO27: 0 | BP27: 0 | BQ27: 0 | BR27: 0 | BS27: 0 | BT27: 0 | BU27: 0 | BV27: 0
F28: 8 | G28: ELY4 | H28: ELY4: Edge Line Left (Yellow) @ 1.00 | I28: 1 | J28: 0 | AH28: =I56 -> L | AI28: C | AJ28: R | AK28: STA | AL28: STA | AM28: STA | AN28: STA | AO28: STA | AP28: STA | AQ28: STA | AR28: STA | AS28: STA | AT28: STA | AU28: STA | AV28: STA | AW28: STA | AX28: STA | AY28: STA | BB28: 15A | BC28: STY6 | BD28: STY6: Standard Curb 6" (Yellow) @ 3.03 | BE28: 3.03 | BG28: Factored Total: Removal of Removable Tape | BH28: 0 | BI28: 0 | BJ28: 0 | BK28: 0 | BL28: 0 | BM28: 0 | BN28: 0 | BO28: 0 | BP28: 0 | BQ28: 0 | BR28: 0 | BS28: 0 | BT28: 0 | BU28: 0 | BV28: 0
F29: new | G29: LDW8 | H29: LDW8: Lane Drop (White) @ 0.50 | I29: 0.5 | J29: 0 | BB29: 17 | BC29: YLW2 | BD29: YLW2: Yield Line (White) @ 1.71 | BE29: 1.71 | BG29: Bid Quantity: Painted Pavement Markings, Waterborne or Solvent-Based | BH29: =SUMIF(BH16:BV16,">0",BH16:BV16) -> 2966.4075
F30: new | G30: MNY4*** | H30: MNY4: Median Nose (Yellow) @ 1.00 | I30: 1 | J30: 0 | BG30: Bid Quantity: Painted Pavement Markings, Highbuild Waterborne | BH30: 0
F31: 5 | G31: NPY4** | H31: NPY4: No Passing Zone Line (Yellow) @ 1.25 | I31: 1.25 | J31: 0 | BG31: Bid Quantity: Painted Pavement Markings, Durable | BH31: 0
F32: new | G32: RLW4 | H32: RLW4: Ramp Edge Line Right (White) @ 1.00 | I32: 1 | J32: 0 | BG32: Bid Quantity: Permanent Tape Markings, Regular Marking Tape | BH32: 0
F33: new | G33: RLY4 | H33: RLY4: Ramp Edge Line Left (Yellow) @ 1.00 | I33: 1 | J33: 0 | BG33: Bid Quantity: Permanent Tape Markings, Preformed Polymer Marking Material | BH33: 0
F34: 13 | G34: SLW2 | H34: SLW2: Stop Line (White) @ 6.00 | I34: 6 | J34: 0 | BG34: Bid Quantity: Permanent Tape Markings, Profiled Pavement Marking Tape | BH34: 0
F35: 13 | G35: SLW4 | H35: SLW4: Solid Lane Line (White) @ 1.00 | I35: 1 | J35: 0 | BG35: Bid Quantity: Permanent Tape Markings, Intersection Marking Tape | BH35: 0
F36: new | G36: SPW4 | H36: SPW4: Sloped Curb 4" (White) @ 3.23 | I36: 3.23 | J36: 0 | BG36: Bid Quantity: Grooves Cut for Pavement Markings | BH36: 0
F37: 16B | G37: SPW6 | H37: SPW6: Sloped Curb 6" (White) @ 3.40 | I37: 3.4 | J37: 0 | BG37: Bid Quantity: Wet Retroreflective Removable Tape Markings | BH37: 0
F38: new | G38: SPY4 | H38: SPY4: Sloped Curb 4" (Yellow) @ 3.23 | I38: 3.23 | J38: 0 | BG38: Bid Quantity: Removable, Nonreflective, Preformed Tape | BH38: 0
F39: 15B | G39: SPY6 | H39: SPY6: Sloped Curb 6" (Yellow) @ 3.40 | I39: 3.4 | J39: 0 | BG39: Bid Quantity: Pavement Markings Removed | BH39: =SUMIF(BH26:BV26,">0",BH26:BV26)+SUMIF(BH27:BV27,">0",BH27:BV27) -> 944.2075
F40: 16A | G40: STW6 | H40: STW6: Standard Curb 6" (White) @ 3.03 | I40: 3.03 | J40: 0 | BG40: Incidental Removal of Removable Tape | BH40: =SUMIF(BH28:BV28,">0",BH28:BV28) -> 0
F41: 15A | G41: STY6 | H41: STY6: Standard Curb 6" (Yellow) @ 3.03 | I41: 3.03 | J41: 0
F42: 17 | G42: YLW2 | H42: YLW2: Yield Line (White) @ 1.71 | I42: 1.71 | J42: 0
K43: Factors: | L43: =IF(L$54<>"",VLOOKUP(L$54,$BC$4:$BE$29,3,FALSE),0) -> 0.25 | M43: 2 | N43: 1.25 | O43: 0.25 | P43: 1 | Q43: 1 | R43: 0 | S43: 0 | T43: 0 | U43: 0 | V43: 0 | W43: 0 | X43: 0 | Y43: 0 | Z43: 0
C44: PAVEMENT MARKING LINE TYPES
C46: See PM-110
C47: *BCY4 - Place on the same side of the roadway to match existing markings near the project. | I47: ***MNY4 - Factor of 1.00 as value includes number of 4-inch passes to cover median nose area.
C48: **NPY4 - For estimating purposes only. No Passing Zone Lines will be located in the field.
C49: ="This Data Entry Sheet fills Tab "&AC15&" effective "&TEXT(B17,"mm-dd-yy") -> This Data Entry Sheet fills Tab 108-22 effective 04-16-13
C50: =IF(L54<>"",VLOOKUP(L54,BC4:BE29,2,FALSE),"") -> BCY4: Broken Centerline (Yellow) @ 0.25 | H50: =IF(M54<>"",VLOOKUP(M54,BC4:BE29,2,FALSE),"") -> DCY4: Double Centerline (Yellow) @ 2.00 | L50: =IF(N54<>"",VLOOKUP(N54,BC4:BE29,2,FALSE),"") -> NPY4: No Passing Zone Line (Yellow) @ 1.25 | R50: =IF(O54<>"",VLOOKUP(O54,BC4:BE29,2,FALSE),"") -> BLW4: Broken Lane Line (White) @ 0.25 | X50: =IF(P54<>"",VLOOKUP(P54,BC4:BE29,2,FALSE),"") -> ELW4: Edge Line Right (White) @ 1.00
C51: =IF(Q54<>"",VLOOKUP(Q54,BC4:BE29,2,FALSE),"") -> ELY4: Edge Line Left (Yellow) @ 1.00 | H51: =IF(R54<>"",VLOOKUP(R54,BC4:BE29,2,FALSE),"") ->  | L51: =IF(S54<>"",VLOOKUP(S54,BC4:BE29,2,FALSE),"") ->  | R51: =IF(T54<>"",VLOOKUP(T54,BC4:BE29,2,FALSE),"") ->  | X51: =IF(U54<>"",VLOOKUP(U54,BC4:BE29,2,FALSE),"") -> 
C52: =IF(V54<>"",VLOOKUP(V54,BC4:BE29,2,FALSE),"") ->  | H52: =IF(W54<>"",VLOOKUP(W54,BC4:BE29,2,FALSE),"") ->  | L52: =IF(X54<>"",VLOOKUP(X54,BC4:BE29,2,FALSE),"") ->  | R52: =IF(Y54<>"",VLOOKUP(Y54,BC4:BE29,2,FALSE),"") ->  | X52: =IF(Z54<>"",VLOOKUP(Z54,BC4:BE29,2,FALSE),"") -> 
C53: Location | L53: Length by Line Type (Unfactored) | AA53: Remarks
C54: Road ID | D54: Station to Station | F54: Length (STA) | G54: Dir. of Travel | H54: Marking Type | I54: Side | L54: BCY4* | M54: DCY4 | N54: NPY4** | O54: BLW4 | P54: ELW4 | Q54: ELY4
I56: L | J56: C | K56: R | L56: STA | M56: STA | N56: STA | O56: STA | P56: STA | Q56: STA | R56: STA | S56: STA | T56: STA | U56: STA | V56: STA | W56: STA | X56: STA | Y56: STA | Z56: STA
C57: STAGE 1
C58: Co Rd V66 | D58: (1) | F58: =CONVERT(3,"mi","ft")/100 -> 158.4 | G58: NB/SB | H58: Waterborne/Solvent Paint | I58: x | J58: x | K58: x | M58: =F58 -> 158.4 | P58: =F58 -> 158.4 | Q58: =F58 -> 158.4
C59: Co Rd E44 | D59: (2) | F59: =CONVERT(3,"mi","ft")/100 -> 158.4 | G59: EB/WB | H59: Waterborne/Solvent Paint | I59: x | J59: x | K59: x | M59: =F59 -> 158.4 | P59: =F59 -> 158.4 | Q59: =F59 -> 158.4
C62: STAGE 2 | F62: =(ABS(E62-C62))/100 -> 
C63: US 30 | D63: 145450 | E63: 158000 | F63: =(ABS(E63-D63))/100 -> 125.5 | G63: WB | H63: Removal of Paint | I63: x | J63: x | O63: 125.5 | Q63: 125.5 | S63: 16
F64: 0
C65: US 30 | D65: 145450 | E65: 153905 | F65: 84.55 | G65: WB | H65: Waterborne/Solvent Paint | I65: x | J65: x | M65: 84.55 | P65: 84.55
C66: US 30 | D66: 153905 | E66: 157250 | F66: 33.45 | G66: WB | H66: Waterborne/Solvent Paint | J66: x | Q66: 33.45 | AA66: Crossover 2, See J Sheets
C67: US 30 | D67: 157250 | E67: 158000 | F67: 7.5 | G67: WB | H67: Waterborne/Solvent Paint | I67: x | Q67: 7.5 | AA67: Crossover 2, See J Sheets
F68: 0
C69: US 30 | D69: 153905 | E69: 155110 | F69: 12.05 | G69: EB | H69: Waterborne/Solvent Paint | I69: x | K69: x | S69: 12.05 | T69: 12.05 | AA69: Crossover 2, See J Sheets
F71: 0
C72: STAGE 3 | F72: 0
C73: US 30 | D73: 135725 | E73: 137225 | F73: 15 | G73: BOTH | H73: Removal of Paint | J73: x | N73: 15
C74: US 30 | D74: 137225 | E74: 138036.7 | F74: 8.117 | G74: BOTH | H74: Removal of Paint | I74: x | K74: x | N74: 8.12 | P74: 16.24
F75: 0
C76: US 30 | D76: 151670 | E76: 154538.75 | F76: 28.6875 | G76: EB | H76: Removal of Paint | I76: x | J76: x | O76: 28.69 | Q76: 28.69
C77: US 30 | D77: 153905 | E77: 155110 | F77: 12.05 | G77: EB | H77: Removal of Paint | I77: x | K77: x | S77: 12.05 | T77: 12.05 | AA77: Crossover 2, See J Sheets
F78: 0
C79: US 30 | D79: 151670 | E79: 153905 | F79: 22.35 | G79: WB | H79: Removal of Paint | I79: x | J79: x | M79: 22.35 | P79: 22.35
C80: US 30 | D80: 153905 | E80: 157250 | F80: 33.45 | G80: WB | H80: Removal of Paint | J80: x | Q80: 33.45 | AA80: Crossover 2, See J Sheets
C81: US 30 | D81: 157250 | E81: 158000 | F81: 7.5 | G81: WB | H81: Removal of Paint | I81: x | Q81: 7.5 | AA81: Crossover 2, See J Sheets
F82: 0
C83: US 30 | D83: 135725 | E83: 137225 | F83: 15 | G83: BOTH | H83: Waterborne/Solvent Paint | J83: x | M83: 15
F84: 0
C85: US 30 | D85: 137225 | E85: 151670 | F85: 144.45 | G85: EB | H85: Waterborne/Solvent Paint | I85: x | J85: x | K85: x | M85: 144.45 | P85: 288.9 | AA85: Crossover 1, See J Sheets
C86: US 30 | D86: 151670 | E86: 153905 | F86: 22.35 | G86: EB | H86: Waterborne/Solvent Paint | I86: x | J86: x | M86: 22.35 | P86: 22.35
C87: US 30 | D87: 153905 | E87: 154538.75 | F87: 6.3375 | G87: EB | H87: Waterborne/Solvent Paint | I87: x | Q87: 6.34
F88: 0
C89: US 30 | D89: 153905 | E89: 155040 | F89: 11.35 | G89: WB | H89: Waterborne/Solvent Paint | I89: x | K89: x | S89: 11.35 | T89: 11.35 | AA89: Crossover 2, See J Sheets
C90: US 30 | D90: 155040 | E90: 157250 | F90: 22.1 | G90: WB | H90: Waterborne/Solvent Paint | I90: x | J90: x | P90: 22.1 | Q90: 22.1
F92: 0
C93: FINAL | F93: 0
C94: US 30 | D94: 135725 | E94: 137225 | F94: 15 | G94: BOTH | H94: Removal of Paint | J94: x | M94: 15
F95: 0
C96: US 30 | D96: 137225 | E96: 139213 | F96: 19.88 | G96: EB | H96: Removal of Paint | I96: x | J96: x | K96: x | M96: 19.88 | P96: 39.76 | AA96: Crossover 1, See J Sheets
C97: US 30 | D97: 139213 | E97: 153905 | F97: 146.92 | G97: EB | H97: Removal of Paint | I97: x | J97: x | M97: 146.92 | P97: 146.92
C98: US 30 | D98: 153905 | E98: 154538.75 | F98: 6.3375 | G98: EB | H98: Removal of Paint | I98: x | Q98: 6.34
C99: US 30 | D99: 142221.57 | E99: 142351.74 | F99: 1.3017 | G99: EB | H99: Removal of Paint | K99: x | P99: 1.3
C100: US 30 | D100: 147315 | E100: 147916.14 | F100: 6.0114 | G100: EB | H100: Removal of Paint | K100: x | P100: 6.01
C101: US 30 | D101: 148995 | E101: 150225 | F101: 12.3 | G101: EB | H101: Removal of Paint | K101: x | P101: 12.3
F102: 0
C103: US 30 | D103: 153905 | E103: 155040 | F103: 11.35 | G103: WB | H103: Removal of Paint | I103: x | K103: x | S103: 11.35 | T103: 11.35 | AA103: Crossover 2, See J Sheets
C104: US 30 | D104: 155040 | E104: 157250 | F104: 22.1 | G104: WB | H104: Removal of Paint | J104: x | P104: 22.1
F105: 0
C106: US 30 | D106: 135725 | E106: 137225 | F106: 15 | G106: BOTH | H106: Waterborne/Solvent Paint | J106: x | M106: 15
F107: 0
C108: US 30 | D108: 137225 | E108: 138070 | F108: 8.45 | G108: EB | H108: Waterborne/Solvent Paint | I108: x | K108: x | S108: 8.45 | T108: 8.45 | AA108: Crossover 1, See J Sheets
C109: US 30 | D109: 138070 | E109: 139213 | F109: 11.43 | G109: EB | H109: Waterborne/Solvent Paint | I109: x | J109: x | K109: x | O109: 11.43 | S109: 11.43 | T109: 11.43 | AA109: Crossover 1, See J Sheets
C110: US 30 | D110: 139213 | E110: 142043 | F110: 28.3 | G110: EB | H110: Waterborne/Solvent Paint | I110: x | J110: x | O110: 27.1 | Q110: 27.1
C111: US 30 | D111: 142043 | E111: 142193 | F111: 1.5 | G111: EB | H111: Waterborne/Solvent Paint | I111: x | J111: x | O111: 1.5 | Q111: 1.5 | R111: 1.5
C112: US 30 | D112: 142193 | E112: 147315 | F112: 51.22 | G112: EB | H112: Waterborne/Solvent Paint | I112: x | J112: x | O112: 51.22 | Q112: 51.22
C113: US 30 | D113: 147315 | E113: 147916.14 | F113: 6.0114 | G113: EB | H113: Waterborne/Solvent Paint | I113: x | J113: x | K113: x | O113: 6.01 | Q113: 6.01 | T113: 6.32 | U113: 2.85 | V113: 6.01
C114: US 30 | D114: 147916.14 | E114: 148995 | F114: 10.7886 | G114: EB | H114: Waterborne/Solvent Paint | I114: x | J114: x | O114: 10.79 | Q114: 10.79
C115: US 30 | D115: 148995 | E115: 150225 | F115: 12.3 | G115: EB | H115: Waterborne/Solvent Paint | I115: x | J115: x | K115: x | O115: 12.3 | Q115: 12.3 | T115: 4.6 | V115: 12.3
C116: US 30 | D116: 150225 | E116: 154538.75 | F116: 43.1375 | G116: EB | H116: Waterborne/Solvent Paint | I116: x | J116: x | O116: 43.14 | Q116: 43.14
F117: 0
C118: US 30 | D118: 137225 | E118: 138036.77 | F118: 8.1177 | G118: WB | H118: Waterborne/Solvent Paint | I118: x | K118: x | P118: 8.12 | S118: 13.75 | AA118: Includes cross hatch
C119: US 30 | D119: 138036.77 | E119: 138900 | F119: 8.6323 | G119: WB | H119: Waterborne/Solvent Paint | I119: x | K119: x | S119: 8.63 | T119: 8.63 | AA119: Crossover 3, See J Sheets
C120: US 30 | D120: 138900 | E120: 139620 | F120: 7.2 | G120: WB | H120: Waterborne/Solvent Paint | I120: x | K120: x | P120: 7.2 | S120: 16.63 | AA120: Includes cross hatch
C121: US 30 | D121: 139620 | E121: 140170 | F121: 5.5 | G121: WB | H121: Waterborne/Solvent Paint | I121: x | K121: x | P121: 5.5 | Q121: 5.5
C122: US 30 | D122: 140170 | E122: 142373 | F122: 22.03 | G122: WB | H122: Waterborne/Solvent Paint | I122: x | J122: x | K122: x | O122: 22.03 | P122: 22.03 | Q122: 22.03
C123: US 30 | D123: 142373 | E123: 142523 | F123: 1.5 | G123: WB | H123: Waterborne/Solvent Paint | I123: x | J123: x | K123: x | O123: 1.5 | P123: 1.5 | Q123: 1.5 | R123: 1.5
C124: US 30 | D124: 142523 | E124: 144875 | F124: 23.52 | G124: WB | H124: Waterborne/Solvent Paint | I124: x | J124: x | K124: x | O124: 23.52 | P124: 23.52 | Q124: 23.52
C125: US 30 | D125: 144875 | E125: 146105 | F125: 12.3 | G125: WB | H125: Waterborne/Solvent Paint | I125: x | J125: x | K125: x | O125: 12.3 | Q125: 12.3 | T125: 4.6 | V125: 12.3
C126: US 30 | D126: 146105 | E126: 147223.74 | F126: 11.1874 | G126: WB | H126: Waterborne/Solvent Paint | I126: x | J126: x | K126: x | O126: 11.19 | P126: 11.19 | Q126: 11.19
C127: US 30 | D127: 147223.74 | E127: 147825 | F127: 6.0126 | G127: WB | H127: Waterborne/Solvent Paint | I127: x | J127: x | K127: x | O127: 6.01 | Q127: 6.01 | T127: 5.72 | U127: 3.17 | V127: 6.01
C128: US 30 | D128: 147825 | E128: 151670 | F128: 38.45 | G128: WB | H128: Waterborne/Solvent Paint | I128: x | J128: x | K128: x | O128: 38.45 | P128: 38.45 | Q128: 38.45
C129: US 30 | D129: 151670 | E129: 155040 | F129: 33.7 | G129: WB | H129: Waterborne/Solvent Paint | I129: x | J129: x | O129: 33.7 | Q129: 33.7
C130: US 30 | D130: 155040 | E130: 158000 | F130: 29.6 | G130: WB | H130: Waterborne/Solvent Paint | J130: x | O130: 29.6
C133: LOOP A | D133: 1147915 | E133: 1148664.72 | F133: 7.4972 | G133: EB | H133: Waterborne/Solvent Paint | I133: x | K133: x | V133: 7.5 | W133: 7.5
C134: LOOP A | D134: 1148973 | E134: 1148975 | F134: 0.02 | G134: EB | H134: Waterborne/Solvent Paint | J134: x | K134: x | X134: 0.67
C136: LOOP B | D136: 2147225 | E136: 2147975.06 | F136: 7.5006 | G136: WB | H136: Waterborne/Solvent Paint | I136: x | K136: x | V136: 7.5 | W136: 7.5
C137: LOOP B | D137: 2148282 | E137: 2148284 | F137: 0.02 | G137: WB | H137: Waterborne/Solvent Paint | J137: x | K137: x | X137: 0.63
C139: RAMP C | D139: 3144055.75 | E139: 3144373.46 | F139: 3.1771 | G139: WB | H139: Waterborne/Solvent Paint | I139: x | K139: x | S139: 7.64 | V139: 6.36 | AA139: Includes cross hatch
C140: RAMP C | D140: 3144373.46 | E140: 3145646.34 | F140: 12.7288 | G140: WB | H140: Waterborne/Solvent Paint | I140: x | K140: x | V140: 12.73 | W140: 12.73
C142: RAMP D | D142: 4147440.45 | E142: 4147760.34 | F142: 3.1989 | G142: EB | H142: Waterborne/Solvent Paint | I142: x | K142: x | S142: 7.68 | V142: 6.4 | AA142: Includes cross hatch
C143: RAMP D | D143: 4147760.34 | E143: 4148996.32 | F143: 12.3598 | G143: EB | H143: Waterborne/Solvent Paint | I143: x | K143: x | V143: 12.36 | W143: 12.36
F144: 0
C145: US 218 | D145: 24146800 | E145: 24148325 | F145: =(ABS(E145-D145))/100 -> 15.25 | G145: BOTH | H145: Waterborne/Solvent Paint | I145: x | J145: x | K145: x | M145: 15.25 | P145: 30.5
C146: US 219 | D146: 24148325 | E146: 24148796.2 | F146: 4.712 | G146: BOTH | H146: Waterborne/Solvent Paint | I146: x | J146: x | K146: x | M146: 4.71 | P146: 9.42 | R146: 4.71
C147: US 220 | D147: 24148796.2 | E147: 24150300 | F147: 15.038 | G147: BOTH | H147: Waterborne/Solvent Paint | I147: x | J147: x | K147: x | M147: 15.04 | P147: 30.08
F148: 0
C149: 23RD AVE | D149: 23142214 | E149: 23142216 | F149: 0.02 | G149: NB | H149: Waterborne/Solvent Paint | J149: x | K149: x | X149: 0.39
C150: 23RD AVE | D150: 23142350 | E150: 23142352 | F150: 0.02 | G150: SB | H150: Waterborne/Solvent Paint | J150: x | K150: x | X150: 0.39
F151: 0
F155: =(ABS(E155-D155))/100 -> 0 | H155: Factored Total: Waterborne/Solvent Paint | L155: =IF(BH16<>0,BH16, "-") -> - | M155: 1266.3 | N155: - | O155: 85.4475 | P155: 922.21 | Q155: 692.45 | R155: - | S155: - | T155: - | U155: - | V155: - | W155: - | X155: - | Y155: - | Z155: -
F156: 0 | H156: Factored Total: Removal of Paint | L156: =IF(BH26<>0,BH26, "-") -> - | M156: 408.3 | N156: 28.9 | O156: 38.5475 | P156: 266.98 | Q156: 201.48 | R156: - | S156: - | T156: - | U156: - | V156: - | W156: - | X156: - | Y156: - | Z156: -
F157: 0
F158: 0 | H158: Bid Quantity: Painted Pavement Markings, Waterborne or Solvent-Based | O158: =BH29 -> 2966.4075
F159: 0 | H159: Bid Quantity: Pavement Markings Removed | O159: =BH39 -> 944.2075
F160: 0
F161: 0
C162: NOTES: | F162: 0
C163: (1) Detour route painting from US Highway 30 north to Van Horne (Co. Rd. E44)
C164: (2) Detour route painting from Van Horne (Co. Rd. V66) east to US Highway 218
F165: 0
F166: 0
F167: 0
F168: 0
F169: 0
F170: 0
F171: 0
F172: 0
F173: 0
F174: 0
F175: 0
F176: 0
F177: 0
F178: 0
F179: 0
F180: 0
F181: 0
F182: 0
F183: 0
F184: 0
F185: 0
F186: 0
F187: 0
F188: 0
F189: 0
F190: 0
F191: 0
F192: 0
F193: 0
F194: 0
F195: 0
F196: 0
F197: 0
F198: 0
F199: 0
F200: 0
F201: 0
F202: 0
F203: 0
F204: 0
F205: 0
F206: 0
F207: 0
F208: 0
F209: 0
F210: 0
F211: 0
F212: 0
F213: 0
F214: 0
... 5770 more rows

Sheet DE108_27
A1: TabTitle | B1: =C16 -> TEMPORARY FLOODLIGHTING LUMINAIRES
A2: Number of Tab Columns | B2: 5
A3: DE Starter Row Number | B3: 23
A4: TabSheet Starter Row Number | B4: 9
A5: TabSheet Header Row Count | B5: 8
A6: Top Header Cell | B6: I15
A7: Bottom Header Cell | B7: M22
A8: DESheet Row Count | B8: 6
A9: Fixed Empty Rows | B9: 0
A10: Usable Empty Rows | B10: 75
A11: Total Rows Placed | B11: 81 | C11: xlRight(1) | D11: xlRight(1) | E11: xlRight(1) | F11: xlRight(1) | G11: xlLeft(1) | I11: =C11 -> xlRight(1) | J11: xlRight(1) | K11: xlRight(1) | L11: xlRight(1) | M11: xlLeft(1)
A12: Total Rows Needed | B12: =SUM(B8:B10) -> 81 | C12: General | D12: #+00.00 | E12: General | F12: 0 | G12: General | I12: General | J12: #+00.00 | K12: General | L12: 0 | M12: General
A13: Last Tab DE Starter Row | B13: 23 | C13: =CELL("width",C13) -> 5 | D13: =CELL("width",D13) -> 16 | E13: =CELL("width",E13) -> 10 | F13: =CELL("width",F13) -> 8 | G13: =CELL("width",G13) -> 35 | I13: =CELL("width",I13) -> 0 | J13: =CELL("width",J13) -> 0 | K13: =CELL("width",K13) -> 0 | L13: =CELL("width",L13) -> 0 | M13: =CELL("width",M13) -> 0
A14: Last Tab Tabsheet Starter Row | B14: 9 | C14: A | D14: B | E14: C | F14: D | G14: E | I14: =LOWER(C14) -> a | J14: =LOWER(D14) -> b | K14: =LOWER(E14) -> c | L14: =LOWER(F14) -> d | M14: =LOWER(G14) -> e
A15: Last Copy Starter Row | B15: 1 | F15: =SUBTOTAL(9,F23:F6001) -> 10 | I15: 108-27
A16: Tab Loop Number | B16: 2 | C16: TEMPORARY FLOODLIGHTING LUMINAIRES | I16: =B17 -> 2017-10-17
A17: Revision Date | B17: 2017-10-17 | I17: =C16 -> TEMPORARY FLOODLIGHTING LUMINAIRES
A18: Tabulation Width | B18: 1 | C18: ="This Data Entry Sheet fills Tab "&I15&" effective "&TEXT(B17,"mm-dd-yy") -> This Data Entry Sheet fills Tab 108-27 effective 10-17-17
C19: Possible Standard: LI-130 | I19: Possible Standard: LI-130
C20: No. | D20: Location Station | E20: Offset | F20: Number Lumin. | G20: Remarks | I20: =C20 -> No. | J20: =D20 -> Location Station | K20: =E20 -> Offset | L20: =F20 -> Number Lumin. | M20: =G20 -> Remarks
A22: Horizontal Grid Lines | B22: Yes
G23: Refer to J Sheets
D24: 138179.97 | E24: +/- 85' | F24: 2 | G24: Crossover 1
D25: 154466.17 | E25: +/- 85' | F25: 2 | G25: Crossover 2
D26: 138476.38 | E26: - 85' | F26: 1 | G26: Crossover 3
E28: TOTAL: | F28: =SUM(F24:F26) -> 5

Sheet DE108_29
A1: TabTitle | B1: =C16 -> PAVEMENT MARKING SYMBOLS AND LEGENDS
A2: Number of Tab Columns | B2: 27
A3: DE Starter Row Number | B3: 25
A4: TabSheet Starter Row Number | B4: 11
A5: TabSheet Header Row Count | B5: 10
A6: Top Header Cell | B6: AE15
A7: Bottom Header Cell | B7: BE24
A8: DESheet Row Count | B8: 36
A9: Fixed Empty Rows | B9: 10
A10: Usable Empty Rows | B10: 34
A11: Total Rows Placed | B11: 80 | C11: xlLeft(1) | D11: xlRight(1) | E11: xlRight(1) | F11: xlRight(1) | G11: xlRight(1) | H11: xlRight(1) | I11: xlRight(1) | J11: xlRight(1) | K11: xlRight(1) | L11: xlRight(1) | M11: xlRight(1) | N11: xlRight(1) | O11: xlRight(1) | P11: xlRight(1) | Q11: xlRight(1) | R11: xlRight(1) | S11: xlRight(1) | T11: xlRight(1) | U11: xlRight(1) | V11: xlRight(1) | W11: xlRight(1) | X11: xlRight(1) | Y11: xlRight(1) | Z11: xlRight(1) | AA11: xlRight(1) | AB11: xlRight(1) | AC11: xlLeft(1) | AE11: =C11 -> xlLeft(1) | AF11: xlRight(1) | AG11: xlRight(1) | AH11: xlRight(1) | AI11: xlRight(1) | AJ11: xlRight(1) | AK11: xlRight(1) | AL11: xlRight(1) | AM11: xlRight(1) | AN11: xlRight(1) | AO11: xlRight(1) | AP11: xlRight(1) | AQ11: =G11 -> xlRight(1) | AR11: =K11 -> xlRight(1) | AS11: xlRight(1) | AT11: xlRight(1) | AU11: xlRight(1) | AV11: xlRight(1) | AW11: xlRight(1) | AX11: xlRight(1) | AY11: xlRight(1) | AZ11: =X11 -> xlRight(1) | BA11: xlRight(1) | BB11: xlRight(1) | BC11: xlRight(1) | BD11: xlRight(1) | BE11: xlLeft(1)
A12: Total Rows Needed | B12: =SUM(B8:B10) -> 80 | C12: General | D12: #+00.00 | E12: General | F12: 0 | G12: 0 | H12: 0 | I12: 0 | J12: 0 | K12: 0 | L12: 0 | M12: 0 | N12: 0 | O12: 0 | P12: 0 | Q12: 0 | R12: 0 | S12: 0 | T12: 0 | U12: 0 | V12: 0 | W12: 0 | X12: 0 | Y12: 0 | Z12: 0 | AA12: 0 | AB12: 0 | AC12: General | AE12: General | AF12: #+00.00 | AG12: General | AH12: 0 | AI12: 0 | AJ12: 0 | AK12: 0 | AL12: 0 | AM12: 0 | AN12: 0 | AO12: 0 | AP12: 0 | AQ12: =G12 -> 0 | AR12: 0 | AS12: 0 | AT12: 0 | AU12: 0 | AV12: 0 | AW12: 0 | AX12: 0 | AY12: 0 | AZ12: 0 | BA12: 0 | BB12: 0 | BC12: 0 | BD12: 0 | BE12: General
A13: Last Tab DE Starter Row | B13: 25 | C13: =CELL("width", C13) -> 21 | D13: 16 | E13: 5 | F13: 10 | G13: 10 | H13: 10 | I13: 10 | J13: 10 | K13: 10 | L13: 10 | M13: 10 | N13: 10 | O13: 10 | P13: 10 | Q13: 10 | R13: 10 | S13: 10 | T13: 10 | U13: 10 | V13: 10 | W13: 10 | X13: 10 | Y13: 10 | Z13: 10 | AA13: 10 | AB13: 10 | AC13: 33 | AE13: =CELL("width", AE13) -> 0 | AF13: 0 | AG13: 0 | AH13: 0 | AI13: 0 | AJ13: 0 | AK13: 0 | AL13: 0 | AM13: 0 | AN13: 0 | AO13: 0 | AP13: 0 | AQ13: 0 | AR13: 0 | AS13: 0 | AT13: 0 | AU13: 0 | AV13: 0 | AW13: 0 | AX13: 0 | AY13: 0 | AZ13: 0 | BA13: 0 | BB13: 0 | BC13: 0 | BD13: 0 | BE13: 0
A14: Last Tab Tabsheet Starter Row | B14: 11 | C14: A | D14: B | E14: C | F14: D | G14: E | H14: F | I14: G | J14: H | K14: I | L14: J | M14: K | N14: L | O14: M | P14: N | Q14: O | R14: P | S14: Q | T14: R | U14: S | V14: T | W14: U | X14: V | Y14: W | Z14: X | AA14: Y | AB14: Z | AC14: AA | AE14: =LOWER(C14) -> a | AF14: b | AG14: c | AH14: d | AI14: e | AJ14: f | AK14: g | AL14: h | AM14: i | AN14: j | AO14: k | AP14: l | AQ14: m | AR14: n | AS14: o | AT14: p | AU14: q | AV14: r | AW14: s | AX14: t | AY14: u | AZ14: v | BA14: w | BB14: x | BC14: y | BD14: z | BE14: aa
A15: Last Copy Starter Row | B15: 1 | E15: Totals: | F15: =SUBTOTAL(9,F25:F611) -> 0 | G15: 0 | H15: 0 | I15: 0 | J15: 0 | K15: 0 | L15: 0 | M15: 0 | N15: 32 | O15: 16 | P15: 0 | Q15: 0 | R15: 0 | S15: 0 | T15: 0 | U15: 0 | V15: 0 | W15: 0 | X15: 0 | Y15: 0 | Z15: 0 | AA15: 0 | AB15: 0 | AE15: 108-29
A16: Tab Loop Number | B16: 2 | C16: PAVEMENT MARKING SYMBOLS AND LEGENDS | AE16: =B17 -> 2015-04-21
A17: Revision Date | B17: 2015-04-21 | AE17: =$C$16 -> PAVEMENT MARKING SYMBOLS AND LEGENDS
A18: Tabulation Width | B18: 4 | C18: Refer to PM-111
A19: Horizontal Grid Lines | B19: Yes | C19: ="This Data Entry Sheet fills Tab "&AE15&" effective "&TEXT(B17,"mm-dd-yy") -> This Data Entry Sheet fills Tab 108-29 effective 04-21-15 | AE19: =C18 -> Refer to PM-111
C20: Road Identification | D20: Location | AB20: Groove Cuts | AC20: Remarks | AE20: =C20 -> Road Identification | AF20: =D20 -> Location | BD20: =AB20 -> Groove Cuts | BE20: =$AC$20 -> Remarks
D21: Station | E21: Side | AF21: =D21 -> Station | AG21: =E21 -> Side
F24: STAW | G24: RTAW | H24: LTAW | I24: CSRW | J24: CSLW | K24: CSTW | L24: CRLW | M24: FERW | N24: LLRW | O24: RLRW | P24: RRCW | Q24: BLSW | R24: WCSW | S24: WPSB | T24: SCLW | U24: XNGW | V24: STPW | W24: AHDW | X24: ONLW | Y24: BIKW | Z24: LANW | AA24: XITW | AB24: EACH | AH24: =F24 -> STAW | AI24: RTAW | AJ24: LTAW | AK24: CSRW | AL24: CSLW | AM24: CSTW | AN24: CRLW | AO24: FERW | AP24: LLRW | AQ24: RLRW | AR24: RRCW | AS24: BLSW | AT24: WCSW | AU24: WPSB | AV24: SCLW | AW24: XNGW | AX24: STPW | AY24: AHDW | AZ24: ONLW | BA24: BIKW | BB24: LANW | BC24: XITW | BD24: EACH
C26: PAINTED SYMBOLS AND LEGENDS
C27: STAGE 2
C28: US 30 WB | D28: 158400 | E28: Lt | N28: 1
C29: US 30 WB | D29: 158500 | E29: Lt | N29: 1
C30: US 30 WB | D30: 159400 | E30: Lt | N30: 1
C31: US 30 WB | D31: 159500 | E31: Lt | N31: 1
C33: STAGE 3
C34: US 30 WB | D34: 158400 | E34: Rt | O34: 1
C35: US 30 WB | D35: 158500 | E35: Rt | O35: 1
C36: US 30 WB | D36: 159400 | E36: Rt | O36: 1
C37: US 30 WB | D37: 159500 | E37: Rt | O37: 1
L39: SUBTOTALS: | N39: =SUM(N28:N38) -> 4 | O39: =SUM(O28:O38) -> 4
C42: SYMBOLS AND LEGENDS REMOVED
C43: STAGE 3
C44: US 30 WB | D44: 158400 | E44: Lt | N44: 1
C45: US 30 WB | D45: 158500 | E45: Lt | N45: 1
C46: US 30 WB | D46: 159400 | E46: Lt | N46: 1
C47: US 30 WB | D47: 159500 | E47: Lt | N47: 1
C49: STAGE 4
C50: US 30 WB | D50: 158400 | E50: Rt | O50: 1
C51: US 30 WB | D51: 158500 | E51: Rt | O51: 1
C52: US 30 WB | D52: 159400 | E52: Rt | O52: 1
C53: US 30 WB | D53: 159500 | E53: Rt | O53: 1
L55: SUBTOTALS: | N55: =SUM(N44:N54) -> 4 | O55: =SUM(O44:O54) -> 4
J58: BID ITEMS:
J59: PAINTED SYMBOLS AND LEGENDS | N59: =SUM(N39:O39) -> 8 | O59: EACH
J60: SYMBOLS AND LEGENDS REMOVED | N60: =SUM(N55:O55) -> 8 | O60: EACH

Sheet DE108_30
A1: TabTitle | B1: =C16 -> CRASH CUSHIONS
A2: Number of Tab Columns | B2: 21
A3: DE Starter Row Number | B3: 32
A4: TabSheet Starter Row Number | B4: 18
A5: TabSheet Header Row Count | B5: 17
A6: Top Header Cell | B6: Y15
A7: Bottom Header Cell | B7: AS31
A8: DESheet Row Count | B8: 5
A9: Fixed Empty Rows | B9: 10
A10: Usable Empty Rows | B10: 17
A11: Total Rows Placed | B11: 32 | C11: xlRight(1) | D11: xlCenter | E11: xlRight(1) | F11: xlCenter | G11: xlRight(1) | H11: xlCenter | I11: xlCenter | J11: xlCenter | K11: xlCenter | L11: xlCenter | M11: xlRight(1) | N11: xlRight(1) | O11: xlRight(1) | P11: xlRight(1) | Q11: xlRight(1) | R11: xlRight(1) | S11: xlRight(1) | T11: xlRight(1) | U11: xlRight(1) | V11: xlLeft(1) | W11: xlLeft(1) | Y11: =C11 -> xlRight(1) | Z11: xlCenter | AA11: xlRight(1) | AB11: xlCenter | AC11: xlRight(1) | AD11: xlCenter | AE11: xlCenter | AF11: xlCenter | AG11: xlCenter | AH11: xlCenter | AI11: xlRight(1) | AJ11: xlRight(1) | AK11: xlRight(1) | AL11: xlRight(1) | AM11: xlRight(1) | AN11: xlRight(1) | AO11: =S11 -> xlRight(1) | AP11: xlRight(1) | AQ11: xlRight(1) | AR11: xlLeft(1) | AS11: xlLeft(1)
A12: Total Rows Needed | B12: =SUM(B8:B10) -> 32 | C12: General | D12: General | E12: #+00.00 | F12: General | G12: 0.00 | H12: General | I12: General | J12: General | K12: General | L12: General | M12: 0.00 | N12: 0.00 | O12: 0.00 | P12: 0.00 | Q12: 0.00 | R12: 0.0 | S12: 0.0 | T12: 0 | U12: 0 | V12: General | W12: General | Y12: General | Z12: General | AA12: #+00.00 | AB12: General | AC12: 0.00 | AD12: General | AE12: General | AF12: General | AG12: General | AH12: General | AI12: 0.00 | AJ12: 0.00 | AK12: 0.00 | AL12: 0.00 | AM12: 0.00 | AN12: 0.0 | AO12: 0.0 | AP12: 0 | AQ12: 0 | AR12: General | AS12: General
A13: Last Tab DE Starter Row | B13: 32 | C13: =CELL("width", C13) -> 6 | D13: 6 | E13: 18 | F13: 6 | G13: 9 | H13: 9 | I13: 9 | J13: 9 | K13: 9 | L13: 9 | M13: 9 | N13: 9 | O13: 9 | P13: 9 | Q13: 9 | R13: 9 | S13: 9 | T13: 9 | U13: 9 | V13: 40 | W13: 13 | Y13: =CELL("width", Y13) -> 0 | Z13: 0 | AA13: 0 | AB13: 0 | AC13: 0 | AD13: 0 | AE13: 0 | AF13: 0 | AG13: 0 | AH13: 0 | AI13: 0 | AJ13: 0 | AK13: 0 | AL13: 0 | AM13: 0 | AN13: 0 | AO13: 0 | AP13: 0 | AQ13: 0 | AR13: 0 | AS13: 0
A14: Last Tab Tabsheet Starter Row | B14: 18 | C14: A | D14: B | E14: C | F14: D | G14: E | H14: F | I14: G | J14: H | K14: I | L14: J | M14: K | N14: L | O14: M | P14: N | Q14: O | R14: P | S14: Q | T14: R | U14: S | V14: T | W14: U | Y14: =LOWER(C14) -> a | Z14: b | AA14: c | AB14: d | AC14: e | AD14: f | AE14: g | AF14: h | AG14: i | AH14: j | AI14: k | AJ14: l | AK14: m | AL14: n | AM14: o | AN14: p | AO14: q | AP14: r | AQ14: s | AR14: t | AS14: u
A15: Last Copy Starter Row | B15: 1 | G15: Totals: | H15: =COUNTA(H32:H6000) -> 2 | I15: =COUNTA(I32:I6000) -> 0 | J15: =COUNTA(J32:J6000) -> 0 | K15: =COUNTA(K32:K6000) -> 0 | L15: =COUNTA(L32:L6000) -> 0 | R15: =SUBTOTAL(9,R31:R6000) -> 0 | S15: =SUBTOTAL(9,S31:S6000) -> 0 | T15: =SUBTOTAL(9,T31:T6000,U31:U6000) -> 0 | Y15: 108-30
A16: Tab Loop Number | B16: 2 | C16: CRASH CUSHIONS | Y16: =B17 -> 2013-04-16
A17: Revision Date | B17: 2013-04-16 | Y17: =C16 -> CRASH CUSHIONS
A18: Tabulation Width | B18: 3
A19: Horizontal Grid Lines | B19: Yes | C19: * Bid Item
C20: Lane(s) to which the installation is adjacent. | Y20: =C19 -> * Bid Item
C21: Complete this section when using the Temporary Crash Cushion bid item and Earthwork is needed for Sand Barrel placement. Refer to BA-500 | Y21: =C20 -> Lane(s) to which the installation is adjacent.
C22: ="This Data Entry Sheet fills Tab "&Y15&" effective "&TEXT(B17,"mm-dd-yy") -> This Data Entry Sheet fills Tab 108-30 effective 04-16-13 | Y22: =C21 -> Complete this section when using the Temporary Crash Cushion bid item and Earthwork is needed for Sand Barrel placement. Refer to BA-500
C23: No. | D23: Direction of Traffic | E23: Location Station | F23: Side | G23: Obstacle Width | H23: Crash Cushion (Select One)* | M23: Sand Barrel Details | R23: Earthwork* | T23: Spare Parts Kit (Select One)* | V23: Obstacle Description | W23: Remarks | Y23: =C23 -> No. | Z23: Direction of Traffic | AA23: Location Station | AB23: Side | AC23: Obstacle Width | AD23: Crash Cushion (Select One)* | AI23: =M23 -> Sand Barrel Details | AN23: =R23 -> Earthwork* | AP23: =T23 -> Spare Parts Kit (Select One)* | AR23: =V23 -> Obstacle Description | AS23: =W23 -> Remarks
H25: Temporary | I25: Temporary Redirective | J25: Temporary Severe Use | K25: Permanent | L25: Permanent Severe Use | R25: Excavation Class 10 | S25: Embankment in Place | AD25: =H25 -> Temporary | AE25: =I25 -> Temporary Redirective | AF25: =J25 -> Temporary Severe Use | AG25: =K25 -> Permanent | AH25: =L25 -> Permanent Severe Use | AN25: =R25 -> Excavation Class 10 | AO25: =S25 -> Embankment in Place
T26: Permanent | U26: Permanent Severe Use | AP26: =T26 -> Permanent | AQ26: =U26 -> Permanent Severe Use
M28: Length | N28: Length | O28: Length | P28: Length | Q28: Length | AI28: =M28 -> Length | AJ28: =N28 -> Length | AK28: =O28 -> Length | AL28: =P28 -> Length | AM28: =Q28 -> Length
G31: FT | H31: EACH | I31: EACH | J31: EACH | K31: EACH | L31: EACH | M31: FT | N31: FT | O31: FT | P31: FT | Q31: FT | R31: CY | S31: CY | T31: EACH | U31: EACH | AC31: =G31 -> FT | AI31: =M31 -> FT | AJ31: FT | AK31: FT | AL31: FT | AM31: FT | AN31: CY | AO31: CY | AP31: EACH | AQ31: EACH
N32: =IF(AND(G32<>"",H32<>""),IF(G32<=3.5,24.25,IF(AND(G32>3.5,G32<=10.58),25,IF(AND(G32>10.58,G32<=17.75),25.75,26.6))),"") ->  | O32: =IF(N32<>"",IF(N32=24.25,M32+5.25,IF(N32=25,M32+12.25,IF(N32=25.75,M32+19.25,M32+26.25))),"") ->  | P32: =IF(N32<>"",IF(N32=24.25,M32+3.25,IF(N32=25,M32+10,IF(N32=25.75,M32+17,M32+24))),"") ->  | Q32: =IF(N32<>"",IF(N32=24.25,(3.73*M32)+12,IF(N32=25,(3.73*M32)+38,IF(N32=25.75,(3.73*M32)+64,(3.73*M32)+89))),"") -> 
D33: WB | E33: 154450 | F33: Lt. | G33: 1.875 | H33: 1 | N33: 24.25 | O33: 5.25 | P33: 3.25 | Q33: 12 | V33: Temporary Barrier Rail, Concrete | W33: Stage 2
F36: TOTALS: | H36: =SUM(H33:H35) -> 1
N96: =IF(AND(G96<>"",H96<>""),IF(G96<=3.5,24.25,IF(AND(G96>3.5,G96<=10.58),25,IF(AND(G96>10.58,G96<=17.75),25.75,26.6))),"") ->  | O96: =IF(N96<>"",IF(N96=24.25,M96+5.25,IF(N96=25,M96+12.25,IF(N96=25.75,M96+19.25,M96+26.25))),"") ->  | P96: =IF(N96<>"",IF(N96=24.25,M96+3.25,IF(N96=25,M96+10,IF(N96=25.75,M96+17,M96+24))),"") ->  | Q96: =IF(N96<>"",IF(N96=24.25,(3.73*M96)+12,IF(N96=25,(3.73*M96)+38,IF(N96=25.75,(3.73*M96)+64,(3.73*M96)+89))),"") -> 
N160: =IF(AND(G160<>"",H160<>""),IF(G160<=3.5,24.25,IF(AND(G160>3.5,G160<=10.58),25,IF(AND(G160>10.58,G160<=17.75),25.75,26.6))),"") ->  | O160: =IF(N160<>"",IF(N160=24.25,M160+5.25,IF(N160=25,M160+12.25,IF(N160=25.75,M160+19.25,M160+26.25))),"") ->  | P160: =IF(N160<>"",IF(N160=24.25,M160+3.25,IF(N160=25,M160+10,IF(N160=25.75,M160+17,M160+24))),"") ->  | Q160: =IF(N160<>"",IF(N160=24.25,(3.73*M160)+12,IF(N160=25,(3.73*M160)+38,IF(N160=25.75,(3.73*M160)+64,(3.73*M160)+89))),"") -> 
N224: =IF(AND(G224<>"",H224<>""),IF(G224<=3.5,24.25,IF(AND(G224>3.5,G224<=10.58),25,IF(AND(G224>10.58,G224<=17.75),25.75,26.6))),"") ->  | O224: =IF(N224<>"",IF(N224=24.25,M224+5.25,IF(N224=25,M224+12.25,IF(N224=25.75,M224+19.25,M224+26.25))),"") ->  | P224: =IF(N224<>"",IF(N224=24.25,M224+3.25,IF(N224=25,M224+10,IF(N224=25.75,M224+17,M224+24))),"") ->  | Q224: =IF(N224<>"",IF(N224=24.25,(3.73*M224)+12,IF(N224=25,(3.73*M224)+38,IF(N224=25.75,(3.73*M224)+64,(3.73*M224)+89))),"") -> 
N288: =IF(AND(G288<>"",H288<>""),IF(G288<=3.5,24.25,IF(AND(G288>3.5,G288<=10.58),25,IF(AND(G288>10.58,G288<=17.75),25.75,26.6))),"") ->  | O288: =IF(N288<>"",IF(N288=24.25,M288+5.25,IF(N288=25,M288+12.25,IF(N288=25.75,M288+19.25,M288+26.25))),"") ->  | P288: =IF(N288<>"",IF(N288=24.25,M288+3.25,IF(N288=25,M288+10,IF(N288=25.75,M288+17,M288+24))),"") ->  | Q288: =IF(N288<>"",IF(N288=24.25,(3.73*M288)+12,IF(N288=25,(3.73*M288)+38,IF(N288=25.75,(3.73*M288)+64,(3.73*M288)+89))),"") -> 
N352: =IF(AND(G352<>"",H352<>""),IF(G352<=3.5,24.25,IF(AND(G352>3.5,G352<=10.58),25,IF(AND(G352>10.58,G352<=17.75),25.75,26.6))),"") ->  | O352: =IF(N352<>"",IF(N352=24.25,M352+5.25,IF(N352=25,M352+12.25,IF(N352=25.75,M352+19.25,M352+26.25))),"") ->  | P352: =IF(N352<>"",IF(N352=24.25,M352+3.25,IF(N352=25,M352+10,IF(N352=25.75,M352+17,M352+24))),"") ->  | Q352: =IF(N352<>"",IF(N352=24.25,(3.73*M352)+12,IF(N352=25,(3.73*M352)+38,IF(N352=25.75,(3.73*M352)+64,(3.73*M352)+89))),"") -> 
N416: =IF(AND(G416<>"",H416<>""),IF(G416<=3.5,24.25,IF(AND(G416>3.5,G416<=10.58),25,IF(AND(G416>10.58,G416<=17.75),25.75,26.6))),"") ->  | O416: =IF(N416<>"",IF(N416=24.25,M416+5.25,IF(N416=25,M416+12.25,IF(N416=25.75,M416+19.25,M416+26.25))),"") ->  | P416: =IF(N416<>"",IF(N416=24.25,M416+3.25,IF(N416=25,M416+10,IF(N416=25.75,M416+17,M416+24))),"") ->  | Q416: =IF(N416<>"",IF(N416=24.25,(3.73*M416)+12,IF(N416=25,(3.73*M416)+38,IF(N416=25.75,(3.73*M416)+64,(3.73*M416)+89))),"") -> 
N480: =IF(AND(G480<>"",H480<>""),IF(G480<=3.5,24.25,IF(AND(G480>3.5,G480<=10.58),25,IF(AND(G480>10.58,G480<=17.75),25.75,26.6))),"") ->  | O480: =IF(N480<>"",IF(N480=24.25,M480+5.25,IF(N480=25,M480+12.25,IF(N480=25.75,M480+19.25,M480+26.25))),"") ->  | P480: =IF(N480<>"",IF(N480=24.25,M480+3.25,IF(N480=25,M480+10,IF(N480=25.75,M480+17,M480+24))),"") ->  | Q480: =IF(N480<>"",IF(N480=24.25,(3.73*M480)+12,IF(N480=25,(3.73*M480)+38,IF(N480=25.75,(3.73*M480)+64,(3.73*M480)+89))),"") -> 
N544: =IF(AND(G544<>"",H544<>""),IF(G544<=3.5,24.25,IF(AND(G544>3.5,G544<=10.58),25,IF(AND(G544>10.58,G544<=17.75),25.75,26.6))),"") ->  | O544: =IF(N544<>"",IF(N544=24.25,M544+5.25,IF(N544=25,M544+12.25,IF(N544=25.75,M544+19.25,M544+26.25))),"") ->  | P544: =IF(N544<>"",IF(N544=24.25,M544+3.25,IF(N544=25,M544+10,IF(N544=25.75,M544+17,M544+24))),"") ->  | Q544: =IF(N544<>"",IF(N544=24.25,(3.73*M544)+12,IF(N544=25,(3.73*M544)+38,IF(N544=25.75,(3.73*M544)+64,(3.73*M544)+89))),"") -> 
N608: =IF(AND(G608<>"",H608<>""),IF(G608<=3.5,24.25,IF(AND(G608>3.5,G608<=10.58),25,IF(AND(G608>10.58,G608<=17.75),25.75,26.6))),"") ->  | O608: =IF(N608<>"",IF(N608=24.25,M608+5.25,IF(N608=25,M608+12.25,IF(N608=25.75,M608+19.25,M608+26.25))),"") ->  | P608: =IF(N608<>"",IF(N608=24.25,M608+3.25,IF(N608=25,M608+10,IF(N608=25.75,M608+17,M608+24))),"") ->  | Q608: =IF(N608<>"",IF(N608=24.25,(3.73*M608)+12,IF(N608=25,(3.73*M608)+38,IF(N608=25.75,(3.73*M608)+64,(3.73*M608)+89))),"") -> 
N672: =IF(AND(G672<>"",H672<>""),IF(G672<=3.5,24.25,IF(AND(G672>3.5,G672<=10.58),25,IF(AND(G672>10.58,G672<=17.75),25.75,26.6))),"") ->  | O672: =IF(N672<>"",IF(N672=24.25,M672+5.25,IF(N672=25,M672+12.25,IF(N672=25.75,M672+19.25,M672+26.25))),"") ->  | P672: =IF(N672<>"",IF(N672=24.25,M672+3.25,IF(N672=25,M672+10,IF(N672=25.75,M672+17,M672+24))),"") ->  | Q672: =IF(N672<>"",IF(N672=24.25,(3.73*M672)+12,IF(N672=25,(3.73*M672)+38,IF(N672=25.75,(3.73*M672)+64,(3.73*M672)+89))),"") -> 
N736: =IF(AND(G736<>"",H736<>""),IF(G736<=3.5,24.25,IF(AND(G736>3.5,G736<=10.58),25,IF(AND(G736>10.58,G736<=17.75),25.75,26.6))),"") ->  | O736: =IF(N736<>"",IF(N736=24.25,M736+5.25,IF(N736=25,M736+12.25,IF(N736=25.75,M736+19.25,M736+26.25))),"") ->  | P736: =IF(N736<>"",IF(N736=24.25,M736+3.25,IF(N736=25,M736+10,IF(N736=25.75,M736+17,M736+24))),"") ->  | Q736: =IF(N736<>"",IF(N736=24.25,(3.73*M736)+12,IF(N736=25,(3.73*M736)+38,IF(N736=25.75,(3.73*M736)+64,(3.73*M736)+89))),"") -> 
N800: =IF(AND(G800<>"",H800<>""),IF(G800<=3.5,24.25,IF(AND(G800>3.5,G800<=10.58),25,IF(AND(G800>10.58,G800<=17.75),25.75,26.6))),"") ->  | O800: =IF(N800<>"",IF(N800=24.25,M800+5.25,IF(N800=25,M800+12.25,IF(N800=25.75,M800+19.25,M800+26.25))),"") ->  | P800: =IF(N800<>"",IF(N800=24.25,M800+3.25,IF(N800=25,M800+10,IF(N800=25.75,M800+17,M800+24))),"") ->  | Q800: =IF(N800<>"",IF(N800=24.25,(3.73*M800)+12,IF(N800=25,(3.73*M800)+38,IF(N800=25.75,(3.73*M800)+64,(3.73*M800)+89))),"") -> 
N864: =IF(AND(G864<>"",H864<>""),IF(G864<=3.5,24.25,IF(AND(G864>3.5,G864<=10.58),25,IF(AND(G864>10.58,G864<=17.75),25.75,26.6))),"") ->  | O864: =IF(N864<>"",IF(N864=24.25,M864+5.25,IF(N864=25,M864+12.25,IF(N864=25.75,M864+19.25,M864+26.25))),"") ->  | P864: =IF(N864<>"",IF(N864=24.25,M864+3.25,IF(N864=25,M864+10,IF(N864=25.75,M864+17,M864+24))),"") ->  | Q864: =IF(N864<>"",IF(N864=24.25,(3.73*M864)+12,IF(N864=25,(3.73*M864)+38,IF(N864=25.75,(3.73*M864)+64,(3.73*M864)+89))),"") -> 
N928: =IF(AND(G928<>"",H928<>""),IF(G928<=3.5,24.25,IF(AND(G928>3.5,G928<=10.58),25,IF(AND(G928>10.58,G928<=17.75),25.75,26.6))),"") ->  | O928: =IF(N928<>"",IF(N928=24.25,M928+5.25,IF(N928=25,M928+12.25,IF(N928=25.75,M928+19.25,M928+26.25))),"") ->  | P928: =IF(N928<>"",IF(N928=24.25,M928+3.25,IF(N928=25,M928+10,IF(N928=25.75,M928+17,M928+24))),"") ->  | Q928: =IF(N928<>"",IF(N928=24.25,(3.73*M928)+12,IF(N928=25,(3.73*M928)+38,IF(N928=25.75,(3.73*M928)+64,(3.73*M928)+89))),"") -> 
N992: =IF(AND(G992<>"",H992<>""),IF(G992<=3.5,24.25,IF(AND(G992>3.5,G992<=10.58),25,IF(AND(G992>10.58,G992<=17.75),25.75,26.6))),"") ->  | O992: =IF(N992<>"",IF(N992=24.25,M992+5.25,IF(N992=25,M992+12.25,IF(N992=25.75,M992+19.25,M992+26.25))),"") ->  | P992: =IF(N992<>"",IF(N992=24.25,M992+3.25,IF(N992=25,M992+10,IF(N992=25.75,M992+17,M992+24))),"") ->  | Q992: =IF(N992<>"",IF(N992=24.25,(3.73*M992)+12,IF(N992=25,(3.73*M992)+38,IF(N992=25.75,(3.73*M992)+64,(3.73*M992)+89))),"") -> 
N1056: =IF(AND(G1056<>"",H1056<>""),IF(G1056<=3.5,24.25,IF(AND(G1056>3.5,G1056<=10.58),25,IF(AND(G1056>10.58,G1056<=17.75),25.75,26.6))),"") ->  | O1056: =IF(N1056<>"",IF(N1056=24.25,M1056+5.25,IF(N1056=25,M1056+12.25,IF(N1056=25.75,M1056+19.25,M1056+26.25))),"") ->  | P1056: =IF(N1056<>"",IF(N1056=24.25,M1056+3.25,IF(N1056=25,M1056+10,IF(N1056=25.75,M1056+17,M1056+24))),"") ->  | Q1056: =IF(N1056<>"",IF(N1056=24.25,(3.73*M1056)+12,IF(N1056=25,(3.73*M1056)+38,IF(N1056=25.75,(3.73*M1056)+64,(3.73*M1056)+89))),"") -> 
N1120: =IF(AND(G1120<>"",H1120<>""),IF(G1120<=3.5,24.25,IF(AND(G1120>3.5,G1120<=10.58),25,IF(AND(G1120>10.58,G1120<=17.75),25.75,26.6))),"") ->  | O1120: =IF(N1120<>"",IF(N1120=24.25,M1120+5.25,IF(N1120=25,M1120+12.25,IF(N1120=25.75,M1120+19.25,M1120+26.25))),"") ->  | P1120: =IF(N1120<>"",IF(N1120=24.25,M1120+3.25,IF(N1120=25,M1120+10,IF(N1120=25.75,M1120+17,M1120+24))),"") ->  | Q1120: =IF(N1120<>"",IF(N1120=24.25,(3.73*M1120)+12,IF(N1120=25,(3.73*M1120)+38,IF(N1120=25.75,(3.73*M1120)+64,(3.73*M1120)+89))),"") -> 
N1184: =IF(AND(G1184<>"",H1184<>""),IF(G1184<=3.5,24.25,IF(AND(G1184>3.5,G1184<=10.58),25,IF(AND(G1184>10.58,G1184<=17.75),25.75,26.6))),"") ->  | O1184: =IF(N1184<>"",IF(N1184=24.25,M1184+5.25,IF(N1184=25,M1184+12.25,IF(N1184=25.75,M1184+19.25,M1184+26.25))),"") ->  | P1184: =IF(N1184<>"",IF(N1184=24.25,M1184+3.25,IF(N1184=25,M1184+10,IF(N1184=25.75,M1184+17,M1184+24))),"") ->  | Q1184: =IF(N1184<>"",IF(N1184=24.25,(3.73*M1184)+12,IF(N1184=25,(3.73*M1184)+38,IF(N1184=25.75,(3.73*M1184)+64,(3.73*M1184)+89))),"") -> 
N1248: =IF(AND(G1248<>"",H1248<>""),IF(G1248<=3.5,24.25,IF(AND(G1248>3.5,G1248<=10.58),25,IF(AND(G1248>10.58,G1248<=17.75),25.75,26.6))),"") ->  | O1248: =IF(N1248<>"",IF(N1248=24.25,M1248+5.25,IF(N1248=25,M1248+12.25,IF(N1248=25.75,M1248+19.25,M1248+26.25))),"") ->  | P1248: =IF(N1248<>"",IF(N1248=24.25,M1248+3.25,IF(N1248=25,M1248+10,IF(N1248=25.75,M1248+17,M1248+24))),"") ->  | Q1248: =IF(N1248<>"",IF(N1248=24.25,(3.73*M1248)+12,IF(N1248=25,(3.73*M1248)+38,IF(N1248=25.75,(3.73*M1248)+64,(3.73*M1248)+89))),"") -> 
N1312: =IF(AND(G1312<>"",H1312<>""),IF(G1312<=3.5,24.25,IF(AND(G1312>3.5,G1312<=10.58),25,IF(AND(G1312>10.58,G1312<=17.75),25.75,26.6))),"") ->  | O1312: =IF(N1312<>"",IF(N1312=24.25,M1312+5.25,IF(N1312=25,M1312+12.25,IF(N1312=25.75,M1312+19.25,M1312+26.25))),"") ->  | P1312: =IF(N1312<>"",IF(N1312=24.25,M1312+3.25,IF(N1312=25,M1312+10,IF(N1312=25.75,M1312+17,M1312+24))),"") ->  | Q1312: =IF(N1312<>"",IF(N1312=24.25,(3.73*M1312)+12,IF(N1312=25,(3.73*M1312)+38,IF(N1312=25.75,(3.73*M1312)+64,(3.73*M1312)+89))),"") -> 
N1376: =IF(AND(G1376<>"",H1376<>""),IF(G1376<=3.5,24.25,IF(AND(G1376>3.5,G1376<=10.58),25,IF(AND(G1376>10.58,G1376<=17.75),25.75,26.6))),"") ->  | O1376: =IF(N1376<>"",IF(N1376=24.25,M1376+5.25,IF(N1376=25,M1376+12.25,IF(N1376=25.75,M1376+19.25,M1376+26.25))),"") ->  | P1376: =IF(N1376<>"",IF(N1376=24.25,M1376+3.25,IF(N1376=25,M1376+10,IF(N1376=25.75,M1376+17,M1376+24))),"") ->  | Q1376: =IF(N1376<>"",IF(N1376=24.25,(3.73*M1376)+12,IF(N1376=25,(3.73*M1376)+38,IF(N1376=25.75,(3.73*M1376)+64,(3.73*M1376)+89))),"") -> 
N1440: =IF(AND(G1440<>"",H1440<>""),IF(G1440<=3.5,24.25,IF(AND(G1440>3.5,G1440<=10.58),25,IF(AND(G1440>10.58,G1440<=17.75),25.75,26.6))),"") ->  | O1440: =IF(N1440<>"",IF(N1440=24.25,M1440+5.25,IF(N1440=25,M1440+12.25,IF(N1440=25.75,M1440+19.25,M1440+26.25))),"") ->  | P1440: =IF(N1440<>"",IF(N1440=24.25,M1440+3.25,IF(N1440=25,M1440+10,IF(N1440=25.75,M1440+17,M1440+24))),"") ->  | Q1440: =IF(N1440<>"",IF(N1440=24.25,(3.73*M1440)+12,IF(N1440=25,(3.73*M1440)+38,IF(N1440=25.75,(3.73*M1440)+64,(3.73*M1440)+89))),"") -> 
N1504: =IF(AND(G1504<>"",H1504<>""),IF(G1504<=3.5,24.25,IF(AND(G1504>3.5,G1504<=10.58),25,IF(AND(G1504>10.58,G1504<=17.75),25.75,26.6))),"") ->  | O1504: =IF(N1504<>"",IF(N1504=24.25,M1504+5.25,IF(N1504=25,M1504+12.25,IF(N1504=25.75,M1504+19.25,M1504+26.25))),"") ->  | P1504: =IF(N1504<>"",IF(N1504=24.25,M1504+3.25,IF(N1504=25,M1504+10,IF(N1504=25.75,M1504+17,M1504+24))),"") ->  | Q1504: =IF(N1504<>"",IF(N1504=24.25,(3.73*M1504)+12,IF(N1504=25,(3.73*M1504)+38,IF(N1504=25.75,(3.73*M1504)+64,(3.73*M1504)+89))),"") -> 
N1568: =IF(AND(G1568<>"",H1568<>""),IF(G1568<=3.5,24.25,IF(AND(G1568>3.5,G1568<=10.58),25,IF(AND(G1568>10.58,G1568<=17.75),25.75,26.6))),"") ->  | O1568: =IF(N1568<>"",IF(N1568=24.25,M1568+5.25,IF(N1568=25,M1568+12.25,IF(N1568=25.75,M1568+19.25,M1568+26.25))),"") ->  | P1568: =IF(N1568<>"",IF(N1568=24.25,M1568+3.25,IF(N1568=25,M1568+10,IF(N1568=25.75,M1568+17,M1568+24))),"") ->  | Q1568: =IF(N1568<>"",IF(N1568=24.25,(3.73*M1568)+12,IF(N1568=25,(3.73*M1568)+38,IF(N1568=25.75,(3.73*M1568)+64,(3.73*M1568)+89))),"") -> 
N1632: =IF(AND(G1632<>"",H1632<>""),IF(G1632<=3.5,24.25,IF(AND(G1632>3.5,G1632<=10.58),25,IF(AND(G1632>10.58,G1632<=17.75),25.75,26.6))),"") ->  | O1632: =IF(N1632<>"",IF(N1632=24.25,M1632+5.25,IF(N1632=25,M1632+12.25,IF(N1632=25.75,M1632+19.25,M1632+26.25))),"") ->  | P1632: =IF(N1632<>"",IF(N1632=24.25,M1632+3.25,IF(N1632=25,M1632+10,IF(N1632=25.75,M1632+17,M1632+24))),"") ->  | Q1632: =IF(N1632<>"",IF(N1632=24.25,(3.73*M1632)+12,IF(N1632=25,(3.73*M1632)+38,IF(N1632=25.75,(3.73*M1632)+64,(3.73*M1632)+89))),"") -> 
N1696: =IF(AND(G1696<>"",H1696<>""),IF(G1696<=3.5,24.25,IF(AND(G1696>3.5,G1696<=10.58),25,IF(AND(G1696>10.58,G1696<=17.75),25.75,26.6))),"") ->  | O1696: =IF(N1696<>"",IF(N1696=24.25,M1696+5.25,IF(N1696=25,M1696+12.25,IF(N1696=25.75,M1696+19.25,M1696+26.25))),"") ->  | P1696: =IF(N1696<>"",IF(N1696=24.25,M1696+3.25,IF(N1696=25,M1696+10,IF(N1696=25.75,M1696+17,M1696+24))),"") ->  | Q1696: =IF(N1696<>"",IF(N1696=24.25,(3.73*M1696)+12,IF(N1696=25,(3.73*M1696)+38,IF(N1696=25.75,(3.73*M1696)+64,(3.73*M1696)+89))),"") -> 
N1760: =IF(AND(G1760<>"",H1760<>""),IF(G1760<=3.5,24.25,IF(AND(G1760>3.5,G1760<=10.58),25,IF(AND(G1760>10.58,G1760<=17.75),25.75,26.6))),"") ->  | O1760: =IF(N1760<>"",IF(N1760=24.25,M1760+5.25,IF(N1760=25,M1760+12.25,IF(N1760=25.75,M1760+19.25,M1760+26.25))),"") ->  | P1760: =IF(N1760<>"",IF(N1760=24.25,M1760+3.25,IF(N1760=25,M1760+10,IF(N1760=25.75,M1760+17,M1760+24))),"") ->  | Q1760: =IF(N1760<>"",IF(N1760=24.25,(3.73*M1760)+12,IF(N1760=25,(3.73*M1760)+38,IF(N1760=25.75,(3.73*M1760)+64,(3.73*M1760)+89))),"") -> 
N1824: =IF(AND(G1824<>"",H1824<>""),IF(G1824<=3.5,24.25,IF(AND(G1824>3.5,G1824<=10.58),25,IF(AND(G1824>10.58,G1824<=17.75),25.75,26.6))),"") ->  | O1824: =IF(N1824<>"",IF(N1824=24.25,M1824+5.25,IF(N1824=25,M1824+12.25,IF(N1824=25.75,M1824+19.25,M1824+26.25))),"") ->  | P1824: =IF(N1824<>"",IF(N1824=24.25,M1824+3.25,IF(N1824=25,M1824+10,IF(N1824=25.75,M1824+17,M1824+24))),"") ->  | Q1824: =IF(N1824<>"",IF(N1824=24.25,(3.73*M1824)+12,IF(N1824=25,(3.73*M1824)+38,IF(N1824=25.75,(3.73*M1824)+64,(3.73*M1824)+89))),"") -> 
N1888: =IF(AND(G1888<>"",H1888<>""),IF(G1888<=3.5,24.25,IF(AND(G1888>3.5,G1888<=10.58),25,IF(AND(G1888>10.58,G1888<=17.75),25.75,26.6))),"") ->  | O1888: =IF(N1888<>"",IF(N1888=24.25,M1888+5.25,IF(N1888=25,M1888+12.25,IF(N1888=25.75,M1888+19.25,M1888+26.25))),"") ->  | P1888: =IF(N1888<>"",IF(N1888=24.25,M1888+3.25,IF(N1888=25,M1888+10,IF(N1888=25.75,M1888+17,M1888+24))),"") ->  | Q1888: =IF(N1888<>"",IF(N1888=24.25,(3.73*M1888)+12,IF(N1888=25,(3.73*M1888)+38,IF(N1888=25.75,(3.73*M1888)+64,(3.73*M1888)+89))),"") -> 
N1952: =IF(AND(G1952<>"",H1952<>""),IF(G1952<=3.5,24.25,IF(AND(G1952>3.5,G1952<=10.58),25,IF(AND(G1952>10.58,G1952<=17.75),25.75,26.6))),"") ->  | O1952: =IF(N1952<>"",IF(N1952=24.25,M1952+5.25,IF(N1952=25,M1952+12.25,IF(N1952=25.75,M1952+19.25,M1952+26.25))),"") ->  | P1952: =IF(N1952<>"",IF(N1952=24.25,M1952+3.25,IF(N1952=25,M1952+10,IF(N1952=25.75,M1952+17,M1952+24))),"") ->  | Q1952: =IF(N1952<>"",IF(N1952=24.25,(3.73*M1952)+12,IF(N1952=25,(3.73*M1952)+38,IF(N1952=25.75,(3.73*M1952)+64,(3.73*M1952)+89))),"") -> 
... 39 more rows

Sheet DE108_33
A1: TabTitle | B1: =C16 -> TEMPORARY BARRIER RAIL
A2: Number of Tab Columns | B2: 9
A3: DE Starter Row Number | B3: 26
A4: TabSheet Starter Row Number | B4: 12
A5: TabSheet Header Row Count | B5: 11
A6: Top Header Cell | B6: M15
A7: Bottom Header Cell | B7: U25
A8: DESheet Row Count | B8: 5
A9: Fixed Empty Rows | B9: 10
A10: Usable Empty Rows | B10: 14
A11: Total Rows Placed | B11: 29 | C11: xlRight(1) | D11: xlRight(1) | E11: xlRight(1) | F11: xlRight(1) | G11: xlRight(1) | H11: xlRight(1) | I11: xlRight(1) | J11: xlRight(1) | K11: xlLeft(1) | M11: =C11 -> xlRight(1) | N11: xlRight(1) | O11: xlRight(1) | P11: xlRight(1) | Q11: xlRight(1) | R11: xlRight(1) | S11: xlRight(1) | T11: xlRight(1) | U11: xlLeft(1)
A12: Total Rows Needed | B12: =SUM(B8:B10) -> 29 | C12: General | D12: #+00.00 | E12: #+00.00 | F12: 0.0 | G12: General | H12: General | I12: General | J12: General | K12: General | M12: General | N12: #+00.00 | O12: #+00.00 | P12: 0.0 | Q12: General | R12: General | S12: General | T12: General | U12: General
A13: Last Tab DE Starter Row | B13: 26 | C13: =CELL("width", C13) -> 6 | D13: 16 | E13: 16 | F13: 12 | G13: 12 | H13: 12 | I13: 14 | J13: 16 | K13: 48 | M13: =CELL("width", M13) -> 0 | N13: 0 | O13: 0 | P13: 0 | Q13: 0 | R13: 0 | S13: 0 | T13: 0 | U13: 0
A14: Last Tab Tabsheet Starter Row | B14: 12 | C14: A | D14: B | E14: C | F14: D | G14: E | H14: F | I14: G | J14: H | K14: I | M14: =LOWER(C14) -> a | N14: b | O14: c | P14: d | Q14: e | R14: f | S14: g | T14: h | U14: i
A15: Last Copy Starter Row | B15: 1 | F15: Totals: | G15: =SUMIF(G26:G6000,">""",F26:F6000) -> 0 | H15: =SUMIF(H26:H6000,">""",F26:F6000) -> 162.5 | M15: 108-33 | W15: =I23 -> Anchored*
A16: Tab Loop Number | B16: 2 | C16: TEMPORARY BARRIER RAIL | M16: =B17 -> 2016-04-19 | W16: Yes
A17: Revision Date | B17: 2016-04-19 | M17: =C16 -> TEMPORARY BARRIER RAIL | W17: No
A18: Tabulation Width | B18: 2 | C18: Possible Standards: BA-400, BA-401
A19: Horizontal Grid Lines | B19: Yes | C19: * Not a bid item. Anchorage requirements are based on TBR locations shown in the plans. TBR alignments that vary from what is shown in the plans may result in additional TBR sections requiring anchorage. | M19: =C18 -> Possible Standards: BA-400, BA-401
M20: =C19 -> * Not a bid item. Anchorage requirements are based on TBR locations shown in the plans. TBR alignments that vary from what is shown in the plans may result in additional TBR sections requiring anchorage.
C22: ="This Data Entry Sheet fills Tab "&M15&" effective "&TEXT(B17,"mm-dd-yy") -> This Data Entry Sheet fills Tab 108-33 effective 04-19-16
C23: No. | D23: Station to Station | F23: Length | G23: (Select One) | I23: Anchored* | J23: Modular Glare Screen System | K23: Remarks | M23: =C23 -> No. | N23: =D23 -> Station to Station | P23: =F23 -> Length | Q23: =G23 -> (Select One) | S23: =I23 -> Anchored* | T23: =J23 -> Modular Glare Screen System | U23: =K23 -> Remarks
G24: Steel BA-400 | H24: Concrete BA-401 | Q24: =G24 -> Steel BA-400 | R24: =H24 -> Concrete BA-401
F25: LF | I25: (Y/N) | J25: (Y/N) | P25: =F25 -> LF | S25: =I25 -> (Y/N) | T25: =J25 -> (Y/N)
D27: 154450 | E27: =D27+F27 -> 154612.5 | F27: =12.5*13 -> 162.5 | H27: X | I27: No | J27: No | K27: Stage 2, Crossover 2
E30: TOTAL: | F30: =SUM(F27:F29) -> 162.5

Sheet DE108_35
A1: TabTitle | B1: =C16 -> TEMPORARY LANE SEPARATOR SYSTEM
A2: Number of Tab Columns | B2: 4
A3: DE Starter Row Number | B3: 22
A4: TabSheet Starter Row Number | B4: 8
A5: TabSheet Header Row Count | B5: 7
A6: Top Header Cell | B6: H15
A7: Bottom Header Cell | B7: K21
A8: DESheet Row Count | B8: 5
A9: Fixed Empty Rows | B9: 0
A10: Usable Empty Rows | B10: 78
A11: Total Rows Placed | B11: 83 | C11: xlRight(1) | D11: xlRight(1) | E11: xlRight(1) | F11: xlLeft(1) | H11: =C11 -> xlRight(1) | I11: xlRight(1) | J11: xlRight(1) | K11: xlLeft(1)
A12: Total Rows Needed | B12: =SUM(B8:B10) -> 83 | C12: #+00.00 | D12: #+00.00 | E12: 0 | F12: General | H12: #+00.00 | I12: #+00.00 | J12: 0 | K12: General
A13: Last Tab DE Starter Row | B13: 22 | C13: =CELL("width",C13) -> 16 | D13: =CELL("width",D13) -> 16 | E13: =CELL("width",E13) -> 12 | F13: =CELL("width",F13) -> 31 | H13: =CELL("width",H13) -> 0 | I13: =CELL("width",I13) -> 0 | J13: =CELL("width",J13) -> 0 | K13: =CELL("width",K13) -> 0
A14: Last Tab Tabsheet Starter Row | B14: 8 | C14: A | D14: B | E14: C | F14: D | H14: =LOWER(C14) -> a | I14: =LOWER(D14) -> b | J14: =LOWER(E14) -> c | K14: =LOWER(F14) -> d
A15: Last Copy Starter Row | B15: 1 | D15: Total: | E15: =SUBTOTAL(9,E22:E6000) -> 3140 | H15: 108-35
A16: Tab Loop Number | B16: 2 | C16: TEMPORARY LANE SEPARATOR SYSTEM | H16: =B17 -> 2012-04-17
A17: Revision Date | B17: 2012-04-17 | H17: =C16 -> TEMPORARY LANE SEPARATOR SYSTEM
A18: Tabulation Width | B18: 1 | C18: See TC-61
A19: Horizontal Grid Lines | B19: Yes | C19: ="This Data Entry Sheet fills Tab "&H15&" effective "&TEXT(B17,"mm-dd-yy") -> This Data Entry Sheet fills Tab 108-35 effective 04-17-12 | H19: =C18 -> See TC-61
C20: Station to Station | E20: Length | F20: Remarks | H20: =C20 -> Station to Station | J20: =E20 -> Length | K20: =F20 -> Remarks
E21: LF | J21: =E21 -> LF
C23: 153755 | D23: 154540 | E23: =D23-C23 -> 785 | F23: Stage 2, Crossover 2
C24: 153755 | D24: 154540 | E24: =D24-C24 -> 785 | F24: Stage 3, Crossover 2
D26: TOTAL: | E26: =SUM(E23:E24) -> 1570

Sheet DE110_1
A1: TabTitle | B1: =C16 -> REMOVAL OF PAVEMENT
A2: Number of Tab Columns | B2: 7
A3: DE Starter Row Number | B3: 26
A4: TabSheet Starter Row Number | B4: 12
A5: TabSheet Header Row Count | B5: 11
A6: Top Header Cell | B6: N15
A7: Bottom Header Cell | B7: T25
A8: DESheet Row Count | B8: 20
A9: Fixed Empty Rows | B9: 10
A10: Usable Empty Rows | B10: 0
A11: Total Rows Placed | B11: 30 | C11: xlRight(1) | D11: xlRight(1) | E11: xlCenter | F11: xlCenter | J11: xlRight(1) | K11: xlRight(1) | L11: xlLeft(1) | N11: =C11 -> xlRight(1) | O11: xlRight(1) | P11: xlCenter | Q11: xlCenter | R11: =J11 -> xlRight(1) | S11: xlRight(1) | T11: xlLeft(1)
A12: Total Rows Needed | B12: =SUM(B8:B10) -> 30 | C12: #+00.00 | D12: #+00.00 | E12: General | F12: General | J12: 0.0 | K12: 0.0 | L12: General | N12: #+00.00 | O12: #+00.00 | P12: General | Q12: General | R12: 0.0 | S12: 0.0 | T12: General
A13: Last Tab DE Starter Row | B13: 26 | C13: =CELL("width",C13) -> 16 | D13: =CELL("width",D13) -> 16 | E13: =CELL("width",E13) -> 14 | F13: =CELL("width",F13) -> 14 | J13: =CELL("width",J13) -> 14 | K13: =CELL("width",K13) -> 14 | L13: =CELL("width",L13) -> 65 | N13: =CELL("width",N13) -> 0 | O13: 0 | P13: 0 | Q13: 0 | R13: 0 | S13: 0 | T13: 0
A14: Last Tab Tabsheet Starter Row | B14: 12 | C14: A | D14: B | E14: C | F14: D | J14: E | K14: F | L14: G | N14: =LOWER(C14) -> a | O14: =LOWER(D14) -> b | P14: =LOWER(E14) -> c | Q14: =LOWER(F14) -> d | R14: =LOWER(J14) -> e | S14: =LOWER(K14) -> f | T14: =LOWER(L14) -> g
A15: Last Copy Starter Row | B15: 1 | I15: Totals: | J15: =SUBTOTAL(9,J26:J5991) -> 160188 | N15: 110-1
A16: Tab Loop Number | B16: 2 | C16: REMOVAL OF PAVEMENT | N16: =B17 -> 2013-04-16
A17: Revision Date | B17: 2013-04-16 | N17: =C16 -> REMOVAL OF PAVEMENT
A18: Tabulation Width | B18: 2 | C18: Refer to Tabulation 102-5
A19: Horizontal Grid Lines | B19: Yes | C19: * Not a Bid Item | N19: =C18 -> Refer to Tabulation 102-5
C20: ="This Data Entry Sheet fills Tab "&N15&" effective "&TEXT(B17,"mm-dd-yy") -> This Data Entry Sheet fills Tab 110-1 effective 04-16-13 | N20: =C19 -> * Not a Bid Item
C21: Begin Station | D21: End Station | E21: Side | F21: Pavement Type | G21: Length | H21: Width | I21: Area | J21: Area | K21: Saw Cut* | L21: Remarks | N21: =C21 -> Begin Station | O21: =D21 -> End Station | P21: =E21 -> Side | Q21: =F21 -> Pavement Type | R21: =J21 -> Area | S21: =K21 -> Saw Cut* | T21: =L21 -> Remarks
G25: FT | H25: FT | I25: FT | J25: SY | K25: LF | R25: =J25 -> SY | S25: =K25 -> LF
G26: =ABS(D26-C26) -> 0 | I26: =G26*H26 -> 0 | J26: =IF(I26<>0,I26/9,"") -> 
C27: STAGE 2
C28: US 30
C29: 145508 | D29: 151670 | E29: EB | F29: HMA/PCC | G29: 6162 | I29: 186283.4333 | J29: =IF(I29<>0,ROUND(I29/9,),"") -> 20698 | K29: =24+183+438 -> 645
G30: 0 | I30: 0 | J30: =IF(I30<>0,ROUND(I30/9,),"") -> 
C31: US 218
C32: 24147671 | D32: 24150300 | E32: NB/SB | F32: HMA/PCC | G32: 2629 | I32: 72744.105 | J32: 8083 | K32: =24+245 -> 269
G33: 0 | I33: 0
G34: 0 | I34: 0
C35: STAGE 3
C36: US 30
C37: 138000 | D37: 151670 | E37: WB | F37: HMA/PCC | G37: 13670 | I37: 435440.7638 | J37: 48382 | K37: =24*2 -> 48
G38: 0 | I38: 0
G39: 0 | I39: 0
C40: STAGE 4
C41: US 30
C42: 154090 | D42: 154885 | E42: EB/WB | F42: Detour | G42: 795 | I42: 26375.4559 | J42: 2931 | K42: =724+622 -> 1346
G43: 0 | I43: 0
G44: 0 | I44: 0
F45: TOTALS: | G45: 0 | I45: 0 | J45: =SUM(J29:J42) -> 80094 | K45: =SUM(K29:K42) -> 2308
G46: 0 | I46: 0
G47: 0 | I47: 0
G48: 0 | I48: 0
G49: 0 | I49: 0
G50: 0 | I50: 0
G51: 0 | I51: 0
G52: 0 | I52: 0
G53: 0 | I53: 0
G54: 0 | I54: 0
G55: 0 | I55: 0
G56: 0 | I56: 0
G57: 0 | I57: 0
G58: 0 | I58: 0
G59: 0 | I59: 0
G60: 0 | I60: 0
G61: 0 | I61: 0
G62: 0 | I62: 0
G63: 0 | I63: 0
G64: 0 | I64: 0
G65: 0 | I65: 0
G66: 0 | I66: 0
G67: 0 | I67: 0
G68: 0 | I68: 0
G69: 0 | I69: 0
G70: 0 | I70: 0
G71: 0 | I71: 0
G72: 0 | I72: 0
G73: 0 | I73: 0
G74: 0 | I74: 0
G75: 0 | I75: 0
G76: 0 | I76: 0
G77: 0 | I77: 0
G78: 0 | I78: 0
G79: 0 | I79: 0
G80: 0 | I80: 0
G81: 0 | I81: 0
G82: 0 | I82: 0
G83: 0 | I83: 0
G84: 0 | I84: 0
G85: 0 | I85: 0
G86: 0 | I86: 0
G87: 0 | I87: 0
G88: 0 | I88: 0
G89: 0 | I89: 0
G90: =ABS(D90-C90) -> 0 | I90: =G90*H90 -> 0 | J90: =IF(I90<>0,I90/9,"") -> 
G91: 0 | I91: 0
G92: 0 | I92: 0
G93: 0 | I93: 0
G94: 0 | I94: 0
G95: 0 | I95: 0
G96: 0 | I96: 0
G97: 0 | I97: 0
G98: 0 | I98: 0
G99: 0 | I99: 0
G100: 0 | I100: 0
G101: 0 | I101: 0
G102: 0 | I102: 0
G103: 0 | I103: 0
G104: 0 | I104: 0
G105: 0 | I105: 0
G106: 0 | I106: 0
G107: 0 | I107: 0
G108: 0 | I108: 0
G109: 0 | I109: 0
G110: 0 | I110: 0
G111: 0 | I111: 0
G112: 0 | I112: 0
G113: 0 | I113: 0
G114: 0 | I114: 0
G115: 0 | I115: 0
G116: 0 | I116: 0
G117: 0 | I117: 0
G118: 0 | I118: 0
G119: 0 | I119: 0
G120: 0 | I120: 0
G121: 0 | I121: 0
G122: 0 | I122: 0
G123: 0 | I123: 0
G124: 0 | I124: 0
G125: 0 | I125: 0
G126: 0 | I126: 0
G127: 0 | I127: 0
G128: 0 | I128: 0
G129: 0 | I129: 0
G130: 0 | I130: 0
G131: 0 | I131: 0
G132: 0 | I132: 0
G133: 0 | I133: 0
G134: 0 | I134: 0
G135: 0 | I135: 0
G136: 0 | I136: 0
G137: 0 | I137: 0
G138: 0 | I138: 0
G139: 0 | I139: 0
G140: 0 | I140: 0
G141: 0 | I141: 0
G142: 0 | I142: 0
G143: 0 | I143: 0
G144: 0 | I144: 0
G145: 0 | I145: 0
G146: 0 | I146: 0
G147: 0 | I147: 0
G148: 0 | I148: 0
G149: 0 | I149: 0
G150: 0 | I150: 0
G151: 0 | I151: 0
G152: 0 | I152: 0
G153: 0 | I153: 0
G154: =ABS(D154-C154) -> 0 | I154: =G154*H154 -> 0 | J154: =IF(I154<>0,I154/9,"") -> 
G155: 0 | I155: 0
G156: 0 | I156: 0
G157: 0 | I157: 0
G158: 0 | I158: 0
G159: 0 | I159: 0
G160: 0 | I160: 0
G161: 0 | I161: 0
G162: 0 | I162: 0
G163: 0 | I163: 0
G164: 0 | I164: 0
G165: 0 | I165: 0
G166: 0 | I166: 0
G167: 0 | I167: 0
G168: 0 | I168: 0
G169: 0 | I169: 0
G170: 0 | I170: 0
G171: 0 | I171: 0
G172: 0 | I172: 0
G173: 0 | I173: 0
G174: 0 | I174: 0
G175: 0 | I175: 0
G176: 0 | I176: 0
G177: 0 | I177: 0
G178: 0 | I178: 0
G179: 0 | I179: 0
G180: 0 | I180: 0
G181: 0 | I181: 0
G182: 0 | I182: 0
G183: 0 | I183: 0
G184: 0 | I184: 0
G185: 0 | I185: 0
G186: 0 | I186: 0
G187: 0 | I187: 0
G188: 0 | I188: 0
G189: 0 | I189: 0
G190: 0 | I190: 0
G191: 0 | I191: 0
G192: 0 | I192: 0
G193: 0 | I193: 0
G194: 0 | I194: 0
G195: 0 | I195: 0
G196: 0 | I196: 0
G197: 0 | I197: 0
G198: 0 | I198: 0
G199: 0 | I199: 0
G200: 0 | I200: 0
G201: 0 | I201: 0
G202: 0 | I202: 0
G203: 0 | I203: 0
... 5788 more rows

Sheet DE110_9
A1: TabTitle | B1: =C16 -> CULVERT ABANDONMENT
A2: Number of Tab Columns | B2: 6
A3: DE Starter Row Number | B3: 26
A4: TabSheet Starter Row Number | B4: 12
A5: TabSheet Header Row Count | B5: 11
A6: Top Header Cell | B6: J15
A7: Bottom Header Cell | B7: O25
A8: DESheet Row Count | B8: 6
A9: Fixed Empty Rows | B9: 10
A10: Usable Empty Rows | B10: 0
A11: Total Rows Placed | B11: 16 | C11: xlRight(1) | D11: xlLeft(1) | E11: xlRight(1) | F11: xlRight(1) | G11: xlRight(1) | H11: xlLeft(1) | J11: =C11 -> xlRight(1) | K11: =D11 -> xlLeft(1) | L11: xlRight(1) | M11: xlRight(1) | N11: xlRight(1) | O11: xlLeft(1)
A12: Total Rows Needed | B12: =SUM(B8:B10) -> 16 | C12: #+00.00 | D12: General | E12: 0.0 | F12: 0.0 | G12: 0.0 | H12: General | J12: =C12 -> #+00.00 | K12: General | L12: 0.0 | M12: 0.0 | N12: 0.0 | O12: General
A13: Last Tab DE Starter Row | B13: 26 | C13: =CELL("Width",C13) -> 16 | D13: 30 | E13: 17 | F13: 20 | G13: 14 | H13: 58 | J13: =CELL("Width",J13) -> 0 | K13: 0 | L13: 0 | M13: 0 | N13: 0 | O13: 0
A14: Last Tab TabSheet Starter Row | B14: 12 | C14: A | D14: B | E14: C | F14: D | G14: E | H14: F | J14: a | K14: b | L14: c | M14: d | N14: e | O14: f
A15: Last Copy Starter Row | B15: 1 | D15: Totals: | E15: =SUBTOTAL(9,E26:E6000) -> 253.2209259 | F15: =SUBTOTAL(9,F26:F6000) -> 0.58671875 | G15: =SUBTOTAL(9,G26:G6000) -> 10.5 | J15: 110-9
A16: Tab Loop Number | B16: 2 | C16: CULVERT ABANDONMENT | J16: =B17 -> 2011-10-18
A17: Revision Date | B17: 2011-10-18 | J17: =C16 -> CULVERT ABANDONMENT
A18: Tabulation Width | B18: 2 | C18: Refer to Details 4315 and 4316
A19: Horizontal Grid Lines | B19: Yes | C19: * Not a bid item | J19: =C18 -> Refer to Details 4315 and 4316
C20: ="This Data Entry Sheet fills Tab "&J15&" effective "&TEXT(B17,"mm-dd-yy") -> This Data Entry Sheet fills Tab 110-9 effective 10-18-11 | J20: =C19 -> * Not a bid item
C21: Location Station | D21: Description | E21: Fill Material | G21: 4" Perforated Subdrain* | H21: Remarks | J21: =C21 -> Location Station | K21: =D21 -> Description | L21: =E21 -> Fill Material | N21: =G21 -> 4" Perforated Subdrain* | O21: =H21 -> Remarks
E22: Flowable Mortar | F22: Granular Backfill* | L22: =E22 -> Flowable Mortar | M22: =F22 -> Granular Backfill*
E25: CY | F25: TON | G25: LF | L25: =E25 -> CY | M25: =F25 -> TON | N25: =G25 -> LF
C27: 146212.92 | D27: 3' x 3' x 164' RCB | E27: =(3*3*164)/27 -> 54.66666667 | F27: =((1*1)/2*7)*125/2000 -> 0.21875 | G27: 5
C29: 147214.19 | D29: 42" x 202' Conc. Pipe | E29: =(3.14*(1.75*1.75)*202)/27 -> 71.9437963 | F29: =(3.14*(0.5*0.5)*7.5)*125/2000 -> 0.36796875 | G29: 5.5
D31: TOTAL: | E31: =SUM(E27:E29) -> 126.610463

Sheet DE111_25
A1: TabTitle | B1: =C15 -> INDEX OF TABULATIONS
A2: Number of Tab Columns | B2: 3
A3: DE Starter Row Number | B3: 20
A4: TabSheet Starter Row Number | B4: 7
A5: TabSheet Header Row Count | B5: 6
A6: Top Header Cell | B6: G15
A7: Bottom Header Cell | B7: I20
A8: DESheet Row Count | B8: 32
A9: Fixed Empty Rows | B9: 0
A10: Usable Empty Rows | B10: 10
A11: Total Rows Placed | B11: 42 | C11: xlLeft(1) | D11: xlLeft(1) | E11: xlLeft(1) | G11: =C11 -> xlLeft(1) | H11: xlLeft(1) | I11: xlLeft(1)
A12: Total Rows Needed | B12: =SUM(B8:B10) -> 42 | C12: General | D12: General | E12: General | G12: General | H12: General | I12: General
A13: Last Tab DE Starter Row | B13: 20 | C13: =CELL("width",C13) -> 13 | D13: =CELL("width",D13) -> 128 | E13: =CELL("width",E13) -> 15 | G13: =CELL("width",G13) -> 0 | H13: =CELL("width",H13) -> 0 | I13: =CELL("width",I13) -> 0
A14: Last Tab TabSheet Starter Row | B14: 7 | C14: A | D14: B | E14: C | G14: =LOWER(C14) -> a | H14: =LOWER(D14) -> b | I14: =LOWER(E14) -> c
A15: Last Copy Starter Row | B15: 1 | C15: INDEX OF TABULATIONS | G15: 111-25
A16: Tab Loop Number | B16: 2 | G16: =B17 -> 2011-10-18
A17: Revision Date | B17: 2011-10-18 | C17: ="This Data Entry Sheet fills Tab "&G15&" effective "&TEXT(B17,"mm-dd-yy") -> This Data Entry Sheet fills Tab 111-25 effective 10-18-11 | G17: =C15 -> INDEX OF TABULATIONS
A18: Tabulation Width | B18: 2 | C18: Tabulation | D18: Tabulation Title | E18: Sheet No.
A19: Horizontal Grid Lines | B19: Yes | G19: =C18 -> Tabulation | H19: =D18 -> Tabulation Title | I19: =E18 -> Sheet No.
C20: C Sheets
C21: 100-1C | D21: ESTIMATED PROJECT QUANTITIES (UP TO A 5 DIVISION PROJECT) | E21: C.1 - C.2
C22: 100-1D | D22: PROJECT DESCRIPTION | E22: C.1
C23: 100-4A | D23: ESTIMATE REFERENCE INFORMATION | E23: C.3 - C.6
C24: 100-7 | D24: FENCING | E24: C.11 - C.12
C25: 100-7R | D25: REMOVAL OF FENCE | E25: C.10
C26: 100-10 | D26: FLOATING SILT CURTAINS | E26: C.15
C27: 100-24 | D27: PCC PAVEMENT | E27: C.14
C28: 100-27 | D28: PROPOSED POSTED SPEED LIMIT | E28: C.15
C29: 102-3 | D29: ACCESS POINTS AND SAFETY RAMPS | E29: C.23
C30: 102-5 | D30: EXISTING PAVEMENT | E30: C.9
C31: 103-11 | D31: SELECT TREATMENT | E31: C.13
C32: 104-8A | D32: SCOUR PROTECTION OR ROCK FLUME FOR BRIDGE END DRAIN | E32: C.18
C33: 105-4 | D33: STANDARD ROAD PLANS | E33: C.7 - C.7
C34: 107-23 | D34: GRADING FOR GUARDRAIL INSTALLATIONS | E34: C.19
C35: 107-24 | D35: GRADING FOR HIGH TENSION CABLE GUARDRAIL INSTALLATIONS | E35: C.20
C36: 108-8A | D36: STEEL BEAM GUARDRAIL AT CONCRETE BARRIER OR BRIDGE RAIL END SECTION | E36: C.19
C37: 108-9A | D37: HIGH TENSION CABLE GUARDRAIL | E37: C.20
C38: 108-13A | D38: SAFETY CLOSURES | E38: C.21 - C.21
C39: 108-18B | D39: CONCRETE BARRIER AT SIDE LOCATIONS | E39: C.18
C40: 108-22 | D40: PAVEMENT MARKING LINE TYPES | E40: C.24 - C.25
C41: 108-27 | D41: TEMPORARY FLOODLIGHTING LUMINAIRES | E41: C.21
C42: 108-29 | D42: PAVEMENT MARKING SYMBOLS AND LEGENDS | E42: C.26
C43: 108-30 | D43: CRASH CUSHIONS | E43: C.22
C44: 108-33 | D44: TEMPORARY BARRIER RAIL | E44: C.22
C45: 108-35 | D45: TEMPORARY LANE SEPARATOR SYSTEM | E45: C.21
C46: 110-1 | D46: REMOVAL OF PAVEMENT | E46: C.10
C47: 110-9 | D47: CULVERT ABANDONMENT | E47: C.10
C48: 111-25 | D48: INDEX OF TABULATIONS | E48: C.7
C49: 112-8 | D49: MEDIAN CROSSOVERS | E49: C.20
C50: 112-9 | D50: SHOULDERS | E50: C.16 - C.17
C51: 112-10 | D51: MILLED RUMBLE STRIPS | E51: C.17

Sheet DE112_8
A1: TabTitle | B1: =C16 -> MEDIAN CROSSOVERS | AK1: SRP | AL1: Detour Pavement Sq. Yds. | AM1: Special Backfill Tons | AN1: Granular Shoulder Tons
A2: Number of Tab Columns | B2: 16
A3: DE Starter Row Number | B3: 27
A4: TabSheet Starter Row Number | B4: 13 | AK4: PV-500
A5: TabSheet Header Row Count | B5: 12 | AK5: XOver1
A6: Top Header Cell | B6: T15 | AK6: XOver2
A7: Bottom Header Cell | B7: AI26 | AK7: XOver3
A8: DESheet Row Count | B8: 9 | AK8: PV-504
A9: Fixed Empty Rows | B9: 20 | AK9: PV-505
A10: Usable Empty Rows | B10: 0 | AK10: PV-506
A11: Total Rows Placed | B11: 29 | C11: xlLeft(1) | D11: xlRight(1) | E11: xlRight(1) | F11: xlRight(1) | G11: xlRight(1) | H11: xlRight(1) | I11: xlRight(1) | J11: xlRight(1) | K11: xlRight(1) | L11: xlRight(1) | M11: xlRight(1) | N11: xlRight(1) | O11: xlRight(1) | P11: xlRight(1) | Q11: xlRight(1) | R11: xlLeft(1) | T11: =C11 -> xlLeft(1) | U11: xlRight(1) | V11: xlRight(1) | W11: xlRight(1) | X11: xlRight(1) | Y11: xlRight(1) | Z11: xlRight(1) | AA11: xlRight(1) | AB11: xlRight(1) | AC11: xlRight(1) | AD11: xlRight(1) | AE11: xlRight(1) | AF11: xlRight(1) | AG11: xlRight(1) | AH11: xlRight(1) | AI11: =R11 -> xlLeft(1) | AK11: PV-507
A12: Total Rows Needed | B12: =SUM(B8:B10) -> 29 | C12: General | D12: #+00.00 | E12: General | F12: 0.0 | G12: 0.0 | H12: 0.0 | I12: 0.0 | J12: 0.0 | K12: 0.0 | L12: 0.0 | M12: 0.0 | N12: 0.0 | O12: 0.0 | P12: 0 | Q12: 0 | R12: General | T12: General | U12: #+00.00 | V12: General | W12: 0.0 | X12: 0.0 | Y12: 0.0 | Z12: 0.0 | AA12: 0.0 | AB12: 0.0 | AC12: 0.0 | AD12: 0.0 | AE12: 0.0 | AF12: 0.0 | AG12: 0 | AH12: 0 | AI12: =R12 -> General | AK12: PV-508
A13: Last Tab DE Starter Row | B13: 27 | C13: =CELL("width",C13) -> 18 | D13: 16 | E13: 11 | F13: 11 | G13: 11 | H13: 11 | I13: 12 | J13: 12 | K13: 12 | L13: 11 | M13: 10 | N13: 14 | O13: 10 | P13: 10 | Q13: 11 | R13: 49 | T13: =CELL("width",T13) -> 0 | U13: 0 | V13: 0 | W13: 0 | X13: 0 | Y13: 0 | Z13: 0 | AA13: 0 | AB13: 0 | AC13: 0 | AD13: 0 | AE13: 0 | AF13: 0 | AG13: 0 | AH13: 0 | AI13: 0 | AK13: PV-509
A14: Last Tab Tabsheet Starter Row | B14: 13 | C14: A | D14: B | E14: C | F14: D | G14: E | H14: F | I14: G | J14: H | K14: I | L14: J | M14: K | N14: L | O14: M | P14: N | Q14: O | R14: P | T14: =LOWER(C14) -> a | U14: b | V14: c | W14: d | X14: e | Y14: f | Z14: g | AA14: h | AB14: i | AC14: j | AD14: k | AE14: l | AF14: m | AG14: n | AH14: o | AI14: =LOWER(R14) -> p | AK14: PV-510
A15: Last Copy Starter Row | B15: 1 | E15: Totals: | F15: =SUBTOTAL(9,F27:F6000) -> 19813.6368 | G15: 1466.694726 | H15: 1463 | I15: 0 | J15: 0 | K15: 0 | L15: 0 | M15: 0 | N15: 388 | O15: 304 | P15: 2 | Q15: =SUBTOTAL(9,Q27:Q6000) -> 2 | T15: 112-8 | AK15: PV-511
A16: Tab Loop Number | B16: 2 | C16: MEDIAN CROSSOVERS | T16: =B17 -> Modified | AK16: PV-512
A17: Revision Date | B17: Modified | T17: =C16 -> MEDIAN CROSSOVERS | AK17: PV-513
A18: Tabulation Width | B18: 3 | C18: Refer to F & U Sheets | AK18: PV-514
A19: Horizontal Grid Lines | B19: Yes | C19: * Not a bid item | T19: =C18 -> Refer to F & U Sheets
C20: ="This Data Entry Sheet fills Tab "&T15&" effective "&TEXT(B17,"mm-dd-yy") -> This Data Entry Sheet fills Tab 112-8 effective Modified | T20: =C19 -> * Not a bid item
C21: Road Ident. | D21: Location Station | E21: Crossover Design | F21: Detour Pavement | G21: Special Backfill | H21: Granular Shoulder | I21: Embankment in Place | J21: Class 10 Excavation | K21: Class 13 Excavation | L21: Removal of Pavement | M21: Saw Cut* | N21: 18" Unclassified Roadway Pipe | O21: 36" CMP Slotted Drain/ 6" Grate | P21: Beveled Pipe and Guard | Q21: Remove & Reinstall 18" Apron | R21: Remarks | T21: =C21 -> Road Ident. | U21: Location Station | V21: Crossover Design | W21: Detour Pavement | X21: Special Backfill | Y21: Granular Shoulder | Z21: Embankment in Place | AA21: Class 10 Excavation | AB21: Class 13 Excavation | AC21: Removal of Pavement | AD21: Saw Cut* | AE21: 18" Unclassified Roadway Pipe | AF21: 36" CMP Slotted Drain/ 6" Grate | AG21: Beveled Pipe and Guard | AH21: Remove & Reinstall 18" Apron | AI21: =R21 -> Remarks
F26: SY | G26: CY | H26: TON | I26: CY | J26: CY | K26: CY | L26: SY | M26: LF | N26: LF | O26: LF | P26: No. | Q26: Each | W26: =F26 -> SY | X26: CY | Y26: TON | Z26: CY | AA26: CY | AB26: CY | AC26: SY | AD26: LF | AE26: LF | AF26: LF | AG26: No. | AH26: Each
F27: =IF(E27<>"",INDEX($AL$4:$AL$18,MATCH(E27,$AK$4:$AK$18,0)),"") ->  | G27: =IF(E27<>"",INDEX($AM$4:$AM$18,MATCH(E27,$AK$4:$AK$18,0)),"") ->  | H27: =IF(E27<>"",INDEX($AN$4:$AN$18,MATCH(E27,$AK$4:$AK$18,0)),"") -> 
C28: U.S. 30 | D28: 138179.97 | E28: XOver1 | F28: =34884.4514/9 -> 3876.050156 | G28: =(((F28/9)*0.5)+(2600*3.5))/27 -> 345.0124489 | H28: =(2600*1.9)*140/2000 -> 345.8 | I28: (1) | J28: (1)
C29: U.S. 30 | D29: 154466.17 | E29: XOver2 | F29: =40446.6002/9 -> 4494.066689 | G29: =(((F29/9)*0.5)+(2050*3.5))/27 -> 274.9877915 | H29: =(2050*1.9)*140/2000 -> 272.65 | I29: (1) | J29: (1) | N29: =12+114+68 -> 194 | O29: 152 | P29: 1 | Q29: 1
C30: U.S. 30 | D30: 138476.38 | E30: XOver3 | F30: =13830.314/9 -> 1536.701556 | G30: =(((F30/9)*0.5)+(850*3.5))/27 -> 113.3471225 | H30: =(850*1.9)*140/2000 -> 113.05 | I30: (1) | J30: (1)
D32: TOTALS: | F32: =SUM(F28:F30) -> 9906.8184 | G32: =SUM(G28:G30) -> 733.347363 | H32: 731.5 | N32: 194 | O32: 152 | P32: 1 | Q32: 1
D34: Notes:
D35: (1) See T Sheets
F91: =IF(E91<>"",INDEX($AL$4:$AL$18,MATCH(E91,$AK$4:$AK$18,0)),"") ->  | G91: =IF(E91<>"",INDEX($AM$4:$AM$18,MATCH(E91,$AK$4:$AK$18,0)),"") ->  | H91: =IF(E91<>"",INDEX($AN$4:$AN$18,MATCH(E91,$AK$4:$AK$18,0)),"") -> 
F155: =IF(E155<>"",INDEX($AL$4:$AL$18,MATCH(E155,$AK$4:$AK$18,0)),"") ->  | G155: =IF(E155<>"",INDEX($AM$4:$AM$18,MATCH(E155,$AK$4:$AK$18,0)),"") ->  | H155: =IF(E155<>"",INDEX($AN$4:$AN$18,MATCH(E155,$AK$4:$AK$18,0)),"") -> 
F219: =IF(E219<>"",INDEX($AL$4:$AL$18,MATCH(E219,$AK$4:$AK$18,0)),"") ->  | G219: =IF(E219<>"",INDEX($AM$4:$AM$18,MATCH(E219,$AK$4:$AK$18,0)),"") ->  | H219: =IF(E219<>"",INDEX($AN$4:$AN$18,MATCH(E219,$AK$4:$AK$18,0)),"") -> 
F283: =IF(E283<>"",INDEX($AL$4:$AL$18,MATCH(E283,$AK$4:$AK$18,0)),"") ->  | G283: =IF(E283<>"",INDEX($AM$4:$AM$18,MATCH(E283,$AK$4:$AK$18,0)),"") ->  | H283: =IF(E283<>"",INDEX($AN$4:$AN$18,MATCH(E283,$AK$4:$AK$18,0)),"") -> 
F347: =IF(E347<>"",INDEX($AL$4:$AL$18,MATCH(E347,$AK$4:$AK$18,0)),"") ->  | G347: =IF(E347<>"",INDEX($AM$4:$AM$18,MATCH(E347,$AK$4:$AK$18,0)),"") ->  | H347: =IF(E347<>"",INDEX($AN$4:$AN$18,MATCH(E347,$AK$4:$AK$18,0)),"") -> 
F411: =IF(E411<>"",INDEX($AL$4:$AL$18,MATCH(E411,$AK$4:$AK$18,0)),"") ->  | G411: =IF(E411<>"",INDEX($AM$4:$AM$18,MATCH(E411,$AK$4:$AK$18,0)),"") ->  | H411: =IF(E411<>"",INDEX($AN$4:$AN$18,MATCH(E411,$AK$4:$AK$18,0)),"") -> 
F475: =IF(E475<>"",INDEX($AL$4:$AL$18,MATCH(E475,$AK$4:$AK$18,0)),"") ->  | G475: =IF(E475<>"",INDEX($AM$4:$AM$18,MATCH(E475,$AK$4:$AK$18,0)),"") ->  | H475: =IF(E475<>"",INDEX($AN$4:$AN$18,MATCH(E475,$AK$4:$AK$18,0)),"") -> 
F539: =IF(E539<>"",INDEX($AL$4:$AL$18,MATCH(E539,$AK$4:$AK$18,0)),"") ->  | G539: =IF(E539<>"",INDEX($AM$4:$AM$18,MATCH(E539,$AK$4:$AK$18,0)),"") ->  | H539: =IF(E539<>"",INDEX($AN$4:$AN$18,MATCH(E539,$AK$4:$AK$18,0)),"") -> 
F603: =IF(E603<>"",INDEX($AL$4:$AL$18,MATCH(E603,$AK$4:$AK$18,0)),"") ->  | G603: =IF(E603<>"",INDEX($AM$4:$AM$18,MATCH(E603,$AK$4:$AK$18,0)),"") ->  | H603: =IF(E603<>"",INDEX($AN$4:$AN$18,MATCH(E603,$AK$4:$AK$18,0)),"") -> 
F667: =IF(E667<>"",INDEX($AL$4:$AL$18,MATCH(E667,$AK$4:$AK$18,0)),"") ->  | G667: =IF(E667<>"",INDEX($AM$4:$AM$18,MATCH(E667,$AK$4:$AK$18,0)),"") ->  | H667: =IF(E667<>"",INDEX($AN$4:$AN$18,MATCH(E667,$AK$4:$AK$18,0)),"") -> 
F731: =IF(E731<>"",INDEX($AL$4:$AL$18,MATCH(E731,$AK$4:$AK$18,0)),"") ->  | G731: =IF(E731<>"",INDEX($AM$4:$AM$18,MATCH(E731,$AK$4:$AK$18,0)),"") ->  | H731: =IF(E731<>"",INDEX($AN$4:$AN$18,MATCH(E731,$AK$4:$AK$18,0)),"") -> 
F795: =IF(E795<>"",INDEX($AL$4:$AL$18,MATCH(E795,$AK$4:$AK$18,0)),"") ->  | G795: =IF(E795<>"",INDEX($AM$4:$AM$18,MATCH(E795,$AK$4:$AK$18,0)),"") ->  | H795: =IF(E795<>"",INDEX($AN$4:$AN$18,MATCH(E795,$AK$4:$AK$18,0)),"") -> 
F859: =IF(E859<>"",INDEX($AL$4:$AL$18,MATCH(E859,$AK$4:$AK$18,0)),"") ->  | G859: =IF(E859<>"",INDEX($AM$4:$AM$18,MATCH(E859,$AK$4:$AK$18,0)),"") ->  | H859: =IF(E859<>"",INDEX($AN$4:$AN$18,MATCH(E859,$AK$4:$AK$18,0)),"") -> 
F923: =IF(E923<>"",INDEX($AL$4:$AL$18,MATCH(E923,$AK$4:$AK$18,0)),"") ->  | G923: =IF(E923<>"",INDEX($AM$4:$AM$18,MATCH(E923,$AK$4:$AK$18,0)),"") ->  | H923: =IF(E923<>"",INDEX($AN$4:$AN$18,MATCH(E923,$AK$4:$AK$18,0)),"") -> 
F987: =IF(E987<>"",INDEX($AL$4:$AL$18,MATCH(E987,$AK$4:$AK$18,0)),"") ->  | G987: =IF(E987<>"",INDEX($AM$4:$AM$18,MATCH(E987,$AK$4:$AK$18,0)),"") ->  | H987: =IF(E987<>"",INDEX($AN$4:$AN$18,MATCH(E987,$AK$4:$AK$18,0)),"") -> 
F1051: =IF(E1051<>"",INDEX($AL$4:$AL$18,MATCH(E1051,$AK$4:$AK$18,0)),"") ->  | G1051: =IF(E1051<>"",INDEX($AM$4:$AM$18,MATCH(E1051,$AK$4:$AK$18,0)),"") ->  | H1051: =IF(E1051<>"",INDEX($AN$4:$AN$18,MATCH(E1051,$AK$4:$AK$18,0)),"") -> 
F1115: =IF(E1115<>"",INDEX($AL$4:$AL$18,MATCH(E1115,$AK$4:$AK$18,0)),"") ->  | G1115: =IF(E1115<>"",INDEX($AM$4:$AM$18,MATCH(E1115,$AK$4:$AK$18,0)),"") ->  | H1115: =IF(E1115<>"",INDEX($AN$4:$AN$18,MATCH(E1115,$AK$4:$AK$18,0)),"") -> 
F1179: =IF(E1179<>"",INDEX($AL$4:$AL$18,MATCH(E1179,$AK$4:$AK$18,0)),"") ->  | G1179: =IF(E1179<>"",INDEX($AM$4:$AM$18,MATCH(E1179,$AK$4:$AK$18,0)),"") ->  | H1179: =IF(E1179<>"",INDEX($AN$4:$AN$18,MATCH(E1179,$AK$4:$AK$18,0)),"") -> 
F1243: =IF(E1243<>"",INDEX($AL$4:$AL$18,MATCH(E1243,$AK$4:$AK$18,0)),"") ->  | G1243: =IF(E1243<>"",INDEX($AM$4:$AM$18,MATCH(E1243,$AK$4:$AK$18,0)),"") ->  | H1243: =IF(E1243<>"",INDEX($AN$4:$AN$18,MATCH(E1243,$AK$4:$AK$18,0)),"") -> 
F1307: =IF(E1307<>"",INDEX($AL$4:$AL$18,MATCH(E1307,$AK$4:$AK$18,0)),"") ->  | G1307: =IF(E1307<>"",INDEX($AM$4:$AM$18,MATCH(E1307,$AK$4:$AK$18,0)),"") ->  | H1307: =IF(E1307<>"",INDEX($AN$4:$AN$18,MATCH(E1307,$AK$4:$AK$18,0)),"") -> 
F1371: =IF(E1371<>"",INDEX($AL$4:$AL$18,MATCH(E1371,$AK$4:$AK$18,0)),"") ->  | G1371: =IF(E1371<>"",INDEX($AM$4:$AM$18,MATCH(E1371,$AK$4:$AK$18,0)),"") ->  | H1371: =IF(E1371<>"",INDEX($AN$4:$AN$18,MATCH(E1371,$AK$4:$AK$18,0)),"") -> 
F1435: =IF(E1435<>"",INDEX($AL$4:$AL$18,MATCH(E1435,$AK$4:$AK$18,0)),"") ->  | G1435: =IF(E1435<>"",INDEX($AM$4:$AM$18,MATCH(E1435,$AK$4:$AK$18,0)),"") ->  | H1435: =IF(E1435<>"",INDEX($AN$4:$AN$18,MATCH(E1435,$AK$4:$AK$18,0)),"") -> 
F1499: =IF(E1499<>"",INDEX($AL$4:$AL$18,MATCH(E1499,$AK$4:$AK$18,0)),"") ->  | G1499: =IF(E1499<>"",INDEX($AM$4:$AM$18,MATCH(E1499,$AK$4:$AK$18,0)),"") ->  | H1499: =IF(E1499<>"",INDEX($AN$4:$AN$18,MATCH(E1499,$AK$4:$AK$18,0)),"") -> 
F1563: =IF(E1563<>"",INDEX($AL$4:$AL$18,MATCH(E1563,$AK$4:$AK$18,0)),"") ->  | G1563: =IF(E1563<>"",INDEX($AM$4:$AM$18,MATCH(E1563,$AK$4:$AK$18,0)),"") ->  | H1563: =IF(E1563<>"",INDEX($AN$4:$AN$18,MATCH(E1563,$AK$4:$AK$18,0)),"") -> 
F1627: =IF(E1627<>"",INDEX($AL$4:$AL$18,MATCH(E1627,$AK$4:$AK$18,0)),"") ->  | G1627: =IF(E1627<>"",INDEX($AM$4:$AM$18,MATCH(E1627,$AK$4:$AK$18,0)),"") ->  | H1627: =IF(E1627<>"",INDEX($AN$4:$AN$18,MATCH(E1627,$AK$4:$AK$18,0)),"") -> 
F1691: =IF(E1691<>"",INDEX($AL$4:$AL$18,MATCH(E1691,$AK$4:$AK$18,0)),"") ->  | G1691: =IF(E1691<>"",INDEX($AM$4:$AM$18,MATCH(E1691,$AK$4:$AK$18,0)),"") ->  | H1691: =IF(E1691<>"",INDEX($AN$4:$AN$18,MATCH(E1691,$AK$4:$AK$18,0)),"") -> 
F1755: =IF(E1755<>"",INDEX($AL$4:$AL$18,MATCH(E1755,$AK$4:$AK$18,0)),"") ->  | G1755: =IF(E1755<>"",INDEX($AM$4:$AM$18,MATCH(E1755,$AK$4:$AK$18,0)),"") ->  | H1755: =IF(E1755<>"",INDEX($AN$4:$AN$18,MATCH(E1755,$AK$4:$AK$18,0)),"") -> 
F1819: =IF(E1819<>"",INDEX($AL$4:$AL$18,MATCH(E1819,$AK$4:$AK$18,0)),"") ->  | G1819: =IF(E1819<>"",INDEX($AM$4:$AM$18,MATCH(E1819,$AK$4:$AK$18,0)),"") ->  | H1819: =IF(E1819<>"",INDEX($AN$4:$AN$18,MATCH(E1819,$AK$4:$AK$18,0)),"") -> 
F1883: =IF(E1883<>"",INDEX($AL$4:$AL$18,MATCH(E1883,$AK$4:$AK$18,0)),"") ->  | G1883: =IF(E1883<>"",INDEX($AM$4:$AM$18,MATCH(E1883,$AK$4:$AK$18,0)),"") ->  | H1883: =IF(E1883<>"",INDEX($AN$4:$AN$18,MATCH(E1883,$AK$4:$AK$18,0)),"") -> 
F1947: =IF(E1947<>"",INDEX($AL$4:$AL$18,MATCH(E1947,$AK$4:$AK$18,0)),"") ->  | G1947: =IF(E1947<>"",INDEX($AM$4:$AM$18,MATCH(E1947,$AK$4:$AK$18,0)),"") ->  | H1947: =IF(E1947<>"",INDEX($AN$4:$AN$18,MATCH(E1947,$AK$4:$AK$18,0)),"") -> 
F2011: =IF(E2011<>"",INDEX($AL$4:$AL$18,MATCH(E2011,$AK$4:$AK$18,0)),"") ->  | G2011: =IF(E2011<>"",INDEX($AM$4:$AM$18,MATCH(E2011,$AK$4:$AK$18,0)),"") ->  | H2011: =IF(E2011<>"",INDEX($AN$4:$AN$18,MATCH(E2011,$AK$4:$AK$18,0)),"") -> 
F2075: =IF(E2075<>"",INDEX($AL$4:$AL$18,MATCH(E2075,$AK$4:$AK$18,0)),"") ->  | G2075: =IF(E2075<>"",INDEX($AM$4:$AM$18,MATCH(E2075,$AK$4:$AK$18,0)),"") ->  | H2075: =IF(E2075<>"",INDEX($AN$4:$AN$18,MATCH(E2075,$AK$4:$AK$18,0)),"") -> 
F2139: =IF(E2139<>"",INDEX($AL$4:$AL$18,MATCH(E2139,$AK$4:$AK$18,0)),"") ->  | G2139: =IF(E2139<>"",INDEX($AM$4:$AM$18,MATCH(E2139,$AK$4:$AK$18,0)),"") ->  | H2139: =IF(E2139<>"",INDEX($AN$4:$AN$18,MATCH(E2139,$AK$4:$AK$18,0)),"") -> 
F2203: =IF(E2203<>"",INDEX($AL$4:$AL$18,MATCH(E2203,$AK$4:$AK$18,0)),"") ->  | G2203: =IF(E2203<>"",INDEX($AM$4:$AM$18,MATCH(E2203,$AK$4:$AK$18,0)),"") ->  | H2203: =IF(E2203<>"",INDEX($AN$4:$AN$18,MATCH(E2203,$AK$4:$AK$18,0)),"") -> 
F2267: =IF(E2267<>"",INDEX($AL$4:$AL$18,MATCH(E2267,$AK$4:$AK$18,0)),"") ->  | G2267: =IF(E2267<>"",INDEX($AM$4:$AM$18,MATCH(E2267,$AK$4:$AK$18,0)),"") ->  | H2267: =IF(E2267<>"",INDEX($AN$4:$AN$18,MATCH(E2267,$AK$4:$AK$18,0)),"") -> 
F2331: =IF(E2331<>"",INDEX($AL$4:$AL$18,MATCH(E2331,$AK$4:$AK$18,0)),"") ->  | G2331: =IF(E2331<>"",INDEX($AM$4:$AM$18,MATCH(E2331,$AK$4:$AK$18,0)),"") ->  | H2331: =IF(E2331<>"",INDEX($AN$4:$AN$18,MATCH(E2331,$AK$4:$AK$18,0)),"") -> 
F2395: =IF(E2395<>"",INDEX($AL$4:$AL$18,MATCH(E2395,$AK$4:$AK$18,0)),"") ->  | G2395: =IF(E2395<>"",INDEX($AM$4:$AM$18,MATCH(E2395,$AK$4:$AK$18,0)),"") ->  | H2395: =IF(E2395<>"",INDEX($AN$4:$AN$18,MATCH(E2395,$AK$4:$AK$18,0)),"") -> 
F2459: =IF(E2459<>"",INDEX($AL$4:$AL$18,MATCH(E2459,$AK$4:$AK$18,0)),"") ->  | G2459: =IF(E2459<>"",INDEX($AM$4:$AM$18,MATCH(E2459,$AK$4:$AK$18,0)),"") ->  | H2459: =IF(E2459<>"",INDEX($AN$4:$AN$18,MATCH(E2459,$AK$4:$AK$18,0)),"") -> 
F2523: =IF(E2523<>"",INDEX($AL$4:$AL$18,MATCH(E2523,$AK$4:$AK$18,0)),"") ->  | G2523: =IF(E2523<>"",INDEX($AM$4:$AM$18,MATCH(E2523,$AK$4:$AK$18,0)),"") ->  | H2523: =IF(E2523<>"",INDEX($AN$4:$AN$18,MATCH(E2523,$AK$4:$AK$18,0)),"") -> 
F2587: =IF(E2587<>"",INDEX($AL$4:$AL$18,MATCH(E2587,$AK$4:$AK$18,0)),"") ->  | G2587: =IF(E2587<>"",INDEX($AM$4:$AM$18,MATCH(E2587,$AK$4:$AK$18,0)),"") ->  | H2587: =IF(E2587<>"",INDEX($AN$4:$AN$18,MATCH(E2587,$AK$4:$AK$18,0)),"") -> 
F2651: =IF(E2651<>"",INDEX($AL$4:$AL$18,MATCH(E2651,$AK$4:$AK$18,0)),"") ->  | G2651: =IF(E2651<>"",INDEX($AM$4:$AM$18,MATCH(E2651,$AK$4:$AK$18,0)),"") ->  | H2651: =IF(E2651<>"",INDEX($AN$4:$AN$18,MATCH(E2651,$AK$4:$AK$18,0)),"") -> 
F2715: =IF(E2715<>"",INDEX($AL$4:$AL$18,MATCH(E2715,$AK$4:$AK$18,0)),"") ->  | G2715: =IF(E2715<>"",INDEX($AM$4:$AM$18,MATCH(E2715,$AK$4:$AK$18,0)),"") ->  | H2715: =IF(E2715<>"",INDEX($AN$4:$AN$18,MATCH(E2715,$AK$4:$AK$18,0)),"") -> 
F2779: =IF(E2779<>"",INDEX($AL$4:$AL$18,MATCH(E2779,$AK$4:$AK$18,0)),"") ->  | G2779: =IF(E2779<>"",INDEX($AM$4:$AM$18,MATCH(E2779,$AK$4:$AK$18,0)),"") ->  | H2779: =IF(E2779<>"",INDEX($AN$4:$AN$18,MATCH(E2779,$AK$4:$AK$18,0)),"") -> 
F2843: =IF(E2843<>"",INDEX($AL$4:$AL$18,MATCH(E2843,$AK$4:$AK$18,0)),"") ->  | G2843: =IF(E2843<>"",INDEX($AM$4:$AM$18,MATCH(E2843,$AK$4:$AK$18,0)),"") ->  | H2843: =IF(E2843<>"",INDEX($AN$4:$AN$18,MATCH(E2843,$AK$4:$AK$18,0)),"") -> 
F2907: =IF(E2907<>"",INDEX($AL$4:$AL$18,MATCH(E2907,$AK$4:$AK$18,0)),"") ->  | G2907: =IF(E2907<>"",INDEX($AM$4:$AM$18,MATCH(E2907,$AK$4:$AK$18,0)),"") ->  | H2907: =IF(E2907<>"",INDEX($AN$4:$AN$18,MATCH(E2907,$AK$4:$AK$18,0)),"") -> 
F2971: =IF(E2971<>"",INDEX($AL$4:$AL$18,MATCH(E2971,$AK$4:$AK$18,0)),"") ->  | G2971: =IF(E2971<>"",INDEX($AM$4:$AM$18,MATCH(E2971,$AK$4:$AK$18,0)),"") ->  | H2971: =IF(E2971<>"",INDEX($AN$4:$AN$18,MATCH(E2971,$AK$4:$AK$18,0)),"") -> 
F3035: =IF(E3035<>"",INDEX($AL$4:$AL$18,MATCH(E3035,$AK$4:$AK$18,0)),"") ->  | G3035: =IF(E3035<>"",INDEX($AM$4:$AM$18,MATCH(E3035,$AK$4:$AK$18,0)),"") ->  | H3035: =IF(E3035<>"",INDEX($AN$4:$AN$18,MATCH(E3035,$AK$4:$AK$18,0)),"") -> 
F3099: =IF(E3099<>"",INDEX($AL$4:$AL$18,MATCH(E3099,$AK$4:$AK$18,0)),"") ->  | G3099: =IF(E3099<>"",INDEX($AM$4:$AM$18,MATCH(E3099,$AK$4:$AK$18,0)),"") ->  | H3099: =IF(E3099<>"",INDEX($AN$4:$AN$18,MATCH(E3099,$AK$4:$AK$18,0)),"") -> 
F3163: =IF(E3163<>"",INDEX($AL$4:$AL$18,MATCH(E3163,$AK$4:$AK$18,0)),"") ->  | G3163: =IF(E3163<>"",INDEX($AM$4:$AM$18,MATCH(E3163,$AK$4:$AK$18,0)),"") ->  | H3163: =IF(E3163<>"",INDEX($AN$4:$AN$18,MATCH(E3163,$AK$4:$AK$18,0)),"") -> 
F3227: =IF(E3227<>"",INDEX($AL$4:$AL$18,MATCH(E3227,$AK$4:$AK$18,0)),"") ->  | G3227: =IF(E3227<>"",INDEX($AM$4:$AM$18,MATCH(E3227,$AK$4:$AK$18,0)),"") ->  | H3227: =IF(E3227<>"",INDEX($AN$4:$AN$18,MATCH(E3227,$AK$4:$AK$18,0)),"") -> 
F3291: =IF(E3291<>"",INDEX($AL$4:$AL$18,MATCH(E3291,$AK$4:$AK$18,0)),"") ->  | G3291: =IF(E3291<>"",INDEX($AM$4:$AM$18,MATCH(E3291,$AK$4:$AK$18,0)),"") ->  | H3291: =IF(E3291<>"",INDEX($AN$4:$AN$18,MATCH(E3291,$AK$4:$AK$18,0)),"") -> 
F3355: =IF(E3355<>"",INDEX($AL$4:$AL$18,MATCH(E3355,$AK$4:$AK$18,0)),"") ->  | G3355: =IF(E3355<>"",INDEX($AM$4:$AM$18,MATCH(E3355,$AK$4:$AK$18,0)),"") ->  | H3355: =IF(E3355<>"",INDEX($AN$4:$AN$18,MATCH(E3355,$AK$4:$AK$18,0)),"") -> 
F3419: =IF(E3419<>"",INDEX($AL$4:$AL$18,MATCH(E3419,$AK$4:$AK$18,0)),"") ->  | G3419: =IF(E3419<>"",INDEX($AM$4:$AM$18,MATCH(E3419,$AK$4:$AK$18,0)),"") ->  | H3419: =IF(E3419<>"",INDEX($AN$4:$AN$18,MATCH(E3419,$AK$4:$AK$18,0)),"") -> 
F3483: =IF(E3483<>"",INDEX($AL$4:$AL$18,MATCH(E3483,$AK$4:$AK$18,0)),"") ->  | G3483: =IF(E3483<>"",INDEX($AM$4:$AM$18,MATCH(E3483,$AK$4:$AK$18,0)),"") ->  | H3483: =IF(E3483<>"",INDEX($AN$4:$AN$18,MATCH(E3483,$AK$4:$AK$18,0)),"") -> 
F3547: =IF(E3547<>"",INDEX($AL$4:$AL$18,MATCH(E3547,$AK$4:$AK$18,0)),"") ->  | G3547: =IF(E3547<>"",INDEX($AM$4:$AM$18,MATCH(E3547,$AK$4:$AK$18,0)),"") ->  | H3547: =IF(E3547<>"",INDEX($AN$4:$AN$18,MATCH(E3547,$AK$4:$AK$18,0)),"") -> 
F3611: =IF(E3611<>"",INDEX($AL$4:$AL$18,MATCH(E3611,$AK$4:$AK$18,0)),"") ->  | G3611: =IF(E3611<>"",INDEX($AM$4:$AM$18,MATCH(E3611,$AK$4:$AK$18,0)),"") ->  | H3611: =IF(E3611<>"",INDEX($AN$4:$AN$18,MATCH(E3611,$AK$4:$AK$18,0)),"") -> 
F3675: =IF(E3675<>"",INDEX($AL$4:$AL$18,MATCH(E3675,$AK$4:$AK$18,0)),"") ->  | G3675: =IF(E3675<>"",INDEX($AM$4:$AM$18,MATCH(E3675,$AK$4:$AK$18,0)),"") ->  | H3675: =IF(E3675<>"",INDEX($AN$4:$AN$18,MATCH(E3675,$AK$4:$AK$18,0)),"") -> 
F3739: =IF(E3739<>"",INDEX($AL$4:$AL$18,MATCH(E3739,$AK$4:$AK$18,0)),"") ->  | G3739: =IF(E3739<>"",INDEX($AM$4:$AM$18,MATCH(E3739,$AK$4:$AK$18,0)),"") ->  | H3739: =IF(E3739<>"",INDEX($AN$4:$AN$18,MATCH(E3739,$AK$4:$AK$18,0)),"") -> 
F3803: =IF(E3803<>"",INDEX($AL$4:$AL$18,MATCH(E3803,$AK$4:$AK$18,0)),"") ->  | G3803: =IF(E3803<>"",INDEX($AM$4:$AM$18,MATCH(E3803,$AK$4:$AK$18,0)),"") ->  | H3803: =IF(E3803<>"",INDEX($AN$4:$AN$18,MATCH(E3803,$AK$4:$AK$18,0)),"") -> 
F3867: =IF(E3867<>"",INDEX($AL$4:$AL$18,MATCH(E3867,$AK$4:$AK$18,0)),"") ->  | G3867: =IF(E3867<>"",INDEX($AM$4:$AM$18,MATCH(E3867,$AK$4:$AK$18,0)),"") ->  | H3867: =IF(E3867<>"",INDEX($AN$4:$AN$18,MATCH(E3867,$AK$4:$AK$18,0)),"") -> 
F3931: =IF(E3931<>"",INDEX($AL$4:$AL$18,MATCH(E3931,$AK$4:$AK$18,0)),"") ->  | G3931: =IF(E3931<>"",INDEX($AM$4:$AM$18,MATCH(E3931,$AK$4:$AK$18,0)),"") ->  | H3931: =IF(E3931<>"",INDEX($AN$4:$AN$18,MATCH(E3931,$AK$4:$AK$18,0)),"") -> 
F3995: =IF(E3995<>"",INDEX($AL$4:$AL$18,MATCH(E3995,$AK$4:$AK$18,0)),"") ->  | G3995: =IF(E3995<>"",INDEX($AM$4:$AM$18,MATCH(E3995,$AK$4:$AK$18,0)),"") ->  | H3995: =IF(E3995<>"",INDEX($AN$4:$AN$18,MATCH(E3995,$AK$4:$AK$18,0)),"") -> 
F4059: =IF(E4059<>"",INDEX($AL$4:$AL$18,MATCH(E4059,$AK$4:$AK$18,0)),"") ->  | G4059: =IF(E4059<>"",INDEX($AM$4:$AM$18,MATCH(E4059,$AK$4:$AK$18,0)),"") ->  | H4059: =IF(E4059<>"",INDEX($AN$4:$AN$18,MATCH(E4059,$AK$4:$AK$18,0)),"") -> 
F4123: =IF(E4123<>"",INDEX($AL$4:$AL$18,MATCH(E4123,$AK$4:$AK$18,0)),"") ->  | G4123: =IF(E4123<>"",INDEX($AM$4:$AM$18,MATCH(E4123,$AK$4:$AK$18,0)),"") ->  | H4123: =IF(E4123<>"",INDEX($AN$4:$AN$18,MATCH(E4123,$AK$4:$AK$18,0)),"") -> 
F4187: =IF(E4187<>"",INDEX($AL$4:$AL$18,MATCH(E4187,$AK$4:$AK$18,0)),"") ->  | G4187: =IF(E4187<>"",INDEX($AM$4:$AM$18,MATCH(E4187,$AK$4:$AK$18,0)),"") ->  | H4187: =IF(E4187<>"",INDEX($AN$4:$AN$18,MATCH(E4187,$AK$4:$AK$18,0)),"") -> 
F4251: =IF(E4251<>"",INDEX($AL$4:$AL$18,MATCH(E4251,$AK$4:$AK$18,0)),"") ->  | G4251: =IF(E4251<>"",INDEX($AM$4:$AM$18,MATCH(E4251,$AK$4:$AK$18,0)),"") ->  | H4251: =IF(E4251<>"",INDEX($AN$4:$AN$18,MATCH(E4251,$AK$4:$AK$18,0)),"") -> 
F4315: =IF(E4315<>"",INDEX($AL$4:$AL$18,MATCH(E4315,$AK$4:$AK$18,0)),"") ->  | G4315: =IF(E4315<>"",INDEX($AM$4:$AM$18,MATCH(E4315,$AK$4:$AK$18,0)),"") ->  | H4315: =IF(E4315<>"",INDEX($AN$4:$AN$18,MATCH(E4315,$AK$4:$AK$18,0)),"") -> 
F4379: =IF(E4379<>"",INDEX($AL$4:$AL$18,MATCH(E4379,$AK$4:$AK$18,0)),"") ->  | G4379: =IF(E4379<>"",INDEX($AM$4:$AM$18,MATCH(E4379,$AK$4:$AK$18,0)),"") ->  | H4379: =IF(E4379<>"",INDEX($AN$4:$AN$18,MATCH(E4379,$AK$4:$AK$18,0)),"") -> 
F4443: =IF(E4443<>"",INDEX($AL$4:$AL$18,MATCH(E4443,$AK$4:$AK$18,0)),"") ->  | G4443: =IF(E4443<>"",INDEX($AM$4:$AM$18,MATCH(E4443,$AK$4:$AK$18,0)),"") ->  | H4443: =IF(E4443<>"",INDEX($AN$4:$AN$18,MATCH(E4443,$AK$4:$AK$18,0)),"") -> 
F4507: =IF(E4507<>"",INDEX($AL$4:$AL$18,MATCH(E4507,$AK$4:$AK$18,0)),"") ->  | G4507: =IF(E4507<>"",INDEX($AM$4:$AM$18,MATCH(E4507,$AK$4:$AK$18,0)),"") ->  | H4507: =IF(E4507<>"",INDEX($AN$4:$AN$18,MATCH(E4507,$AK$4:$AK$18,0)),"") -> 
F4571: =IF(E4571<>"",INDEX($AL$4:$AL$18,MATCH(E4571,$AK$4:$AK$18,0)),"") ->  | G4571: =IF(E4571<>"",INDEX($AM$4:$AM$18,MATCH(E4571,$AK$4:$AK$18,0)),"") ->  | H4571: =IF(E4571<>"",INDEX($AN$4:$AN$18,MATCH(E4571,$AK$4:$AK$18,0)),"") -> 
F4635: =IF(E4635<>"",INDEX($AL$4:$AL$18,MATCH(E4635,$AK$4:$AK$18,0)),"") ->  | G4635: =IF(E4635<>"",INDEX($AM$4:$AM$18,MATCH(E4635,$AK$4:$AK$18,0)),"") ->  | H4635: =IF(E4635<>"",INDEX($AN$4:$AN$18,MATCH(E4635,$AK$4:$AK$18,0)),"") -> 
F4699: =IF(E4699<>"",INDEX($AL$4:$AL$18,MATCH(E4699,$AK$4:$AK$18,0)),"") ->  | G4699: =IF(E4699<>"",INDEX($AM$4:$AM$18,MATCH(E4699,$AK$4:$AK$18,0)),"") ->  | H4699: =IF(E4699<>"",INDEX($AN$4:$AN$18,MATCH(E4699,$AK$4:$AK$18,0)),"") -> 
F4763: =IF(E4763<>"",INDEX($AL$4:$AL$18,MATCH(E4763,$AK$4:$AK$18,0)),"") ->  | G4763: =IF(E4763<>"",INDEX($AM$4:$AM$18,MATCH(E4763,$AK$4:$AK$18,0)),"") ->  | H4763: =IF(E4763<>"",INDEX($AN$4:$AN$18,MATCH(E4763,$AK$4:$AK$18,0)),"") -> 
F4827: =IF(E4827<>"",INDEX($AL$4:$AL$18,MATCH(E4827,$AK$4:$AK$18,0)),"") ->  | G4827: =IF(E4827<>"",INDEX($AM$4:$AM$18,MATCH(E4827,$AK$4:$AK$18,0)),"") ->  | H4827: =IF(E4827<>"",INDEX($AN$4:$AN$18,MATCH(E4827,$AK$4:$AK$18,0)),"") -> 
F4891: =IF(E4891<>"",INDEX($AL$4:$AL$18,MATCH(E4891,$AK$4:$AK$18,0)),"") ->  | G4891: =IF(E4891<>"",INDEX($AM$4:$AM$18,MATCH(E4891,$AK$4:$AK$18,0)),"") ->  | H4891: =IF(E4891<>"",INDEX($AN$4:$AN$18,MATCH(E4891,$AK$4:$AK$18,0)),"") -> 
F4955: =IF(E4955<>"",INDEX($AL$4:$AL$18,MATCH(E4955,$AK$4:$AK$18,0)),"") ->  | G4955: =IF(E4955<>"",INDEX($AM$4:$AM$18,MATCH(E4955,$AK$4:$AK$18,0)),"") ->  | H4955: =IF(E4955<>"",INDEX($AN$4:$AN$18,MATCH(E4955,$AK$4:$AK$18,0)),"") -> 
F5019: =IF(E5019<>"",INDEX($AL$4:$AL$18,MATCH(E5019,$AK$4:$AK$18,0)),"") ->  | G5019: =IF(E5019<>"",INDEX($AM$4:$AM$18,MATCH(E5019,$AK$4:$AK$18,0)),"") ->  | H5019: =IF(E5019<>"",INDEX($AN$4:$AN$18,MATCH(E5019,$AK$4:$AK$18,0)),"") -> 
F5083: =IF(E5083<>"",INDEX($AL$4:$AL$18,MATCH(E5083,$AK$4:$AK$18,0)),"") ->  | G5083: =IF(E5083<>"",INDEX($AM$4:$AM$18,MATCH(E5083,$AK$4:$AK$18,0)),"") ->  | H5083: =IF(E5083<>"",INDEX($AN$4:$AN$18,MATCH(E5083,$AK$4:$AK$18,0)),"") -> 
F5147: =IF(E5147<>"",INDEX($AL$4:$AL$18,MATCH(E5147,$AK$4:$AK$18,0)),"") ->  | G5147: =IF(E5147<>"",INDEX($AM$4:$AM$18,MATCH(E5147,$AK$4:$AK$18,0)),"") ->  | H5147: =IF(E5147<>"",INDEX($AN$4:$AN$18,MATCH(E5147,$AK$4:$AK$18,0)),"") -> 
F5211: =IF(E5211<>"",INDEX($AL$4:$AL$18,MATCH(E5211,$AK$4:$AK$18,0)),"") ->  | G5211: =IF(E5211<>"",INDEX($AM$4:$AM$18,MATCH(E5211,$AK$4:$AK$18,0)),"") ->  | H5211: =IF(E5211<>"",INDEX($AN$4:$AN$18,MATCH(E5211,$AK$4:$AK$18,0)),"") -> 
F5275: =IF(E5275<>"",INDEX($AL$4:$AL$18,MATCH(E5275,$AK$4:$AK$18,0)),"") ->  | G5275: =IF(E5275<>"",INDEX($AM$4:$AM$18,MATCH(E5275,$AK$4:$AK$18,0)),"") ->  | H5275: =IF(E5275<>"",INDEX($AN$4:$AN$18,MATCH(E5275,$AK$4:$AK$18,0)),"") -> 
F5339: =IF(E5339<>"",INDEX($AL$4:$AL$18,MATCH(E5339,$AK$4:$AK$18,0)),"") ->  | G5339: =IF(E5339<>"",INDEX($AM$4:$AM$18,MATCH(E5339,$AK$4:$AK$18,0)),"") ->  | H5339: =IF(E5339<>"",INDEX($AN$4:$AN$18,MATCH(E5339,$AK$4:$AK$18,0)),"") -> 
F5403: =IF(E5403<>"",INDEX($AL$4:$AL$18,MATCH(E5403,$AK$4:$AK$18,0)),"") ->  | G5403: =IF(E5403<>"",INDEX($AM$4:$AM$18,MATCH(E5403,$AK$4:$AK$18,0)),"") ->  | H5403: =IF(E5403<>"",INDEX($AN$4:$AN$18,MATCH(E5403,$AK$4:$AK$18,0)),"") -> 
F5467: =IF(E5467<>"",INDEX($AL$4:$AL$18,MATCH(E5467,$AK$4:$AK$18,0)),"") ->  | G5467: =IF(E5467<>"",INDEX($AM$4:$AM$18,MATCH(E5467,$AK$4:$AK$18,0)),"") ->  | H5467: =IF(E5467<>"",INDEX($AN$4:$AN$18,MATCH(E5467,$AK$4:$AK$18,0)),"") -> 
F5531: =IF(E5531<>"",INDEX($AL$4:$AL$18,MATCH(E5531,$AK$4:$AK$18,0)),"") ->  | G5531: =IF(E5531<>"",INDEX($AM$4:$AM$18,MATCH(E5531,$AK$4:$AK$18,0)),"") ->  | H5531: =IF(E5531<>"",INDEX($AN$4:$AN$18,MATCH(E5531,$AK$4:$AK$18,0)),"") -> 
F5595: =IF(E5595<>"",INDEX($AL$4:$AL$18,MATCH(E5595,$AK$4:$AK$18,0)),"") ->  | G5595: =IF(E5595<>"",INDEX($AM$4:$AM$18,MATCH(E5595,$AK$4:$AK$18,0)),"") ->  | H5595: =IF(E5595<>"",INDEX($AN$4:$AN$18,MATCH(E5595,$AK$4:$AK$18,0)),"") -> 
F5659: =IF(E5659<>"",INDEX($AL$4:$AL$18,MATCH(E5659,$AK$4:$AK$18,0)),"") ->  | G5659: =IF(E5659<>"",INDEX($AM$4:$AM$18,MATCH(E5659,$AK$4:$AK$18,0)),"") ->  | H5659: =IF(E5659<>"",INDEX($AN$4:$AN$18,MATCH(E5659,$AK$4:$AK$18,0)),"") -> 
F5723: =IF(E5723<>"",INDEX($AL$4:$AL$18,MATCH(E5723,$AK$4:$AK$18,0)),"") ->  | G5723: =IF(E5723<>"",INDEX($AM$4:$AM$18,MATCH(E5723,$AK$4:$AK$18,0)),"") ->  | H5723: =IF(E5723<>"",INDEX($AN$4:$AN$18,MATCH(E5723,$AK$4:$AK$18,0)),"") -> 
F5787: =IF(E5787<>"",INDEX($AL$4:$AL$18,MATCH(E5787,$AK$4:$AK$18,0)),"") ->  | G5787: =IF(E5787<>"",INDEX($AM$4:$AM$18,MATCH(E5787,$AK$4:$AK$18,0)),"") ->  | H5787: =IF(E5787<>"",INDEX($AN$4:$AN$18,MATCH(E5787,$AK$4:$AK$18,0)),"") -> 
F5851: =IF(E5851<>"",INDEX($AL$4:$AL$18,MATCH(E5851,$AK$4:$AK$18,0)),"") ->  | G5851: =IF(E5851<>"",INDEX($AM$4:$AM$18,MATCH(E5851,$AK$4:$AK$18,0)),"") ->  | H5851: =IF(E5851<>"",INDEX($AN$4:$AN$18,MATCH(E5851,$AK$4:$AK$18,0)),"") -> 
F5915: =IF(E5915<>"",INDEX($AL$4:$AL$18,MATCH(E5915,$AK$4:$AK$18,0)),"") ->  | G5915: =IF(E5915<>"",INDEX($AM$4:$AM$18,MATCH(E5915,$AK$4:$AK$18,0)),"") ->  | H5915: =IF(E5915<>"",INDEX($AN$4:$AN$18,MATCH(E5915,$AK$4:$AK$18,0)),"") -> 
F5979: =IF(E5979<>"",INDEX($AL$4:$AL$18,MATCH(E5979,$AK$4:$AK$18,0)),"") ->  | G5979: =IF(E5979<>"",INDEX($AM$4:$AM$18,MATCH(E5979,$AK$4:$AK$18,0)),"") ->  | H5979: =IF(E5979<>"",INDEX($AN$4:$AN$18,MATCH(E5979,$AK$4:$AK$18,0)),"") -> 

Sheet DE112_9
A1: TabTitle | B1: =C16 -> SHOULDERS
A2: Number of Tab Columns | B2: 25
A3: DE Starter Row Number | B3: 32
A4: TabSheet Starter Row Number | B4: 18
A5: TabSheet Header Row Count | B5: 17
A6: Top Header Cell | B6: AM15
A7: Bottom Header Cell | B7: BK31
A8: DESheet Row Count | B8: 95
A9: Fixed Empty Rows | B9: 10
A10: Usable Empty Rows | B10: 0
A11: Total Rows Placed | B11: 105 | C11: xlLeft(1) | D11: xlCenter | E11: xlRight(1) | F11: xlRight(1) | G11: xlCenter | J11: xlRight(1) | M11: xlRight(1) | N11: xlRight(1) | O11: xlRight(1) | Q11: xlRight(1) | R11: xlRight(1) | S11: xlRight(1) | T11: xlRight(1) | U11: xlRight(1) | X11: xlRight(1) | Y11: xlRight(1) | Z11: xlRight(1) | AA11: xlRight(1) | AB11: xlRight(1) | AD11: xlRight(1) | AE11: xlRight(1) | AH11: xlRight(1) | AI11: xlRight(1) | AJ11: xlRight(1) | AK11: xlLeft(1) | AM11: =C11 -> xlLeft(1) | AN11: xlCenter | AO11: xlRight(1) | AP11: xlRight(1) | AQ11: xlCenter | AR11: =J11 -> xlRight(1) | AS11: =M11 -> xlRight(1) | AT11: xlRight(1) | AU11: xlRight(1) | AV11: =Q11 -> xlRight(1) | AW11: xlRight(1) | AX11: xlRight(1) | AY11: xlRight(1) | AZ11: xlRight(1) | BA11: =X11 -> xlRight(1) | BB11: xlRight(1) | BC11: xlRight(1) | BD11: xlRight(1) | BE11: xlRight(1) | BF11: =AD11 -> xlRight(1) | BG11: =AE11 -> xlRight(1) | BH11: =AH11 -> xlRight(1) | BI11: xlRight(1) | BJ11: xlRight(1) | BK11: xlLeft(1)
A12: Total Rows Needed | B12: =SUM(B8:B10) -> 105 | C12: general | D12: general | E12: #+00.00 | F12: #+00.00 | G12: general | J12: 0.0 | M12: 0.0 | N12: 0.0 | O12: 0.0 | Q12: 0.0 | R12: 0.0 | S12: 0.0 | T12: 0.0 | U12: 0.0 | X12: 0.0 | Y12: 0.0 | Z12: 0.0 | AA12: 0.0 | AB12: 0.0 | AD12: 0.0 | AE12: 0.0 | AH12: 0.0 | AI12: 0.0 | AJ12: 0.0 | AK12: general | AM12: general | AN12: general | AO12: #+00.00 | AP12: #+00.00 | AQ12: general | AR12: =J12 -> 0.0 | AS12: 0.0 | AT12: 0.0 | AU12: 0.0 | AV12: 0.0 | AW12: 0.0 | AX12: 0.0 | AY12: 0.0 | AZ12: 0.0 | BA12: 0.0 | BB12: 0.0 | BC12: 0.0 | BD12: 0.0 | BE12: 0.0 | BF12: =AD12 -> 0.0 | BG12: =AE12 -> 0.0 | BH12: 0.0 | BI12: 0.0 | BJ12: 0.0 | BK12: general
A13: Last Tab DE Starter Row | B13: 105 | C13: =CELL("width",C13) -> 20 | D13: =CELL("width",D13) -> 7 | E13: =CELL("width",E13) -> 16 | F13: =CELL("width",F13) -> 16 | G13: =CELL("width",G13) -> 6 | J13: =CELL("width",J13) -> 14 | M13: =CELL("width",M13) -> 12 | N13: =CELL("width",N13) -> 14 | O13: =CELL("width",O13) -> 16 | Q13: =CELL("width",Q13) -> 11 | R13: =CELL("width",R13) -> 11 | S13: =CELL("width",S13) -> 11 | T13: =CELL("width",T13) -> 11 | U13: =CELL("width",U13) -> 13 | X13: =CELL("width",X13) -> 11 | Y13: =CELL("width",Y13) -> 11 | Z13: =CELL("width",Z13) -> 11 | AA13: =CELL("width",AA13) -> 11 | AB13: =CELL("width",AB13) -> 11 | AD13: =CELL("width",AD13) -> 11 | AE13: =CELL("width",AE13) -> 11 | AH13: =CELL("width",AH13) -> 11 | AI13: =CELL("width",AI13) -> 10 | AJ13: =CELL("width",AJ13) -> 10 | AK13: =CELL("width",AK13) -> 20 | AM13: =CELL("width",AM13) -> 0 | AN13: 0 | AO13: 0 | AP13: 0 | AQ13: 0 | AR13: 0 | AS13: 0 | AT13: 0 | AU13: 0 | AV13: 0 | AW13: 0 | AX13: 0 | AY13: 0 | AZ13: 0 | BA13: 0 | BB13: 0 | BC13: 0 | BD13: 0 | BE13: 0 | BF13: 0 | BG13: 0 | BH13: 0 | BI13: 0 | BJ13: 0 | BK13: 0
A14: Last Tab Tabsheet Starter Row | B14: 108 | C14: A | D14: B | E14: C | F14: D | G14: E | J14: F | M14: G | N14: H | O14: I | Q14: J | R14: K | S14: L | T14: M | U14: N | X14: O | Y14: P | Z14: Q | AA14: R | AB14: S | AD14: T | AE14: U | AH14: V | AI14: W | AJ14: X | AK14: Y | AM14: =LOWER(C14) -> a | AN14: =LOWER(D14) -> b | AO14: =LOWER(E14) -> c | AP14: =LOWER(F14) -> d | AQ14: =LOWER(G14) -> e | AR14: =LOWER(J14) -> f | AS14: =LOWER(M14) -> g | AT14: =LOWER(N14) -> h | AU14: =LOWER(O14) -> i | AV14: =LOWER(Q14) -> j | AW14: =LOWER(R14) -> k | AX14: =LOWER(S14) -> l | AY14: =LOWER(T14) -> m | AZ14: =LOWER(U14) -> n | BA14: =LOWER(X14) -> o | BB14: =LOWER(X14) -> o | BC14: =LOWER(Y14) -> p | BD14: =LOWER(Z14) -> q | BE14: =LOWER(AA14) -> r | BF14: =LOWER(AD14) -> t | BG14: =LOWER(AE14) -> u | BH14: =LOWER(AH14) -> v | BI14: =LOWER(AI14) -> w | BJ14: =LOWER(AJ14) -> x | BK14: =LOWER(AK14) -> y
A15: Last Copy Starter Row | B15: 91 | N15: Totals: | O15: =SUBTOTAL(9,O32:O6023) -> 0 | T15: =SUBTOTAL(9,T32:T6023) -> 47080.53578 | U15: =SUBTOTAL(9,U32:U6023) -> 792.4 | Z15: =SUBTOTAL(9,Z32:Z6023) -> 37165.92263 | AB15: =SUBTOTAL(9,AB32:AB6023) -> 0 | AD15: =SUBTOTAL(9,AD32:AD6023) -> 25458.366 | AJ15: =SUBTOTAL(9,AJ32:AJ6023) -> 38899.5919 | AM15: 112-9
A16: Tab Loop Number | B16: 3 | C16: SHOULDERS | AM16: =B17 -> Modified
A17: Revision Date | B17: Modified | AM17: =C16 -> SHOULDERS
A18: Tabulation Width | B18: 4 | C18: Lane(s) to which the shoulder is adjacent.
A19: Horizontal Grid Lines | B19: Yes | C19: Bid Item | AM19: =C18 -> Lane(s) to which the shoulder is adjacent.
C20: Applies only for Paved Shoulders constructed on project with existing granular shoulders. | AM20: =C19 -> Bid Item
C21: Does not include shrink. | AM21: =C20 -> Applies only for Paved Shoulders constructed on project with existing granular shoulders.
AM22: =C21 -> Does not include shrink.
C23: Calculations assume a HMA unit weight (lbs/cf) of | G23: 0 | J23: , a Special Backfill unit weight (lbs/cf) of | N23: 140 | O23: , and a Granular Shoulder unit weight (lbs/cf) of | T23: 140 | U23: .
C24: ="This Data Entry Sheet fills Tab "&AM15&" effective "&TEXT(B17,"mm-dd-yy") -> This Data Entry Sheet fills Tab 112-9 effective Modified | AM24: =C23&G23&J23&N23&O23&T23&U23 -> Calculations assume a HMA unit weight (lbs/cf) of 0, a Special Backfill unit weight (lbs/cf) of 140, and a Granular Shoulder unit weight (lbs/cf) of 140.
C25: Location | O25: Quantities | AK25: Remarks | AM25: =C25 -> Location | AU25: =O25 -> Quantities | BK25: =AK25 -> Remarks
C26: Road Identification | D26: Direction Of Traffic | E26: Station to Station | G26: Side | O26: Class 13 Excavation | P26: HMA Cross Section Area | Q26: Hot Mix Asphalt | S26: Binder | T26: 6" PCC Paved Shoulder | U26: 10" Reinforced Paved Shoulder | V26: Special Backfill Cross Section Area (HMA) | W26: Special Backfill Cross Section Area (PCC) | X26: Special Backfill | AB26: Modified Subbase | AC26: Granular Shoulder Cross Section Area | AD26: Granular Shoulder | AF26: Earth Shoulder Construction Cross Section Area (HMA) | AG26: Earth Shoulder Construction Cross Section Area (PCC) | AH26: Earth Shoulder Construction Alternates | AM26: =C26 -> Road Identification | AN26: =D26 -> Direction Of Traffic | AO26: =E26 -> Station to Station | AQ26: =G26 -> Side | AU26: =O26 -> Class 13 Excavation | AV26: =Q26 -> Hot Mix Asphalt | AX26: =S26 -> Binder | AY26: =T26 -> 6" PCC Paved Shoulder | AZ26: =U26 -> 10" Reinforced Paved Shoulder | BA26: =X26 -> Special Backfill | BE26: =AB26 -> Modified Subbase | BF26: =AD26 -> Granular Shoulder | BH26: =AH26 -> Earth Shoulder Construction Alternates
H28: Start | I28: End | J28: Width | K28: Start | L28: End | M28: Width | N28: Length | AR28: =J28 -> Width | AS28: =M28 -> Width | AT28: =N28 -> Length
X29: HMA | Y29: PCC Alternate | AH29: STA | AI29: HMA | AJ29: PCC | BA29: =X29 -> HMA | BB29: =Y29 -> PCC Alternate | BH29: =AH29 -> STA | BI29: =AI29 -> HMA | BJ29: =AJ29 -> PCC
H30: FT | I30: FT | J30: FT | K30: FT | L30: FT | M30: FT | N30: FT | O30: CY | Q30: TON | R30: TON/STA | S30: TONS | T30: SY | X30: TON | Y30: CY | Z30: TON | AA30: TON/STA | AB30: CY | AD30: TON | AE30: TON/STA | AI30: CY | AJ30: CY | AR30: =J30 -> FT | AS30: =M30 -> FT | AT30: =N30 -> FT | AU30: =O30 -> CY | AV30: =Q30 -> TON | AW30: =R30 -> TON/STA | AX30: =S30 -> TONS | AY30: =T30 -> SY | BA30: =X30 -> TON | BB30: =Y30 -> CY | BC30: =Z30 -> TON | BD30: =AA30 -> TON/STA | BE30: =AB30 -> CY | BF30: =AD30 -> TON | BG30: =AE30 -> TON/STA | BI30: =AI30 -> CY | BJ30: =AJ30 -> CY
P31: SF | U31: SY | V31: SF | W31: SF | AC31: SF | AF31: SF | AG31: SF | AZ31: SY
J32: =IF(H32<>"",IF(H32=I32,(H32+I32)/2,H32&" to "&I32),"") ->  | M32: =IF(K32<>"",IF(K32=L32,(K32+L32)/2,K32&" to "&L32),"") ->  | N32: =IF(E32+F32=0,"",ABS(F32-E32)) ->  | Q32: =IF(P32="","",P32*N32*$G$23/2000) ->  | R32: =IF(P32="","",P32*100*$G$23/2000) ->  | S32: =IF(Q32<>"",Q32*0.06,"") ->  | T32: =IF(H32<>"",((H32+I32)/2)*N32/9,"") ->  | X32: =IF(V32="","",V32*N32*$N$23/2000) ->  | Y32: =IF(V32="","",V32*100*$N$23/2000) ->  | Z32: =IF(W32="","",W32*N32*$N$23/2000) ->  | AA32: =IF(W32="","",W32*100*$N$23/2000) ->  | AD32: =IF(AC32="","",AC32*N32*$T$23/2000) ->  | AE32: =IF(AC32="","",AC32*100*$T$23/2000) ->  | AH32: =IF(N32="","",N32/100) ->  | AI32: =IF(AF32=0,"",(AF32*N32)/27) ->  | AJ32: =IF(AG32=0,"",(AG32*N32)/27) -> 
C33: U.S. Highway 30 | D33: EB | E33: 138000 | F33: 147315 | G33: Rt. | H33: 4 | I33: 4 | J33: 4 | K33: 4 | L33: 4 | M33: 4 | N33: 9315 | T33: 4140 | W33: 5.85 | Y33: =(N33*W33)/27 -> 2018.25 | Z33: 3814.4925 | AA33: 40.95 | AC33: 2 | AD33: 1304.1 | AE33: 14 | AG33: 6.56 | AH33: 93.15 | AJ33: 2263.2
C34: U.S. Highway 30 | D34: EB | E34: 147315 | F34: 147342.68 | G34: Rt. | K34: 4 | L34: 4 | M34: 4 | N34: 27.68 | AC34: 4.81 | AD34: 9.319856 | AE34: 33.67 | AG34: 9.83 | AH34: 0.2768 | AJ34: 10.07757037
C35: U.S. Highway 30 | D35: EB | E35: 147342.68 | F35: 147916.14 | G35: Rt. | K35: 6 | L35: 6 | M35: 6 | N35: 573.46 | AC35: 7.82 | AD35: 313.912004 | AE35: 54.74 | AG35: 11 | AH35: 5.7346 | AJ35: 233.6318519
C36: U.S. Highway 30 | D36: EB | E36: 147916.14 | F36: 148995 | G36: Rt. | H36: 4 | I36: 4 | J36: 4 | K36: 4 | L36: 4 | M36: 4 | N36: 1078.86 | T36: 479.4933333 | W36: 5.85 | Y36: =(N36*W36)/27 -> 233.753 | Z36: 441.79317 | AA36: 40.95 | AC36: 2 | AD36: 151.0404 | AE36: 14 | AG36: 6.56 | AH36: 10.7886 | AJ36: 262.1230222
C37: U.S. Highway 30 | D37: EB | E37: 148995 | F37: 150009.23 | G37: Rt. | K37: 6 | L37: 6 | M37: 6 | N37: 1014.23 | AC37: 7.82 | AD37: 555.189502 | AE37: 54.74 | AG37: 11 | AH37: 10.1423 | AJ37: 413.2048148
C38: U.S. Highway 30 | D38: EB | E38: 150009.23 | F38: 150225 | G38: Rt. | K38: 4 | L38: 4 | M38: 4 | N38: 215.77 | AC38: 4.81 | AD38: 72.649759 | AE38: 33.67 | AG38: 9.83 | AH38: 2.1577 | AJ38: 78.55626296
C39: U.S. Highway 30 | D39: EB | E39: 150225 | F39: 151670 | G39: Rt. | H39: 4 | I39: 4 | J39: 4 | K39: 4 | L39: 4 | M39: 4 | N39: 1445 | T39: 642.2222222 | W39: 5.85 | Y39: =(N39*W39)/27 -> 313.0833333 | Z39: 591.7275 | AA39: 40.95 | AC39: 2 | AD39: 202.3 | AE39: 14 | AG39: 6.56 | AH39: 14.45 | AJ39: 351.0814815
C41: U.S. Highway 30 | D41: EB | E41: 139213.01 | F41: 141923 | G41: Lt. | H41: 4 | I41: 4 | J41: 4 | K41: 2 | L41: 2 | M41: 2 | N41: 2709.99 | T41: 1204.44 | W41: 3.63 | Y41: =(N41*W41)/27 -> 364.3431 | Z41: 688.608459 | AA41: 25.41 | AC41: 1 | AD41: 189.6993 | AE41: 7 | AG41: 5.2 | AH41: 27.0999 | AJ41: 521.924
C42: U.S. Highway 30 | D42: EB | E42: 141923 | F42: 142448 | G42: Lt. | K42: 6 | L42: 6 | M42: 6 | N42: 525 | AC42: 6.99 | AD42: 256.8825 | AE42: 48.93 | AG42: 5.94 | AH42: 5.25 | AJ42: 115.5
C43: U.S. Highway 30 | D43: EB | E43: 142448 | F43: 151670 | G43: Lt. | H43: 4 | I43: 4 | J43: 4 | K43: 2 | L43: 2 | M43: 2 | N43: 9222 | T43: 4098.666667 | W43: 3.63 | Y43: =(N43*W43)/27 -> 1239.846667 | Z43: 2343.3102 | AA43: 25.41 | AC43: 1 | AD43: 645.54 | AE43: 7 | AG43: 5.2 | AH43: 92.22 | AJ43: 1776.088889
C45: U.S. Highway 30 | D45: EB | E45: 154093 | F45: 154886 | G45: Lt. | K45: 2 | L45: 2 | M45: 2 | N45: 793 | W45: 1.39 | Y45: =(N45*W45)/27 -> 40.82481481 | Z45: 77.1589 | AA45: 9.73 | AC45: 1.13 | AD45: =IF(AC45="","",AC45*N45*$T$23/2000) -> 62.7263 | AE45: =IF(AC45="","",AC45*100*$T$23/2000) -> 7.91 | AG45: 5.28 | AH45: =IF(N45="","",N45/100) -> 7.93 | AI45: =IF(AF45=0,"",(AF45*N45)/27) ->  | AJ45: =IF(AG45=0,"",(AG45*N45)/27) -> 155.0755556
C47: U.S. Highway 30 | D47: WB | E47: 138900 | F47: 144875 | G47: Rt. | H47: 4 | I47: 4 | J47: 4 | K47: 4 | L47: 4 | M47: 4 | N47: 5975 | T47: 2655.555556 | W47: 5.85 | Y47: =(N47*W47)/27 -> 1294.583333 | Z47: 2446.7625 | AA47: 40.95 | AC47: 2 | AD47: 836.5 | AE47: 14 | AG47: 6.56 | AH47: 59.75 | AJ47: 1451.703704
C48: U.S. Highway 30 | D48: WB | E48: 144875 | F48: 144974.94 | G48: Rt. | K48: 4 | L48: 4 | M48: 4 | N48: 99.94 | AC48: 4.81 | AD48: 33.649798 | AE48: 33.67 | AG48: 9.83 | AH48: 0.9994 | AJ48: 36.38556296
C49: U.S. Highway 30 | D49: WB | E49: 144974.94 | F49: 146105 | G49: Rt. | K49: 6 | L49: 6 | M49: 6 | N49: 1130.06 | AC49: 7.82 | AD49: 618.594844 | AE49: 54.74 | AG49: 11 | AH49: 11.3006 | AJ49: 460.3948148
C50: U.S. Highway 30 | D50: WB | E50: 146105 | F50: 147223.74 | G50: Rt. | H50: 4 | I50: 4 | J50: 4 | K50: 4 | L50: 4 | M50: 4 | N50: 1118.74 | T50: 497.2177778 | W50: 5.85 | Y50: =(N50*W50)/27 -> 242.3936667 | Z50: 458.12403 | AA50: 40.95 | AC50: 2 | AD50: 156.6236 | AE50: 14 | AG50: 6.56 | AH50: 11.1874 | AJ50: 271.8123852
C51: U.S. Highway 30 | D51: WB | E51: 147223.74 | F51: 147489.11 | G51: Rt. | K51: 6 | L51: 6 | M51: 6 | N51: 265.37 | AC51: 7.82 | AD51: 145.263538 | AE51: 54.74 | AG51: 11 | AH51: 2.6537 | AJ51: 108.1137037
C52: U.S. Highway 30 | D52: WB | E52: 147489.11 | F52: 147641.56 | G52: Rt. | H52: 11 | I52: 11 | J52: 11 | N52: 152.45 | T52: 186.3277778 | W52: 8.5 | Y52: =(N52*W52)/27 -> 47.99351852 | Z52: 90.70775 | AA52: 59.5 | AH52: 1.5245
C53: U.S. Highway 30 | D53: WB | E53: 147641.56 | F53: 147792.93 | G53: Rt. | K53: 6 | L53: 6 | M53: 6 | N53: 151.37 | AC53: 7.82 | AD53: 82.859938 | AE53: 54.74 | AG53: 11 | AH53: 1.5137 | AJ53: 61.66925926
C54: U.S. Highway 30 | D54: WB | E54: 147792.93 | F54: 147825 | G54: Rt. | K54: 4 | L54: 4 | M54: 4 | N54: 32.07 | AC54: 4.81 | AD54: 10.797969 | AE54: 33.67 | AG54: 9.83 | AH54: 0.3207 | AJ54: 11.67585556
C55: U.S. Highway 30 | D55: WB | E55: 147825 | F55: 151670 | G55: Rt. | H55: 4 | I55: 4 | J55: 4 | K55: 4 | L55: 4 | M55: 4 | N55: 3845 | T55: 1708.888889 | W55: 5.85 | Y55: =(N55*W55)/27 -> 833.0833333 | Z55: 1574.5275 | AA55: 40.95 | AC55: 2 | AD55: 538.3 | AE55: 14 | AG55: 6.56 | AH55: 38.45 | AJ55: 934.1925926
C57: U.S. Highway 30 | D57: WB | E57: 138900 | F57: 142118 | G57: Lt. | H57: 4 | I57: 4 | J57: 4 | K57: 2 | L57: 2 | M57: 2 | N57: 3218 | T57: 1430.222222 | W57: 3.63 | Y57: =(N57*W57)/27 -> 432.6422222 | Z57: 817.6938 | AA57: 25.41 | AC57: 1 | AD57: 225.26 | AE57: 7 | AG57: 6.18 | AH57: 32.18 | AJ57: 736.5644444
C58: U.S. Highway 30 | D58: WB | E58: 142118 | F58: 142643 | G58: Lt. | K58: 6 | L58: 6 | M58: 6 | N58: 525 | AC58: 6.99 | AD58: 256.8825 | AE58: 48.93 | AG58: 6.18 | AH58: 5.25 | AJ58: 120.1666667
C59: U.S. Highway 30 | D59: WB | E59: 142643 | F59: 151670 | G59: Lt. | H59: 4 | I59: 4 | J59: 4 | K59: 2 | L59: 2 | M59: 2 | N59: 9027 | T59: 4012 | W59: 3.63 | Y59: =(N59*W59)/27 -> 1213.63 | Z59: 2293.7607 | AA59: 25.41 | AC59: 1 | AD59: 631.89 | AE59: 7 | AG59: 6.18 | AH59: 90.27 | AJ59: 2066.18
C61: U.S. Highway 30 | D61: WB | E61: 154108 | F61: 154831 | G61: Lt. | K61: 2 | L61: 2 | M61: =IF(K61<>"",IF(K61=L61,(K61+L61)/2,K61&" to "&L61),"") -> 2 | N61: =IF(E61+F61=0,"",ABS(F61-E61)) -> 723 | W61: 1.39 | Y61: =(N61*W61)/27 -> 37.22111111 | Z61: 70.3479 | AA61: 9.73 | AC61: 1.13 | AD61: =IF(AC61="","",AC61*N61*$T$23/2000) -> 57.1893 | AE61: =IF(AC61="","",AC61*100*$T$23/2000) -> 7.91 | AG61: 5.28 | AH61: =IF(N61="","",N61/100) -> 7.23 | AI61: =IF(AF61=0,"",(AF61*N61)/27) ->  | AJ61: =IF(AG61=0,"",(AG61*N61)/27) -> 141.3866667
C64: U.S. 218 Loop A | D64: EB | E64: 1147915 | F64: 1148664.72 | G64: Rt. | K64: 6 | L64: 6 | M64: 6 | N64: 749.72 | AC64: 9.25 | AD64: 485.4437 | AE64: 64.75 | AG64: 18.35 | AH64: 7.4972 | AJ64: 509.5319259
C65: U.S. 218 Loop A | D65: EB | E65: 1147915 | F65: 1148664.72 | G65: Lt. | K65: 4 | L65: 4 | M65: 4 | N65: 749.72 | AC65: 4.9 | AD65: 257.15396 | AE65: 34.3 | AG65: 12.78 | AH65: 7.4972 | AJ65: 354.8674667
C68: U.S. 218 Loop B | D68: WB | E68: 2147225 | F68: 2147975.06 | G68: Rt. | K68: 6 | L68: 6 | M68: 6 | N68: 750.06 | AC68: 9.25 | AD68: 485.66385 | AE68: 64.75 | AG68: 18.35 | AH68: 7.5006 | AJ68: 509.763
C69: U.S. 218 Loop B | D69: WB | E69: 2147225 | F69: 2147975.06 | G69: Lt. | K69: 4 | L69: 4 | M69: 4 | N69: 750.06 | AC69: 4.9 | AD69: 257.27058 | AE69: 34.3 | AG69: 12.78 | AH69: 7.5006 | AJ69: 355.0284
C72: U.S. 218 Ramp C | D72: WB | E72: 3144055.75 | F72: 3145646.34 | G72: Rt. | K72: 6 | L72: 6 | M72: 6 | N72: 1590.59 | AC72: 8.52 | AD72: 948.627876 | AE72: 59.64 | AG72: 11.33 | AH72: 15.9059 | AJ72: 667.4586926
C73: U.S. 218 Ramp C | D73: WB | E73: 3144055.75 | F73: 3144373.46 | G73: Lt. | K73: 6 | L73: 6 | M73: 6 | N73: 317.71 | AC73: 5.34 | AD73: 118.759998 | AE73: 37.38 | AG73: 12.78 | AH73: 3.1771 | AJ73: 150.3827333
C74: U.S. 218 Ramp C | D74: WB | E74: 3144373.46 | F74: 3145646.34 | G74: Lt. | K74: 4 | L74: 4 | M74: 4 | N74: 1272.88 | AC74: 5.03 | AD74: 448.181048 | AE74: 35.21 | AG74: 11.8 | AH74: 12.7288 | AJ74: 556.2957037
C77: U.S. 218 Ramp D | D77: WB | E77: 4147440.45 | F77: 4148996.32 | G77: Rt. | K77: 6 | L77: 6 | M77: 6 | N77: 1555.87 | AC77: 8.52 | AD77: 927.920868 | AE77: 59.64 | AG77: 11.33 | AH77: 15.5587 | AJ77: 652.8891519
C78: U.S. 218 Ramp D | D78: WB | E78: 4147440.45 | F78: 4147760.34 | G78: Lt. | K78: 6 | L78: 6 | M78: 6 | N78: 319.89 | AC78: 5.34 | AD78: 119.574882 | AE78: 37.38 | AG78: 12.78 | AH78: 3.1989 | AJ78: 151.4146
C79: U.S. 218 Ramp D | D79: WB | E79: 4147760.34 | F79: 4148996.32 | G79: Lt. | K79: 4 | L79: 4 | M79: 4 | N79: 1235.98 | AC79: 5.03 | AD79: 435.188558 | AE79: 35.21 | AG79: 11.8 | AH79: 12.3598 | AJ79: 540.169037
C82: U.S. Highway 218 | D82: NB | E82: 24146800 | F82: 24147098.3 | G82: Rt. | K82: 4 | L82: 4 | M82: 4 | N82: 298.3 | AC82: 2.13 | AD82: 44.47653 | AE82: 14.91 | AG82: 10.87 | AH82: 2.983 | AJ82: 120.0933704
C83: U.S. Highway 218 | D83: NB | E83: 24147098.3 | F83: 24147245 | G83: Rt. | H83: 4 | I83: 4 | J83: 4 | K83: 4 | L83: 4 | M83: 4 | N83: 146.7 | T83: 65.2 | W83: 7.81 | Y83: =(N83*W83)/27 -> 42.43433333 | Z83: 80.20089 | AA83: 54.67 | AC83: 2.13 | AD83: 21.87297 | AE83: 14.91 | AG83: 10.87 | AH83: 1.467 | AJ83: 59.06033333
C84: U.S. Highway 218 | D84: NB | E84: 24147245 | F84: 24147277.84 | G84: Rt. | H84: 11.1 | I84: 11.1 | J84: 11.1 | N84: 32.84 | T84: 40.50266667 | W84: 11.74 | Y84: 14.27931852 | Z84: 26.987912 | AA84: 82.18 | AG84: 9.95 | AH84: 0.3284 | AJ84: 12.10214815
C85: U.S. Highway 218 | D85: NB | E85: 24147277.84 | F85: 24147315.24 | G85: Rt. | H85: 11.1 | I85: 9.6 | J85: 11.1 to 9.6 | N85: 37.4 | T85: 43.01 | W85: 11.33 | Y85: 15.69414815 | Z85: 29.66194 | AA85: 79.31 | AG85: 9.73 | AH85: 0.374 | AJ85: 13.47785185
C86: U.S. Highway 218 | D86: NB | E86: 24147315.24 | F86: 24147375 | G86: Rt. | H86: 9.6 | I86: 9.6 | J86: 9.6 | N86: 59.76 | T86: 63.744 | W86: 10.12 | Y86: 22.39893333 | Z86: 42.333984 | AA86: 70.84 | AG86: 8.49 | AH86: 0.5976 | AJ86: 18.7912 | AK86: (1)
C87: U.S. Highway 218 | D87: NB | E87: 24147375 | F87: 24147425.72 | G87: Rt. | H87: 9.6 | I87: 9.6 | J87: 9.6 | N87: 50.72 | U87: 75.4 | W87: 5.44 | Y87: 10.21914074 | Z87: 19.314176 | AA87: 38.08
C88: U.S. Highway 218 | D88: NB | E88: 24147725.72 | F88: 24147757.98 | G88: Rt. | H88: 9.6 | I88: 9.6 | J88: 9.6 | N88: 32.26 | T88: 34.41066667 | W88: 10.12 | Y88: 12.09152593 | Z88: 22.852984 | AA88: 70.84 | AG88: 10.87 | AH88: 0.3226 | AJ88: 12.98763704
C89: U.S. Highway 218 | D89: NB | E89: 24147757.98 | F89: 24147795.39 | G89: Rt. | H89: 9.6 | I89: 11.1 | J89: 9.6 to 11.1 | N89: 37.41 | T89: 43.0215 | W89: 11.33 | Y89: 15.69834444 | Z89: 29.669871 | AA89: 79.31 | AG89: 10.87 | AH89: 0.3741 | AJ89: 15.06098889
C90: U.S. Highway 218 | D90: NB | E90: 24147795.39 | F90: 24147827.65 | G90: Rt. | H90: 11.1 | I90: 11.1 | J90: 11.1 | N90: 32.26 | T90: 39.78733333 | W90: 11.74 | Y90: 14.02712593 | Z90: 26.511268 | AA90: 82.18 | AG90: 10.87 | AH90: 0.3226 | AJ90: 12.98763704
C91: U.S. Highway 218 | D91: NB | E91: 24147827.65 | F91: 24150300 | G91: Rt. | H91: 4 | I91: 4 | J91: 4 | K91: 4 | L91: 4 | M91: 4 | N91: 2472.35 | T91: 1098.822222 | W91: 7.81 | Y91: 715.1501296 | Z91: 1351.633745 | AA91: 54.67 | AC91: 2.13 | AD91: 368.627385 | AE91: 14.91 | AG91: 10.87 | AH91: 24.7235 | AJ91: 995.3497963
C93: (Continued on next page)
C105: (Continued from previous page)
C107: U.S. Highway 218 | D107: SB | E107: 24146800 | F107: 24147008 | G107: Rt. | H107: 4 | I107: 4 | J107: 4 | K107: 4 | L107: 4 | M107: 4 | N107: 208 | T107: 92.44444444 | W107: 7.81 | Y107: =(N107*W107)/27 -> 60.16592593 | Z107: 113.7136 | AA107: 54.67 | AC107: 2.13 | AD107: 31.0128 | AE107: 14.91 | AG107: 10.87 | AH107: 2.08 | AJ107: 83.73925926
C108: U.S. Highway 218 | D108: SB | E108: 24147008 | F108: 24147040.34 | G108: Rt. | H108: 11.1 | I108: 11.1 | J108: 11.1 | N108: 32.34 | T108: 39.886 | W108: 11.74 | Y108: 14.06191111 | Z108: 26.577012 | AA108: 82.18 | AG108: 9.72 | AH108: 0.3234 | AJ108: 11.6424
C109: U.S. Highway 218 | D109: SB | E109: 24147040.34 | F109: 24147077.74 | G109: Rt. | H109: 11.1 | I109: 9.6 | J109: 11.1 to 9.6 | N109: 37.4 | T109: 43.01 | W109: 11.33 | Y109: 15.69414815 | Z109: 29.66194 | AA109: 79.31 | AG109: 9.85 | AH109: 0.374 | AJ109: 13.64407407
C110: U.S. Highway 218 | D110: SB | E110: 24147077.74 | F110: 24147125 | G110: Rt. | H110: 9.6 | I110: 9.6 | J110: 9.6 | N110: 47.26 | T110: 50.41066667 | W110: 10.12 | Y110: 17.71374815 | Z110: 33.478984 | AA110: 70.84 | AG110: 9.12 | AH110: 0.4726 | AJ110: 15.96337778
C111: U.S. Highway 218 | D111: SB | E111: 24147125 | F111: 24147425.72 | G111: Rt. | H111: 9.6 | I111: 9.6 | J111: 9.6 | N111: 300.72 | U111: 320.8 | W111: 5.44 | Y111: 60.58951111 | Z111: 114.514176 | AA111: 38.08
C112: U.S. Highway 218 | D112: SB | E112: 24147725.72 | F112: 24147807.98 | G112: Rt. | H112: 9.6 | I112: 9.6 | J112: 9.6 | N112: 82.26 | T112: 87.744 | W112: 10.12 | Y112: 30.83226667 | Z112: 58.272984 | AA112: 70.84 | AG112: 10.87 | AH112: 0.8226 | AJ112: 33.11726667
C113: U.S. Highway 218 | D113: SB | E113: 24147807.98 | F113: 24147845.39 | G113: Rt. | H113: 9.6 | I113: 11.1 | J113: 9.6 to 11.1 | N113: 37.41 | T113: 43.0215 | W113: 11.33 | Y113: 15.69834444 | Z113: 29.669871 | AA113: 79.31 | AG113: 10.87 | AH113: 0.3741 | AJ113: 15.06098889
C114: U.S. Highway 218 | D114: SB | E114: 24147845.39 | F114: 24147877.65 | G114: Rt. | H114: 11.1 | I114: 11.1 | J114: 11.1 | N114: 32.26 | T114: 39.78733333 | W114: 11.74 | Y114: 14.02712593 | Z114: 26.511268 | AA114: 82.18 | AG114: 10.87 | AH114: 0.3226 | AJ114: 12.98763704
C115: U.S. Highway 218 | D115: SB | E115: 24147877.65 | F115: 24148039.82 | G115: Rt. | H115: 4 | I115: 4 | J115: 4 | K115: 4 | L115: 4 | M115: 4 | N115: 162.17 | T115: 72.07555556 | W115: 7.81 | Y115: 46.90917407 | Z115: 88.658339 | AA115: 54.67 | AC115: 2.13 | AD115: 24.179547 | AE115: 14.91 | AG115: 10.87 | AH115: 1.6217 | AJ115: 65.28844074
C116: U.S. Highway 218 | D116: SB | E116: 24148039.82 | F116: 24148074.05 | G116: Rt. | K116: 4 | L116: 4 | M116: 4 | N116: 34.23 | AC116: 2.13 | AD116: 5.103693 | AE116: 14.91 | AG116: 10.87 | AH116: 0.3423 | AJ116: 13.78074444
C117: U.S. Highway 218 | D117: SB | E117: 24148074.05 | F117: 24148946.4 | G117: Rt. | K117: 6 | L117: 6 | M117: 6 | N117: 872.35 | AC117: 3.13 | AD117: 191.131885 | AE117: 21.91 | AG117: 10.87 | AH117: 8.7235 | AJ117: 351.2016481
C118: U.S. Highway 218 | D118: SB | E118: 24148946.4 | F118: 24148976.2 | G118: Rt. | K118: 4 | L118: 4 | M118: 4 | N118: 29.8 | AC118: 2.13 | AD118: 4.44318 | AE118: 14.91 | AG118: 10.87 | AH118: 0.298 | AJ118: 11.99725926
C119: U.S. Highway 218 | D119: SB | E119: 24148976.2 | F119: 24150300 | G119: Rt. | H119: 4 | I119: 4 | J119: =IF(H119<>"",IF(H119=I119,(H119+I119)/2,H119&" to "&I119),"") -> 4 | K119: 4 | L119: 4 | M119: =IF(K119<>"",IF(K119=L119,(K119+L119)/2,K119&" to "&L119),"") -> 4 | N119: =IF(E119+F119=0,"",ABS(F119-E119)) -> 1323.8 | Q119: =IF(P119="","",P119*N119*$G$23/2000) ->  | R119: =IF(P119="","",P119*100*$G$23/2000) ->  | S119: =IF(Q119<>"",Q119*0.06,"") ->  | T119: =IF(H119<>"",((H119+I119)/2)*N119/9,"") -> 588.3555556 | W119: 7.81 | X119: =IF(V119="","",V119*N119*$N$23/2000) ->  | Y119: =(N119*W119)/27 -> 382.9214074 | Z119: =IF(W119="","",W119*N119*$N$23/2000) -> 723.72146 | AA119: =IF(W119="","",W119*100*$N$23/2000) -> 54.67 | AC119: 2.13 | AD119: =IF(AC119="","",AC119*N119*$T$23/2000) -> 197.37858 | AE119: =IF(AC119="","",AC119*100*$T$23/2000) -> 14.91 | AG119: 10.87 | AH119: =IF(N119="","",N119/100) -> 13.238 | AI119: =IF(AF119=0,"",(AF119*N119)/27) ->  | AJ119: =IF(AG119=0,"",(AG119*N119)/27) -> 532.9520741
Y120: =IF(V120="","",V120*100*$N$23/2000) -> 
S121: TOTALS: | T121: =SUM(T33:T119) -> 23540.26789 | U121: =SUM(U33:U119) -> 396.2 | Y121: =SUM(Y33:Y119) -> 9832.254663 | Z121: =SUM(Z33:Z119) -> 18582.96131 | AD121: =SUM(AD33:AD119) -> 12729.183 | AH121: =SUM(AH33:AH119) -> 685.2403 | AJ121: =SUM(AJ33:AJ119) -> 19449.79595
C124: NOTES:
C125: (1) Includes 28 LF of 4" sloped curb for DR-402 Rock Flume. See Tab. 104-8A for location.
J183: =IF(H183<>"",IF(H183=I183,(H183+I183)/2,H183&" to "&I183),"") ->  | M183: =IF(K183<>"",IF(K183=L183,(K183+L183)/2,K183&" to "&L183),"") ->  | N183: =IF(E183+F183=0,"",ABS(F183-E183)) ->  | Q183: =IF(P183="","",P183*N183*$G$23/2000) ->  | R183: =IF(P183="","",P183*100*$G$23/2000) ->  | S183: =IF(Q183<>"",Q183*0.06,"") ->  | T183: =IF(H183<>"",((H183+I183)/2)*N183/9,"") ->  | X183: =IF(V183="","",V183*N183*$N$23/2000) ->  | Z183: =IF(W183="","",W183*N183*$N$23/2000) ->  | AA183: =IF(W183="","",W183*100*$N$23/2000) ->  | AD183: =IF(AC183="","",AC183*N183*$T$23/2000) ->  | AE183: =IF(AC183="","",AC183*100*$T$23/2000) ->  | AH183: =IF(N183="","",N183/100) ->  | AI183: =IF(AF183=0,"",(AF183*N183)/27) ->  | AJ183: =IF(AG183=0,"",(AG183*N183)/27) -> 
Y184: =IF(V184="","",V184*100*$N$23/2000) -> 
J247: =IF(H247<>"",IF(H247=I247,(H247+I247)/2,H247&" to "&I247),"") ->  | M247: =IF(K247<>"",IF(K247=L247,(K247+L247)/2,K247&" to "&L247),"") ->  | N247: =IF(E247+F247=0,"",ABS(F247-E247)) ->  | Q247: =IF(P247="","",P247*N247*$G$23/2000) ->  | R247: =IF(P247="","",P247*100*$G$23/2000) ->  | S247: =IF(Q247<>"",Q247*0.06,"") ->  | T247: =IF(H247<>"",((H247+I247)/2)*N247/9,"") ->  | X247: =IF(V247="","",V247*N247*$N$23/2000) ->  | Z247: =IF(W247="","",W247*N247*$N$23/2000) ->  | AA247: =IF(W247="","",W247*100*$N$23/2000) ->  | AD247: =IF(AC247="","",AC247*N247*$T$23/2000) ->  | AE247: =IF(AC247="","",AC247*100*$T$23/2000) ->  | AH247: =IF(N247="","",N247/100) ->  | AI247: =IF(AF247=0,"",(AF247*N247)/27) ->  | AJ247: =IF(AG247=0,"",(AG247*N247)/27) -> 
Y248: =IF(V248="","",V248*100*$N$23/2000) -> 
J311: =IF(H311<>"",IF(H311=I311,(H311+I311)/2,H311&" to "&I311),"") ->  | M311: =IF(K311<>"",IF(K311=L311,(K311+L311)/2,K311&" to "&L311),"") ->  | N311: =IF(E311+F311=0,"",ABS(F311-E311)) ->  | Q311: =IF(P311="","",P311*N311*$G$23/2000) ->  | R311: =IF(P311="","",P311*100*$G$23/2000) ->  | S311: =IF(Q311<>"",Q311*0.06,"") ->  | T311: =IF(H311<>"",((H311+I311)/2)*N311/9,"") ->  | X311: =IF(V311="","",V311*N311*$N$23/2000) ->  | Z311: =IF(W311="","",W311*N311*$N$23/2000) ->  | AA311: =IF(W311="","",W311*100*$N$23/2000) ->  | AD311: =IF(AC311="","",AC311*N311*$T$23/2000) ->  | AE311: =IF(AC311="","",AC311*100*$T$23/2000) ->  | AH311: =IF(N311="","",N311/100) ->  | AI311: =IF(AF311=0,"",(AF311*N311)/27) ->  | AJ311: =IF(AG311=0,"",(AG311*N311)/27) -> 
Y312: =IF(V312="","",V312*100*$N$23/2000) -> 
